Workbook

Sheet Summary
B2: Inputs: | L2: Assumptions: | N2: Current year plus three required data set.
C3: Rate Impact for Year (2024-2028) | D3: 2025 | I3: Include CA Climate Credit in Rates | J3: N | L3: Current Effective Rates | N3: 2024-06-01
C4: Baseline Region - (Residential bill) | D4: 9 warm | I4: Typical residential average usage kWh/month | J4: 500 | L4: Sales Forecast | N4: =D3 -> 2025
L5: Residential bill calculated using | N5: Schedule D, Basic, Single Family | S5: Annual Usage
L6: Non-CARE bill impact calculated with average summer usage of | P6: =IF($D$4="All",SUMPRODUCT('Res Bill Impact'!P$22:P$30,'Res Bill Impact'!$T$22:$T$30),VLOOKUP(D$4,'Res Bill Impact'!$O$22:$S$30,2,FALSE)) -> 649.7090395 | Q6: kWh per month | R6: Non-CARE | S6: =(P6*4)+(P7*8) -> 6281.598952
B7: Pending Proceedings | D7: Include in Impact (Y) | E7: Applicable Year(s) | L7: Non-CARE bill impact calculated with average winter usage of | P7: =IF($D$4="All",SUMPRODUCT('Res Bill Impact'!Q$22:Q$30,'Res Bill Impact'!$T$22:$T$30),VLOOKUP(D$4,'Res Bill Impact'!$O$22:$S$30,3,FALSE)) -> 460.3453492 | Q7: kWh per month
B8: 2025 GRC | D8: Y | E8: 2025-2028 | L8: CARE bill impact calculated with average summer usage of | P8: =IF($D$4="All",SUMPRODUCT('Res Bill Impact'!R$22:R$30,'Res Bill Impact'!$U$22:$U$30),VLOOKUP(D$4,'Res Bill Impact'!$O$22:$S$30,4,FALSE)) -> 599.1816396 | Q8: kWh per month | R8: CARE | S8: =(P8*4)+(P9*8) -> 5832.684305
B9: 2025 ERRA Forecast | D9: Y | E9: 2025-28 | L9: CARE bill impact calculated with average winter usage of | P9: =IF($D$4="All",SUMPRODUCT('Res Bill Impact'!S$22:S$30,'Res Bill Impact'!$U$22:$U$30),VLOOKUP(D$4,'Res Bill Impact'!$O$22:$S$30,5,FALSE)) -> 429.4947183 | Q9: kWh per month
B10: Diablo Canyon NBC | D10: Y | E10: 2025-2030 | L10: Essential Use (Basic) bill impact calculated with average summer usage of | P10: =IF($D$4="All",SUMPRODUCT('Res Bill Impact'!I$22:I$30,'Res Bill Impact'!$T$22:$T$30),VLOOKUP(D$4,'Res Bill Impact'!$H$22:$L$30,2,FALSE)) -> 514.0473 | Q10: kWh per month | R10: Essential Use (Basic) | S10: =(P10*4)+(P11*8) -> 4976.2212
B11: WMCE | D11: Y | E11: 2025 | L11: Essential Use (Basic) bill impact calculated with average winter usage of | P11: =IF($D$4="All",SUMPRODUCT('Res Bill Impact'!J$22:J$30,'Res Bill Impact'!$T$22:$T$30),VLOOKUP(D$4,'Res Bill Impact'!$H$22:$L$30,3,FALSE)) -> 365.004 | Q11: kWh per month
B12: 2021 ERRA Review | D12: Y | E12: 2025 | L12: Essential Use (All-Electric) bill impact calculated with average summer usage of | P12: =IF($D$4="All",SUMPRODUCT('Res Bill Impact'!K$22:K$30,'Res Bill Impact'!$T$22:$T$30),VLOOKUP(D$4,'Res Bill Impact'!$H$22:$L$30,4,FALSE)) -> 380.2125 | Q12: kWh per month | R12: Essential Use (All-Electric) | S12: =(P12*4)+(P13*8) -> 4903.2204
B13: 2022 ERRA Review | D13: Y | E13: 2025 | L13: Essential Use (All-Electric) bill impact calculated with average winter usage of | P13: =IF($D$4="All",SUMPRODUCT('Res Bill Impact'!L$22:L$30,'Res Bill Impact'!$T$22:$T$30),VLOOKUP(D$4,'Res Bill Impact'!$H$22:$L$30,5,FALSE)) -> 422.7963 | Q13: kWh per month
B14: 2023 ERRA Review | D14: Y | E14: 2026 | L14: Average monthly usage is for all customers (Non-CARE and CARE) based on seasonal usage in | R14: 2023
B15: 2022 WM/VM (Non-IRR Portion) | D15: Y | E15: 2025 | L15: Summer season | N15: 4 | O15: months
B16: Thomas Fire WEMA FRC | D16: Y | E16: 2026-2028 | L16: Winter Season | N16: 8 | O16: months
B17: Thomas Fire CEMA | D17: Y | E17: 2025 | L17: Residential Bi-Annual Climate Credit | N17: -86
B18: FERC TO 2025 | D18: Y | E18: 2025-28
B25: Outputs: | E25: Column (B) will be used for additional 2024 rate changes.
D26: (A) | E26: (B) | F26: (C) | G26: (D) | H26: (D)/(A) | I26: (D)/(B) | J26: (D)/(C) | N26: (A) | O26: (B) | P26: (C) | Q26: (D) | R26: (D)/(A) | S26: (D)/(B) | T26: (D)/(C)
B27: Bundled Average Rates - ¢/kWh | L27: Total System (Bundled and Unbundled) Average Rates - ¢/kWh
B28: Customer Group | D28: 2024-01-01 | E28: =N3 -> 2024-06-01 | F28: =$D$3&" Authorized" -> 2025 Authorized | G28: =$D$3&" w/Pending" -> 2025 w/Pending | H28: % Change over 1/1/2024 | I28: % Change over 6/1/2024 | J28: % Change over Authorized | L28: Customer Group | N28: =$D$28 -> 2024-01-01 | O28: =$E$28 -> 2024-06-01 | P28: =$D$3&" Authorized" -> 2025 Authorized | Q28: =$D$3&" w/Pending" -> 2025 w/Pending | R28: =$H$28 -> % Change over 1/1/2024 | S28: =$I$28 -> % Change over 6/1/2024 | T28: % Change over Authorized
B29: Residential | D29: =IF(J3="Y",'SAR and RAR'!W28,'SAR and RAR'!X28) -> 33.3931272 | E29: ='SAR and RAR'!G28 -> 33.23324111 | F29: ='SAR and RAR'!H28 -> 29.76439986 | G29: ='SAR and RAR'!I28 -> 35.55682559 | H29: =$G29/D29-1 -> 0.06479472185 | I29: =$G29/E29-1 -> 0.06991748018 | J29: =$G29/F29-1 -> 0.1946091893 | L29: Total Residential (RAR) | N29: =IF(J3="Y",'SAR and RAR'!Z28,'SAR and RAR'!AA28) -> 29.10809807 | O29: ='SAR and RAR'!O28 -> 29.235246 | P29: ='SAR and RAR'!P28 -> 27.11861788 | Q29: ='SAR and RAR'!Q28 -> 32.79750212 | R29: =$Q29/N29-1 -> 0.1267483725 | S29: 0.1218479956 | T29: 0.2094090587
C30: Small Commercial | D30: =IF(J3="Y",'SAR and AR (GS1)'!W28,'SAR and AR (GS1)'!X28) -> 30.14551612 | E30: ='SAR and AR (GS1)'!G28 -> 29.77504518 | F30: ='SAR and AR (GS1)'!H28 -> 26.94797742 | G30: ='SAR and AR (GS1)'!I28 -> 31.72444038 | H30: 0.05237675316 | I30: =$G30/E30-1 -> 0.06547077217 | J30: =$G30/F30-1 -> 0.1772475495 | M30: Total Small Commercial (AR) | N30: =IF(J3="Y",'SAR and AR (GS1)'!Z28,'SAR and AR (GS1)'!AA28) -> 26.47868339 | O30: ='SAR and AR (GS1)'!O28 -> 26.33886367 | P30: ='SAR and AR (GS1)'!P28 -> 23.78095517 | Q30: ='SAR and AR (GS1)'!Q28 -> 28.31991378 | R30: =$Q30/N30-1 -> 0.0695363269 | S30: =$Q30/O30-1 -> 0.07521395486 | T30: =$Q30/P30-1 -> 0.1908652773
B31: System | D31: =IF(J3="Y",'SAR and RAR'!W29,'SAR and RAR'!X29) -> 28.1784653 | E31: ='SAR and RAR'!G29 -> 27.97629791 | F31: ='SAR and RAR'!H29 -> 25.04690984 | G31: ='SAR and RAR'!I29 -> 29.66876845 | H31: 0.05288801711 | I31: =$G31/E31-1 -> 0.06049658707 | J31: =$G31/F31-1 -> 0.184528097 | L31: Total System (SAR) | N31: =IF(J3="Y",'SAR and RAR'!Z29,'SAR and RAR'!AA29) -> 23.14130572 | O31: ='SAR and RAR'!O29 -> 23.20741957 | P31: ='SAR and RAR'!P29 -> 21.44332881 | Q31: ='SAR and RAR'!Q29 -> 25.72349937 | R31: 0.1115837487 | S31: 0.1084170427 | T31: 0.1996038299
B34: Bundled Residential Monthly Average Bills
D35: =$D$28 -> 2024-01-01 | E35: =$E$28 -> 2024-06-01 | F35: =$D$3&" Authorized" -> 2025 Authorized | G35: =$D$3&" w/Pending" -> 2025 w/Pending | H35: =$H$28 -> % Change over 1/1/2024 | I35: =$I$28 -> % Change over 6/1/2024 | J35: % Change over Authorized
B36: Non-CARE | D36: =((D42*4)+(D48*8))/12 -> 173.7389697 | E36: =((E42*4)+(E48*8))/12 -> 172.8524715 | F36: 150.8413775 | G36: 182.9937254 | H36: =$G36/D36-1 -> 0.05326816269 | I36: 0.05866999649 | J36: =$G36/F36-1 -> 0.2131533696
B37: CARE | D37: 102.0385024 | E37: =((E43*4)+(E49*8))/12 -> 101.4880024 | F37: 87.88615932 | G37: 107.7548306 | H37: 0.0560212863 | I37: 0.06174944846 | J37: 0.2260728126
B38: Total | D38: 148.6438061 | E38: =((E44*4)+(E50*8))/12 -> 147.8749073 | F38: 128.8070511 | G38: 156.6601122 | H38: 0.053929634 | I38: 0.05940970684 | J38: =$G38/F38-1 -> 0.2162386361
B40: Bundled Residential Monthly Average Bills - Summer
D41: =$D$28 -> 2024-01-01 | E41: =$E$28 -> 2024-06-01 | F41: =$D$3&" Authorized" -> 2025 Authorized | G41: =$D$3&" w/Pending" -> 2025 w/Pending | H41: =$H$28 -> % Change over 1/1/2024 | I41: =$I$28 -> % Change over 6/1/2024 | J41: % Change over Authorized
B42: Non-CARE | D42: =VLOOKUP($D$4,'Res Bill Impact'!$B$37:$J$46,2,FALSE)+O17 -> 218.931201 | E42: =VLOOKUP($D$4,'Res Bill Impact'!$B$37:$J$46,4,FALSE) -> 217.8306187 | F42: =VLOOKUP($D$4,'Res Bill Impact'!$B$37:$J$46,6,FALSE) -> 190.5038709 | G42: =VLOOKUP($D$4,'Res Bill Impact'!$B$37:$J$46,8,FALSE) -> 230.4209738 | H42: =$G42/D42-1 -> 0.05248120289 | I42: 0.05779883057 | J42: =$G42/F42-1 -> 0.2095343399
B43: CARE | D43: =VLOOKUP($D$4,'Res Bill Impact'!$B$52:$J$61,2,FALSE) -> 128.7742739 | E43: =VLOOKUP($D$4,'Res Bill Impact'!$B$52:$J$61,4,FALSE) -> 128.096477 | F43: =VLOOKUP($D$4,'Res Bill Impact'!$B$52:$J$61,6,FALSE) -> 111.3499637 | G43: =VLOOKUP($D$4,'Res Bill Impact'!$B$52:$J$61,8,FALSE) -> 135.8121608 | H43: 0.05465289546 | I43: 0.06023338079 | J43: 0.219687518
B44: Total | D44: =D42*0.65+D43*0.35 -> 187.3762765 | E44: =E42*0.65+E43*0.35 -> 186.4236691 | F44: =F42*0.65+F43*0.35 -> 162.8000034 | G44: =G42*0.65+G43*0.35 -> 197.3078892 | H44: 0.0530035761 | I44: 0.0583843252 | J44: =$G44/F44-1 -> 0.2119648964
B46: Bundled Residential Monthly Average Bills - Winter
D47: =$D$28 -> 2024-01-01 | E47: =$E$28 -> 2024-06-01 | F47: =$D$3&" Authorized" -> 2025 Authorized | G47: =$D$3&" w/Pending" -> 2025 w/Pending | H47: =$H$28 -> % Change over 1/1/2024 | I47: =$I$28 -> % Change over 6/1/2024 | J47: % Change over Authorized
B48: Non-CARE | D48: =VLOOKUP($D$4,'Res Bill Impact'!$B$37:$J$46,3,FALSE) -> 151.142854 | E48: =VLOOKUP($D$4,'Res Bill Impact'!$B$37:$J$46,5,FALSE) -> 150.3633979 | F48: =VLOOKUP($D$4,'Res Bill Impact'!$B$37:$J$46,7,FALSE) -> 131.0101308 | G48: =VLOOKUP($D$4,'Res Bill Impact'!$B$37:$J$46,9,FALSE) -> 159.2801012 | H48: =$G48/D48-1 -> 0.05383812034 | I48: 0.0593010231 | J48: =$G48/F48-1 -> 0.2157846132
B49: CARE | D49: =VLOOKUP($D$4,'Res Bill Impact'!$B$52:$J$61,3,FALSE) -> 88.67061665 | E49: =VLOOKUP($D$4,'Res Bill Impact'!$B$52:$J$61,5,FALSE) -> 88.18376509 | F49: =VLOOKUP($D$4,'Res Bill Impact'!$B$52:$J$61,7,FALSE) -> 76.15425714 | G49: =VLOOKUP($D$4,'Res Bill Impact'!$B$52:$J$61,9,FALSE) -> 93.72616542 | H49: 0.05701492739 | I49: 0.06285057476 | J49: 0.2307409846
B50: Total | D50: =D48*0.65+D49*0.35 -> 129.277571 | E50: =E48*0.65+E49*0.35 -> 128.6005264 | F50: =F48*0.65+F49*0.35 -> 111.810575 | G50: =G48*0.65+G49*0.35 -> 136.3362237 | H50: 0.05460075305 | I50: 0.06015292078 | J50: 0.2193499913
B53: Bundled Residential Monthly Average Bills
D54: =$D$28 -> 2024-01-01 | E54: =$E$28 -> 2024-06-01 | F54: =$D$3&" Authorized" -> 2025 Authorized | G54: =$D$3&" w/Pending" -> 2025 w/Pending | H54: =$H$28 -> % Change over 1/1/2024 | I54: =$I$28 -> % Change over 6/1/2024 | J54: % Change over Authorized
B55: Essential Use (Basic) - Non-CARE | D55: =((D62*4)+(D69*8))/12 -> 140.8796338 | E55: 140.2161377 | F55: 123.7560614 | G55: 147.7998504 | H55: =$G55/D55-1 -> 0.04912148295 | I55: 0.0540858764 | J55: =$G55/F55-1 -> 0.1942837281
B56: Essential Use (Basic) - CARE | D56: 95.57262922 | E56: 95.12062246 | F56: 83.96525247 | G56: 100.2602779 | H56: 0.04904802494 | I56: 0.05403303014 | J56: =$G56/F56-1 -> 0.1940686769
B57: Essential Use (All-Electric) - Non-CARE | D57: 138.8267297 | E57: 138.172967 | F57: 121.9543588 | G57: 145.6454271 | H57: 0.04911660369 | I57: 0.0540804786 | J57: 0.1942617599
B58: Essential Use (All-Electric) - CARE | D58: 94.18129481 | E58: 93.73591895 | F58: 82.74419742 | G58: 98.80017605 | H58: 0.04904244785 | I58: 0.05402685703 | J58: 0.1940435599
B60: Bundled Residential Monthly Average Bills - Summer
D61: =$D$28 -> 2024-01-01 | E61: =$E$28 -> 2024-06-01 | F61: =$D$3&" Authorized" -> 2025 Authorized | G61: =$D$3&" w/Pending" -> 2025 w/Pending | H61: =$H$28 -> % Change over 1/1/2024 | I61: =$I$28 -> % Change over 6/1/2024 | J61: % Change over Authorized
B62: Essential Use (Basic) - Non-CARE | D62: =IF($D$4="All",'Res Bill Impact'!M46,('Res Bill Impact'!C22*VLOOKUP($D$4,'Res Bill Impact'!$H$22:$L$30,2,FALSE))+ROUND('Res Bill Impact'!F14*365/12,2)) -> 174.4104019 | E62: =IF($D$4="All",'Res Bill Impact'!O46,('Res Bill Impact'!D22*VLOOKUP($D$4,'Res Bill Impact'!$H$22:$L$30,2,FALSE))+ROUND('Res Bill Impact'!F14*365/12,2)) -> 173.5879262 | F62: =IF($D$4="All",'Res Bill Impact'!Q46,('Res Bill Impact'!E22*VLOOKUP($D$4,'Res Bill Impact'!$H$22:$L$30,2,FALSE))+ROUND('Res Bill Impact'!F14*365/12,2)) -> 153.1838707 | G62: =IF($D$4="All",'Res Bill Impact'!S46,('Res Bill Impact'!F22*VLOOKUP($D$4,'Res Bill Impact'!$H$22:$L$30,2,FALSE))+ROUND('Res Bill Impact'!F14*365/12,2)) -> 182.9887632 | H62: =$G62/D62-1 -> 0.04918491806 | I62: 0.05415605342 | J62: =$G62/F62-1 -> 0.1945693911
B63: Essential Use (Basic) - CARE | D63: =IF($D$4="all",'Res Bill Impact'!W46,('Res Bill Impact'!C28*VLOOKUP($D$4,'Res Bill Impact'!$H$22:$L$30,2,FALSE))+ROUND('Res Bill Impact'!P14*365/12,2)) -> 118.297758 | E63: =IF($D$4="all",'Res Bill Impact'!Y46,('Res Bill Impact'!D28*VLOOKUP($D$4,'Res Bill Impact'!$H$22:$L$30,2,FALSE))+ROUND('Res Bill Impact'!P14*365/12,2)) -> 117.7374464 | F63: =IF($D$4="all",'Res Bill Impact'!AA46,('Res Bill Impact'!E28*VLOOKUP($D$4,'Res Bill Impact'!$H$22:$L$30,2,FALSE))+ROUND('Res Bill Impact'!P14*365/12,2)) -> 103.9091516 | G63: =IF($D$4="all",'Res Bill Impact'!AC46,('Res Bill Impact'!F28*VLOOKUP($D$4,'Res Bill Impact'!$H$22:$L$30,2,FALSE))+ROUND('Res Bill Impact'!P14*365/12,2)) -> 124.1086086 | H63: 0.04912054708 | I63: 0.05411330329 | J63: =$G63/F63-1 -> 0.1943953605
B64: Essential Use (All-Electric) - Non-CARE | D64: =IF($D$4="all",'Res Bill Impact'!M61,('Res Bill Impact'!C22*VLOOKUP($D$4,'Res Bill Impact'!$H$22:$L$30,4,FALSE))+ROUND('Res Bill Impact'!F14*365/12,2)) -> 129.2465103 | E64: =IF($D$4="all",'Res Bill Impact'!O61,('Res Bill Impact'!D22*VLOOKUP($D$4,'Res Bill Impact'!$H$22:$L$30,4,FALSE))+ROUND('Res Bill Impact'!F14*365/12,2)) -> 128.6381703 | F64: =IF($D$4="all",'Res Bill Impact'!Q61,('Res Bill Impact'!E22*VLOOKUP($D$4,'Res Bill Impact'!$H$22:$L$30,4,FALSE))+ROUND('Res Bill Impact'!F14*365/12,2)) -> 113.5464133 | G64: =IF($D$4="all",'Res Bill Impact'!S61,('Res Bill Impact'!F22*VLOOKUP($D$4,'Res Bill Impact'!$H$22:$L$30,4,FALSE))+ROUND('Res Bill Impact'!F14*365/12,2)) -> 135.5914521 | H64: 0.04909178434 | I64: 0.0540530217 | J64: 0.1941500235
B65: Essential Use (All-Electric) - CARE | D65: =IF($D$4="all",'Res Bill Impact'!W61,('Res Bill Impact'!C28*VLOOKUP($D$4,'Res Bill Impact'!$H$22:$L$30,4,FALSE))+ROUND('Res Bill Impact'!P14*365/12,2)) -> 87.68840088 | E65: =IF($D$4="all",'Res Bill Impact'!Y61,('Res Bill Impact'!D28*VLOOKUP($D$4,'Res Bill Impact'!$H$22:$L$30,4,FALSE))+ROUND('Res Bill Impact'!P14*365/12,2)) -> 87.27396925 | F65: =IF($D$4="all",'Res Bill Impact'!AA61,('Res Bill Impact'!E28*VLOOKUP($D$4,'Res Bill Impact'!$H$22:$L$30,4,FALSE))+ROUND('Res Bill Impact'!P14*365/12,2)) -> 77.04594053 | G65: =IF($D$4="all",'Res Bill Impact'!AC61,('Res Bill Impact'!F28*VLOOKUP($D$4,'Res Bill Impact'!$H$22:$L$30,4,FALSE))+ROUND('Res Bill Impact'!P14*365/12,2)) -> 91.98636729 | H65: 0.04901408134 | I65: 0.05399545911 | J65: 0.1939158203
B67: Bundled Residential Monthly Average Bills - Winter
D68: =$D$28 -> 2024-01-01 | E68: =$E$28 -> 2024-06-01 | F68: =$D$3&" Authorized" -> 2025 Authorized | G68: =$D$3&" w/Pending" -> 2025 w/Pending | H68: =$H$28 -> % Change over 1/1/2024 | I68: =$I$28 -> % Change over 6/1/2024 | J68: % Change over Authorized
B69: Essential Use (Basic) - Non-CARE | D69: =IF($D$4="all",'Res Bill Impact'!N46,('Res Bill Impact'!C22*VLOOKUP($D$4,'Res Bill Impact'!$H$22:$L$30,3,FALSE))+ROUND('Res Bill Impact'!F14*365/12,2)) -> 124.1142498 | E69: =IF($D$4="all",'Res Bill Impact'!P46,('Res Bill Impact'!D22*VLOOKUP($D$4,'Res Bill Impact'!$H$22:$L$30,3,FALSE))+ROUND('Res Bill Impact'!F14*365/12,2)) -> 123.5302434 | F69: =IF($D$4="all",'Res Bill Impact'!R46,('Res Bill Impact'!E22*VLOOKUP($D$4,'Res Bill Impact'!$H$22:$L$30,3,FALSE))+ROUND('Res Bill Impact'!F14*365/12,2)) -> 109.0421567 | G69: =IF($D$4="all",'Res Bill Impact'!T46,('Res Bill Impact'!F22*VLOOKUP($D$4,'Res Bill Impact'!$H$22:$L$30,3,FALSE))+ROUND('Res Bill Impact'!F14*365/12,2)) -> 130.205394 | H69: =$G69/D69-1 -> 0.04907691215 | I69: 0.0540365691 | J69: =$G69/F69-1 -> 0.1940830765
B70: Essential Use (Basic) - CARE | D70: =IF($D$4="all",'Res Bill Impact'!X46,('Res Bill Impact'!C28*VLOOKUP($D$4,'Res Bill Impact'!$H$22:$L$30,3,FALSE))+ROUND('Res Bill Impact'!P14*365/12,2)) -> 84.21006484 | E70: =IF($D$4="all",'Res Bill Impact'!Z46,('Res Bill Impact'!D28*VLOOKUP($D$4,'Res Bill Impact'!$H$22:$L$30,3,FALSE))+ROUND('Res Bill Impact'!P14*365/12,2)) -> 83.81221048 | F70: =IF($D$4="all",'Res Bill Impact'!AB46,('Res Bill Impact'!E28*VLOOKUP($D$4,'Res Bill Impact'!$H$22:$L$30,3,FALSE))+ROUND('Res Bill Impact'!P14*365/12,2)) -> 73.99330291 | G70: =IF($D$4="all",'Res Bill Impact'!AD46,('Res Bill Impact'!F28*VLOOKUP($D$4,'Res Bill Impact'!$H$22:$L$30,3,FALSE))+ROUND('Res Bill Impact'!P14*365/12,2)) -> 88.3361126 | H70: 0.04899708561 | I70: 0.05397664721 | J70: 0.1938392953
B71: Essential Use (All-Electric) - Non-CARE | D71: =IF($D$4="all",'Res Bill Impact'!N61,('Res Bill Impact'!C22*VLOOKUP($D$4,'Res Bill Impact'!$H$22:$L$30,5,FALSE))+ROUND('Res Bill Impact'!F14*365/12,2)) -> 143.6168394 | E71: =IF($D$4="all",'Res Bill Impact'!P61,('Res Bill Impact'!D22*VLOOKUP($D$4,'Res Bill Impact'!$H$22:$L$30,5,FALSE))+ROUND('Res Bill Impact'!F14*365/12,2)) -> 142.9403653 | F71: =IF($D$4="all",'Res Bill Impact'!R61,('Res Bill Impact'!E22*VLOOKUP($D$4,'Res Bill Impact'!$H$22:$L$30,5,FALSE))+ROUND('Res Bill Impact'!F14*365/12,2)) -> 126.1583315 | G71: =IF($D$4="all",'Res Bill Impact'!T61,('Res Bill Impact'!F22*VLOOKUP($D$4,'Res Bill Impact'!$H$22:$L$30,5,FALSE))+ROUND('Res Bill Impact'!F14*365/12,2)) -> 150.6724147 | H71: 0.04912777164 | I71: 0.05409283342 | J71: 0.194312043
B72: Essential Use (All-Electric) - CARE | D72: =IF($D$4="all",'Res Bill Impact'!X61,('Res Bill Impact'!C28*VLOOKUP($D$4,'Res Bill Impact'!$H$22:$L$30,5,FALSE))+ROUND('Res Bill Impact'!P14*365/12,2)) -> 97.42774177 | E72: =IF($D$4="all",'Res Bill Impact'!Z61,('Res Bill Impact'!D28*VLOOKUP($D$4,'Res Bill Impact'!$H$22:$L$30,5,FALSE))+ROUND('Res Bill Impact'!P14*365/12,2)) -> 96.96689381 | F72: =IF($D$4="all",'Res Bill Impact'!AB61,('Res Bill Impact'!E28*VLOOKUP($D$4,'Res Bill Impact'!$H$22:$L$30,5,FALSE))+ROUND('Res Bill Impact'!P14*365/12,2)) -> 85.59332587 | G72: =IF($D$4="all",'Res Bill Impact'!AD61,('Res Bill Impact'!F28*VLOOKUP($D$4,'Res Bill Impact'!$H$22:$L$30,5,FALSE))+ROUND('Res Bill Impact'!P14*365/12,2)) -> 102.2070804 | H72: 0.04905521327 | I72: 0.0540409867 | J72: 0.1941010516
B75: Bundled Residential Monthly Average Bills
D76: =$D$28 -> 2024-01-01 | E76: =$E$28 -> 2024-06-01 | F76: =$D$3&" Authorized" -> 2025 Authorized | G76: =$D$3&" w/Pending" -> 2025 w/Pending | H76: =$H$28 -> % Change over 1/1/2024 | I76: =$I$28 -> % Change over 6/1/2024 | J76: % Change over Authorized
B77: =J4&"kWh Monthly Usage - Non-CARE" -> 500kWh Monthly Usage - Non-CARE | D77: =((D82*4)+(D87*8))/12 -> 164.0097097 | E77: 163.1692109 | F77: 142.302514 | G77: 172.7832024 | H77: =$G77/D77-1 -> 0.05349373975 | I77: =$G77/E77-1 -> 0.05892037765 | J77: =$G77/F77-1 -> 0.2141964155
B78: =J4&"kWh Monthly Usage - CARE" -> 500kWh Monthly Usage - CARE | D78: 106.3953994 | E78: 105.8243002 | F78: 91.70998033 | G78: 112.3272438 | H78: =$G78/D78-1 -> 0.05575282717 | I78: =$G78/E78-1 -> 0.06145038077 | J78: 0.2248093758
B80: Bundled Residential Monthly Average Bills - Summer
D81: =$D$28 -> 2024-01-01 | E81: =$E$28 -> 2024-06-01 | F81: =$D$3&" Authorized" -> 2025 Authorized | G81: =$D$3&" w/Pending" -> 2025 w/Pending | H81: =$H$28 -> % Change over 1/1/2024 | I81: =$I$28 -> % Change over 6/1/2024 | J81: % Change over Authorized
B82: =J4&"kWh Monthly Usage - Non-CARE" -> 500kWh Monthly Usage - Non-CARE | D82: =VLOOKUP($D$4,'Res Bill Impact'!$L$67:$T$76,2,FALSE) -> 155.3366667 | E82: =VLOOKUP($D$4,'Res Bill Impact'!$L$67:$T$76,4,FALSE) -> 154.5366667 | F82: =VLOOKUP($D$4,'Res Bill Impact'!$L$67:$T$76,6,FALSE) -> 134.69019 | G82: =VLOOKUP($D$4,'Res Bill Impact'!$L$67:$T$76,8,FALSE) -> 163.6806083 | H82: =$G82/D82-1 -> 0.05371520968 | I82: =$G82/E82-1 -> 0.05917004565 | J82: =$G82/F82-1 -> 0.2152377857
B83: =J4&"kWh Monthly Usage - CARE" -> 500kWh Monthly Usage - CARE | D83: =VLOOKUP($D$4,'Res Bill Impact'!$V$67:$AD$76,2,FALSE) -> 100.7516667 | E83: =VLOOKUP($D$4,'Res Bill Impact'!$V$67:$AD$76,4,FALSE) -> 100.2066667 | F83: =VLOOKUP($D$4,'Res Bill Impact'!$V$67:$AD$76,6,FALSE) -> 86.75625575 | G83: =VLOOKUP($D$4,'Res Bill Impact'!$V$67:$AD$76,8,FALSE) -> 106.4037249 | H83: =$G83/D83-1 -> 0.05609890596 | I83: =$G83/E83-1 -> 0.06184277434 | J83: 0.2264674636
B85: Bundled Residential Monthly Average Bills - Winter
D86: =$D$28 -> 2024-01-01 | E86: =$E$28 -> 2024-06-01 | F86: =$D$3&" Authorized" -> 2025 Authorized | G86: =$D$3&" w/Pending" -> 2025 w/Pending | H86: =$H$28 -> % Change over 1/1/2024 | I86: =$I$28 -> % Change over 6/1/2024 | J86: % Change over Authorized
B87: =J4&"kWh Monthly Usage - Non-CARE" -> 500kWh Monthly Usage - Non-CARE | D87: =VLOOKUP($D$4,'Res Bill Impact'!$L$67:$T$76,3,FALSE) -> 168.3462312 | E87: =VLOOKUP($D$4,'Res Bill Impact'!$L$67:$T$76,5,FALSE) -> 167.485483 | F87: =VLOOKUP($D$4,'Res Bill Impact'!$L$67:$T$76,7,FALSE) -> 146.108676 | G87: =VLOOKUP($D$4,'Res Bill Impact'!$L$67:$T$76,9,FALSE) -> 177.3344995 | H87: =$G87/D87-1 -> 0.05339156222 | I87: =$G87/E87-1 -> 0.05880519494 | J87: =$G87/F87-1 -> 0.2137164222
B88: =J4&"kWh Monthly Usage - CARE" -> 500kWh Monthly Usage - CARE | D88: =VLOOKUP($D$4,'Res Bill Impact'!$V$67:$AD$76,3,FALSE) -> 109.2172658 | E88: =VLOOKUP($D$4,'Res Bill Impact'!$V$67:$AD$76,5,FALSE) -> 108.633117 | F88: =VLOOKUP($D$4,'Res Bill Impact'!$V$67:$AD$76,7,FALSE) -> 94.18684262 | G88: =VLOOKUP($D$4,'Res Bill Impact'!$V$67:$AD$76,9,FALSE) -> 115.2890032 | H88: =$G88/D88-1 -> 0.05559320032 | I88: =$G88/E88-1 -> 0.06126940257 | J88: 0.2240457368
B91: Bundled Residential Monthly Average Bills
D92: =$D$28 -> 2024-01-01 | E92: =$E$28 -> 2024-06-01 | F92: =$D$3&" Authorized" -> 2025 Authorized | G92: =$D$3&" w/Pending" -> 2025 w/Pending | H92: =$H$28 -> % Change over 1/1/2024 | I92: =$I$28 -> % Change over 6/1/2024 | J92: % Change over Authorized
B93: All-Electric - Non-CARE | D93: =((D99*4)+(D105*8))/12 -> 132.8693509 | E93: =((E99*4)+(E105*8))/12 -> 132.176104 | F93: 114.9722665 | G93: 140.1024926 | H93: =$G93/D93-1 -> 0.05443799974 | I93: 0.05996839335 | J93: =$G93/F93-1 -> 0.2185764176
B94: All-Electric - CARE | D94: =((D100*4)+(D106*8))/12 -> 81.26959874 | E94: 80.81766861 | F94: 69.65870828 | G94: 85.95897826 | H94: 0.05770152175 | I94: 0.06361615893 | J94: 0.2340018985
B95: All-Electric - Total | D95: =((D101*4)+(D107*8))/12 -> 114.8094377 | E95: 114.2006516 | F95: 99.11252111 | G95: 121.1522626 | H95: 0.05524654646 | I95: 0.0608719028 | J95: =$G95/F95-1 -> 0.2223709097
B97: Bundled Residential Monthly Average Bills - Summer
D98: =$D$28 -> 2024-01-01 | E98: =$E$28 -> 2024-06-01 | F98: =$D$3&" Authorized" -> 2025 Authorized | G98: =$D$3&" w/Pending" -> 2025 w/Pending | H98: =$H$28 -> % Change over 1/1/2024 | I98: =$I$28 -> % Change over 6/1/2024 | J98: % Change over Authorized
B99: All-Electric - Non-CARE | D99: =VLOOKUP($D$4,'Res Bill Impact'!$B$67:$J$76,2,FALSE) -> 157.9399372 | E99: =VLOOKUP($D$4,'Res Bill Impact'!$B$67:$J$76,4,FALSE) -> 157.1282805 | F99: =VLOOKUP($D$4,'Res Bill Impact'!$B$67:$J$76,6,FALSE) -> 136.9755191 | G99: =VLOOKUP($D$4,'Res Bill Impact'!$B$67:$J$76,8,FALSE) -> 166.4133379 | H99: =$G99/D99-1 -> 0.05364951304 | I99: =$G99/E99-1 -> 0.05909221006 | J99: =$G99/F99-1 -> 0.214912993
B100: All-Electric - CARE | D100: =VLOOKUP($D$4,'Res Bill Impact'!$B$82:$J$91,2,FALSE) -> 95.14934981 | E100: =VLOOKUP($D$4,'Res Bill Impact'!$B$82:$J$91,4,FALSE) -> 94.63171281 | F100: =VLOOKUP($D$4,'Res Bill Impact'!$B$82:$J$91,6,FALSE) -> 81.84016685 | G100: =VLOOKUP($D$4,'Res Bill Impact'!$B$82:$J$91,8,FALSE) -> 100.5252098 | H100: =$G100/D100-1 -> 0.056499177 | I100: =$G100/E100-1 -> 0.06227824456 | J100: =$G100/F100-1 -> 0.2283113982
B101: All-Electric - Total | D101: =D99*0.65+D100*0.35 -> 135.9632316 | E101: =E99*0.65+E100*0.35 -> 135.2544818 | F101: =F99*0.65+F100*0.35 -> 117.6781458 | G101: =G99*0.65+G100*0.35 -> 143.3524931 | H101: =$G101/D101-1 -> 0.05434749796 | I101: =$G101/E101-1 -> 0.05987240576 | J101: =$G101/F101-1 -> 0.2181743012
B103: Bundled Residential Monthly Average Bills - Winter
D104: =$D$28 -> 2024-01-01 | E104: =$E$28 -> 2024-06-01 | F104: =$D$3&" Authorized" -> 2025 Authorized | G104: =$D$3&" w/Pending" -> 2025 w/Pending | H104: =$H$28 -> % Change over 1/1/2024 | I104: =$I$28 -> % Change over 6/1/2024 | J104: % Change over Authorized
B105: All-Electric - Non-CARE | D105: =VLOOKUP($D$4,'Res Bill Impact'!$B$67:$J$76,3,FALSE) -> 120.3340578 | E105: =VLOOKUP($D$4,'Res Bill Impact'!$B$67:$J$76,5,FALSE) -> 119.7000157 | F105: =VLOOKUP($D$4,'Res Bill Impact'!$B$67:$J$76,7,FALSE) -> 103.9706402 | G105: =VLOOKUP($D$4,'Res Bill Impact'!$B$67:$J$76,9,FALSE) -> 126.94707 | H105: =$G105/D105-1 -> 0.05495544902 | I105: 0.06054346918 | J105: =$G105/F105-1 -> 0.2209895964
B106: All-Electric - CARE | D106: =VLOOKUP($D$4,'Res Bill Impact'!$B$82:$J$91,3,FALSE) -> 74.3297232 | E106: =VLOOKUP($D$4,'Res Bill Impact'!$B$82:$J$91,5,FALSE) -> 73.91064651 | F106: =VLOOKUP($D$4,'Res Bill Impact'!$B$82:$J$91,7,FALSE) -> 63.56797899 | G106: =VLOOKUP($D$4,'Res Bill Impact'!$B$82:$J$91,9,FALSE) -> 78.6758625 | H106: 0.05847108147 | I106: 0.06447266022 | J106: 0.2376649967
B107: All-Electric - Total | D107: =D105*0.65+D106*0.35 -> 104.2325407 | E107: =E105*0.65+E106*0.35 -> 103.6737365 | F107: =F105*0.65+F106*0.35 -> 89.82970875 | G107: =G105*0.65+G106*0.35 -> 110.0521473 | H107: 0.05583291583 | I107: 0.06152388304 | J107: 0.2251197169
B109: Small Commercial Monthly Average Bills
D110: =$D$28 -> 2024-01-01 | E110: =$E$28 -> 2024-06-01 | F110: =$D$3&" Authorized" -> 2025 Authorized | G110: =$D$3&" w/Pending" -> 2025 w/Pending | H110: =$H$28 -> % Change over 1/1/2024 | I110: =$I$28 -> % Change over 6/1/2024 | J110: % Change over Authorized
B111: NAICS 531 | D111: =((D117*4)+(D123*8))/12 -> 207.3300075 | E111: =((E117*4)+(E123*8))/12 -> 204.8314741 | F111: 185.4009652 | G111: 217.6086618 | H111: =$G111/D111-1 -> 0.04957629844 | I111: 0.06237902533 | J111: =$G111/F111-1 -> 0.1737191423
B112: NAICS 621 | D112: =((D118*4)+(D124*8))/12 -> 285.7849678 | E112: 282.3626644 | F112: 255.0281767 | G112: 300.3373805 | H112: 0.05092084733 | I112: 0.06365826045 | J112: 0.1776635207
B113: NAICS 722 | D113: =((D119*4)+(D125*8))/12 -> 832.1005395 | E113: 820.8834547 | F113: 738.6490373 | G113: 874.9594746 | H113: 0.05150691907 | I113: 0.06587539263 | J113: =$G113/F113-1 -> 0.1845401949
B115: Small Commercial Monthly Average Bills - Summer
D116: 2023-01-01 | E116: =$E$28 -> 2024-06-01 | F116: =$D$3&" Authorized" -> 2025 Authorized | G116: =$D$3&" w/Pending" -> 2025 w/Pending | H116: =$H$28 -> % Change over 1/1/2024 | I116: =$I$28 -> % Change over 6/1/2024 | J116: % Change over Authorized
B117: NAICS 531 | D117: ='Bill Impact (GS1)'!C37 -> 234.0395423 | E117: ='Bill Impact (GS1)'!E37 -> 230.2382228 | F117: ='Bill Impact (GS1)'!G37 -> 208.2176027 | G117: ='Bill Impact (GS1)'!I37 -> 244.7186257 | H117: =$G117/D117-1 -> 0.0456293976 | I117: =$G117/E117-1 -> 0.06289313156 | J117: =$G117/F117-1 -> 0.1753022919
B118: NAICS 621 | D118: ='Bill Impact (GS1)'!C38 -> 392.3446243 | E118: ='Bill Impact (GS1)'!E38 -> 385.4068219 | F118: ='Bill Impact (GS1)'!G38 -> 347.5674157 | G118: ='Bill Impact (GS1)'!I38 -> 410.2894021 | H118: =$G118/D118-1 -> 0.04573728475 | I118: =$G118/E118-1 -> 0.06456185705 | J118: =$G118/F118-1 -> 0.1804599152
B119: NAICS 722 | D119: ='Bill Impact (GS1)'!C39 -> 1118.894788 | E119: ='Bill Impact (GS1)'!E39 -> 1097.950875 | F119: ='Bill Impact (GS1)'!G39 -> 987.4705996 | G119: ='Bill Impact (GS1)'!I39 -> 1170.600914 | H119: =$G119/D119-1 -> 0.04621178567 | I119: =$G119/E119-1 -> 0.06616875131 | J119: =$G119/F119-1 -> 0.1854539408
B121: Small Commercial Monthly Average Bills - Winter
D122: 2023-01-01 | E122: =$E$28 -> 2024-06-01 | F122: =$D$3&" Authorized" -> 2025 Authorized | G122: =$D$3&" w/Pending" -> 2025 w/Pending | H122: =$H$28 -> % Change over 1/1/2024 | I122: =$I$28 -> % Change over 6/1/2024 | J122: % Change over Authorized
B123: NAICS 531 | D123: ='Bill Impact (GS1)'!D37 -> 193.9752401 | E123: ='Bill Impact (GS1)'!F37 -> 192.1280997 | F123: ='Bill Impact (GS1)'!H37 -> 173.9926464 | G123: ='Bill Impact (GS1)'!J37 -> 204.0536799 | H123: =$G123/D123-1 -> 0.05195735199 | I123: 0.06207098371 | J123: =$G123/F123-1 -> 0.1727718621
B124: NAICS 621 | D124: ='Bill Impact (GS1)'!D38 -> 232.5051395 | E124: ='Bill Impact (GS1)'!F38 -> 230.8405857 | F124: ='Bill Impact (GS1)'!H38 -> 208.7585572 | G124: ='Bill Impact (GS1)'!J38 -> 245.3613697 | H124: 0.05529439132 | I124: 0.06290394705 | J124: 0.1753356267
B125: NAICS 722 | D125: ='Bill Impact (GS1)'!D39 -> 688.7034154 | E125: ='Bill Impact (GS1)'!F39 -> 682.3497444 | F125: ='Bill Impact (GS1)'!H39 -> 614.2382561 | G125: ='Bill Impact (GS1)'!J39 -> 727.1387551 | H125: 0.05580826057 | I125: 0.0656393748 | J125: 0.1838057102

Sheet Selected Data
A1: Summary of Selected Data
N2: 2024 Revenue
N3: Requirement
N4: $000
A5: 1 | B5: Current total system-level revenue requirement that is used for defining the reporting threshold: | N5: ='Authorized Rev Req'!I93 -> 17697882.12
B7: A | C7: One-percent reporting threshold | N7: =N5*0.01 -> 176978.8212
A9: 2 | B9: List of currently open proceedings that exceed the threshold for use of the affordability metrics (proceedings shaded gray filed prior to D.22-08-023):
N10: Annual Revenue
B11: A | C11: ='Incremental Rev Req'!B86 -> A.23-05-010 | D11: ='Incremental Rev Req'!$A$85 -> 2025 GRC | N11: =SUM('Incremental Rev Req'!M85:M87) -> 2018119.313
B12: B | C12: A.23-10-001 | D12: 2022 Wildfire Mgmt/Veg. Mgmt (WM/VM) | N12: 383538
B13: C | C13: ='Incremental Rev Req'!B101 -> A.24-04-005 | D13: =Summary!B11 -> WMCE | N13: ='Incremental Rev Req'!G101 -> 326337
B14: D | C14: ='Incremental Rev Req'!B108 -> A.23-08-013 | D14: Thomas Fire WEMA/CEMA | N14: ='Incremental Rev Req'!D108+'Incremental Rev Req'!D109 -> 189846
B15: E | C15: ='Incremental Rev Req'!B96 -> A.24-05-007 | D15: FERC TO 2025 | N15: ='Incremental Rev Req'!M110 -> 220804.937
A17: 3 | B17: List of currently open proceedings for which affordability metrics have been filed: | N17: Annual Revenue
B18: A | C18: =C11 -> A.23-05-010 | D18: 2025 GRC | N18: =N11 -> 2018119.313
B19: B | C19: A.23-10-001 | D19: 2022 Wildfire Mgmt/Veg. Mgmt (WM/VM) | N19: =N12 -> 383538
B20: C | C20: =C13 -> A.24-04-005 | D20: =D13 -> WMCE | N20: =N13 -> 326337
B21: D | C21: =C14 -> A.23-08-013 | D21: =D14 -> Thomas Fire WEMA/CEMA | N21: =N14 -> 189846
A23: 4 | B23: List of currently open proceedings that do not exceed the threshold for use of the affordability metrics (proceedings shaded gray filed prior to D.22-08-023):
N24: Annual Revenue
B25: A | C25: ='Incremental Rev Req'!$B$102 -> A.22-04-001 | D25: ='Incremental Rev Req'!$A$102 -> 2021 ERRA Review | N25: ='Incremental Rev Req'!$D$102 -> 25706
B26: B | C26: ='Incremental Rev Req'!B103 -> A.23-04-003 | D26: ='Incremental Rev Req'!A103 -> 2022 ERRA Review | N26: ='Incremental Rev Req'!D103+'Incremental Rev Req'!D104 -> 50874
B27: C | C27: ='Incremental Rev Req'!B106 -> A.24-04-001 | D27: 2023 ERRA Review | N27: =SUM('Incremental Rev Req'!D105:D106) -> -63195
B28: D | C28: ='Incremental Rev Req'!$B$100 -> A.24-03-013 | D28: =Summary!B10 -> Diablo Canyon NBC | N28: ='Incremental Rev Req'!G100 -> 150626
B29: E | C29: A.24-05-007 | D29: 2025 ERRA Forecast (Amount less Trigger) | N29: =SUM('Incremental Rev Req'!G88:G98) -> 4510720.716
A31: 5 | B31: Total system-level revenue requirement if all pending revenue were granted in full: requests were granted in full
B32: A | C32: YE 2024 | N32: ='Incremental Rev Req'!$T$75 -> 17538369.58
B33: B | C33: YE 2025 | N33: ='Incremental Rev Req'!$U$75 -> 19338527.06
B34: C | C34: YE 2026 | N34: ='Incremental Rev Req'!$V$75 -> 18592286.99
B35: D | C35: YE 2027 | N35: ='Incremental Rev Req'!$W$75 -> 19402514.99
B36: E | C36: YE 2028 | N36: ='Incremental Rev Req'!$X$75 -> 20134792.99
A38: 6 | B38: Bundled residential average rate (RAR) if all pending revenue were granted in full (from Cost and Rate Tracker (CRT) as submitted by utility):
N39: cents/kWh
B40: A | C40: YE 2024 | N40: 32.51450143 | R40: =Summary!G29 -> 35.55682559 | S40: =Summary!G29 -> 35.55682559
B41: B | C41: YE 2025 | N41: 35.55682559
B42: C | C42: YE 2026 | N42: 34.15310144
B43: D | C43: YE 2027 | N43: 35.00130529
B44: E | C44: YE 2028 | N44: 35.67795442
A46: 7 | B46: Bundled residential average monthly bill corresponding to RAR above for typical customer in climate zone 9 using 500 kWh (from CRT as submitted by utility):
B48: A | C48: YE 2024 | M48: 157.4257033 | N48: 101.939368 | Q48: =Summary!G77 -> 172.7832024 | R48: =Summary!G78 -> 112.3272438 | S48: =Summary!G77 -> 172.7832024 | T48: =Summary!G78 -> 112.3272438
B49: B | C49: YE 2025 | M49: 172.7832024 | N49: 112.3272438
B50: C | C50: YE 2026 | M50: 163.0681315 | N50: 105.7559297
B51: D | C51: YE 2027 | M51: 166.4558555 | N51: 108.0474002
B52: E | C52: YE 2028 | M52: 168.9567558 | N52: 109.7390195
A54: 8 | B54: Bundled small commercial average rate (TOU-GS-1) if all pending revenue were granted in full (from Cost and Rate Tracker (CRT) as submitted by utility):
N55: cents/kWh
B56: A | C56: YE 2024 | N56: 28.5484823 | R56: =Summary!G30 -> 31.72444038 | S56: =Summary!G30 -> 31.72444038
B57: B | C57: YE 2025 | N57: 31.72444038
B58: C | C58: YE 2026 | N58: 29.97946015
B59: D | C59: YE 2027 | N59: 30.31447076
B60: E | C60: YE 2028 | N60: 29.56674378
A62: 9 | B62: Bundled small commercial average monthly bill corresponding to TOU-GS-1 rate above for typical customer by NAICS (from CRT as submitted by utility):
L63: NAICS 531 | M63: NAICS 621 | N63: NAICS 722
B64: A | C64: YE 2024 | L64: 196.7756876 | M64: 271.02993 | N64: 786.7894991 | P64: =Summary!G111 -> 217.6086618 | Q64: =Summary!G112 -> 300.3373805 | R64: =Summary!G113 -> 874.9594746 | S64: =Summary!G111 -> 217.6086618 | T64: =Summary!G112 -> 300.3373805 | U64: =Summary!G113 -> 874.9594746
B65: B | C65: YE 2025 | L65: 217.6086618 | M65: 300.3373805 | N65: 874.9594746
B66: C | C66: YE 2026 | L66: 207.1286083 | M66: 285.5942311 | N66: 830.6054589
B67: D | C67: YE 2027 | L67: 209.7045515 | M67: 289.2180214 | N67: 841.5074478
B68: E | C68: YE 2028 | L68: 205.189445 | M68: 282.8662514 | N68: 822.3984706

Sheet Authorized Rev Req
B2: Annual Period 2024
B3: Reporting Date: Quarter Ended September 30
C4: January 1, 2023 | D4: March 1, 2023 | E4: June 1, 2023 | F4: October 1, 2023 | G4: January 1, 2024 | H4: March 1, 2024 | I4: June 1, 2024
C5: 4929-E-A | D5: 4977-E | E5: 5041-E | F5: 5109-E | G5: 5178-E | H5: 5235-E | I5: 5307-E
B6: Filing Description | J6: Revenue Recovery Mechanism | K6: Authority for Revenue Requirement | L6: Balancing Account
A7: Safety Affordability Reliability Proceedings | B7: Safety Affordability Reliability Proceedings
A8: 2018 GRC (Attrition Years) | B8: General Rate Case (GRC-G) | C8: 735101 | D8: 729370 | E8: 729370 | F8: 729370 | G8: 754977 | H8: 766648.8347 | I8: 766648.8347 | J8: Generation | K8: D.23-11-096, Advice 5120-E | L8: N
A9: 2018 GRC (Attrition Years) | B9: General Rate Case (GRC-N) | C9: 62456 | D9: 61815 | E9: 61815 | F9: 61815 | G9: 61347 | H9: 62607.60614 | I9: 62607.60614 | J9: New System Gen | K9: D.23-11-096, Advice 5120-E | L9: N
A10: 2018 GRC (Attrition Years) | B10: General Rate Case (GRC-D) | C10: 6995075 | D10: 6911672 | E10: 6841923 | F10: 6841923 | G10: 7565233 | H10: 7752988.246 | I10: 7752988.246 | J10: Distribution | K10: D.23-11-096, Advice 5120-E | L10: N
A11: 2018 GRC Memo Account/One-Time/FF&U | B11: 2021 GRCRRMA (27-month amortization) | C11: -3564.790897 | D11: -3564.790897 | E11: -3564.790897 | F11: -3564.790897 | G11: 0 | H11: 0 | I11: 0 | J11: Generation | K11: D.21-08-036 | L11: Y
A12: 2018 GRC Memo Account/One-Time/FF&U | B12: 2021 GRCRRMA (27-month amortization) | C12: 2213.394759 | D12: 2213.394759 | E12: 2213.394759 | F12: 2213.394759 | G12: 0 | H12: 0 | I12: 0 | J12: New System Gen | K12: D.21-08-036 | L12: Y
A13: Non-utility Affiliate Credits | B13: 2021 GRCRRMA (27-month amortization) | C13: 322298.9749 | D13: 322298.9749 | E13: 322298.9749 | F13: 322298.9749 | G13: 0 | H13: 0 | I13: 0 | J13: Distribution | K13: D.21-08-036 | L13: Y
A14: Pole Loading & Deteriorated Poles Balancing Account | B14: Non-utility Affiliate Credits | C14: -4288.865465 | D14: -4288.865465 | E14: -4288.865465 | F14: -4288.865465 | G14: -4485.891476 | H14: -4485.891476 | I14: -4485.891476 | J14: Distribution | K14: D.15-10-037 | L14: N
A15: Tax Accounting Memorandum Account (TAMA) | B15: Pole Loading & Deteriorated Pole Programs Balancing Account | C15: 52270.76244 | D15: 52270.76244 | E15: 52270.76244 | F15: 52270.76244 | G15: -51916.65043 | H15: -51916.65043 | I15: -51916.65043 | J15: Distribution | K15: D.21-08-036 | L15: Y
A16: Pension/PBOP/Medical Balancing Accounts | B16: 2020 TAMA Balance | C16: 142.5835769 | D16: 142.5835769 | E16: 142.5835769 | F16: 142.5835769 | G16: 0 | H16: 0 | I16: 0 | J16: Distribution | K16: D.15-10-037; Advice 4453-E | L16: Y
B17: 2021/2022 TAMA Balance | C17: 18398 | D17: 18398 | E17: 18398 | F17: 18398 | G17: 19974.10359 | H17: 19974.10359 | I17: 19974.10359 | J17: Generation | K17: Advice 4764-E | L17: Y
B18: 2021/2022 TAMA Balance | C18: 119343.2066 | D18: 119343.2066 | E18: 119343.2066 | F18: 129422.3922 | G18: 129422.3922 | H18: 129422.3922 | I18: 129422.3922 | J18: Distribution | K18: Advice 4996-E | L18: Y
A19: Pension/PBOP/Medical Balancing Accounts | B19: Pension/PBOP/Medical Balancing Accounts | C19: -9738 | D19: -9738 | E19: -9738 | F19: -9738 | G19: -12071.66001 | H19: -12071.66001 | I19: -12071.66001 | J19: Generation | K19: D.21-08-036 | L19: Y
A20: 2019 ERRA Forecast | B20: Pension/PBOP/Medical Balancing Accounts | C20: -63095.20256 | D20: -63095.20256 | E20: -63095.20256 | F20: -63095.20256 | G20: -78219.42906 | H20: -78219.42906 | I20: -78219.42906 | J20: Distribution | K20: D.21-08-036 | L20: Y
A21: 2019 ERRA Forecast | B21: ERRA Forecast | C21: 4995616 | D21: 4995616 | E21: 4995616 | F21: 4995616 | G21: 4703703 | H21: 4703703 | I21: 4703703 | J21: Generation | K21: D.23-11-094 | L21: N
A22: 2020 ERRA Forecast | B22: ERRA Forecast | C22: 288812 | D22: 288812 | E22: 288812 | F22: 288812 | G22: 402997 | H22: 402997 | I22: 402997 | J22: New System Gen | K22: D.23-11-094 | L22: N
A23: 2019 ERRA Forecast | B23: ERRA Forecast (BA) | C23: 4417.190949 | D23: 4417.190949 | E23: 4417.190949 | F23: 4417.190949 | G23: 222439.7825 | H23: 222439.7825 | I23: 222439.7825 | J23: New System Gen | K23: D.23-11-094 | L23: Y
A24: 2019 ERRA Forecast | B24: ERRA Forecast | C24: -773198 | D24: -773198 | E24: -773198 | F24: -773198 | G24: -955105 | H24: -955105 | I24: -955105 | J24: GHG Revenue | K24: D.23-11-094 | L24: N
A25: 2019 ERRA Forecast | B25: ERRA Forecast | C25: 4740 | D25: 4740 | E25: 4740 | F25: 4740 | G25: 4958 | H25: 4958 | I25: 4958 | J25: Nuclear | K25: D.23-11-094 | L25: N
A26: 2019 ERRA Forecast | B26: ERRA Forecast | C26: -11473 | D26: -11473 | E26: -11473 | F26: -11473 | G26: -3582 | H26: -3582 | I26: -3582 | J26: Distribution | K26: D.23-11-094 | L26: N
B27: ERRA Forecast | C27: 11161.49722 | D27: 11161.49722 | E27: 11161.49722 | F27: 11161.49722 | G27: 6584.546087 | H27: 6584.546087 | I27: 6584.546087 | J27: Public Purpose | K27: D.23-11-094 | L27: N
B28: Modified CAM (MCAM) Rate Component: | G28: 2362.884396 | H28: 2362.884396 | I28: 2362.884396 | J28: MCAM | K28: D.23-11-094 | L28: N
A29: 2018 ERRA Balancing Account Trigger | B29: TMNBA/BMNBC BA | C29: -48062.22234 | D29: -48062.22234 | E29: -48062.22234 | F29: -48062.22234 | G29: 8772.952 | H29: 8772.952 | I29: 8772.952 | J29: Public Purpose | K29: D.23-11-094 | L29: Y
B30: ERRA/PABA/ESMA Balancing Account | C30: 1079567.057 | D30: 1079567.057 | E30: 1079567.057 | F30: 1079567.057 | G30: 676260.1571 | H30: 676260.1571 | I30: 676260.1571 | J30: Generation | K30: D.23-11-094 | L30: Y
B31: 2023 ERRA Trigger | C31: 0 | D31: 0 | E31: 459077.8602 | F31: 459077.8602 | G31: 459077.8602 | H31: 459077.8602 | I31: 0 | J31: Generation | K31: D.23-04-012 / Advice 5036-E | L31: Y
B32: DAC-GT/CSGT Clean Energy Programs (BA) | C32: 2938.502779 | D32: 2938.502779 | E32: 2938.502779 | F32: 2938.502779 | G32: 2572.453913 | H32: 2572.453913 | I32: 2572.453913 | J32: Public Purpose | K32: D.23-11-094 | L32: N
B33: 2020 ERRA Review | C33: -3742 | D33: -3742 | E33: -3742 | F33: -3742 | G33: 0 | H33: 0 | I33: 0 | J33: Generation | K33: D.22-10-004; Advice 4902-E | L33: N
B34: 2020 ERRA Review | C34: 22865.94671 | D34: 22865.94671 | E34: 22865.94671 | F34: 22865.94671 | G34: 0 | H34: 0 | I34: 0 | J34: Distribution | K34: D.22-10-004; Advice 4902-E | L34: N
B35: 2020 ERRA Review | C35: 12456.60375 | D35: 12456.60375 | E35: 12456.60375 | F35: 12456.60375 | G35: 0 | H35: 0 | I35: 0 | J35: Public Purpose | K35: D.22-10-004; Advice 4902-E | L35: N
A36: BRRBA | B36: BRRBA Balancing Account | C36: 7542.575977 | D36: 7542.575977 | E36: 7542.575977 | F36: 7542.575977 | G36: 4756.555825 | H36: 4756.555825 | I36: 4756.555825 | J36: Generation | K36: D.15-10-037 | L36: Y
A37: NDAM Balancing Account | B37: BRRBA (Inc. FRC FF) | C37: -307497.1264 | D37: -307497.1264 | E37: -306980.6966 | F37: -306980.6966 | G37: 695357.185 | H37: 695357.185 | I37: 695357.185 | J37: Distribution | K37: =K36 -> D.15-10-037 | L37: Y
A38: CARE Balancing Account | B38: NDAM Balancing Account | C38: 2770.566274 | D38: 2770.566274 | E38: 2770.566274 | F38: 2770.566274 | G38: 1927 | H38: 1927 | I38: 1927 | J38: Nuclear | K38: D.15-10-037 | L38: Y
A39: PPPAM Balancing Account | B39: CARE Balancing Account | C39: -83502.67593 | D39: -83502.67593 | E39: -83502.67593 | F39: -83502.67593 | G39: 55214.93072 | H39: 55214.93072 | I39: 55214.93072 | J39: Public Purpose | K39: D.15-10-037 | L39: Y
B40: PPPAM Balancing Account | C40: 49633.64016 | D40: 49633.64016 | E40: 49633.64016 | F40: 49633.64016 | G40: 57989.27786 | H40: 57989.27786 | I40: 57989.27786 | J40: Public Purpose | K40: D.15-10-037 | L40: Y
B41: Emergency Reliability OIR | C41: 1979.89967 | D41: 1979.89967 | E41: 1979.89967 | F41: 1979.89967 | G41: 0 | H41: 0 | I41: 0 | J41: Distribution | K41: D.21-12-015 | L41: N
B42: Emergency Reliability OIR | C42: 10010.72867 | D42: 10010.72867 | E42: 10010.72867 | F42: 10010.72867 | G42: 0 | H42: 0 | I42: 0 | J42: Public Purpose | K42: D.21-12-015 | L42: N
B43: Emergency Reliability UOS | F43: 17991 | G43: 17006 | H43: 17591 | I43: 17591 | J43: Generation | K43: Advice 5120-E; Advice 5142-E | L43: N
B44: Emergency Reliability UOS | C44: 86303 | D44: 84963 | E44: 84963 | F44: 66972 | G44: 62428 | H44: 64611 | I44: 64611 | J44: Distribution | K44: Advice 5120-E; Advice 5142-E | L44: N
B45: 2021 GRC Track 2 Non-AB 1054 CapEx | C45: 0 | D45: 0 | E45: 0 | F45: 0 | G45: 0 | H45: 0 | I45: 0 | J45: Distribution | L45: N
B46: 2021 GRC Track 2 O&M (36-Month Amortization) | C46: 135161.6901 | D46: 135161.6901 | E46: 135161.6901 | F46: 135161.6901 | G46: 135161.6901 | H46: 135161.6901 | I46: 135161.6901 | J46: Distribution | K46: D.21-01-012; Advice 4658-E/E-A | L46: N
B47: 2021 GRC Track 3 O&M (36-Month Amortization) | C47: 135415.5795 | D47: 135415.5795 | E47: 135415.5795 | F47: 135415.5795 | G47: 135415.5795 | H47: 135415.5795 | I47: 135415.5795 | J47: Distribution | K47: D.22-06-032 | L47: N
B48: VMBA Undercollection Threshold | C48: 26556.1553 | D48: 26556.1553 | E48: 26556.1553 | F48: 29215.51344 | G48: 29215.51344 | H48: 29215.51344 | I48: 29215.51344 | J48: Distribution | K48: Advice 5049-E | L48: N
B49: 2020 Vegetation Management Z-Factor | F49: 37644.69531 | G49: 37644.69531 | H49: 37644.69531 | I49: 37644.69531 | J49: Distribution | K49: Resolution E-5287 | L49: N
B50: 2021 Wildfire Mitigation/Vegetation Management | I50: 378956.9667 | J50: Distribution | K50: D.24-03-008 | L50: N
B51: Mobilehome Master Meter Balancing Account | C51: 14300.59952 | D51: 14300.59952 | E51: 14300.59952 | F51: 14300.59952 | G51: 18034.35236 | H51: 18034.35236 | I51: 18034.35236 | J51: Distribution | K51: D.15-10-037 | L51: N
B52: WEMA 2 | C52: 0 | D52: 0 | E52: 214140.3257 | F52: 214140.3257 | G52: 214140.3257 | H52: 214140.3257 | I52: 0 | J52: Distribution | K52: D.23-05-033 | L52: N
B53: 2017 CEMA Fires | C53: 1460.866949 | D53: 1460.866949 | E53: 1460.866949 | F53: 1460.866949 | G53: 0 | H53: 0 | I53: 0 | J53: Distribution | K53: D.22-06-002 | L53: N
B54: 2021 CEMA/WEMA | G54: 137221.3298 | H54: 137221.3298 | I54: 137221.3298 | J54: Distribution | K54: D.23-11-089 | L54: N
B55: Wildfire Self-Insurance Credit | I55: -24268.43314 | J55: Distribution | K55: D.23-05-013 | L55: N
B56: CSRP Track 1 | C56: 201345.1951 | D56: 201345.1951 | E56: 201345.1951 | F56: 201345.1951 | G56: 0 | H56: 0 | I56: 0 | J56: Distribution | K56: D.22-09-015; Advice 4876-E | L56: N
B57: CSRP Track 2 | E57: 38155.501 | F57: 38155.501 | G57: 38155.501 | H57: 38155.501 | I57: 0 | J57: Distribution | K57: D.23-03-019 | L57: N
A58: SJV DAC Pilots | B58: GSRP Recovery Bonds FRC #1 (AB 1054) | C58: 19256.772 | D58: 19256.772 | E58: 19256.772 | F58: 19256.772 | G58: 19256.772 | H58: 19256.772 | I58: 19256.772 | J58: Securitization | K58: D.20-11-007; Advice 4416-E | L58: N
A59: SJV DAC Pilots | B59: 2021 GRC Tracks 1 and 2 Recovery Bonds FRC #2 (AB 1054) | C59: 31732.126 | D59: 31732.126 | E59: 31732.126 | F59: 31732.126 | G59: 31732.126 | H59: 31732.126 | I59: 31732.126 | J59: Securitization | K59: D.21-10-025; Advice 4717-E-A | L59: N
A60: SJV DAC Pilots | B60: 2021 GRC Tracks 1 and 3 Recovery Bonds FRC #3 (AB 1054) | E60: 55255.382 | F60: 55255.382 | G60: 55255.382 | H60: 55255.382 | I60: 55255.382 | J60: Securitization | K60: D.23-02-023 / Advice 5018-E | L60: N
B61: Grid Safety & Resiliency Program | J61: Distribution | K61: D.20-04-013, Advice 4197-E | L61: N
A62: Public Policy Proceedings | B62: Subtotal Safety Affordability Reliability | C62: =SUM(C8:C61) -> 14145181.23 | D62: 14054066.23 | E62: 14751462.73 | F62: 14801845.97 | G62: 15661213.72 | H62: 15864669.4 | I62: 15507984.25
A63: Demand Response | B63: Public Policy Proceedings
A64: Energy Efficiency | B64: Demand Response | C64: 4649.427316 | D64: 4649.427316 | E64: 4649.427316 | F64: 4649.427316 | G64: 10.11184714 | H64: 11.12303186 | I64: 11.12303186 | J64: Generation | K64: D.23-12-005; Advice 5206-E | L64: N
B65: Demand Response (Inc. ELPBA 2023-2025) | C65: 23987.96955 | D65: 23987.96955 | E65: 23987.96955 | F65: 23987.96955 | G65: 40702.88087 | H65: 49287.83909 | I65: 49287.83909 | J65: Distribution | K65: D.23-12-005; Advice 5206-E | L65: N
B66: Energy Efficiency (Inc. IDSM) | C66: 415373.5539 | D66: 415373.5539 | E66: 415373.5539 | F66: 415373.5539 | G66: 288996.5913 | H66: 288996.5913 | I66: 288996.5913 | J66: Public Purpose | K66: D.23-08-005; Advice 5123-E | L66: N
B67: Energy Efficiency Market Access Program | C67: 47007.4494 | D67: 47007.4494 | E67: 47007.4494 | F67: 47007.4494 | G67: 0 | H67: 0 | I67: 0 | J67: Public Purpose | K67: D.20-08-042; D.21-11-028 | L67: N
B68: Smart Heat Pump Water Heater (SHPWH) Program | C68: 14055.46753 | D68: 14055.46753 | E68: 14055.46753 | F68: 14055.46753 | G68: 0 | H68: 0 | I68: 0 | J68: Public Purpose | K68: D.22-04-044; Advice 4858-E | L68: N
B69: New Home Energy Storage Pilot (NHESP) | E69: 5055.923571 | F69: 5055.923571 | G69: 5055.923571 | H69: 5055.923571 | I69: 0 | J69: Public Purpose | K69: D.22-04-044; Advice 4852-E | L69: N
B70: California Hub for EE Financing (CHEEF) | C70: 549.4028246 | D70: 549.4028246 | E70: 549.4028246 | F70: 549.4028246 | G70: 0 | H70: 0 | I70: 0 | J70: Public Purpose | K70: D.23-08-005; Advice 5123-E | L70: N
B71: Energy Efficiency Market Transformation | C71: 6441 | D71: 6441 | E71: 6441 | F71: 6441 | G71: 6441 | H71: 6441 | I71: 6441 | J71: Public Purpose | K71: D.19-12-021 | L71: N
B72: 2020 RUBA Uncollectibles (36-Month Amortization) | C72: 25700.14834 | D72: 25700.14834 | E72: 25700.14834 | F72: 25700.14834 | G72: 25700.14834 | H72: 25700.14834 | I72: 25700.14834 | J72: Public Purpose | K72: Advice 4658-E/E-A | L72: N
A73: Charge Ready Phase 1 Pilot | B73: Schools Energy Efficiency Stimulus Program | C73: 75509.17701 | D73: 75509.17701 | E73: 75509.17701 | F73: 75509.17701 | G73: 0 | H73: 0 | I73: 0 | J73: Public Purpose | K73: D.21-01-004; Advice 4633-E-A | L73: N
A74: CA Solar Initiatives/MASH/SASH | B74: Charge Ready Programs (Pilot, Bridge and Schools and Parks) | C74: 30457 | D74: 30254 | E74: 30254 | F74: 30254 | G74: 41775 | H74: 42322 | I74: 42322 | J74: Distribution | K74: Advice 5120-E; Advice 5141-E | L74: N
B75: Transportation Electrification | C75: 15772 | D75: 15678 | E75: 15678 | F75: 15678 | G75: 15804 | H75: 16033 | I75: 16033 | J75: Distribution | K75: Advice 5120-E; Advice 5141-E | L75: N
B76: Low Income Programs (ESAP) | C76: 61811.10058 | D76: 61811.10058 | E76: 61811.10058 | F76: 61811.10058 | G76: 92017.80899 | H76: 92017.80899 | I76: 92017.80899 | J76: Public Purpose | K76: D.21-06-015 | L76: N
A77: Statewide ME&O | B77: Low Income Programs (CARE/FERA Admin) | C77: 10644.40881 | D77: 10644.40881 | E77: 10644.40881 | F77: 10644.40881 | G77: 10571.12016 | H77: 10571.12016 | I77: 10571.12016 | J77: Public Purpose | K77: D.21-06-015; Advice 4638-E | L77: N
A78: EPIC - RD&D and Renewables | B78: Statewide ME&O | C78: 0 | D78: 0 | E78: 0 | F78: 0 | G78: 0 | H78: 0 | I78: 0 | J78: Public Purpose | L78: N
A79: Self-Generation Incentive Program (SGIP) | B79: EPIC - RD&D and Renewables | C79: 76885.42974 | D79: 76885.42974 | E79: 76885.42974 | F79: 76885.42974 | G79: 76885.42974 | H79: 76885.42974 | I79: 76885.42974 | J79: Public Purpose | K79: D.20-08-042; D.21-11-028 | L79: N
A80: Aliso Canyon Energy Storage | B80: Self-Generation Incentive Program (SGIP) | C80: 56626.34399 | D80: 56626.34399 | E80: 56626.34399 | F80: 56626.34399 | G80: 56626.34399 | H80: 56626.34399 | I80: 56626.34399 | J80: Public Purpose | K80: D.20-01-021, Advice 4169-E | L80: N
A81: Non-CPUC Jurisdictional Proceedings | B81: Subtotal Public Policy | C81: =SUM(C64:C80) -> 865469.879 | D81: 865172.879 | E81: 870228.8025 | F81: 870228.8025 | G81: 660586.3588 | H81: 669948.3282 | I81: 664892.4046
A82: DWR Bond/Power | B82: Non-CPUC Jurisdictional Proceedings
A83: Wildfire Fund Charge | B83: DWR Bond/Power | J83: DWR | L83: N
A84: Wildfire Fund Charge | B84: DWR Bond Refund | C84: -145519.4203 | D84: -145519.4203 | E84: 0 | F84: 0 | G84: 0 | H84: 0 | I84: 0 | J84: DWR | K84: D.21-12-001; Advice 4690-E | L84: N
A85: FERC Base Transmission | B85: Wildfire Fund Charge (AB1054) | C85: 402302 | D85: 402302 | E85: 402302 | F85: 402302 | G85: 408912 | H85: 408912 | I85: 408912 | J85: DWR | K85: D.22-12-007 | L85: N
A86: TRBAA | B86: FERC Base Transmission | C86: 1414935.849 | D86: 1414935.849 | E86: 1414935.849 | F86: 1414935.849 | G86: 1124500.46 | H86: 1124500.46 | I86: 1124500.46 | J86: FERC | K86: ER24-439 | L86: N
A87: RSBAA | B87: TRBAA (BA) | C87: -156456 | D87: -156456 | E87: -156456 | F87: -156456 | G87: -283956 | H87: -283956 | I87: -283956 | J87: TOTCA | K87: ER24-243, Advice 5149-E | L87: Y
A88: TACBAA | B88: RSBAA (BA) | C88: -2676 | D88: -2676 | E88: -2676 | F88: -2676 | G88: 4738 | H88: 4738 | I88: 4738 | J88: TOTCA | K88: ER24-223, Advice 5149-E | L88: Y
A89: Total Approved, Implemented Since Jan 1 or To Be Implemented | B89: TACBAA (BA) | C89: 156958 | D89: 156958 | E89: 98958 | F89: 98958 | G89: 98974 | H89: 98974 | I89: 270811 | J89: TOTCA | K89: ER24-1671-000 | L89: Y
B90: Subtotal Non-CPUC Jurisdictional | C90: =SUM(C84:C89) -> 1669544.429 | D90: 1669544.429 | E90: 1757063.849 | F90: 1757063.849 | G90: 1353168.46 | H90: =SUM(H84:H89) -> 1353168.46 | I90: 1525005.46
B91: PUCRF | C91: =E91 -> 107475 | D91: =E91 -> 107475 | E91: 107475 | F91: 107475 | G91: 80194.53144 | H91: =G91 -> 80194.53144 | I91: =H91 -> 80194.53144 | J91: PUCRF | L91: N
B92: Total Authorized Revenue | C92: =C62+C81+C90+C91 -> 16787670.54 | D92: 16696258.54 | E92: 17486230.38 | F92: 17536613.62 | G92: 17755163.07 | H92: 17967980.72 | I92: 17778076.65
B93: w/o PUCRF | C93: =C92-C91 -> 16680195.54 | D93: 16588783.54 | E93: 17378755.38 | F93: 17429138.62 | G93: 17674968.54 | H93: 17887786.19 | I93: =I92-I91 -> 17697882.12
C94: 0 | D94: 0 | E94: 0 | F94: 0 | G94: 0 | H94: 0 | I94: 0

Sheet Incremental Rev Req
A2: Annual Period 2024
A3: Reporting Date: Quarter Ended September 30
A5: Current Revenue Requirement ($000): | B5: ='Authorized Rev Req'!I92 -> 17778076.65 | C5: Inc. PUCRF
A6: Current Revenue Requirement Effective: | B6: ='Authorized Rev Req'!I4 -> June 1, 2024
A7: Approved Application(s), Implemented Since Jan 1 or To Be Implemented
A8: Filing Description | B8: Proceeding | C8: Authority for Revenue Requirement | D8: Authorized Revenue Requirement ($000) | E8: Revenue Recovery Mechanism | F8: 2024 | G8: 2025 | H8: 2026 | I8: 2027 | J8: 2028 | K8: Existing or New Item (if existing, use delta from prior for rate impact) | S8: Total Authorized
A9: Safety Affordability Reliability Proceedings | T9: 2024 | U9: 2025 | V9: 2026 | W9: 2027 | X9: 2028
A10: General Rate Case (GRC-G) | C10: =VLOOKUP(A10,'Authorized Rev Req'!B$7:$K$90,10,FALSE) -> D.23-11-096, Advice 5120-E | D10: ='Authorized Rev Req'!$I8 -> 766648.8347 | E10: Generation | F10: ='Authorized Rev Req'!$I8 -> 766648.8347 | G10: =F10 -> 766648.8347 | H10: =G10 -> 766648.8347 | I10: 766648.8347 | J10: 766648.8347 | K10: Existing | S10: Generation | T10: =SUMIF($E$10:$E$79,$S10,F$10:F$79) -> 5434447.114 | U10: =SUMIF($E$10:$E$79,$S10,G$10:G$79) -> 5522929.958 | V10: =SUMIF($E$10:$E$79,$S10,H$10:H$79) -> 5522929.958 | W10: =SUMIF($E$10:$E$79,$S10,I$10:I$79) -> 5522929.958 | X10: =SUMIF($E$10:$E$79,$S10,J$10:J$79) -> 5522929.958
A11: General Rate Case (GRC-N) | C11: =VLOOKUP(A11,'Authorized Rev Req'!B$7:$K$90,10,FALSE) -> D.23-11-096, Advice 5120-E | D11: ='Authorized Rev Req'!$I9 -> 62607.60614 | E11: New System Gen | F11: ='Authorized Rev Req'!$I9 -> 62607.60614 | G11: =F11 -> 62607.60614 | H11: 62607.60614 | I11: 62607.60614 | J11: 62607.60614 | K11: Existing | S11: New System Gen | T11: 688044.3886 | U11: 465604.6061 | V11: 465604.6061 | W11: 465604.6061 | X11: 465604.6061
A12: General Rate Case (GRC-D) | C12: =VLOOKUP(A12,'Authorized Rev Req'!B$7:$K$90,10,FALSE) -> D.23-11-096, Advice 5120-E | D12: ='Authorized Rev Req'!$I10 -> 7752988.246 | E12: Distribution | F12: ='Authorized Rev Req'!$I10 -> 7752988.246 | G12: 7752988.246 | H12: 7752988.246 | I12: 7752988.246 | J12: 7752988.246 | K12: Existing | S12: Distribution | T12: 9961918.315 | U12: 8456704.194 | V12: 8189804.194 | W12: 8189315.194 | X12: 8189315.194
A13: Non-utility Affiliate Credits | C13: =VLOOKUP(A13,'Authorized Rev Req'!B$7:$K$90,10,FALSE) -> D.15-10-037 | D13: ='Authorized Rev Req'!$I14 -> -4485.891476 | E13: Distribution | F13: ='Authorized Rev Req'!$I14 -> -4485.891476 | G13: =F13 -> -4485.891476 | H13: -4485.891476 | I13: =H13 -> -4485.891476 | J13: =I13 -> -4485.891476 | K13: Existing | S13: GHG Revenue | T13: -955105 | U13: -955105 | V13: -955105 | W13: -955105 | X13: -955105
A14: Pole Loading & Deteriorated Pole Programs Balancing Account | C14: =VLOOKUP(A14,'Authorized Rev Req'!B$7:$K$90,10,FALSE) -> D.21-08-036 | D14: ='Authorized Rev Req'!$I15 -> -51916.65043 | E14: Distribution | F14: ='Authorized Rev Req'!$I15 -> -51916.65043 | K14: Existing | S14: MCAM | T14: 2362.884396 | U14: 2362.884396 | V14: 2362.884396 | W14: 2362.884396 | X14: 2362.884396
A15: 2021/2022 TAMA Balance | C15: =VLOOKUP(A15,'Authorized Rev Req'!B$7:$K$90,10,FALSE) -> Advice 4764-E | D15: ='Authorized Rev Req'!$I17 -> 19974.10359 | E15: Generation | F15: ='Authorized Rev Req'!$I17 -> 19974.10359 | K15: New | S15: Nuclear | T15: 6885 | U15: 4958 | V15: 4958 | W15: 4958 | X15: 4958
A16: 2021/2022 TAMA Balance | C16: =VLOOKUP(A16,'Authorized Rev Req'!B$7:$K$90,10,FALSE) -> Advice 4764-E | D16: ='Authorized Rev Req'!$I18 -> 129422.3922 | E16: Distribution | F16: 0 | K16: New | S16: Public Purpose | T16: 688372.6031 | U16: 807460.6148 | V16: 795652.6488 | W16: 794552.6488 | X16: 794552.6488
A17: 2023 TAMA Undercollection | C17: Advice 5260-E | D17: 0 | E17: Generation | G17: 14976 | H17: =G17 -> 14976 | I17: =H17 -> 14976 | J17: 14976 | K17: New | S17: CIA | T17: 0 | U17: 0 | V17: 0 | W17: 0 | X17: 0
A18: 2023 TAMA Undercollection | C18: Advice 5260-E | D18: 0 | E18: Distribution | F18: 97197 | G18: =F18 -> 97197 | H18: =G18 -> 97197 | I18: =H18 -> 97197 | J18: 97197 | K18: New | S18: DWR | T18: 408912 | U18: 408912 | V18: 408912 | W18: 408912 | X18: 408912
A19: Pension/PBOP/Medical Balancing Accounts | C19: =VLOOKUP(A19,'Authorized Rev Req'!B$7:$K$90,10,FALSE) -> D.21-08-036 | D19: ='Authorized Rev Req'!$I19 -> -12071.66001 | E19: Generation | F19: ='Authorized Rev Req'!$I19 -> -12071.66001 | K19: Existing | S19: FERC | T19: 1124500.46 | U19: 1124500.46 | V19: 1124500.46 | W19: 1124500.46 | X19: 1124500.46
A20: Pension/PBOP/Medical Balancing Accounts | C20: =VLOOKUP(A20,'Authorized Rev Req'!B$7:$K$90,10,FALSE) -> D.21-08-036 | D20: ='Authorized Rev Req'!$I20 -> -78219.42906 | E20: Distribution | F20: ='Authorized Rev Req'!$I20 -> -78219.42906 | K20: Existing | S20: TOTCA | T20: -8407 | U20: -8407 | V20: -8407 | W20: -8407 | X20: -8407
A21: 2024 ERRA Forecast F&PP | C21: =VLOOKUP("ERRA Forecast",'Authorized Rev Req'!B$7:K112,10,FALSE) -> D.23-11-094 | D21: ='Authorized Rev Req'!$I21 -> 4703703 | E21: Generation | F21: ='Authorized Rev Req'!$I21 -> 4703703 | G21: 4703703 | H21: 4703703 | I21: =H21 -> 4703703 | J21: =I21 -> 4703703 | K21: Existing | S21: Securitization | T21: 106244.28 | U21: 106244.28 | V21: 106244.28 | W21: 106244.28 | X21: 106244.28
A22: 2024 ERRA Forecast F&PP | C22: =VLOOKUP("ERRA Forecast",'Authorized Rev Req'!B$7:K113,10,FALSE) -> D.23-11-094 | D22: ='Authorized Rev Req'!$I22 -> 402997 | E22: New System Gen | F22: ='Authorized Rev Req'!$I22 -> 402997 | G22: 402997 | H22: 402997 | I22: 402997 | J22: 402997 | K22: Existing | S22: PUCRF | T22: 80194.53144 | U22: 80194.53144 | V22: 80194.53144 | W22: 80194.53144 | X22: 80194.53144
A23: 2024 ERRA Forecast (BA) | C23: =VLOOKUP("ERRA Forecast",'Authorized Rev Req'!B$7:K114,10,FALSE) -> D.23-11-094 | D23: ='Authorized Rev Req'!$I23 -> 222439.7825 | E23: New System Gen | F23: ='Authorized Rev Req'!$I23 -> 222439.7825 | I23: =H23 -> 0 | J23: =I23 -> 0 | K23: Existing | T23: =SUM(T10:T22) -> 17538369.58 | U23: =SUM(U10:U22) -> 16016359.53 | V23: 15737651.56 | W23: 15736062.56 | X23: 15736062.56
A24: 2024 ERRA Forecast | C24: =VLOOKUP("ERRA Forecast",'Authorized Rev Req'!B$7:K115,10,FALSE) -> D.23-11-094 | D24: ='Authorized Rev Req'!$I24 -> -955105 | E24: GHG Revenue | F24: ='Authorized Rev Req'!$I24 -> -955105 | G24: -955105 | H24: -955105 | I24: -955105 | J24: -955105 | K24: Existing | S24: Check | T24: =T23=F79 -> TRUE | U24: =U23=G79 -> TRUE | V24: =V23=H79 -> TRUE | W24: =W23=I79 -> TRUE | X24: =X23=J79 -> TRUE
A25: 2024 ERRA Forecast | C25: =VLOOKUP("ERRA Forecast",'Authorized Rev Req'!B$7:K116,10,FALSE) -> D.23-11-094 | D25: ='Authorized Rev Req'!$I25 -> 4958 | E25: Nuclear | F25: ='Authorized Rev Req'!$I25 -> 4958 | G25: 4958 | H25: 4958 | I25: 4958 | J25: 4958 | K25: Existing | T25: =T23-F79 -> 0
A26: 2024 ERRA Forecast | C26: =VLOOKUP("ERRA Forecast",'Authorized Rev Req'!B$7:K117,10,FALSE) -> D.23-11-094 | D26: ='Authorized Rev Req'!$I26 -> -3582 | E26: Distribution | F26: ='Authorized Rev Req'!$I26 -> -3582 | G26: -3582 | H26: -3582 | I26: -3582 | J26: -3582 | K26: Existing
A27: 2024 ERRA Forecast | C27: =VLOOKUP("ERRA Forecast",'Authorized Rev Req'!B$7:K118,10,FALSE) -> D.23-11-094 | D27: ='Authorized Rev Req'!$I27 -> 6584.546087 | E27: Public Purpose | F27: ='Authorized Rev Req'!$I27 -> 6584.546087 | G27: 6584.546087 | H27: 6584.546087 | I27: 6584.546087 | J27: 6584.546087 | K27: Existing
A28: 2024 ERRA Forecast | C28: =VLOOKUP("ERRA Forecast",'Authorized Rev Req'!B$7:K119,10,FALSE) -> D.23-11-094 | D28: ='Authorized Rev Req'!$I28 -> 2362.884396 | E28: MCAM | F28: ='Authorized Rev Req'!$I28 -> 2362.884396 | G28: =F28 -> 2362.884396 | H28: =G28 -> 2362.884396 | I28: =H28 -> 2362.884396 | J28: =I28 -> 2362.884396 | K28: Existing
A29: 2024 ERRA Forecast (BA) | C29: =VLOOKUP("ERRA Forecast",'Authorized Rev Req'!B$7:K120,10,FALSE) -> D.23-11-094 | D29: ='Authorized Rev Req'!$I29 -> 8772.952 | E29: Public Purpose | F29: ='Authorized Rev Req'!$I29 -> 8772.952 | I29: 0 | J29: 0 | K29: Existing
A30: 2024 ERRA/PABA (BA) | C30: =VLOOKUP("ERRA Forecast",'Authorized Rev Req'!B$7:K121,10,FALSE) -> D.23-11-094 | D30: ='Authorized Rev Req'!$I30 -> 676260.1571 | E30: Generation | F30: ='Authorized Rev Req'!$I30 -> 676260.1571 | G30: 20000 | H30: 20000 | I30: 20000 | J30: 20000 | K30: Existing
A31: DAC-GT/CSGT Clean Energy Programs (BA) | C31: =VLOOKUP(A31,'Authorized Rev Req'!B$7:$K$90,10,FALSE) -> D.23-11-094 | D31: ='Authorized Rev Req'!$I32 -> 2572.453913 | E31: Public Purpose | F31: ='Authorized Rev Req'!$I32 -> 2572.453913 | H31: 0 | I31: =H31 -> 0 | J31: =I31 -> 0 | K31: Existing
A32: 2024 ERRA Trigger | C32: D.24-08-015 | E32: Generation | F32: -742426 | K32: New
A33: BRRBA Balancing Account | C33: =VLOOKUP(A33,'Authorized Rev Req'!B$7:$K$90,10,FALSE) -> D.15-10-037 | D33: ='Authorized Rev Req'!$I36 -> 4756.555825 | E33: Generation | F33: ='Authorized Rev Req'!$I36 -> 4756.555825 | K33: Existing
A34: BRRBA Balancing Account | C34: =VLOOKUP(A34,'Authorized Rev Req'!B$7:$K$90,10,FALSE) -> D.15-10-037 | D34: ='Authorized Rev Req'!$I37 -> 695357.185 | E34: Distribution | F34: ='Authorized Rev Req'!$I37 -> 695357.185 | G34: =80000+993 -> 80993 | H34: =G34 -> 80993 | I34: =H34 -> 80993 | J34: 80993 | K34: Existing
A35: NDAM Balancing Account | C35: =VLOOKUP(A35,'Authorized Rev Req'!B$7:$K$90,10,FALSE) -> D.15-10-037 | D35: ='Authorized Rev Req'!$I38 -> 1927 | E35: Nuclear | F35: ='Authorized Rev Req'!$I38 -> 1927 | K35: Existing
A36: CARE Balancing Account | C36: =VLOOKUP(A36,'Authorized Rev Req'!B$7:$K$90,10,FALSE) -> D.15-10-037 | D36: ='Authorized Rev Req'!$I39 -> 55214.93072 | E36: Public Purpose | F36: ='Authorized Rev Req'!$I39 -> 55214.93072 | K36: Existing
A37: PPPAM Balancing Account | C37: =VLOOKUP(A37,'Authorized Rev Req'!B$7:$K$90,10,FALSE) -> D.15-10-037 | D37: ='Authorized Rev Req'!$I40 -> 57989.27786 | E37: Public Purpose | F37: ='Authorized Rev Req'!$I40 -> 57989.27786 | G37: 70000 | H37: =G37 -> 70000 | I37: =H37 -> 70000 | J37: 70000 | K37: Existing
A38: Emergency Reliability UOS | C38: =VLOOKUP(A38,'Authorized Rev Req'!B$7:$K$90,10,FALSE) -> Advice 5120-E; Advice 5142-E | D38: ='Authorized Rev Req'!$I43 -> 17591 | E38: Generation | F38: ='Authorized Rev Req'!$I43 -> 17591 | G38: =F38 -> 17591 | H38: =G38 -> 17591 | I38: =H38 -> 17591 | J38: =I38 -> 17591 | K38: New
A39: Emergency Reliability UOS | C39: =VLOOKUP(A39,'Authorized Rev Req'!B$7:$K$90,10,FALSE) -> Advice 5120-E; Advice 5142-E | D39: ='Authorized Rev Req'!$I44 -> 64611 | E39: Distribution | F39: ='Authorized Rev Req'!$I44 -> 64611 | G39: =F39 -> 64611 | H39: 64611 | I39: 64611 | J39: 64611 | K39: New
A40: 2021 GRC Track 2 O&M (36-Month Amortization) | C40: =VLOOKUP(A40,'Authorized Rev Req'!B$7:$K$90,10,FALSE) -> D.21-01-012; Advice 4658-E/E-A | D40: ='Authorized Rev Req'!$I46 -> 135161.6901 | E40: Distribution | F40: ='Authorized Rev Req'!$I46 -> 135161.6901 | K40: New
A41: 2021 GRC Track 3 O&M (36-Month Amortization) | C41: =VLOOKUP(A41,'Authorized Rev Req'!B$7:$K$90,10,FALSE) -> D.22-06-032 | D41: ='Authorized Rev Req'!$I47 -> 135415.5795 | E41: Distribution | F41: ='Authorized Rev Req'!$I47 -> 135415.5795 | K41: New
A42: VMBA Undercollection Threshold | C42: Advice 5245-E | D42: ='Authorized Rev Req'!$I48 -> 29215.51344 | E42: Distribution | F42: 34738.53028 | K42: New
A43: 2022 Wildfire Mgmt/Veg. Mgmt (WM/VM) | C43: 24-07-012 | D43: 0 | E43: Distribution | F43: 149903 | G43: =F43 -> 149903 | K43: New
A44: 2020 Vegetation Management Z-Factor | C44: =VLOOKUP(A44,'Authorized Rev Req'!B$7:$K$90,10,FALSE) -> Resolution E-5287 | D44: ='Authorized Rev Req'!$I49 -> 37644.69531 | E44: Distribution | F44: 0 | K44: New
A45: 2021 Wildfire Mitigation/Vegetation Management | C45: =VLOOKUP(A45,'Authorized Rev Req'!B$7:$K$90,10,FALSE) -> D.24-03-008 | D45: ='Authorized Rev Req'!$I50 -> 378956.9667 | E45: Distribution | F45: =D45 -> 378956.9667 | K45: New
A46: Mobilehome Master Meter Balancing Account | C46: =VLOOKUP(A46,'Authorized Rev Req'!B$7:$K$90,10,FALSE) -> D.15-10-037 | D46: ='Authorized Rev Req'!$I51 -> 18034.35236 | E46: Distribution | F46: ='Authorized Rev Req'!$I51 -> 18034.35236 | H46: 0 | I46: =H46 -> 0 | J46: =I46 -> 0 | K46: New
A47: WRMBA Track 1 Undercollection Threshold | C47: Advice 5267-E | D47: 0 | E47: Distribution | F47: 129014 | K47: New
A48: 2022 CEMA (2020 Storms) | C48: D.24-05-037 | D48: 0 | E48: Distribution | F48: 288149 | G48: 0 | H48: 0 | K48: New
A49: 2021 CEMA/WEMA | C49: =VLOOKUP(A49,'Authorized Rev Req'!B$7:$K$90,10,FALSE) -> D.23-11-089 | D49: ='Authorized Rev Req'!$I54 -> 137221.3298 | E49: Distribution | F49: ='Authorized Rev Req'!$I54 -> 137221.3298 | K49: New
A50: Wildfire Self-Insurance Credit | C50: =VLOOKUP(A50,'Authorized Rev Req'!B$7:$K$90,10,FALSE) -> D.23-05-013 | D50: ='Authorized Rev Req'!$I55 -> -24268.43314 | E50: Distribution | F50: =D50 -> -24268.43314 | K50: New
A51: CSRP Track 1 | C51: =VLOOKUP(A51,'Authorized Rev Req'!B$7:$K$90,10,FALSE) -> D.22-09-015; Advice 4876-E | D51: ='Authorized Rev Req'!$I56 -> 0 | E51: Distribution | F51: ='Authorized Rev Req'!$I56 -> 0 | G51: 101989 | K51: New
A52: ='Authorized Rev Req'!$B$57 -> CSRP Track 2 | C52: =VLOOKUP(A52,'Authorized Rev Req'!B$7:$K$90,10,FALSE) -> D.23-03-019 | D52: ='Authorized Rev Req'!$I57 -> 0 | E52: Distribution | F52: 0 | G52: 15008 | K52: New
A53: GSRP Recovery Bonds FRC #1 (AB 1054) | C53: =VLOOKUP(A53,'Authorized Rev Req'!B$7:$K$90,10,FALSE) -> D.20-11-007; Advice 4416-E | D53: ='Authorized Rev Req'!$I58 -> 19256.772 | E53: Securitization | F53: ='Authorized Rev Req'!$I58 -> 19256.772 | G53: =F53 -> 19256.772 | H53: 19256.772 | I53: =H53 -> 19256.772 | J53: =I53 -> 19256.772 | K53: New
A54: 2021 GRC Tracks 1 and 2 Recovery Bonds FRC #2 (AB 1054) | C54: =VLOOKUP(A54,'Authorized Rev Req'!B$7:$K$90,10,FALSE) -> D.21-10-025; Advice 4717-E-A | D54: ='Authorized Rev Req'!$I59 -> 31732.126 | E54: Securitization | F54: ='Authorized Rev Req'!$I59 -> 31732.126 | G54: =F54 -> 31732.126 | H54: 31732.126 | I54: 31732.126 | J54: 31732.126 | K54: New
A55: ='Authorized Rev Req'!$B$60 -> 2021 GRC Tracks 1 and 3 Recovery Bonds FRC #3 (AB 1054) | C55: =VLOOKUP(A55,'Authorized Rev Req'!B$7:$K$90,10,FALSE) -> D.23-02-023 / Advice 5018-E | D55: ='Authorized Rev Req'!$I60 -> 55255.382 | E55: Securitization | F55: ='Authorized Rev Req'!$I60 -> 55255.382 | G55: =F55 -> 55255.382 | H55: =G55 -> 55255.382 | I55: 55255.382 | J55: 55255.382 | K55: New
A57: Public Policy Proceedings
A58: Demand Response | C58: =VLOOKUP(A58,'Authorized Rev Req'!B$7:$K$90,10,FALSE) -> D.23-12-005; Advice 5206-E | D58: ='Authorized Rev Req'!$I64 -> 11.12303186 | E58: Generation | F58: ='Authorized Rev Req'!$I64 -> 11.12303186 | G58: =F58 -> 11.12303186 | H58: 11.12303186 | I58: =H58 -> 11.12303186 | J58: =I58 -> 11.12303186 | K58: Existing
A59: Demand Response | C59: =VLOOKUP(A59,'Authorized Rev Req'!B$7:$K$90,10,FALSE) -> D.23-12-005; Advice 5206-E | D59: ='Authorized Rev Req'!$I65 -> 49287.83909 | E59: Distribution | F59: ='Authorized Rev Req'!$I65 -> 49287.83909 | G59: 49287.83909 | H59: 49287.83909 | I59: =(H59)+-489 -> 48798.83909 | J59: =I59 -> 48798.83909 | K59: Existing
A60: Energy Efficiency (Inc. IDSM) | C60: =VLOOKUP(A60,'Authorized Rev Req'!B$7:$K$90,10,FALSE) -> D.23-08-005; Advice 5123-E | D60: ='Authorized Rev Req'!$I66 -> 288996.5913 | E60: Public Purpose | F60: ='Authorized Rev Req'!$I66 -> 288996.5913 | G60: 483700 | H60: 483700 | I60: 482600 | J60: =I60 -> 482600 | K60: Existing | S60: Total w/Authorized and Pending
A61: Energy Efficiency Market Transformation | C61: =VLOOKUP(A61,'Authorized Rev Req'!B$7:$K$90,10,FALSE) -> D.19-12-021 | D61: ='Authorized Rev Req'!$I71 -> 6441 | E61: Public Purpose | F61: ='Authorized Rev Req'!$I71 -> 6441 | G61: =F61 -> 6441 | H61: 16103 | I61: 16103 | J61: 16103 | K61: Existing | T61: 2024 | U61: 2025 | V61: 2026 | W61: 2027 | X61: 2028
A62: 2020 RUBA Uncollectibles (36-Month Amortization) | C62: =VLOOKUP(A62,'Authorized Rev Req'!B$7:$K$90,10,FALSE) -> Advice 4658-E/E-A | D62: ='Authorized Rev Req'!$I72 -> 25700.14834 | E62: Public Purpose | F62: ='Authorized Rev Req'!$I72 -> 25700.14834 | K62: New | S62: Generation | T62: =T10+SUMIFS(L$85:L$116,$Q$85:$Q$116,"Y",$E$85:$E$116,$S62) -> 5434447.114 | U62: =U10+SUMIFS(M$85:M$116,$Q$85:$Q$116,"Y",$E$85:$E$116,$S62) -> 5946992.906 | V62: =V10+SUMIFS(N$85:N$116,$Q$85:$Q$116,"Y",$E$85:$E$116,$S62) -> 5612025.607 | W62: =W10+SUMIFS(O$85:O$116,$Q$85:$Q$116,"Y",$E$85:$E$116,$S62) -> 5647250.607 | X62: =X10+SUMIFS(P$85:P$116,$Q$85:$Q$116,"Y",$E$85:$E$116,$S62) -> 5681671.607
A63: Charge Ready Programs (Pilot, Bridge and Schools and Parks) | C63: =VLOOKUP(A63,'Authorized Rev Req'!B$7:$K$90,10,FALSE) -> Advice 5120-E; Advice 5141-E | D63: ='Authorized Rev Req'!$I74 -> 42322 | E63: Distribution | F63: ='Authorized Rev Req'!$I74 -> 42322 | G63: =F63 -> 42322 | H63: =G63 -> 42322 | I63: 42322 | J63: 42322 | K63: Existing | S63: New System Gen | T63: 688044.3886 | U63: 651301.8312 | V63: 509642.5408 | W63: 512062.5408 | X63: 514134.5408
A64: Transportation Electrification | C64: =VLOOKUP(A64,'Authorized Rev Req'!B$7:$K$90,10,FALSE) -> Advice 5120-E; Advice 5141-E | D64: ='Authorized Rev Req'!$I75 -> 16033 | E64: Distribution | F64: ='Authorized Rev Req'!$I75 -> 16033 | G64: =F64 -> 16033 | H64: =G64 -> 16033 | I64: 16033 | J64: 16033 | K64: New | S64: Distribution | T64: 9961918.315 | U64: 10848039.71 | V64: 10417521.71 | W64: 11201868.71 | X64: 11897653.71
A65: TE Funding Cycle 1 | C65: D.22-11-040 / Advice 4954-E | D65: 0 | E65: Distribution | F65: 0 | G65: 94440 | H65: 94440 | I65: 94440 | J65: 94440 | K65: New | S65: GHG Revenue | T65: -955105 | U65: -1021086.424 | V65: -1021086.424 | W65: -1021086.424 | X65: -1021086.424
A66: Low Income Programs (ESAP) | C66: =VLOOKUP(A66,'Authorized Rev Req'!B$7:$K$90,10,FALSE) -> D.21-06-015 | D66: ='Authorized Rev Req'!$I76 -> 92017.80899 | E66: Public Purpose | F66: ='Authorized Rev Req'!$I76 -> 92017.80899 | G66: 96372.295 | H66: 74799.329 | I66: 74799.329 | J66: 74799.329 | K66: Existing | S66: MCAM | T66: 2362.884396 | U66: 3414.165988 | V66: 1213.821166 | W66: 1213.821166 | X66: 1213.821166
A67: Low Income Programs (CARE/FERA Admin) | C67: =VLOOKUP(A67,'Authorized Rev Req'!B$7:$K$90,10,FALSE) -> D.21-06-015; Advice 4638-E | D67: ='Authorized Rev Req'!$I77 -> 10571.12016 | E67: Public Purpose | F67: ='Authorized Rev Req'!$I77 -> 10571.12016 | G67: =9302+1549 -> 10851 | H67: =9276+1678 -> 10954 | I67: =9276+1678 -> 10954 | J67: 10954 | K67: Existing | S67: Nuclear | T67: 6885 | U67: 5012.142548 | V67: 5012.142548 | W67: 5012.142548 | X67: 5012.142548
A68: EPIC - RD&D and Renewables | C68: =VLOOKUP(A68,'Authorized Rev Req'!B$7:$K$90,10,FALSE) -> D.20-08-042; D.21-11-028 | D68: ='Authorized Rev Req'!$I79 -> 76885.42974 | E68: Public Purpose | F68: ='Authorized Rev Req'!$I79 -> 76885.42974 | G68: =F68 -> 76885.42974 | H68: =G68 -> 76885.42974 | I68: =H68 -> 76885.42974 | J68: =I68 -> 76885.42974 | K68: Existing | S68: Public Purpose | T68: 688372.6031 | U68: 972603.5263 | V68: 973008.3856 | W68: 961244.3856 | X68: 961244.3856
A69: Self-Generation Incentive Program (SGIP) | C69: =VLOOKUP(A69,'Authorized Rev Req'!B$7:$K$90,10,FALSE) -> D.20-01-021, Advice 4169-E | D69: ='Authorized Rev Req'!$I80 -> 56626.34399 | E69: Public Purpose | F69: ='Authorized Rev Req'!$I80 -> 56626.34399 | G69: =F69 -> 56626.34399 | H69: =G69 -> 56626.34399 | I69: 56626.34399 | J69: 56626.34399 | K69: Existing | S69: CIA | T69: 0 | U69: 0 | V69: 0 | W69: 0 | X69: 0
S70: DWR | T70: 408912 | U70: 408912 | V70: 408912 | W70: 408912 | X70: 408912
A71: Non-CPUC Jurisdictional Proceedings | S71: FERC | T71: 1124500.46 | U71: 1345305.397 | V71: 1345305.397 | W71: 1345305.397 | X71: 1345305.397
A72: Wildfire Fund Charge (AB1054) | C72: =VLOOKUP(A72,'Authorized Rev Req'!B$7:$K$90,10,FALSE) -> D.22-12-007 | D72: ='Authorized Rev Req'!$I85 -> 408912 | E72: DWR | F72: ='Authorized Rev Req'!$I85 -> 408912 | G72: =F72 -> 408912 | H72: 408912 | I72: =H72 -> 408912 | J72: =I72 -> 408912 | K72: Existing | S72: TOTCA | T72: -8407 | U72: -8407 | V72: -8407 | W72: -8407 | X72: -8407
A73: FERC Base Transmission | C73: =VLOOKUP(A73,'Authorized Rev Req'!B$7:$K$90,10,FALSE) -> ER24-439 | D73: ='Authorized Rev Req'!$I86 -> 1124500.46 | E73: FERC | F73: ='Authorized Rev Req'!$I86 -> 1124500.46 | G73: 1124500.46 | H73: 1124500.46 | I73: 1124500.46 | J73: 1124500.46 | K73: Existing | S73: Securitization | T73: 106244.28 | U73: 106244.28 | V73: 268944.28 | W73: 268944.28 | X73: 268944.28
A74: TRBAA (BA) | C74: =VLOOKUP(A74,'Authorized Rev Req'!B$7:$K$90,10,FALSE) -> ER24-243, Advice 5149-E | D74: ='Authorized Rev Req'!$I87 -> -283956 | E74: TOTCA | F74: ='Authorized Rev Req'!$I87 -> -283956 | G74: -283956 | H74: -283956 | I74: -283956 | J74: -283956 | K74: Existing | S74: PUCRF | T74: 80194.53144 | U74: 80194.53144 | V74: 80194.53144 | W74: 80194.53144 | X74: 80194.53144
A75: RSBAA (BA) | C75: =VLOOKUP(A75,'Authorized Rev Req'!B$7:$K$90,10,FALSE) -> ER24-223, Advice 5149-E | D75: ='Authorized Rev Req'!$I88 -> 4738 | E75: TOTCA | F75: ='Authorized Rev Req'!$I88 -> 4738 | G75: 4738 | H75: 4738 | I75: 4738 | J75: 4738 | K75: Existing | S75: Total | T75: =SUM(T62:T74) -> 17538369.58 | U75: 19338527.06 | V75: 18592286.99 | W75: 19402514.99 | X75: 20134792.99
A76: TACBAA (BA) | C76: =VLOOKUP(A76,'Authorized Rev Req'!B$7:$K$90,10,FALSE) -> ER24-1671-000 | D76: ='Authorized Rev Req'!$I89 -> 270811 | E76: TOTCA | F76: ='Authorized Rev Req'!$I89 -> 270811 | G76: 270811 | H76: 270811 | I76: 270811 | J76: 270811 | K76: Existing | S76: Increase over current | T76: =T75-T23 -> 0 | U76: =U75-U23 -> 3322167.536 | V76: =V75-V23 -> 2854635.427 | W76: =W75-W23 -> 3666452.427 | X76: =X75-X23 -> 4398730.427
A77: Total Approved, Implemented Since Jan 1 or To Be Implemented | D77: =SUM(D10:D76) -> 17697882.12 | F77: =SUM(F10:F76) -> 17458175.05 | G77: =SUM(G10:G76) -> 15936165 | H77: =SUM(H10:H76) -> 15657457.03 | I77: =SUM(I10:I76) -> 15655868.03 | J77: =SUM(J10:J76) -> 15655868.03
A78: PUCRF | D78: ='Authorized Rev Req'!$I91 -> 80194.53144 | E78: PUCRF | F78: ='Authorized Rev Req'!$H91 -> 80194.53144 | G78: =F78 -> 80194.53144 | H78: 80194.53144 | I78: =H78 -> 80194.53144 | J78: =I78 -> 80194.53144 | S78: Check | T78: =T76-L116 -> 0 | U78: =U76-M116 -> 0 | V78: =V76-N116 -> 0 | W78: =W76-O116 -> 0 | X78: =X76-P116 -> 0
D79: =SUM(D77:D78) -> 17778076.65 | E79: w/PUCRF | F79: =SUM(F77:F78) -> 17538369.58 | G79: =SUM(G77:G78) -> 16016359.53 | H79: =SUM(H77:H78) -> 15737651.56 | I79: 15736062.56 | J79: 15736062.56
D80: =-'Authorized Rev Req'!$I92+D79 -> 0
A82: Pending Application(s), Not Yet Approved
A83: Filing Description | B83: Proceeding | C83: Basis for Revenue Requirement | D83: Proposed Revenue Requirement ($000) | E83: Proposed Revenue Recovery Mechanism | F83: 2024 | G83: 2025 | H83: 2026 | I83: 2027 | J83: 2028 | K83: Existing or New Item (if existing, use delta from prior for rate impact) | L83: 2024 | M83: 2025 | N83: 2026 | O83: 2027 | P83: 2028
A84: Safety Affordability Reliability Proceedings | Q84: Include in Impact
A85: 2025 GRC | B85: A.23-05-010 | C85: Filed Application | D85: =G85 -> 974750 | E85: Generation | F85: 0 | G85: 974750 | H85: 1010496 | I85: 1045722 | J85: 1080143 | K85: Existing | M85: =G85-$F$10 -> 208101.1653 | N85: =H85-$F$10 -> 243847.1653 | O85: =I85-$F$10 -> 279073.1653 | P85: =J85-$F$10 -> 313494.1653 | Q85: =VLOOKUP('Incremental Rev Req'!A85,Summary!$B$8:$D$24,3,FALSE) -> Y
A86: 2025 GRC | B86: A.23-05-010 | C86: Filed Application | D86: =G86 -> 68431 | E86: New System Gen | F86: 0 | G86: 68431 | H86: 69676 | I86: 72096 | J86: 74168 | K86: Existing | M86: =G86-$F$11 -> 5823.39386 | N86: =H86-$F$11 -> 7068.39386 | O86: =I86-$F$11 -> 9488.39386 | P86: =J86-$F$11 -> 11560.39386 | Q86: =Q85 -> Y
A87: 2025 GRC (Inc. One Time Recoveries) | B87: A.23-05-010 | C87: Filed Application | D87: 9557183 | E87: Distribution | F87: 0 | G87: =9439892+117291 -> 9557183 | H87: 10071005 | I87: 10781982 | J87: 11477767 | K87: Existing | M87: =G87-$F$12 -> 1804194.754 | N87: =H87-$F$12 -> 2318016.754 | O87: =I87-$F$12 -> 3028993.754 | P87: =J87-$F$12 -> 3724778.754 | Q87: =Q86 -> Y
A88: 2025 ERRA Forecast F&PP | B88: A.24-05-007 | C88: Filed Application | D88: 4548856.484 | E88: Generation | G88: 4548856.484 | H88: =G88 -> 4548856.484 | I88: =H88 -> 4548856.484 | J88: 4548856.484 | K88: Existing | M88: =G88-F21 -> -154846.5156 | N88: =M88 -> -154846.5156 | O88: =N88 -> -154846.5156 | P88: -154846.5156 | Q88: =$Q$91 -> Y
A89: 2025 ERRA Forecast F&PP | B89: A.24-05-007 | C89: Filed Application | D89: 439966.5408 | E89: New System Gen | G89: 439966.5408 | H89: =G89 -> 439966.5408 | I89: 439966.5408 | J89: 439966.5408 | K89: Existing | M89: 36969.54076 | N89: =M89 -> 36969.54076 | O89: 36969.54076 | P89: 36969.54076 | Q89: =$Q$91 -> Y
A90: 2025 ERRA Forecast (BA) | B90: A.24-05-007 | C90: Filed Application | D90: 142904.2904 | E90: New System Gen | G90: 142904.2904 | K90: Existing | M90: =G90 -> 142904.2904 | Q90: =$Q$91 -> Y
A91: 2025 ERRA Forecast | B91: A.24-05-007 | C91: Filed Application | D91: -1021086.424 | E91: GHG Revenue | G91: -1021086.424 | H91: -1021086.424 | I91: -1021086.424 | J91: -1021086.424 | K91: Existing | M91: -65981.42448 | N91: -65981.42448 | O91: -65981.42448 | P91: -65981.42448 | Q91: =VLOOKUP('Incremental Rev Req'!A91,Summary!$B$8:$D$24,3,FALSE) -> Y
A92: 2025 ERRA Forecast | B92: A.24-05-007 | C92: Filed Application | D92: 5012.142548 | E92: Nuclear | G92: 5012.142548 | H92: 5012.142548 | I92: 5012.142548 | J92: 5012.142548 | K92: Existing | M92: 54.14254809 | N92: 54.14254809 | O92: 54.14254809 | P92: 54.14254809 | Q92: =$Q$91 -> Y
A93: 2025 ERRA Forecast | B93: A.24-05-007 | C93: Filed Application | D93: -20022.24 | E93: Distribution | G93: -20022.24 | H93: -20022.24 | I93: -20022.24 | J93: -20022.24 | K93: Existing | M93: -16440.24 | N93: -16440.24 | O93: -16440.24 | P93: -16440.24 | Q93: Y
A94: 2025 ERRA Forecast | B94: A.24-05-007 | C94: Filed Application | D94: 22650.28291 | E94: Public Purpose | G94: 22650.28291 | H94: 22650.28291 | I94: 22650.28291 | J94: 22650.28291 | K94: Existing | M94: 16065.73682 | N94: 16065.73682 | O94: 16065.73682 | P94: 16065.73682 | Q94: Y
A95: 2025 ERRA Forecast | B95: A.24-05-007 | C95: Filed Application | D95: 1213.821166 | E95: MCAM | G95: 1213.821166 | H95: 1213.821166 | I95: 1213.821166 | J95: 1213.821166 | K95: Existing | M95: -1149.06323 | N95: -1149.06323 | O95: -1149.06323 | P95: -1149.06323 | Q95: Y
A96: 2025 ERRA Forecast | B96: A.24-05-007 | C96: Filed Application | D96: 2200.344822 | E96: MCAM | G96: 2200.344822 | K96: Existing | M96: =G96 -> 2200.344822 | Q96: Y
A97: 2025 ERRA Forecast (BA) | B97: A.24-05-007 | C97: Filed Application | D97: -1782.825292 | E97: Public Purpose | G97: -1782.825292 | K97: Existing | M97: =G97 -> -1782.825292 | Q97: Y
A98: 2025 ERRA/PABA (BA) | B98: A.24-05-007 | C98: Filed Application | D98: 390808.2987 | E98: Generation | G98: 390808.2987 | H98: 95 | I98: 94 | J98: 94 | K98: Existing | M98: =G98-G30 -> 370808.2987 | N98: =H98 -> 95 | O98: =I98 -> 94 | P98: 94 | Q98: Y
A99: DAC-GT/CSGT Clean Energy Programs | B99: A.24-05-007 | C99: Filed Application | D99: 0 | E99: Public Purpose | G99: 0 | K99: Existing | M99: 0 | Q99: Y
A100: Diablo Canyon NBC | B100: A.24-03-013 | C100: Filed Application | D100: 150626 | E100: Public Purpose | G100: 150626 | H100: 150626 | I100: 150626 | J100: 150626 | K100: New | L100: =F100 -> 0 | M100: =G100 -> 150626 | N100: =H100 -> 150626 | O100: =I100 -> 150626 | P100: =J100 -> 150626 | Q100: =VLOOKUP('Incremental Rev Req'!A100,Summary!$B$8:$D$24,3,FALSE) -> Y
A101: WMCE | B101: A.24-04-005 | C101: Filed Application | D101: 326337 | E101: Distribution | G101: 326337 | K101: New | L101: 0 | M101: 326337 | N101: 0 | O101: 0 | P101: 0 | Q101: =VLOOKUP('Incremental Rev Req'!A101,Summary!$B$8:$D$24,3,FALSE) -> Y
A102: 2021 ERRA Review | B102: A.22-04-001 | C102: Filed Application | D102: =G102 -> 25706 | E102: Distribution | G102: 25706 | H102: 0 | K102: New | L102: =F102 -> 0 | M102: 25706 | N102: 0 | O102: 0 | P102: 0 | Q102: =VLOOKUP('Incremental Rev Req'!A102,Summary!$B$8:$D$24,3,FALSE) -> Y
A103: 2022 ERRA Review | B103: A.23-04-003 | C103: Filed Application | D103: =G103 -> 50640 | E103: Distribution | G103: 50640 | H103: 0 | K103: New | L103: 0 | M103: 50640 | N103: 0 | O103: 0 | P103: 0 | Q103: =VLOOKUP('Incremental Rev Req'!A103,Summary!$B$8:$D$24,3,FALSE) -> Y
A104: 2022 ERRA Review | B104: A.23-04-003 | C104: Filed Application | D104: =G104 -> 234 | E104: Public Purpose | G104: 234 | H104: 0 | K104: New | L104: 0 | M104: 234 | N104: 0 | O104: 0 | P104: 0 | Q104: =VLOOKUP('Incremental Rev Req'!A104,Summary!$B$8:$D$24,3,FALSE) -> Y
A105: 2023 ERRA Review | B105: A.24-04-001 | C105: Filed Application | D105: -73859 | E105: Distribution | H105: =D105 -> -73859 | K105: New | L105: =F105 -> 0 | M105: =G105 -> 0 | N105: =H105 -> -73859 | O105: =I105 -> 0 | P105: =J105 -> 0 | Q105: =VLOOKUP('Incremental Rev Req'!A105,Summary!$B$8:$D$24,3,FALSE) -> Y
A106: 2023 ERRA Review | B106: A.24-04-001 | C106: Filed Application | D106: 10664 | E106: Public Purpose | H106: =D106 -> 10664 | K106: New | L106: 0 | M106: 0 | N106: 10664 | O106: 0 | P106: 0 | Q106: =Q105 -> Y
A107: 2022 WM/VM (Non-IRR Portion) | B107: A.23-10-001 | C107: Filed Application | D107: =G107 -> 173752 | E107: Distribution | G107: 173752 | K107: New | L107: =F107 -> 0 | M107: =G107 -> 173752 | N107: =H107 -> 0 | O107: =I107 -> 0 | P107: =J107 -> 0 | Q107: =VLOOKUP('Incremental Rev Req'!A107,Summary!$B$8:$D$24,3,FALSE) -> Y
A108: Thomas Fire WEMA FRC | B108: A.23-08-013 | C108: Filed Application | D108: =H108 -> 162700 | E108: Securitization | H108: 162700 | I108: =H108 -> 162700 | J108: =I108 -> 162700 | K108: New | L108: =F108 -> 0 | M108: =G108 -> 0 | N108: 162700 | O108: 162700 | P108: 162700 | Q108: =VLOOKUP('Incremental Rev Req'!A108,Summary!$B$8:$D$24,3,FALSE) -> Y
A109: Thomas Fire CEMA | B109: A.23-08-013 | C109: Filed Application | D109: 27146 | E109: Distribution | G109: =D109 -> 27146 | K109: New | L109: =F109 -> 0 | M109: 27146 | N109: 0 | O109: 0 | P109: 0 | Q109: =VLOOKUP('Incremental Rev Req'!A109,Summary!$B$8:$D$24,3,FALSE) -> Y
A110: FERC TO 2025 | B110: ER25-XXX | C110: Posted Draft Annual Update | D110: =G110 -> 1345305.397 | E110: FERC | G110: 1345305.397 | H110: =G110 -> 1345305.397 | I110: =H110 -> 1345305.397 | J110: =I110 -> 1345305.397 | K110: Existing | M110: =G110-G73 -> 220804.937 | N110: =H110-H73 -> 220804.937 | O110: 220804.937 | P110: 220804.937 | Q110: =VLOOKUP('Incremental Rev Req'!A110,Summary!$B$8:$D$24,3,FALSE) -> Y
A112: Public Policy Proceedings
A114: Non-CPUC Jurisdictional Proceedings
D116: =SUM(D85:D115) -> 17310336.11 | F116: =SUM(F85:F115) -> 0 | G116: =SUM(G85:G115) -> 17210831.11 | H116: =SUM(H85:H115) -> 16723299 | I116: =SUM(I85:I115) -> 17535116 | J116: =SUM(J85:J115) -> 18267394 | L116: =SUM(L85:L115) -> 0 | M116: =SUM(M85:M115) -> 3322167.536 | N116: =SUM(N85:N115) -> 2854635.427 | O116: =SUM(O85:O115) -> 3666452.427 | P116: =SUM(P85:P115) -> 4398730.427

Sheet SAR and AR (GS1) (hidden)
B1: CONFIDENTIAL This Excel Sheet Is Marked Confidential In Accordance With Applicable Law and Regulation. Basis for Confidentiality In Accompanying Confidentiality Declaration. Public Disclosure Restricted.
C2: Total Revenue ($000)
C3: Authorized | D3: w/ Pending
B4: Generation | C4: =INDEX('Incremental Rev Req'!$S$9:$X$22,MATCH(B4,'Incremental Rev Req'!$S$9:$S$22,0),MATCH(Summary!$D$3,'Incremental Rev Req'!$S$9:$X$9,0)) -> 5522929.958 | D4: =INDEX('Incremental Rev Req'!$S$61:$X$74,MATCH(B4,'Incremental Rev Req'!$S$61:$S$74,0),MATCH(Summary!$D$3,'Incremental Rev Req'!$S$61:$X$61,0)) -> 5946992.906 | G4: Allocation
B5: Distribution | C5: =INDEX('Incremental Rev Req'!$S$9:$X$22,MATCH(B5,'Incremental Rev Req'!$S$9:$S$22,0),MATCH(Summary!$D$3,'Incremental Rev Req'!$S$9:$X$9,0)) -> 8456704.194 | D5: =INDEX('Incremental Rev Req'!$S$61:$X$74,MATCH(B5,'Incremental Rev Req'!$S$61:$S$74,0),MATCH(Summary!$D$3,'Incremental Rev Req'!$S$61:$X$61,0)) -> 10848039.71 | G5: Generation | H5: Distribution | I5: NDC | J5: PPPC | K5: CIA | L5: NSGC | M5: Transmission | N5: TOTCA | O5: GHG Rev | P5: DWRBC | Q5: PUCRF | R5: SECURITIZATION
B6: Nuclear | C6: =INDEX('Incremental Rev Req'!$S$9:$X$22,MATCH(B6,'Incremental Rev Req'!$S$9:$S$22,0),MATCH(Summary!$D$3,'Incremental Rev Req'!$S$9:$X$9,0)) -> 4958 | D6: =INDEX('Incremental Rev Req'!$S$61:$X$74,MATCH(B6,'Incremental Rev Req'!$S$61:$S$74,0),MATCH(Summary!$D$3,'Incremental Rev Req'!$S$61:$X$61,0)) -> 5012.142548 | F6: GS-1 | G6: =VLOOKUP(Summary!$D$3,'SAR and AR (GS1)'!$F$37:$R$42,'SAR and AR (GS1)'!G$35,FALSE) -> 0.08578544309 | H6: =VLOOKUP(Summary!$D$3,'SAR and AR (GS1)'!$F$37:$R$42,'SAR and AR (GS1)'!H$35,FALSE) -> 0.06989810785 | I6: =VLOOKUP(Summary!$D$3,'SAR and AR (GS1)'!$F$37:$R$42,'SAR and AR (GS1)'!I$35,FALSE) -> 0.07124588148 | J6: =VLOOKUP(Summary!$D$3,'SAR and AR (GS1)'!$F$37:$R$42,'SAR and AR (GS1)'!J$35,FALSE) -> 0.06767623653 | K6: =VLOOKUP(Summary!$D$3,'SAR and AR (GS1)'!$F$37:$R$42,'SAR and AR (GS1)'!K$35,FALSE) -> 0.06767623653 | L6: =VLOOKUP(Summary!$D$3,'SAR and AR (GS1)'!$F$37:$R$42,'SAR and AR (GS1)'!L$35,FALSE) -> 0.07222456747 | M6: =VLOOKUP(Summary!$D$3,'SAR and AR (GS1)'!$F$37:$R$42,'SAR and AR (GS1)'!M$35,FALSE) -> 0.07070780694 | N6: =VLOOKUP(Summary!$D$3,'SAR and AR (GS1)'!$F$37:$R$42,'SAR and AR (GS1)'!N$35,FALSE) -> 0.07123613756 | O6: =VLOOKUP(Summary!$D$3,'SAR and AR (GS1)'!$F$37:$R$42,'SAR and AR (GS1)'!O$35,FALSE) -> 0.09449396176 | P6: =VLOOKUP(Summary!$D$3,'SAR and AR (GS1)'!$F$37:$R$42,'SAR and AR (GS1)'!P$35,FALSE) -> 0.0784465658 | Q6: =VLOOKUP(Summary!$D$3,'SAR and AR (GS1)'!$F$37:$R$42,'SAR and AR (GS1)'!Q$35,FALSE) -> 0.07124588213 | R6: =VLOOKUP(Summary!$D$3,'SAR and AR (GS1)'!$F$37:$R$42,'SAR and AR (GS1)'!R$35,FALSE) -> 0.0879571128
B7: Public Purpose | C7: =INDEX('Incremental Rev Req'!$S$9:$X$22,MATCH(B7,'Incremental Rev Req'!$S$9:$S$22,0),MATCH(Summary!$D$3,'Incremental Rev Req'!$S$9:$X$9,0)) -> 807460.6148 | D7: =INDEX('Incremental Rev Req'!$S$61:$X$74,MATCH(B7,'Incremental Rev Req'!$S$61:$S$74,0),MATCH(Summary!$D$3,'Incremental Rev Req'!$S$61:$X$61,0)) -> 972603.5263
B8: CIA | C8: =INDEX('Incremental Rev Req'!$S$9:$X$22,MATCH(B8,'Incremental Rev Req'!$S$9:$S$22,0),MATCH(Summary!$D$3,'Incremental Rev Req'!$S$9:$X$9,0)) -> 0 | D8: =INDEX('Incremental Rev Req'!$S$61:$X$74,MATCH(B8,'Incremental Rev Req'!$S$61:$S$74,0),MATCH(Summary!$D$3,'Incremental Rev Req'!$S$61:$X$61,0)) -> 0 | G8: Revenue ($000) - System | X8: Authorized | Y8: w/Pending
B9: New System Gen | C9: =INDEX('Incremental Rev Req'!$S$9:$X$22,MATCH(B9,'Incremental Rev Req'!$S$9:$S$22,0),MATCH(Summary!$D$3,'Incremental Rev Req'!$S$9:$X$9,0)) -> 465604.6061 | D9: =INDEX('Incremental Rev Req'!$S$61:$X$74,MATCH(B9,'Incremental Rev Req'!$S$61:$S$74,0),MATCH(Summary!$D$3,'Incremental Rev Req'!$S$61:$X$61,0)) -> 651301.8312 | F9: Authorized | G9: Generation | H9: Distribution | I9: NDC | J9: PPPC | K9: CIA | L9: NSGC | M9: Transmission | N9: TOTCA | O9: GHG Rev | P9: DWRBC | Q9: PUCRF | R9: SECURITIZATION | S9: Total | T9: CARE Adj. | W9: % of CARE Sales | X9: =VLOOKUP(Summary!$D$3,$F$58:$Q$63,$Q$35,FALSE) -> 0 | Y9: =X9 -> 0
B10: FERC | C10: =INDEX('Incremental Rev Req'!$S$9:$X$22,MATCH(B10,'Incremental Rev Req'!$S$9:$S$22,0),MATCH(Summary!$D$3,'Incremental Rev Req'!$S$9:$X$9,0)) -> 1124500.46 | D10: =INDEX('Incremental Rev Req'!$S$61:$X$74,MATCH(B10,'Incremental Rev Req'!$S$61:$S$74,0),MATCH(Summary!$D$3,'Incremental Rev Req'!$S$61:$X$61,0)) -> 1345305.397 | F10: GS-1 | G10: =G6*G11 -> 473786.9936 | H10: =H6*H11 -> 591107.6217 | I10: =I6*I11 -> 353.2370804 | J10: =J6*J11 -> 54645.89556 | K10: =K6*K11 -> 0 | L10: 33628.09129 | M10: 79510.96143 | N10: -598.8822085 | O10: -90251.65535 | P10: 32077.74211 | Q10: 5713.530135 | R10: =R6*R11 -> 9344.94012 | S10: =SUM(G10:R10) -> 1189318.476 | T10: =X14 -> 61204.26609 | W10: CARE Effective Discount | X10: ='SAR and RAR'!X10 -> 0.29 | Y10: =X10 -> 0.29
B11: TOTCA | C11: =INDEX('Incremental Rev Req'!$S$9:$X$22,MATCH(B11,'Incremental Rev Req'!$S$9:$S$22,0),MATCH(Summary!$D$3,'Incremental Rev Req'!$S$9:$X$9,0)) -> -8407 | D11: =INDEX('Incremental Rev Req'!$S$61:$X$74,MATCH(B11,'Incremental Rev Req'!$S$61:$S$74,0),MATCH(Summary!$D$3,'Incremental Rev Req'!$S$61:$X$61,0)) -> -8407 | F11: Total System | G11: =C4 -> 5522929.958 | H11: =C5 -> 8456704.194 | I11: =C6 -> 4958 | J11: =C7 -> 807460.6148 | K11: =C8 -> 0 | L11: =C9 -> 465604.6061 | M11: =C10 -> 1124500.46 | N11: =C11 -> -8407 | O11: =C12 -> -955105 | P11: =C14 -> 408912 | Q11: =C15 -> 80194.53144 | R11: =C16 -> 106244.28 | S11: =SUM(G11:R11) -> 16013996.64 | T11: 0 | W11: CARE Discounst | X11: ='SAR and RAR'!X11 -> 668202.0093 | Y11: ='SAR and RAR'!Y11 -> 801116.6702
B12: GHG Revenue | C12: =INDEX('Incremental Rev Req'!$S$9:$X$22,MATCH(B12,'Incremental Rev Req'!$S$9:$S$22,0),MATCH(Summary!$D$3,'Incremental Rev Req'!$S$9:$X$9,0)) -> -955105 | D12: =INDEX('Incremental Rev Req'!$S$61:$X$74,MATCH(B12,'Incremental Rev Req'!$S$61:$S$74,0),MATCH(Summary!$D$3,'Incremental Rev Req'!$S$61:$X$61,0)) -> -1021086.424 | F12: w/Pending | W12: GS-1 Sales | X12: =VLOOKUP(Summary!$D$3,'SAR and AR (GS1)'!$F$58:$O$63,10,FALSE) -> 6544129.258 | Y12: =X12 -> 6544129.258
B13: MCAM | C13: =INDEX('Incremental Rev Req'!$S$9:$X$22,MATCH(B13,'Incremental Rev Req'!$S$9:$S$22,0),MATCH(Summary!$D$3,'Incremental Rev Req'!$S$9:$X$9,0)) -> 2362.884396 | D13: =INDEX('Incremental Rev Req'!$S$61:$X$74,MATCH(B13,'Incremental Rev Req'!$S$61:$S$74,0),MATCH(Summary!$D$3,'Incremental Rev Req'!$S$61:$X$61,0)) -> 3414.165988 | F13: GS-1 | G13: =G6*G14 -> 510165.4215 | H13: =H6*H14 -> 758257.4494 | I13: =I6*I14 -> 357.0945139 | J13: =J6*J14 -> 65822.1463 | K13: =K6*K14 -> 0 | L13: 47039.99305 | M13: 95123.59429 | N13: -598.8822085 | O13: -96486.50155 | P13: 32077.74211 | Q13: 5713.530135 | R13: =R6*R14 -> 9344.94012 | S13: =SUM(G13:R13) -> 1426816.528 | T13: =Y14 -> 73378.64473 | W13: Total Sales (excl. CARE&SL) | X13: =VLOOKUP(Summary!$D$3,'SAR and AR (GS1)'!$F$64:$O$69,2,FALSE) -> 71446005.3 | Y13: =X13 -> 71446005.3
B14: DWR | C14: =INDEX('Incremental Rev Req'!$S$9:$X$22,MATCH(B14,'Incremental Rev Req'!$S$9:$S$22,0),MATCH(Summary!$D$3,'Incremental Rev Req'!$S$9:$X$9,0)) -> 408912 | D14: =INDEX('Incremental Rev Req'!$S$61:$X$74,MATCH(B14,'Incremental Rev Req'!$S$61:$S$74,0),MATCH(Summary!$D$3,'Incremental Rev Req'!$S$61:$X$61,0)) -> 408912 | F14: Total System | G14: =D4 -> 5946992.906 | H14: =D5 -> 10848039.71 | I14: =D6 -> 5012.142548 | J14: =D7 -> 972603.5263 | K14: =D8 -> 0 | L14: =D9 -> 651301.8312 | M14: =D10 -> 1345305.397 | N14: =D11 -> -8407 | O14: =D12 -> -1021086.424 | P14: =D14 -> 408912 | Q14: =D15 -> 80194.53144 | R14: =D16 -> 106244.28 | S14: =SUM(G14:R14) -> 19335112.9 | T14: 0 | W14: GS-1 CARE Surcharge | X14: =X11*X12/X13 -> 61204.26609 | Y14: =Y11*Y12/Y13 -> 73378.64473
B15: PUCRF | C15: =INDEX('Incremental Rev Req'!$S$9:$X$22,MATCH(B15,'Incremental Rev Req'!$S$9:$S$22,0),MATCH(Summary!$D$3,'Incremental Rev Req'!$S$9:$X$9,0)) -> 80194.53144 | D15: =INDEX('Incremental Rev Req'!$S$61:$X$74,MATCH(B15,'Incremental Rev Req'!$S$61:$S$74,0),MATCH(Summary!$D$3,'Incremental Rev Req'!$S$61:$X$61,0)) -> 80194.53144 | W15: RES CARE Discount Specific Split | X15: ='SAR and RAR'!X15 -> 0.7896601029 | Y15: ='SAR and RAR'!Y15 -> 0.7896601029
B16: SECURITIZATION | C16: =INDEX('Incremental Rev Req'!$S$9:$X$22,MATCH(B16,'Incremental Rev Req'!$S$9:$S$22,0),MATCH(Summary!$D$3,'Incremental Rev Req'!$S$9:$X$9,0)) -> 106244.28 | D16: =INDEX('Incremental Rev Req'!$S$61:$X$74,MATCH(B16,'Incremental Rev Req'!$S$61:$S$74,0),MATCH(Summary!$D$3,'Incremental Rev Req'!$S$61:$X$61,0)) -> 106244.28 | S16: Authorized | T16: w/Pending | W16: CARE Surcharge Allocator | X16: ='SAR and RAR'!X16 -> 0.652442884 | Y16: ='SAR and RAR'!Y16 -> 0.652442884
B17: Total | C17: =SUM(C4:C16) -> 16016359.53 | D17: =SUM(D4:D16) -> 19338527.06 | G17: Revenue Split - Bundled | S17: Bundled Revenue | W17: System CARE Discount | X17: =SUM(-X11*X15)+SUM(X11*X16) -> -91688.8214 | Y17: =SUM(-Y11*Y15)+SUM(Y11*Y16) -> -109927.0015
G18: Generation | H18: Distribution | I18: NDC | J18: PPPC | K18: CIA | L18: NSGC | M18: Transmission | N18: TOTCA | O18: GHG Rev | P18: DWRBC | Q18: PUCRF | R18: SECURITIZATION | S18: Total | T18: Total
F19: GS-1 | G19: =VLOOKUP(Summary!$D$3,'SAR and AR (GS1)'!$F$44:$R$49,'SAR and AR (GS1)'!G$35,FALSE) -> 0.9406006746 | H19: =VLOOKUP(Summary!$D$3,'SAR and AR (GS1)'!$F$44:$R$49,'SAR and AR (GS1)'!H$35,FALSE) -> 0.6797737384 | I19: =VLOOKUP(Summary!$D$3,'SAR and AR (GS1)'!$F$44:$R$49,'SAR and AR (GS1)'!I$35,FALSE) -> 0.6814583758 | J19: =VLOOKUP(Summary!$D$3,'SAR and AR (GS1)'!$F$44:$R$49,'SAR and AR (GS1)'!J$35,FALSE) -> 0.6814583736 | K19: =VLOOKUP(Summary!$D$3,'SAR and AR (GS1)'!$F$44:$R$49,'SAR and AR (GS1)'!K$35,FALSE) -> 0.6814583736 | L19: =VLOOKUP(Summary!$D$3,'SAR and AR (GS1)'!$F$44:$R$49,'SAR and AR (GS1)'!L$35,FALSE) -> 0.6814583736 | M19: =VLOOKUP(Summary!$D$3,'SAR and AR (GS1)'!$F$44:$R$49,'SAR and AR (GS1)'!M$35,FALSE) -> 0.6814583737 | N19: =VLOOKUP(Summary!$D$3,'SAR and AR (GS1)'!$F$44:$R$49,'SAR and AR (GS1)'!N$35,FALSE) -> 0.6814583735 | O19: =VLOOKUP(Summary!$D$3,'SAR and AR (GS1)'!$F$44:$R$49,'SAR and AR (GS1)'!O$35,FALSE) -> 0.6561261728 | P19: =VLOOKUP(Summary!$D$3,'SAR and AR (GS1)'!$F$44:$R$49,'SAR and AR (GS1)'!P$35,FALSE) -> 0.6814583736 | Q19: =VLOOKUP(Summary!$D$3,'SAR and AR (GS1)'!$F$44:$R$49,'SAR and AR (GS1)'!Q$35,FALSE) -> 0.6814583737 | R19: =VLOOKUP(Summary!$D$3,'SAR and AR (GS1)'!$F$44:$R$49,'SAR and AR (GS1)'!R$35,FALSE) -> 0.6814583733 | S19: =SUMPRODUCT(G10:R10,G19:R19)+T10*H19 -> 976144.8108 | T19: =SUMPRODUCT(G13:R13,G19:R19)+T13*H19 -> 1155569.215
F20: Total System | G20: =VLOOKUP(Summary!$D$3,'SAR and AR (GS1)'!$F$50:$R$55,'SAR and AR (GS1)'!G$35,FALSE) -> 0.9265067646 | H20: =VLOOKUP(Summary!$D$3,'SAR and AR (GS1)'!$F$50:$R$55,'SAR and AR (GS1)'!H$35,FALSE) -> 0.6476300754 | I20: =VLOOKUP(Summary!$D$3,'SAR and AR (GS1)'!$F$50:$R$55,'SAR and AR (GS1)'!I$35,FALSE) -> 0.6269148415 | J20: =VLOOKUP(Summary!$D$3,'SAR and AR (GS1)'!$F$50:$R$55,'SAR and AR (GS1)'!J$35,FALSE) -> 0.6371996137 | K20: =VLOOKUP(Summary!$D$3,'SAR and AR (GS1)'!$F$50:$R$55,'SAR and AR (GS1)'!K$35,FALSE) -> 0.6371996137 | L20: =VLOOKUP(Summary!$D$3,'SAR and AR (GS1)'!$F$50:$R$55,'SAR and AR (GS1)'!L$35,FALSE) -> 0.6318803532 | M20: =VLOOKUP(Summary!$D$3,'SAR and AR (GS1)'!$F$50:$R$55,'SAR and AR (GS1)'!M$35,FALSE) -> 0.6532460856 | N20: =VLOOKUP(Summary!$D$3,'SAR and AR (GS1)'!$F$50:$R$55,'SAR and AR (GS1)'!N$35,FALSE) -> 0.6267621534 | O20: =VLOOKUP(Summary!$D$3,'SAR and AR (GS1)'!$F$50:$R$55,'SAR and AR (GS1)'!O$35,FALSE) -> 0.670448003 | P20: =VLOOKUP(Summary!$D$3,'SAR and AR (GS1)'!$F$50:$R$55,'SAR and AR (GS1)'!P$35,FALSE) -> 0.6175902243 | Q20: =VLOOKUP(Summary!$D$3,'SAR and AR (GS1)'!$F$50:$R$55,'SAR and AR (GS1)'!Q$35,FALSE) -> 0.6269148453 | R20: =VLOOKUP(Summary!$D$3,'SAR and AR (GS1)'!$F$50:$R$55,'SAR and AR (GS1)'!R$35,FALSE) -> 0.6232617871 | S20: =SUMPRODUCT(G11:R11,G20:R20)+X17 -> 11771978.65 | T20: =SUMPRODUCT(G14:R14,G20:R20)+Y17 -> 14017942.67
R22: GS-1 GHG | S22: =O10*O19 -> -59216.47322 | T22: =O13*O19 -> -63307.31899
R23: GS-1 GHG System | S23: =O11*O20 -> -640348.2399 | T23: =O14*O20 -> -684585.3541
F26: Bundled | N26: System (Bundled and Unbundled)
F27: =Summary!N4&" Sales" -> 2025 Sales | G27: 6/1/2024 Avg Rates | H27: Proposed Avg Rates (Authorized) | I27: Proposed Avg Rates (w/Pending) | J27: % Change (Authorized) | K27: % Change (w/Pending) | N27: =Summary!N4&" Sales" -> 2025 Sales | O27: =G27 -> 6/1/2024 Avg Rates | P27: Proposed Avg Rates (Authorized) | Q27: Proposed Avg Rates (w/Pending) | R27: % Change (Authorized) | S27: % Change (w/Pending) | W27: 1/1/24 Bundled w/Credit | X27: 1/1/24 Bundled w/out Credit | Z27: 1/1/24 System w/Credit | AA27: 1/1/24 System w/out Credit
E28: GS-1 | F28: =VLOOKUP(Summary!$D$3,'SAR and AR (GS1)'!$J$58:$K$63,2,FALSE) -> 3842074.186 | G28: =IF(Summary!$J$3="Y",W31,X31) -> 29.77504518 | H28: =IF(Summary!$J$3="Y",S19/$F$28*100,SUM(S19-S22)/$F$28*100) -> 26.94797742 | I28: =IF(Summary!$J$3="Y",T19/$F$28*100,SUM(T19-T22)/$F$28*100) -> 31.72444038 | J28: =H28/G28-1 -> -0.09494755573 | K28: =I28/G28-1 -> 0.06547077217 | M28: GS-1 | N28: =VLOOKUP(Summary!$D$3,'SAR and AR (GS1)'!$N$58:$O$63,2,FALSE) -> 5638017.426 | O28: =IF(Summary!$J$3="Y",Z31,AA31) -> 26.33886367 | P28: =IF(Summary!$J$3="Y",SUM(S10:T10)/N28*100,SUM(S10:T10,-O10)/N28*100) -> 23.78095517 | Q28: =IF(Summary!$J$3="Y",SUM(S13:T13)/N28*100,SUM(S13:T13,-O13)/N28*100) -> 28.31991378 | R28: =P28/O28-1 -> -0.09711537031 | S28: =Q28/O28-1 -> 0.07521395486 | V28: GS-1 Bundled | W28: 28.70282351 | X28: 30.14551612 | Y28: GS-1 System | Z28: 24.9349469 | AA28: 26.47868339
E29: Total Bundled | F29: =VLOOKUP(Summary!$D$3,'SAR and AR (GS1)'!$J$64:$K$69,2,FALSE) -> 49610682.28 | G29: ='SAR and RAR'!G29 -> 27.97629791 | H29: =IF(Summary!$J$3="Y",S20/$F$29*100,SUM(S20-S23)/$F$29*100) -> 25.01946419 | I29: =IF(Summary!$J$3="Y",T20/$F$29*100,SUM(T20-T23)/$F$29*100) -> 29.63581098 | J29: =H29/G29-1 -> -0.1056906718 | K29: =I29/G29-1 -> 0.05931853736 | M29: Total System | N29: =VLOOKUP(Summary!$D$3,'SAR and AR (GS1)'!$N$64:$O$69,2,FALSE) -> 79134642.73 | O29: ='SAR and RAR'!O29 -> 23.20741957 | P29: =IF(Summary!$J$3="Y",SUM(S11:T11)/N29*100,SUM(S11:T11,-O11)/N29*100) -> 21.44332881 | Q29: =IF(Summary!$J$3="Y",SUM(S14:T14)/N29*100,SUM(S14:T14,-O14)/N29*100) -> 25.72349937 | R29: =P29/O29-1 -> -0.07601408476 | S29: =Q29/O29-1 -> 0.1084170427
E30: =M29 -> Total System | F30: =N29 -> 79134642.73 | W30: 6/1/24 Bundled w/Credit | X30: 6/1/24 Bundled w/out Credit | Z30: 6/1/24 System w/Credit | AA30: 6/1/24 System w/out Credit
V31: GS-1 Bundled | W31: 28.33235257 | X31: 29.77504518 | Y31: GS-1 System | Z31: 24.79512718 | AA31: 26.33886367
G35: 2 | H35: =G35+1 -> 3 | I35: =H35+1 -> 4 | J35: 5 | K35: 6 | L35: 7 | M35: 8 | N35: 9 | O35: 10 | P35: 11 | Q35: 12 | R35: 13
F36: GS-1 Allocator | G36: Generation | H36: Distribution | I36: NDC | J36: PPPC | K36: CIA | L36: NSGC | M36: Transmission | N36: TOTCA | O36: GHG Rev | P36: DWRBC | Q36: PUCRF | R36: SECURITIZATION
F37: 2024 | G37: 0.09197521035 | H37: 0.07137674593 | I37: 0.07301843979 | J37: 0.06914911033 | K37: =J37 -> 0.06914911033 | L37: 0.07395735313 | M37: 0.07258678595 | N37: 0.07235690286 | O37: 0.0946453606 | P37: 0.08033610878 | Q37: 0.07301843982 | R37: 0.08988849439
F38: 2025 | G38: 0.08578544309 | H38: 0.06989810785 | I38: 0.07124588148 | J38: 0.06767623653 | K38: 0.06767623653 | L38: 0.07222456747 | M38: 0.07070780694 | N38: 0.07123613756 | O38: 0.09449396176 | P38: 0.0784465658 | Q38: 0.07124588213 | R38: 0.0879571128
F39: 2026 | G39: 0.1036042098 | H39: 0.08077634418 | I39: 0.07978529589 | J39: 0.0744029373 | K39: 0.0744029373 | L39: 0.08096937159 | M39: 0.07875121843 | N39: 0.07948035515 | O39: 0.09679191894 | P39: 0.08658346609 | Q39: 0.07978529643 | R39: 0.09839663079
F40: 2027 | G40: 0.1042810716 | H40: 0.0811105346 | I40: 0.08058673453 | J40: 0.07497977801 | K40: 0.07497977801 | L40: 0.08159523599 | M40: 0.07933313884 | N40: 0.08020036332 | O40: 0.09688229239 | P40: 0.08726154335 | Q40: 0.08058673523 | R40: 0.09872491202
F41: 2028 | G41: 0.105780068 | H41: 0.08194530467 | I41: 0.08181209419 | J41: 0.07603467565 | K41: 0.07603467565 | L41: 0.08273504552 | M41: 0.08040944774 | N41: 0.08138767536 | O41: 0.09673519386 | P41: 0.08836727155 | Q41: 0.08181209403 | R41: 0.09967808051
F43: Revenue Split - Bundled
E44: GS-1 | F44: 2024 | G44: 1.025737933 | H44: 0.7548553895 | I44: 0.757014824 | J44: 0.7570148258 | K44: =J44 -> 0.7570148258 | L44: 0.7570148258 | M44: 0.7570148258 | N44: 0.757014824 | O44: 0.7074651044 | P44: 0.7570148259 | Q44: 0.7570148258 | R44: 0.7570148261 | U44: =G44 -> 1.025737933
E45: GS-1 | F45: 2025 | G45: 0.9406006746 | H45: 0.6797737384 | I45: 0.6814583758 | J45: 0.6814583736 | K45: =J45 -> 0.6814583736 | L45: 0.6814583736 | M45: 0.6814583737 | N45: 0.6814583735 | O45: 0.6561261728 | P45: 0.6814583736 | Q45: 0.6814583737 | R45: 0.6814583733 | T45: =K59/K58-1 -> -0.1332695431 | U45: =G45 -> 0.9406006746
E46: GS-1 | F46: 2026 | G46: 1.006808939 | H46: 0.7455383317 | I46: 0.75117973 | J46: 0.7511797258 | K46: 0.7511797258 | L46: 0.7511797258 | M46: 0.7511797258 | N46: 0.75117973 | O46: 0.7270474544 | P46: 0.7511797258 | Q46: 0.7511797255 | R46: 0.751179725 | T46: =K60/K59-1 -> 0.2794696259 | U46: 1.006808939
E47: GS-1 | F47: 2027 | G47: 1.006955213 | H47: 0.7406123839 | I47: 0.7472225684 | J47: 0.7472225627 | K47: 0.7472225627 | L47: 0.7472225628 | M47: 0.7472225626 | N47: 0.7472225622 | O47: 0.7154622408 | P47: 0.7472225627 | Q47: 0.7472225628 | R47: 0.7472225633 | T47: =K61/K60-1 -> 0.02516074818 | U47: 1.006955213
E48: GS-1 | F48: 2028 | G48: 1.006916957 | H48: 0.740709843 | I48: 0.7484824465 | J48: 0.7484824473 | K48: 0.7484824473 | L48: 0.7484824474 | M48: 0.7484824474 | N48: 0.7484824465 | O48: 0.7072063022 | P48: 0.7484824474 | Q48: 0.748482447 | R48: 0.7484824475 | T48: =K62/K61-1 -> 0.03800973142 | U48: 1.006916957
E49: GS-1 | T49: =K63/K62-1 -> -1 | U49: 0
E50: Total System | F50: 2024 | G50: 1.033992536 | H50: 0.6897395716 | I50: 0.6656300913 | J50: 0.6802569815 | K50: =J50 -> 0.6802569815 | L50: 0.6739645256 | M50: 0.6940398758 | N50: 0.6472606087 | O50: 0.7180561653 | P50: 0.6533003681 | Q50: 0.6656300931 | R50: 0.6636179416 | U50: 1.033992536
E51: Total System | F51: 2025 | G51: 0.9265067646 | H51: 0.6476300754 | I51: 0.6269148415 | J51: 0.6371996137 | K51: 0.6371996137 | L51: 0.6318803532 | M51: 0.6532460856 | N51: 0.6267621534 | O51: 0.670448003 | P51: 0.6175902243 | Q51: 0.6269148453 | R51: 0.6232617871 | T51: =K65/K64-1 -> -0.07061106536 | U51: 0.9265067646
E52: Total System | F52: 2026 | G52: 1.006890816 | H52: 0.6566303615 | I52: 0.6446902086 | J52: 0.6547506156 | K52: 0.6547506156 | L52: 0.6482038332 | M52: 0.6631725506 | N52: 0.644060926 | O52: 0.681620908 | P52: 0.636948401 | Q52: 0.6446902092 | R52: 0.6409327277 | T52: =K66/K65-1 -> 0.06587157606 | U52: 1.006890816
E53: Total System | F53: 2027 | G53: 1.006980442 | H53: 0.6540350027 | I53: 0.6424349156 | J53: 0.6519757309 | K53: 0.6519757309 | L53: 0.6457334941 | M53: 0.6603695309 | N53: 0.6416788 | O53: 0.6668106584 | P53: 0.6358949821 | Q53: 0.6424349163 | R53: 0.6398991225 | T53: 0.01677114585 | U53: 1.006980442
E54: Total System | F54: 2028 | G54: 1.006974084 | H54: 0.6546713833 | I54: 0.6433912532 | J54: 0.6524051016 | K54: 0.6524051016 | L54: 0.6464337984 | M54: 0.6608107366 | N54: 0.6424738681 | O54: 0.6570094065 | P54: 0.638070734 | Q54: 0.6433912524 | R54: 0.6420868119 | T54: 0.02226113612 | U54: 1.006974084
E55: Total System | T55: -1 | U55: 0
F57: System Sales | J57: Bundled Sales | L57: % of Bdl | N57: System Sales
E58: GS-1 | F58: 2023 | I58: GS-1 | J58: 2024 | K58: 4432836.247 | L58: =K58/O58 -> 0.7570148258 | M58: GS-1 | N58: 2024 | O58: 5855679.567
E59: GS-1 | F59: 2024 | I59: GS-1 | J59: 2025 | K59: 3842074.186 | L59: 0.6814583736 | M59: GS-1 | N59: 2025 | O59: 5638017.426
E60: GS-1 | F60: 2025 | I60: GS-1 | J60: 2026 | K60: 4915817.221 | L60: 0.7511797258 | M60: GS-1 | N60: 2026 | O60: 6544129.258
E61: GS-1 | F61: 2026 | I61: GS-1 | J61: 2027 | K61: 5039502.861 | L61: 0.7472225626 | M61: GS-1 | N61: 2027 | O61: 6744313.023
E62: GS-1 | F62: 2027 | I62: GS-1 | J62: 2028 | K62: 5231053.011 | L62: 0.7484824474 | M62: GS-1 | N62: 2028 | O62: 6988878.669
E63: GS-1 | F63: 2028 | I63: GS-1 | M63: GS-1
E64: Non-Exempt Sales | F64: 2024 | G64: ='SAR and RAR'!G64 -> 72430361.94 | I64: Total System | J64: 2024 | K64: ='SAR and RAR'!K64 -> 53379893.43 | L64: 0.665630093 | M64: Total System | N64: 2024 | O64: ='SAR and RAR'!O64 -> 80194531.45
E65: Non-Exempt Sales | F65: 2025 | G65: ='SAR and RAR'!G65 -> 71446005.3 | I65: Total System | J65: 2025 | K65: ='SAR and RAR'!K65 -> 49610682.28 | L65: 0.626914845 | M65: Total System | N65: 2025 | O65: ='SAR and RAR'!O65 -> 79134642.73
E66: Non-Exempt Sales | F66: 2026 | G66: ='SAR and RAR'!G66 -> 75183086.41 | I66: Total System | J66: 2026 | K66: ='SAR and RAR'!K66 -> 52878616.11 | L66: 0.6446902091 | M66: Total System | N66: 2026 | O66: ='SAR and RAR'!O66 -> 82021745.28
E67: Non-Exempt Sales | F67: 2027 | G67: ='SAR and RAR'!G67 -> 76902568.52 | I67: Total System | J67: 2027 | K67: ='SAR and RAR'!K67 -> 53765451.1 | L67: 0.6424349163 | M67: Total System | N67: 2027 | O67: ='SAR and RAR'!O67 -> 83690113.56
E68: Non-Exempt Sales | F68: 2028 | G68: ='SAR and RAR'!G68 -> 78714196.58 | I68: Total System | J68: 2028 | K68: ='SAR and RAR'!K68 -> 54962331.12 | L68: 0.6433912525 | M68: Total System | N68: 2028 | O68: ='SAR and RAR'!O68 -> 85425984.44
E69: Non-Exempt Sales | I69: Total System | M69: Total System
J71: =Summary!D3 -> 2025 | K71: =VLOOKUP(Summary!D3,'SAR and AR (GS1)'!J58:K63,2,FALSE) -> 3842074.186 | N71: =Summary!D3 -> 2025 | O71: =VLOOKUP(Summary!D3,'SAR and AR (GS1)'!N58:O63,2,FALSE) -> 5638017.426
J72: % of GS-1 Sales (Bdl) | N72: % of GS-1 Sales (Sys)
J73: 2024 | K73: =K58/K64 -> 0.0830431828 | N73: 2024 | O73: =O58/O64 -> 0.0730184398
J74: 2025 | K74: 0.07744449399 | N74: 2025 | O74: 0.07124588211
J75: 2026 | K75: 0.09296418066 | N75: 2026 | O75: 0.07978529639
J76: 2027 | K76: 0.09373124855 | N76: 2027 | O76: 0.08058673524
J77: 2028 | K77: 0.09517523918 | N77: 2028 | O77: 0.08181209401

Sheet Bill Impact (GS1) (hidden)
B1: CONFIDENTIAL This Excel Sheet Is Marked Confidential In Accordance With Applicable Law and Regulation. Basis for Confidentiality In Accompanying Confidentiality Declaration. Public Disclosure Restricted.
E3: Schedule TOU-GS-1-E
E4: =Summary!N4 -> 2025 | F4: =Summary!N3 -> 2024-06-01 | G4: Proposed | H4: Proposed | I4: Proposed | J4: Proposed
E5: Sales Forecast | F5: Rates | G5: Authorized Rates | H5: Authorized Revenue | I5: w/Pending Rates | J5: w/Pending Revenue
D7: On Peak | E7: =HLOOKUP(E$4,$F$42:$K$52,$A44,FALSE) -> 238.5261644 | F7: 0.69282 | G7: =F7/$F$12*$G$12 -> 0.6221899148 | H7: =E7*G7 -> 148.4085739 | I7: =F7/$F$12*$I$12 -> 0.7392651991 | J7: =E7*I7 -> 176.3340924 | N7: Bundled GS-1 Rev Req
D8: Mid Peak | E8: 84.74322748 | F8: 0.32438 | G8: =F8/$F$12*$G$12 -> 0.2913108232 | H8: 24.68661936 | I8: =F8/$F$12*$I$12 -> 0.3461257546 | J8: 29.33181356 | N8: Proposed (Authorized) | O8: ='SAR and AR (GS1)'!S19/1000-'SAR and AR (GS1)'!S22/1000 -> 1035.361284
D9: Off Peak | E9: 1058.977441 | F9: 0.24019 | G9: 0.2157036397 | H9: 228.4252883 | I9: 0.2562918336 | J9: 271.4072701 | N9: Proposed (w/Pending) | O9: ='SAR and AR (GS1)'!T19/1000-'SAR and AR (GS1)'!T22/1000 -> 1218.876534
D10: Mid Peak | E10: 563.6973633 | F10: 0.39358 | G10: 0.3534561743 | H10: 199.2423135 | I10: 0.4199647774 | J10: 236.7330377
D11: Off Peak | E11: 951.9588516 | F11: 0.25733 | G11: =F11/$F$12*$G$12 -> 0.2310962888 | H11: 219.9941577 | I11: 0.2745808633 | J11: 261.3896833
D12: SuperOff Peak | E12: 944.1711383 | F12: 0.18224 | G12: =(O8-G14*E14*365/12/10^6)/SUM(E12,F11/F12*E11,F10/F12*E10,F9/F12*E9,F8/F12*E8,F7/F12*E7) -> 0.1636613984 | H12: 154.5243689 | I12: =(O9-I14*E14*365/12/10^6)/SUM(E12,F11/F12*E11,F10/F12*E10,F9/F12*E9,F8/F12*E8,F7/F12*E7) -> 0.1944569872 | J12: 183.600675
D14: Customers | E14: =HLOOKUP(E$4,$F$42:$K$53,$A51,FALSE) -> 4220580.429 | F14: 0.468 | G14: =F14 -> 0.468 | H14: =G14*E14*365/12/10^6 -> 60.07996241 | I14: =G14 -> 0.468 | J14: =I14*E14*365/12/10^6 -> 60.07996241
N19: 2023 Recorded Data
B20: SCHEDULE TOU-GS-1-E ($/kWh) | E20: Proposed | F20: Proposed | N20: NAICS | O20: Summer | R20: Winter
B21: Rates | C21: Jan 2024 | D21: =Summary!N3 -> 2024-06-01 | E21: Authorized | F21: w/Pending | O21: On Peak kWh | P21: Mid Peak kWh | Q21: Off Peak kWh | R21: Mid Peak kWh | S21: Off Peak kWh | T21: Super Off Peak kWh | U21: Total kWh
B22: On Peak | C22: 0.72122 | D22: =F7 -> 0.69282 | E22: =G7 -> 0.6221899148 | F22: =I7 -> 0.7392651991 | N22: NAICS 531 | O22: 424.4000556 | P22: 171.0418541 | Q22: 2142.043749 | R22: 1242.293732 | S22: 2623.098488 | T22: 1422.305185 | U22: =SUM(O22:T22) -> 8025.183064
B23: Mid Peak | C23: 0.32678 | D23: =F8 -> 0.32438 | E23: 0.2913108232 | F23: =I8 -> 0.3461257546 | N23: NAICS 621 | O23: 797.5715959 | P23: 197.8653305 | Q23: 3613.515045 | R23: 1413.274642 | S23: 2031.583162 | T23: 3587.690722 | U23: =SUM(O23:T23) -> 11641.5005
B24: Off Peak | C24: 0.24147 | D24: 0.24019 | E24: 0.2157036397 | F24: 0.2562918336 | N24: NAICS 722 | O24: 2427.208974 | P24: 1047.857092 | Q24: 9631.294795 | R24: 5240.828945 | S24: 6947.090523 | T24: 8200.931162 | U24: 33495.21149
B25: Mid Peak | C25: 0.40087 | D25: 0.39358 | E25: 0.3534561743 | F25: 0.4199647774
B26: Off Peak | C26: 0.25982 | D26: 0.25733 | E26: 0.2310962888 | F26: 0.2745808633
B27: Super Off Peak | C27: 0.18167 | D27: 0.18224 | E27: 0.1636613984 | F27: 0.1944569872
C32: Daily to Monthly Conversion Factor | D32: 30.417
C34: TOU-GS-1-E
C35: =C21 -> Jan 2024 | E35: =D21 -> 2024-06-01 | G35: =E21 -> Authorized | I35: =F21 -> w/Pending
C36: Summer | D36: Winter | E36: Summer | F36: Winter | G36: Summer | H36: Winter | I36: Summer | J36: Winter
B37: NAICS 531 | C37: =SUM(SUM($O$22*$C$22,$P$22*$C$23,$Q$22*$C$24)+SUM($F$14*365/12*4))/4 -> 234.0395423 | D37: =SUM(SUM($R$22*$C$25,$S$22*$C$26,$T$22*$C$27)+SUM($F$14*365/12*8))/8 -> 193.9752401 | E37: =SUM(SUM($O$22*$D$22,$P$22*$D$23,$Q$22*$D$24)+SUM($F$14*365/12*4))/4 -> 230.2382228 | F37: =SUM(SUM($R$22*$D$25,$S$22*$D$26,$T$22*$D$27)+SUM($F$14*365/12*8))/8 -> 192.1280997 | G37: =SUM(SUM($O$22*$E$22,$P$22*$E$23,$Q$22*$E$24)+SUM($G$14*365/12*4))/4 -> 208.2176027 | H37: =SUM(SUM($R$22*$E$25,$S$22*$E$26,$T$22*$E$27)+SUM($G$14*365/12*8))/8 -> 173.9926464 | I37: =SUM(SUM($O$22*$F$22,$P$22*$F$23,$Q$22*$F$24)+SUM($I$14*365/12*4))/4 -> 244.7186257 | J37: =SUM(SUM($R$22*$F$25,$S$22*$F$26,$T$22*$F$27)+SUM($G$14*365/12*8))/8 -> 204.0536799
B38: NAICS 621 | C38: =SUM(SUM($O$23*$C$22,$P$23*$C$23,$Q$23*$C$24)+SUM($F$14*365/12*4))/4 -> 392.3446243 | D38: =SUM(SUM($R$23*$C$25,$S$23*$C$26,$T$23*$C$27)+SUM($F$14*365/12*8))/8 -> 232.5051395 | E38: =SUM(SUM($O$23*$D$22,$P$23*$D$23,$Q$23*$D$24)+SUM($F$14*365/12*4))/4 -> 385.4068219 | F38: =SUM(SUM($R$23*$D$25,$S$23*$D$26,$T$23*$D$27)+SUM($F$14*365/12*8))/8 -> 230.8405857 | G38: =SUM(SUM($O$23*$E$22,$P$23*$E$23,$Q$23*$E$24)+SUM($F$14*365/12*4))/4 -> 347.5674157 | H38: =SUM(SUM($R$23*$E$25,$S$23*$E$26,$T$23*$E$27)+SUM($F$14*365/12*8))/8 -> 208.7585572 | I38: =SUM(SUM($O$23*$F$22,$P$23*$F$23,$Q$23*$F$24)+SUM($I$14*365/12*4))/4 -> 410.2894021 | J38: =SUM(SUM($R$23*$F$25,$S$23*$F$26,$T$23*$F$27)+SUM($G$14*365/12*8))/8 -> 245.3613697
B39: NAICS 722 | C39: =SUM(SUM($O$24*$C$22,$P$24*$C$23,$Q$24*$C$24)+SUM($F$14*365/12*4))/4 -> 1118.894788 | D39: =SUM(SUM($R$24*$C$25,$S$24*$C$26,$T$24*$C$27)+SUM($F$14*365/12*8))/8 -> 688.7034154 | E39: =SUM(SUM($O$24*$D$22,$P$24*$D$23,$Q$24*$D$24)+SUM($F$14*365/12*4))/4 -> 1097.950875 | F39: =SUM(SUM($R$24*$D$25,$S$24*$D$26,$T$24*$D$27)+SUM($F$14*365/12*8))/8 -> 682.3497444 | G39: =SUM(SUM($O$24*$E$22,$P$24*$E$23,$Q$24*$E$24)+SUM($F$14*365/12*4))/4 -> 987.4705996 | H39: =SUM(SUM($R$24*$E$25,$S$24*$E$26,$T$24*$E$27)+SUM($F$14*365/12*8))/8 -> 614.2382561 | I39: =SUM(SUM($O$24*$F$22,$P$24*$F$23,$Q$24*$F$24)+SUM($I$14*365/12*4))/4 -> 1170.600914 | J39: =SUM(SUM($R$24*$F$25,$S$24*$F$26,$T$24*$F$27)+SUM($G$14*365/12*8))/8 -> 727.1387551
F42: 2024 | G42: 2025 | H42: 2026 | I42: 2027 | J42: 2028
F43: Non-CARE | G43: Non-CARE | H43: Non-CARE | I43: Non-CARE | J43: Non-CARE
A44: 3 | D44: On Peak | F44: 272.9756564 | G44: 238.5261644 | H44: 305.5121603 | I44: 313.0233645 | J44: 322.4208747
A45: =A44+1 -> 4 | D45: Mid Peak | F45: 96.85773384 | G45: 84.74322748 | H45: 112.3462007 | I45: 114.778733 | J45: 117.5855057
A46: =A45+1 -> 5 | D46: Off Peak | F46: 1211.526111 | G46: 1058.977441 | H46: 1352.955317 | I46: 1384.967034 | J46: 1424.341175
A47: 6 | D47: Mid Peak | F47: 653.427509 | G47: 563.6973633 | H47: 733.4189557 | I47: 752.3822258 | J47: 784.9414788
A48: 7 | D48: Off Peak | F48: 1103.284683 | G48: 951.9588516 | H48: 1205.702672 | I48: 1237.43483 | J48: 1290.07844
A49: 8 | D49: SuperOff Peak | F49: 1094.764554 | G49: 944.1711383 | H49: 1205.881916 | I49: 1236.916674 | J49: 1291.685536
A50: 9
A51: 10 | D51: Customers | F51: 4657395.864 | G51: 4220580.429 | H51: 4580609.946 | I51: 4530906.541 | J51: 4490904.009
A52: 11
F54: =SUM(F44:F49) -> 4432.836247 | G54: 3842.074186 | H54: 4915.817221 | I54: 5039.502861 | J54: 5231.053011
E55: Customers | F55: =F51/SUM(F$51:F$52) -> 1 | G55: 4663963.983 | H55: 4580609.946 | I55: 4530906.541 | J55: 4490904.009

Sheet SAR and RAR (hidden)
B1: CONFIDENTIAL This Excel Sheet Is Marked Confidential In Accordance With Applicable Law and Regulation. Basis for Confidentiality In Accompanying Confidentiality Declaration. Public Disclosure Restricted.
C2: Total Revenue ($000)
C3: Authorized | D3: w/ Pending
B4: Generation | C4: =INDEX('Incremental Rev Req'!$S$9:$X$22,MATCH(B4,'Incremental Rev Req'!$S$9:$S$22,0),MATCH(Summary!$D$3,'Incremental Rev Req'!$S$9:$X$9,0)) -> 5522929.958 | D4: =INDEX('Incremental Rev Req'!$S$61:$X$74,MATCH(B4,'Incremental Rev Req'!$S$61:$S$74,0),MATCH(Summary!$D$3,'Incremental Rev Req'!$S$61:$X$61,0)) -> 5946992.906 | G4: Allocation
B5: Distribution | C5: =INDEX('Incremental Rev Req'!$S$9:$X$22,MATCH(B5,'Incremental Rev Req'!$S$9:$S$22,0),MATCH(Summary!$D$3,'Incremental Rev Req'!$S$9:$X$9,0)) -> 8456704.194 | D5: =INDEX('Incremental Rev Req'!$S$61:$X$74,MATCH(B5,'Incremental Rev Req'!$S$61:$S$74,0),MATCH(Summary!$D$3,'Incremental Rev Req'!$S$61:$X$61,0)) -> 10848039.71 | G5: Generation | H5: Distribution | I5: NDC | J5: PPPC | K5: CIA | L5: NSGC | M5: Transmission | N5: TOTCA | O5: GHG Rev | P5: DWRBC | Q5: PUCRF | R5: SECURITIZATION
B6: Nuclear | C6: =INDEX('Incremental Rev Req'!$S$9:$X$22,MATCH(B6,'Incremental Rev Req'!$S$9:$S$22,0),MATCH(Summary!$D$3,'Incremental Rev Req'!$S$9:$X$9,0)) -> 4958 | D6: =INDEX('Incremental Rev Req'!$S$61:$X$74,MATCH(B6,'Incremental Rev Req'!$S$61:$S$74,0),MATCH(Summary!$D$3,'Incremental Rev Req'!$S$61:$X$61,0)) -> 5012.142548 | F6: Residential | G6: =VLOOKUP(Summary!$D$3,'SAR and RAR'!$F$37:$R$42,'SAR and RAR'!G$35,FALSE) -> 0.4046521461 | H6: =VLOOKUP(Summary!$D$3,'SAR and RAR'!$F$37:$R$42,'SAR and RAR'!H$35,FALSE) -> 0.4790321452 | I6: =VLOOKUP(Summary!$D$3,'SAR and RAR'!$F$37:$R$42,'SAR and RAR'!I$35,FALSE) -> 0.3258279141 | J6: =VLOOKUP(Summary!$D$3,'SAR and RAR'!$F$37:$R$42,'SAR and RAR'!J$35,FALSE) -> 0.4235302833 | K6: =VLOOKUP(Summary!$D$3,'SAR and RAR'!$F$37:$R$42,'SAR and RAR'!K$35,FALSE) -> 1 | L6: =VLOOKUP(Summary!$D$3,'SAR and RAR'!$F$37:$R$42,'SAR and RAR'!L$35,FALSE) -> 0.4257603036 | M6: =VLOOKUP(Summary!$D$3,'SAR and RAR'!$F$37:$R$42,'SAR and RAR'!M$35,FALSE) -> 0.4373615303 | N6: =VLOOKUP(Summary!$D$3,'SAR and RAR'!$F$37:$R$42,'SAR and RAR'!N$35,FALSE) -> 0.323022475 | O6: =VLOOKUP(Summary!$D$3,'SAR and RAR'!$F$37:$R$42,'SAR and RAR'!O$35,FALSE) -> 0.8461697131 | P6: =VLOOKUP(Summary!$D$3,'SAR and RAR'!$F$37:$R$42,'SAR and RAR'!P$35,FALSE) -> 0.2576906451 | Q6: =VLOOKUP(Summary!$D$3,'SAR and RAR'!$F$37:$R$42,'SAR and RAR'!Q$35,FALSE) -> 0.3258279155 | R6: =VLOOKUP(Summary!$D$3,'SAR and RAR'!$F$37:$R$42,'SAR and RAR'!R$35,FALSE) -> 0.3670217617
B7: Public Purpose | C7: =INDEX('Incremental Rev Req'!$S$9:$X$22,MATCH(B7,'Incremental Rev Req'!$S$9:$S$22,0),MATCH(Summary!$D$3,'Incremental Rev Req'!$S$9:$X$9,0)) -> 807460.6148 | D7: =INDEX('Incremental Rev Req'!$S$61:$X$74,MATCH(B7,'Incremental Rev Req'!$S$61:$S$74,0),MATCH(Summary!$D$3,'Incremental Rev Req'!$S$61:$X$61,0)) -> 972603.5263
B8: CIA | C8: =INDEX('Incremental Rev Req'!$S$9:$X$22,MATCH(B8,'Incremental Rev Req'!$S$9:$S$22,0),MATCH(Summary!$D$3,'Incremental Rev Req'!$S$9:$X$9,0)) -> 0 | D8: =INDEX('Incremental Rev Req'!$S$61:$X$74,MATCH(B8,'Incremental Rev Req'!$S$61:$S$74,0),MATCH(Summary!$D$3,'Incremental Rev Req'!$S$61:$X$61,0)) -> 0 | G8: Revenue ($000) - System | X8: Authorized | Y8: w/Pending
B9: New System Gen | C9: =INDEX('Incremental Rev Req'!$S$9:$X$22,MATCH(B9,'Incremental Rev Req'!$S$9:$S$22,0),MATCH(Summary!$D$3,'Incremental Rev Req'!$S$9:$X$9,0)) -> 465604.6061 | D9: =INDEX('Incremental Rev Req'!$S$61:$X$74,MATCH(B9,'Incremental Rev Req'!$S$61:$S$74,0),MATCH(Summary!$D$3,'Incremental Rev Req'!$S$61:$X$61,0)) -> 651301.8312 | F9: Authorized | G9: Generation | H9: Distribution | I9: NDC | J9: PPPC | K9: CIA | L9: NSGC | M9: Transmission | N9: TOTCA | O9: GHG Rev | P9: DWRBC | Q9: PUCRF | R9: SECURITIZATION | S9: Total | T9: CARE Adj. | W9: % of CARE Sales | X9: =VLOOKUP(Summary!$D$3,$F$58:$Q$63,$Q$35,FALSE) -> 0.2817159964 | Y9: =X9 -> 0.2817159964
B10: FERC | C10: =INDEX('Incremental Rev Req'!$S$9:$X$22,MATCH(B10,'Incremental Rev Req'!$S$9:$S$22,0),MATCH(Summary!$D$3,'Incremental Rev Req'!$S$9:$X$9,0)) -> 1124500.46 | D10: =INDEX('Incremental Rev Req'!$S$61:$X$74,MATCH(B10,'Incremental Rev Req'!$S$61:$S$74,0),MATCH(Summary!$D$3,'Incremental Rev Req'!$S$61:$X$61,0)) -> 1345305.397 | F10: Residential | G10: =G6*G11 -> 2234865.46 | H10: =H6*H11 -> 4051033.151 | I10: =I6*I11 -> 1615.454798 | J10: =J6*J11 -> 341984.0229 | K10: =K6*K11 -> 0 | L10: 198235.9585 | M10: 491813.242 | N10: -2715.649948 | O10: -808180.9238 | P10: 105372.7971 | Q10: 26129.61701 | R10: =R6*R11 -> 38993.96282 | S10: =SUM(G10:R10) -> 6679147.093 | T10: =-X11+X14 -> -494988.8208 | W10: CARE Effective Discount | X10: 0.29 | Y10: =X10 -> 0.29
B11: TOTCA | C11: =INDEX('Incremental Rev Req'!$S$9:$X$22,MATCH(B11,'Incremental Rev Req'!$S$9:$S$22,0),MATCH(Summary!$D$3,'Incremental Rev Req'!$S$9:$X$9,0)) -> -8407 | D11: =INDEX('Incremental Rev Req'!$S$61:$X$74,MATCH(B11,'Incremental Rev Req'!$S$61:$S$74,0),MATCH(Summary!$D$3,'Incremental Rev Req'!$S$61:$X$61,0)) -> -8407 | F11: Total System | G11: =C4 -> 5522929.958 | H11: =C5 -> 8456704.194 | I11: =C6 -> 4958 | J11: =C7 -> 807460.6148 | K11: =C8 -> 0 | L11: =C9 -> 465604.6061 | M11: =C10 -> 1124500.46 | N11: =C11 -> -8407 | O11: =C12 -> -955105 | P11: =C14 -> 408912 | Q11: =C15 -> 80194.53144 | R11: =C16 -> 106244.28 | S11: =SUM(G11:R11) -> 16013996.64 | T11: 0 | W11: CARE Discounst | X11: =SUM(G10*G19/K71*O71,H10:N10,Q10)*X9*X10 -> 668202.0093 | Y11: =SUM(G13*G19/K71*O71,H13:N13,Q13)*Y9*Y10 -> 801116.6702
B12: GHG Revenue | C12: =INDEX('Incremental Rev Req'!$S$9:$X$22,MATCH(B12,'Incremental Rev Req'!$S$9:$S$22,0),MATCH(Summary!$D$3,'Incremental Rev Req'!$S$9:$X$9,0)) -> -955105 | D12: =INDEX('Incremental Rev Req'!$S$61:$X$74,MATCH(B12,'Incremental Rev Req'!$S$61:$S$74,0),MATCH(Summary!$D$3,'Incremental Rev Req'!$S$61:$X$61,0)) -> -1021086.424 | F12: w/Pending | W12: non-CARE Residential Sales | X12: =VLOOKUP(Summary!$D$3,'SAR and RAR'!$F$58:$G$63,2,FALSE) -> 18520432.77 | Y12: =X12 -> 18520432.77
B13: MCAM | C13: =INDEX('Incremental Rev Req'!$S$9:$X$22,MATCH(B13,'Incremental Rev Req'!$S$9:$S$22,0),MATCH(Summary!$D$3,'Incremental Rev Req'!$S$9:$X$9,0)) -> 2362.884396 | D13: =INDEX('Incremental Rev Req'!$S$61:$X$74,MATCH(B13,'Incremental Rev Req'!$S$61:$S$74,0),MATCH(Summary!$D$3,'Incremental Rev Req'!$S$61:$X$61,0)) -> 3414.165988 | F13: Residential | G13: =G6*G14 -> 2406463.442 | H13: =H6*H14 -> 5196559.733 | I13: =I6*I14 -> 1633.095952 | J13: =J6*J14 -> 411927.047 | K13: =K6*K14 -> 0 | L13: 277298.4654 | M13: 588384.8271 | N13: -2715.649948 | O13: -864012.4068 | P13: 105372.7971 | Q13: =Q6*Q14 -> 26129.61701 | R13: =R6*R14 -> 38993.96282 | S13: =SUM(G13:R13) -> 8186034.93 | T13: =-Y11+Y14 -> -593448.9725 | W13: Total Sales (excl. CARE&SL) | X13: =VLOOKUP(Summary!$D$3,'SAR and RAR'!$F$64:$G$69,2,FALSE) -> 71446005.3 | Y13: =X13 -> 71446005.3
B14: DWR | C14: =INDEX('Incremental Rev Req'!$S$9:$X$22,MATCH(B14,'Incremental Rev Req'!$S$9:$S$22,0),MATCH(Summary!$D$3,'Incremental Rev Req'!$S$9:$X$9,0)) -> 408912 | D14: =INDEX('Incremental Rev Req'!$S$61:$X$74,MATCH(B14,'Incremental Rev Req'!$S$61:$S$74,0),MATCH(Summary!$D$3,'Incremental Rev Req'!$S$61:$X$61,0)) -> 408912 | F14: Total System | G14: =D4 -> 5946992.906 | H14: =D5 -> 10848039.71 | I14: =D6 -> 5012.142548 | J14: =D7 -> 972603.5263 | K14: =D8 -> 0 | L14: =D9 -> 651301.8312 | M14: =D10 -> 1345305.397 | N14: =D11 -> -8407 | O14: =D12 -> -1021086.424 | P14: =D14 -> 408912 | Q14: =D15 -> 80194.53144 | R14: =D16 -> 106244.28 | S14: =SUM(G14:R14) -> 19335112.9 | T14: 0 | W14: Res CARE Surcharge | X14: =X11*X12/X13 -> 173213.1886 | Y14: =Y11*Y12/Y13 -> 207667.6977
B15: PUCRF | C15: =INDEX('Incremental Rev Req'!$S$9:$X$22,MATCH(B15,'Incremental Rev Req'!$S$9:$S$22,0),MATCH(Summary!$D$3,'Incremental Rev Req'!$S$9:$X$9,0)) -> 80194.53144 | D15: =INDEX('Incremental Rev Req'!$S$61:$X$74,MATCH(B15,'Incremental Rev Req'!$S$61:$S$74,0),MATCH(Summary!$D$3,'Incremental Rev Req'!$S$61:$X$61,0)) -> 80194.53144 | W15: RES CARE Discount Specific Split | X15: 0.7896601029 | Y15: =X15 -> 0.7896601029
B16: SECURITIZATION | C16: =INDEX('Incremental Rev Req'!$S$9:$X$22,MATCH(B16,'Incremental Rev Req'!$S$9:$S$22,0),MATCH(Summary!$D$3,'Incremental Rev Req'!$S$9:$X$9,0)) -> 106244.28 | D16: =INDEX('Incremental Rev Req'!$S$61:$X$74,MATCH(B16,'Incremental Rev Req'!$S$61:$S$74,0),MATCH(Summary!$D$3,'Incremental Rev Req'!$S$61:$X$61,0)) -> 106244.28 | S16: Authorized | T16: w/Pending | W16: CARE Surcharge Allocator | X16: 0.652442884 | Y16: =X16 -> 0.652442884
B17: Total | C17: =SUM(C4:C16) -> 16016359.53 | D17: =SUM(D4:D16) -> 19338527.06 | G17: Revenue Split - Bundled | S17: Bundled Revenue | W17: System CARE Discount | X17: =SUM(-X11*X15)+SUM(X11*X16) -> -91688.8214 | Y17: =SUM(-Y11*Y15)+SUM(Y11*Y16) -> -109927.0015
G18: Generation | H18: Distribution | I18: NDC | J18: PPPC | K18: CIA | L18: NSGC | M18: Transmission | N18: TOTCA | O18: GHG Rev | P18: DWRBC | Q18: PUCRF | R18: SECURITIZATION | S18: Total | T18: Total
F19: Residential | G19: =VLOOKUP(Summary!$D$3,'SAR and RAR'!$F$44:$R$49,'SAR and RAR'!G$35,FALSE) -> 0.9207748032 | H19: =VLOOKUP(Summary!$D$3,'SAR and RAR'!$F$44:$R$49,'SAR and RAR'!H$35,FALSE) -> 0.6599581315 | I19: =VLOOKUP(Summary!$D$3,'SAR and RAR'!$F$44:$R$49,'SAR and RAR'!I$35,FALSE) -> 0.670106296 | J19: =VLOOKUP(Summary!$D$3,'SAR and RAR'!$F$44:$R$49,'SAR and RAR'!J$35,FALSE) -> 0.6701062968 | K19: =VLOOKUP(Summary!$D$3,'SAR and RAR'!$F$44:$R$49,'SAR and RAR'!K$35,FALSE) -> 0.6701062968 | L19: =VLOOKUP(Summary!$D$3,'SAR and RAR'!$F$44:$R$49,'SAR and RAR'!L$35,FALSE) -> 0.6701062968 | M19: =VLOOKUP(Summary!$D$3,'SAR and RAR'!$F$44:$R$49,'SAR and RAR'!M$35,FALSE) -> 0.6701062968 | N19: =VLOOKUP(Summary!$D$3,'SAR and RAR'!$F$44:$R$49,'SAR and RAR'!N$35,FALSE) -> 0.6701062967 | O19: =VLOOKUP(Summary!$D$3,'SAR and RAR'!$F$44:$R$49,'SAR and RAR'!O$35,FALSE) -> 0.6798170489 | P19: =VLOOKUP(Summary!$D$3,'SAR and RAR'!$F$44:$R$49,'SAR and RAR'!P$35,FALSE) -> 0.6508609568 | Q19: =VLOOKUP(Summary!$D$3,'SAR and RAR'!$F$44:$R$49,'SAR and RAR'!Q$35,FALSE) -> 0.670106297 | R19: =VLOOKUP(Summary!$D$3,'SAR and RAR'!$F$44:$R$49,'SAR and RAR'!R$35,FALSE) -> 0.6508609568 | S19: =SUMPRODUCT(G10:R10,G19:R19)+T10*X15 -> 4593339.002 | T19: =SUMPRODUCT(G13:R13,G19:R19)+T13*Y15 -> 5556211.028
F20: Total System | G20: =VLOOKUP(Summary!$D$3,'SAR and RAR'!$F$50:$R$55,'SAR and RAR'!G$35,FALSE) -> 0.9265067646 | H20: =VLOOKUP(Summary!$D$3,'SAR and RAR'!$F$50:$R$55,'SAR and RAR'!H$35,FALSE) -> 0.6476300754 | I20: =VLOOKUP(Summary!$D$3,'SAR and RAR'!$F$50:$R$55,'SAR and RAR'!I$35,FALSE) -> 0.6269148415 | J20: =VLOOKUP(Summary!$D$3,'SAR and RAR'!$F$50:$R$55,'SAR and RAR'!J$35,FALSE) -> 0.6371996137 | K20: =VLOOKUP(Summary!$D$3,'SAR and RAR'!$F$50:$R$55,'SAR and RAR'!K$35,FALSE) -> 0.6371996137 | L20: =VLOOKUP(Summary!$D$3,'SAR and RAR'!$F$50:$R$55,'SAR and RAR'!L$35,FALSE) -> 0.6318803532 | M20: =VLOOKUP(Summary!$D$3,'SAR and RAR'!$F$50:$R$55,'SAR and RAR'!M$35,FALSE) -> 0.6656300931 | N20: =VLOOKUP(Summary!$D$3,'SAR and RAR'!$F$50:$R$55,'SAR and RAR'!N$35,FALSE) -> 0.6636179416 | O20: =VLOOKUP(Summary!$D$3,'SAR and RAR'!$F$50:$R$55,'SAR and RAR'!O$35,FALSE) -> 0.670448003 | P20: =VLOOKUP(Summary!$D$3,'SAR and RAR'!$F$50:$R$55,'SAR and RAR'!P$35,FALSE) -> 0.6175902243 | Q20: =VLOOKUP(Summary!$D$3,'SAR and RAR'!$F$50:$R$55,'SAR and RAR'!Q$35,FALSE) -> 0.6269148453 | R20: =VLOOKUP(Summary!$D$3,'SAR and RAR'!$F$50:$R$55,'SAR and RAR'!R$35,FALSE) -> 0.6232617871 | S20: =SUMPRODUCT(G11:R11,G20:R20)+X17 -> 11785594.62 | T20: =SUMPRODUCT(G14:R14,G20:R20)+Y17 -> 14034293.1
Q22: Res GHG | S22: =O10*O19 -> -549415.1706 | T22: =O13*O19 -> -587370.3646
Q23: Res GHG System | S23: =O11*O20 -> -640348.2399 | T23: =O14*O20 -> -684585.3541
F26: Bundled | N26: System (Bundled and Unbundled)
F27: =Summary!N4&" Sales" -> 2025 Sales | G27: 6/1/2024 Avg Rates | H27: Proposed Avg Rates (Authorized) | I27: Proposed Avg Rates (w/Pending) | J27: % Change (Authorized) | K27: % Change (w/Pending) | N27: =Summary!N4&" Sales" -> 2025 Sales | O27: =G27 -> 6/1/2024 Avg Rates | P27: Proposed Avg Rates (Authorized) | Q27: Proposed Avg Rates (w/Pending) | R27: % Change (Authorized) | S27: % Change (w/Pending) | W27: 1/1/24 Bundled w/Credit | X27: 1/1/24 Bundled w/out Credit | Z27: 1/1/24 System w/Credit | AA27: 1/1/24 System w/out Credit
E28: Residential | F28: =VLOOKUP(Summary!$D$3,'SAR and RAR'!$J$58:$K$63,2,FALSE) -> 17278205.49 | G28: =IF(Summary!$J$3="Y",W32,X32) -> 33.23324111 | H28: =IF(Summary!$J$3="Y",S19/$F$28*100,SUM(S19-'SAR and RAR'!S22)/$F$28*100) -> 29.76439986 | I28: =IF(Summary!$J$3="Y",T19/$F$28*100,SUM(T19-'SAR and RAR'!T22)/$F$28*100) -> 35.55682559 | J28: =H28/G28-1 -> -0.1043786623 | K28: =I28/G28-1 -> 0.06991748018 | M28: Residential | N28: =VLOOKUP(Summary!$D$3,'SAR and RAR'!$N$58:$O$63,2,FALSE) -> 25784275.68 | O28: =IF(Summary!$J$3="Y",Z32,AA32) -> 29.235246 | P28: =IF(Summary!$J$3="Y",SUM(S10:T10)/N28*100,SUM(S10,T10,-O10)/N28*100) -> 27.11861788 | Q28: =IF(Summary!$J$3="Y",SUM(S13:T13)/N28*100,SUM(S13,T13,-O13)/N28*100) -> 32.79750212 | R28: =P28/O28-1 -> -0.07239987365 | S28: =Q28/O28-1 -> 0.1218479956 | V28: Residential | W28: 30.21576573 | X28: 33.3931272 | Y28: Residential | Z28: 26.00963349 | AA28: 29.10809807
E29: Total Bundled | F29: =VLOOKUP(Summary!$D$3,'SAR and RAR'!$J$64:$K$69,2,FALSE) -> 49610682.28 | G29: =IF(Summary!$J$3="Y",W33,X33) -> 27.97629791 | H29: =IF(Summary!$J$3="Y",S20/$F$29*100,SUM(S20-S23)/$F$29*100) -> 25.04690984 | I29: =IF(Summary!$J$3="Y",T20/$F$29*100,SUM(T20-T23)/$F$29*100) -> 29.66876845 | J29: =H29/G29-1 -> -0.1047096395 | K29: =I29/G29-1 -> 0.06049658707 | M29: Total System | N29: =VLOOKUP(Summary!$D$3,'SAR and RAR'!$N$64:$O$69,2,FALSE) -> 79134642.73 | O29: =IF(Summary!$J$3="Y",Z33,AA33) -> 23.20741957 | P29: =IF(Summary!$J$3="Y",SUM(S11:T11)/N29*100,SUM(S11,T11,-O11)/N29*100) -> 21.44332881 | Q29: =IF(Summary!$J$3="Y",SUM(S14:T14)/N29*100,SUM(S14,T14,-O14)/N29*100) -> 25.72349937 | R29: =P29/O29-1 -> -0.07601408476 | S29: =Q29/O29-1 -> 0.1084170427 | V29: Bundled | W29: 26.89367616 | X29: 28.1784653 | Y29: Total System | Z29: 21.95032046 | AA29: 23.14130572
E30: =M29 -> Total System | F30: =N29 -> 79134642.73
W31: 6/1/24 Bundled w/Credit | X31: 6/1/24 Bundled w/out Credit | Z31: 6/1/24 System w/Credit | AA31: 6/1/24 System w/out Credit
V32: Residential | W32: 30.05587964 | X32: 33.23324111 | Y32: Residential | Z32: 26.13678142 | AA32: 29.235246
V33: Bundled | W33: 26.69150877 | X33: 27.97629791 | Y33: Total System | Z33: 22.0164343 | AA33: 23.20741957
G35: 2 | H35: =G35+1 -> 3 | I35: =H35+1 -> 4 | J35: 5 | K35: 6 | L35: 7 | M35: 8 | N35: 9 | O35: 10 | P35: 11 | Q35: 12 | R35: 13
F36: Residential Allocator | G36: Generation | H36: Distribution | I36: NDC | J36: PPPC | K36: CIA | L36: NSGC | M36: Transmission | N36: TOTCA | O36: GHG Rev | P36: DWRBC | Q36: PUCRF | R36: SECURITIZATION
F37: 2024 | G37: 0.4017151942 | H37: 0.475017774 | I37: 0.3233019528 | J37: 0.4199007955 | K37: 1 | L37: 0.4220417204 | M37: 0.4346883856 | N37: 0.1067909648 | O37: 0.8411016298 | P37: 0.2554854898 | Q37: 0.3233019528 | R37: 0.3631246136
F38: 2025 | G38: 0.4046521461 | H38: 0.4790321452 | I38: 0.3258279141 | J38: 0.4235302833 | K38: 1 | L38: 0.4257603036 | M38: 0.4373615303 | N38: 0.323022475 | O38: 0.8461697131 | P38: 0.2576906451 | Q38: 0.3258279155 | R38: 0.3670217617
F39: 2026 | G39: 0.393021212 | H39: 0.482376069 | I39: 0.3242269914 | J39: 0.4305818978 | K39: 1 | L39: 0.4242276604 | M39: 0.4319387477 | N39: 0.376819088 | O39: 0.8522234735 | P39: 0.266647213 | Q39: 0.3242269904 | R39: 0.3896070244
F40: 2027 | G40: 0.4006459817 | H40: 0.4902314998 | I40: 0.3303541556 | J40: 0.4377233811 | K40: 1 | L40: 0.4312537897 | M40: 0.4389443154 | N40: 0.3835653202 | O40: 0.8527938266 | P40: 0.2748889773 | Q40: 0.3303541542 | R40: 0.3998578817
F41: 2028 | G41: 0.4056289096 | H41: 0.4958756963 | I41: 0.3341510144 | J41: 0.4422586709 | K41: 1 | L41: 0.4356790688 | M41: 0.4432726485 | N41: 0.3878204529 | O41: 0.8537214842 | P41: 0.2807999981 | Q41: 0.3341510139 | R41: 0.4072394014
F43: Revenue Split - Bundled
E44: Residential | F44: 2024 | G44: 1.037513219 | H44: 0.6940541956 | I44: 0.7109692626 | J44: 0.7109692643 | K44: =J44 -> 0.7109692643 | L44: 0.7109692643 | M44: 0.7109692643 | N44: 0.7109692352 | O44: 0.7290728331 | P44: 0.6804940245 | Q44: 0.7109692645 | R44: 0.6804940246 | U44: =G44 -> 1.037513219
E45: Residential | F45: 2025 | G45: 0.9207748032 | H45: 0.6599581315 | I45: 0.670106296 | J45: 0.6701062968 | K45: =J45 -> 0.6701062968 | L45: 0.6701062968 | M45: 0.6701062968 | N45: 0.6701062967 | O45: 0.6798170489 | P45: 0.6508609568 | Q45: 0.670106297 | R45: 0.6508609568 | T45: =K59/K58-1 -> -0.06266523182 | U45: =G45 -> 0.9207748032
E46: Residential | F46: 2026 | G46: 1.005605795 | H46: 0.6560593422 | I46: 0.671474287 | J46: 0.6714742894 | K46: 0.6714742894 | L46: 0.6714742895 | M46: 0.6714742895 | N46: 0.6714742882 | O46: 0.6859664633 | P46: 0.6509991113 | Q46: 0.6714742896 | R46: 0.6509991111 | T46: =K60/K59-1 -> 0.03349629618 | U46: 1.005605795
E47: Residential | F47: 2027 | G47: 1.005628561 | H47: 0.6584928314 | I47: 0.6705942263 | J47: 0.6705942298 | K47: 0.6705942298 | L47: 0.6705942298 | M47: 0.6705942298 | N47: 0.6705942328 | O47: 0.6704201196 | P47: 0.655287814 | Q47: 0.6705942299 | R47: 0.6552878138 | T47: 0.0382601427 | U47: 1.005628561
E48: Residential | F48: 2028 | G48: 1.005590287 | H48: 0.6631489091 | I48: 0.6720905597 | J48: 0.67209056 | K48: 0.67209056 | L48: 0.6720905599 | M48: 0.6720905599 | N48: 0.6720905578 | O48: 0.6603292437 | P48: 0.6613320403 | Q48: 0.6720905601 | R48: 0.6613320404 | T48: 0.03477714782 | U48: 1.005590287
E49: Residential | T49: -1 | U49: 0
E50: Total System | F50: 2024 | G50: 1.033992536 | H50: 0.6897395716 | I50: 0.6656300913 | J50: 0.6802569815 | K50: =J50 -> 0.6802569815 | L50: 0.6739645256 | M50: 0.6656300931 | N50: 0.6636179416 | O50: 0.7180561653 | P50: 0.6533003681 | Q50: 0.6656300931 | R50: 0.6636179416 | U50: 1.033992536
E51: Total System | F51: 2025 | G51: 0.9265067646 | H51: 0.6476300754 | I51: 0.6269148415 | J51: 0.6371996137 | K51: =J51 -> 0.6371996137 | L51: 0.6318803532 | M51: 0.6656300931 | N51: 0.6636179416 | O51: 0.670448003 | P51: 0.6175902243 | Q51: 0.6269148453 | R51: 0.6232617871 | T51: =K65/K64-1 -> -0.07061106536 | U51: 0.9265067646
E52: Total System | F52: 2026 | G52: 1.006890816 | H52: 0.6566303615 | I52: 0.6446902086 | J52: 0.6547506156 | K52: 0.6547506156 | L52: 0.6482038332 | M52: 0.6656300931 | N52: 0.6636179416 | O52: 0.681620908 | P52: 0.636948401 | Q52: 0.6446902092 | R52: 0.6409327277 | T52: =K66/K65-1 -> 0.06587157606 | U52: 1.006890816
E53: Total System | F53: 2027 | G53: 1.006980442 | H53: 0.6540350027 | I53: 0.6424349156 | J53: 0.6519757309 | K53: 0.6519757309 | L53: 0.6457334941 | M53: 0.6656300931 | N53: 0.6636179416 | O53: 0.6668106584 | P53: 0.6358949821 | Q53: 0.6424349163 | R53: 0.6398991225 | T53: 0.01677114585 | U53: 1.006980442
E54: Total System | F54: 2028 | G54: 1.006974084 | H54: 0.6546713833 | I54: 0.6433912532 | J54: 0.6524051016 | K54: 0.6524051016 | L54: 0.6464337984 | M54: 0.6656300931 | N54: 0.6636179416 | O54: 0.6570094065 | P54: 0.638070734 | Q54: 0.6433912524 | R54: 0.6420868119 | T54: 0.02226113612 | U54: 1.006974084
E55: Total System | T55: -1 | U55: 0
F57: System Sales | J57: Bundled Sales | L57: % of Bdl | N57: System Sales | Q57: CARE%
E58: Non-CARE Residential | F58: 2024 | G58: 18622275.65 | I58: Residential | J58: 2024 | K58: 18433334.69 | L58: =K58/O58 -> 0.7109692643 | M58: Residential | N58: 2024 | O58: 25927048.62 | Q58: =1-G58/O58 -> 0.2817433284
E59: Non-CARE Residential | F59: 2025 | G59: 18520432.77 | I59: Residential | J59: 2025 | K59: 17278205.49 | L59: 0.6701062968 | M59: Residential | N59: 2025 | O59: 25784275.68 | Q59: 0.2817159964
E60: Non-CARE Residential | F60: 2026 | G60: 20153661.05 | I60: Residential | J60: 2026 | K60: 17856961.38 | L60: 0.6714742894 | M60: Residential | N60: 2026 | O60: 26593663.62 | Q60: 0.2421630455
E61: Non-CARE Residential | F61: 2027 | G61: 21245754.3 | I61: Residential | J61: 2027 | K61: 18540171.27 | L61: 0.6705942298 | M61: Residential | N61: 2027 | O61: 27647376.68 | Q61: =1-G61/O61 -> 0.2315453817
E62: Non-CARE Residential | F62: 2028 | G62: 22208189.56 | I62: Residential | J62: 2028 | K62: 19184945.55 | L62: =K62/O62 -> 0.6720905599 | M62: Residential | N62: 2028 | O62: 28545179.32 | Q62: =1-G62/O62 -> 0.2219985969
E63: Non-CARE Residential | I63: Residential | M63: Residential
E64: Non-Exempt Sales | F64: 2024 | G64: 72430361.94 | I64: Total System | J64: 2024 | K64: 53379893.43 | L64: 0.665630093 | M64: Total System | N64: 2024 | O64: 80194531.45
E65: Non-Exempt Sales | F65: 2025 | G65: 71446005.3 | I65: Total System | J65: 2025 | K65: 49610682.28 | L65: 0.626914845 | M65: Total System | N65: 2025 | O65: 79134642.73 | P65: =O65/O64-1 -> -0.01321647129
E66: Non-Exempt Sales | F66: 2026 | G66: 75183086.41 | I66: Total System | J66: 2026 | K66: 52878616.11 | L66: 0.6446902091 | M66: Total System | N66: 2026 | O66: 82021745.28 | P66: =O66/O65-1 -> 0.03648342177
E67: Non-Exempt Sales | F67: 2027 | G67: 76902568.52 | I67: Total System | J67: 2027 | K67: 53765451.1 | L67: 0.6424349163 | M67: Total System | N67: 2027 | O67: 83690113.56 | P67: 0.0203405606
E68: Non-Exempt Sales | F68: 2028 | G68: 78714196.58 | I68: Total System | J68: 2028 | K68: 54962331.12 | L68: =K68/O68 -> 0.6433912525 | M68: Total System | N68: 2028 | O68: 85425984.44 | P68: 0.02074164806
E69: Non-Exempt Sales | I69: Total System | M69: Total System
J71: =Summary!D3 -> 2025 | K71: =VLOOKUP(Summary!D3,'SAR and RAR'!J58:K63,2,FALSE) -> 17278205.49 | N71: =Summary!D3 -> 2025 | O71: =VLOOKUP(Summary!D3,'SAR and RAR'!N58:O63,2,FALSE) -> 25784275.68
J72: % of Resl Sales (Bdl) | N72: % of Resl Sales (Sys)
J73: 2024 | K73: =K58/K64 -> 0.3453235573 | N73: 2024 | O73: =O58/O64 -> 0.3233019528
J74: 2025 | K74: 0.3482759095 | N74: 2025 | O74: 0.3258279155
J75: 2026 | K75: 0.3376972148 | N75: 2026 | O75: 0.3242269904
J76: 2027 | K76: 0.3448342922 | N76: 2027 | O76: 0.3303541543
J77: 2028 | K77: 0.3490562565 | N77: 2028 | O77: 0.3341510139

Sheet Res Bill Impact (hidden)
A1: CONFIDENTIAL The Attachment(s) Are Marked Confidential In Accordance With D. 16-08-024 and D. 17-09-023. Basis for Confidentiality In Accompanying Confidentiality Declaration.
E3: Schedule D | O3: Schedule D-CARE
E4: =Summary!N4 -> 2025 | F4: =Summary!N3 -> 2024-06-01 | G4: Proposed | H4: Proposed | I4: Proposed | J4: Proposed | O4: =Summary!N4 -> 2025 | P4: =Summary!N3 -> 2024-06-01 | Q4: Proposed | R4: Proposed | S4: Proposed | T4: Proposed
E5: Sales Forecast | F5: Rates | G5: Authorized Rates | H5: Authorized Revenue | I5: w/Pending Rates | J5: w/Pending Revenue | O5: Sales Forecast | P5: Rates | Q5: Authorized Rates | R5: Authorized Revenue | S5: w/Pending Rates | T5: w/Pending Revenue
D7: Baseline - Summer | E7: =HLOOKUP(E$4,$F$95:$K$105,$A97,FALSE) -> 3032.807435 | F7: 0.33586 | G7: =(W8-SUM(R14:R15,H14:H15))/SUM(SUM(E7:E8),F9/F7*SUM(E9:E10),F11/F7*SUM(E11:E12),SUM(O7:O8)*(1+(P7/F7-1)),SUM(O9:O10)*(1+(P9/F9-1))*F9/F7,SUM(O11:O12)*(1+(P11/F11-1))*F11/F7) -> 0.2961670467 | H7: =E7*G7 -> 898.2176214 | I7: =(W9-SUM(T14:T15,J14:J15))/SUM(SUM(E7:E8),F9/F7*SUM(E9:E10),F11/F7*SUM(E11:E12),SUM(O7:O8)*(1+(P7/F7-1)),SUM(O9:O10)*(1+(P9/F9-1))*F9/F7,SUM(O11:O12)*(1+(P11/F11-1))*F11/F7) -> 0.3541478832 | J7: =E7*I7 -> 1074.062333 | N7: Baseline - Summer | O7: =HLOOKUP(O$4,$M$95:$R$105,$A97,FALSE) -> 1516.173081 | P7: 0.22762 | Q7: =G7*(1+(P7/F7-1)) -> 0.2007191782 | R7: =O7*Q7 -> 304.3250148 | S7: =I7*(1+(P7/F7-1)) -> 0.2400141165 | T7: =O7*S7 -> 363.9029426 | V7: Bundled Residential Rev Req
D8: - Winter | E8: 4188.444716 | F8: 0.33586 | G8: =G7 -> 0.2961670467 | H8: 1240.479302 | I8: =I7 -> 0.3541478832 | J8: 1483.32883 | N8: - Winter | O8: 2166.604445 | P8: 0.22762 | Q8: =G8*(1+(P8/F8-1)) -> 0.2007191782 | R8: 434.8790637 | S8: 0.2400141165 | T8: 520.0156519 | V8: Proposed (Authorized) | W8: ='SAR and RAR'!S19/1000-'SAR and RAR'!S22/1000+$W$6 -> 5142.754172
D9: 101% - 400% of Baseline - Summer | E9: 1875.769151 | F9: 0.43178 | G9: =F9/F$7*G$7 -> 0.3807509303 | H9: 714.2008491 | I9: =F9/F$7*I$7 -> 0.4552908147 | J9: 854.0204648 | N9: 101% - 400% of Baseline - Summer | O9: 638.1862236 | P9: 0.29004 | Q9: 0.2557621933 | R9: 163.2239083 | S9: 0.3058329425 | T9: 195.1783706 | V9: Proposed (w/Pending) | W9: ='SAR and RAR'!T19/1000-'SAR and RAR'!T22/1000+$W$6 -> 6143.581393
D10: - Winter | E10: 2551.776475 | F10: 0.43178 | G10: =G9 -> 0.3807509303 | H10: 971.5912668 | I10: =I9 -> 0.4552908147 | J10: 1161.80039 | N10: - Winter | O10: 878.9637574 | P10: 0.29004 | Q10: 0.2557621933 | R10: 224.8056984 | S10: 0.3058329425 | T10: 268.8160722
D11: 401% of Baseline - Summer | E11: 148.8974464 | F11: 0.43178 | G11: =F11/F$7*G$7 -> 0.3807509303 | H11: 56.69284123 | I11: =F11/F$7*I$7 -> 0.4552908147 | J11: 67.79163968 | N11: 401% of Baseline - Summer | O11: 7.28850284 | P11: 0.29004 | Q11: 0.2557621933 | R11: 1.864123472 | S11: 0.3058329425 | T11: 2.22906427
D12: - Winter | E12: 256.5313667 | F12: 0.43178 | G12: =G11 -> 0.3807509303 | H12: 97.67455653 | I12: =I11 -> 0.4552908147 | J12: 116.796375 | N12: - Winter | O12: 16.76289353 | P12: 0.29004 | Q12: 0.2557621933 | R12: 4.287314415 | S12: 0.3058329425 | T12: 5.126645053
D14: Basic Charge - Single-Family Residence | E14: =HLOOKUP(E$4,$F$95:$K$106,$A104,FALSE) -> 18581781 | F14: 0.031 | G14: =F14 -> 0.031 | H14: =G14*E14*365/12/10^6 -> 17.521071 | I14: =G14 -> 0.031 | J14: =I14*E14*365/12/10^6 -> 17.521071 | N14: Basic Charge - Single-Family Residence | O14: =HLOOKUP(O$4,$M$95:$R$105,$A104,FALSE) -> 5733344.565 | P14: 0.024 | Q14: =P14 -> 0.024 | R14: =Q14*O14*365/12/10^6 -> 4.185341532 | S14: =Q14 -> 0.024 | T14: =S14*O14*365/12/10^6 -> 4.185341532
D15: Basic Charge - Multi-Family Residence | E15: =HLOOKUP(E$4,$F$95:$K$106,$A105,FALSE) -> 8452895.242 | F15: 0.024 | G15: =F15 -> 0.024 | H15: =G15*E15*365/12/10^6 -> 6.170613527 | I15: =G15 -> 0.024 | J15: =I15*E15*365/12/10^6 -> 6.170613527 | N15: Basic Charge - Multi-Family Residence | O15: =HLOOKUP(O$4,$M$95:$R$105,$A105,FALSE) -> 4813856.341 | P15: 0.018 | Q15: =P15 -> 0.018 | R15: =Q15*O15*365/12/10^6 -> 2.635586347 | S15: =Q15 -> 0.018 | T15: =S15*O15*365/12/10^6 -> 2.635586347
O19: 2023 Recorded Data - Average Monthly Usage - kWh (Bundled / Basic Service Only) | W19: 2023 Recorded Data - Average Monthly Usage - kWh (Bundled / All Electric Only)
B20: SCHEDULE D RATES ($/kWh) | E20: Proposed | F20: Proposed | H20: MONTHLY BASELINE QUANTITIES | I20: BASIC | K20: ALL-ELECTRIC | O20: Climate Zone | P20: Summer | Q20: Winter | R20: Summer | S20: Winter | T20: Sample Population Weight | W20: Climate Zone | X20: Summer | Y20: Winter | Z20: Summer | AA20: Winter | AB20: Sample Population Weight
B21: Rates | C21: Jan 2024 | D21: =Summary!N3 -> 2024-06-01 | E21: Authorized | F21: w/Pending | H21: Climate Zone | I21: Summer | J21: Winter | K21: Summer | L21: Winter | P21: Non-CARE | R21: CARE | T21: Non-CARE | U21: CARE | X21: Non-CARE | Z21: CARE | AB21: Non-CARE | AC21: CARE
B22: Tier 1 | C22: 0.33746 | D22: =F7 -> 0.33586 | E22: =G7 -> 0.2961670467 | F22: =I7 -> 0.3541478832 | H22: 5 warm | I22: =17*$O$32 -> 517.089 | J22: =18.4*$O$32 -> 559.6728 | K22: =16.8*$O$32 -> 511.0056 | L22: =27*$O$32 -> 821.259 | O22: 5 warm | P22: 394.0114465 | Q22: 413.7602515 | R22: 375.4651421 | S22: 377.1007638 | T22: 0.0004001160336 | U22: 6.494163848e-05 | W22: 5 warm | X22: 425.328646 | Y22: 492.1148384 | Z22: 382.0121137 | AA22: 514.0812584 | AB22: 0.0004262021681 | AC22: 0.0001760542717
B23: Tier 2 | C23: 0.43383 | D23: =F9 -> 0.43178 | E23: =G9 -> 0.3807509303 | F23: =I9 -> 0.4552908147 | H23: 6 cool | I23: =11.4*$O$32 -> 346.7538 | J23: =11*$O$32 -> 334.587 | K23: =8.7*$O$32 -> 264.6279 | L23: =12.6*$O$32 -> 383.2542 | O23: 6 cool | P23: 433.0846454 | Q23: 397.8968432 | R23: 387.0809173 | S23: 359.7109231 | T23: 0.1403529246 | U23: 0.05006236307 | W23: 6 cool | X23: 330.0124549 | Y23: 351.8575553 | Z23: 355.0146353 | AA23: 389.8816374 | AB23: 0.239309429 | AC23: 0.1138366921
B24: Tier 2 | C24: 0.43383 | D24: =F11 -> 0.43178 | E24: =G11 -> 0.3807509303 | F24: =I11 -> 0.4552908147 | H24: 8 cool | I24: =12.8*$O$32 -> 389.3376 | J24: =10.3*$O$32 -> 313.2951 | K24: =9.9*$O$32 -> 301.1283 | L24: =12.3*$O$32 -> 374.1291 | O24: 8 cool | P24: 530.8622287 | Q24: 414.1554448 | R24: 464.558938 | S24: 385.4566077 | T24: 0.2220921845 | U24: 0.1485788286 | W24: 8 cool | X24: 381.2469638 | Y24: 369.4677373 | Z24: 395.389718 | AA24: 388.746303 | AB24: 0.2355353779 | AC24: 0.1987770097
H25: 9 warm | I25: =16.9*$O$32 -> 514.0473 | J25: =12*$O$32 -> 365.004 | K25: =12.5*$O$32 -> 380.2125 | L25: =13.9*$O$32 -> 422.7963 | O25: 9 warm | P25: 649.7090395 | Q25: 460.3453492 | R25: 599.1816396 | S25: 429.4947183 | T25: 0.1345534649 | U25: 0.09818029709 | W25: 9 warm | X25: 479.3913495 | Y25: 396.2762731 | Z25: 454.9990015 | AA25: 384.474035 | AB25: 0.08488217672 | AC25: 0.08590274762
B26: SCHEDULE D-CARE RATES ($/kWh) | E26: Proposed | F26: Proposed | H26: 10 hot (Sec 745) | I26: =19.3*$O$32 -> 587.0481 | J26: =12.1*$O$32 -> 368.0457 | K26: =15.9*$O$32 -> 483.6303 | L26: =16.4*$O$32 -> 498.8388 | O26: 10 hot (Sec 745) | P26: 761.1373611 | Q26: 491.115045 | R26: 792.3016777 | S26: 497.9977029 | T26: 0.3163584106 | U26: 0.4197483703 | W26: 10 hot (Sec 745) | X26: 573.0329281 | Y26: 449.7933583 | Z26: 584.8339164 | AA26: 433.3513546 | AB26: 0.2787547484 | AC26: 0.3816621871
B27: Rates | C27: =C21 -> Jan 2024 | D27: =D21 -> 2024-06-01 | E27: Authorized | F27: w/Pending | H27: 13 hot | I27: =22.2*$O$32 -> 675.2574 | J27: =12.2*$O$32 -> 371.0874 | K27: =24.2*$O$32 -> 736.0914 | L27: =23*$O$32 -> 699.591 | O27: 13 hot | P27: 894.6000233 | Q27: 491.3912577 | R27: 916.8294796 | S27: 484.0254538 | T27: 0.05566058601 | U27: 0.1142724531 | W27: 13 hot | X27: 892.6145516 | Y27: 600.0164496 | Z27: 867.2628591 | AA27: 571.6768526 | AB27: 0.03323759227 | AC27: 0.0613725191
B28: Tier 1 | C28: 0.22871 | D28: =P7 -> 0.22762 | E28: =Q7 -> 0.2007191782 | F28: =S7 -> 0.2400141165 | H28: 14 hot | I28: =19.2*$O$32 -> 584.0064 | J28: =11.9*$O$32 -> 361.9623 | K28: =18.5*$O$32 -> 562.7145 | L28: =21.1*$O$32 -> 641.7987 | O28: 14 hot | P28: 730.1923164 | Q28: 490.1829008 | R28: 780.7230122 | S28: 516.7279255 | T28: 0.06670267711 | U28: 0.1078298605 | W28: 14 hot | X28: 687.9383588 | Y28: 604.4592567 | Z28: 750.2785732 | AA28: 671.0707452 | AB28: 0.04772846598 | AC28: 0.07503433058
B29: Tier 2 | C29: 0.29142 | D29: =P9 -> 0.29004 | E29: =Q9 -> 0.2557621933 | F29: =S9 -> 0.3058329425 | H29: 15 hot | I29: =45*$O$32 -> 1368.765 | J29: =9.7*$O$32 -> 295.0449 | K29: =24*$O$32 -> 730.008 | L29: =17.4*$O$32 -> 529.2558 | O29: 15 hot | P29: 1097.38946 | Q29: 539.5458549 | R29: 1185.07185 | S29: 516.7106052 | T29: 0.03393873112 | U29: 0.03597193757 | W29: 15 hot | X29: 845.6767468 | Y29: 463.97827 | Z29: 983.817403 | AA29: 514.8811355 | AB29: 0.03826554248 | AC29: 0.05202990575
B30: Tier 2 | C30: 0.29142 | D30: =P11 -> 0.29004 | E30: =Q12 -> 0.2557621933 | F30: =S12 -> 0.3058329425 | H30: 16 cool | I30: =14.7*$O$32 -> 447.1299 | J30: =12.4*$O$32 -> 377.1708 | K30: =13.5*$O$32 -> 410.6295 | L30: =23.2*$O$32 -> 705.6744 | O30: 16 cool | P30: 513.8284813 | Q30: 432.4906192 | R30: 677.5371658 | S30: 499.146825 | T30: 0.02994090508 | U30: 0.02529094809 | W30: 16 cool | X30: 443.8912353 | Y30: 584.1777272 | Z30: 637.6985348 | AA30: 596.1956691 | AB30: 0.04186046512 | AC30: 0.03120855389
N32: Daily to Monthly Conversion Factor | O32: 30.417
C34: NON-CARE | M34: Essential Use (Basic) - Non-CARE | W34: Essential Use (Basic) - CARE
C35: =C27 -> Jan 2024 | E35: =D27 -> 2024-06-01 | G35: =E21 -> Authorized | I35: =F21 -> w/Pending | M35: =C35 -> Jan 2024 | O35: =E35 -> 2024-06-01 | Q35: =G35 -> Authorized | S35: =I35 -> w/Pending | W35: =M35 -> Jan 2024 | Y35: =O35 -> 2024-06-01 | AA35: =Q35 -> Authorized | AC35: =S35 -> w/Pending
C36: Summer | D36: Winter | E36: Summer | F36: Winter | G36: Summer | H36: Winter | I36: Summer | J36: Winter | M36: Summer | N36: Winter | O36: Summer | P36: Winter | Q36: Summer | R36: Winter | S36: Summer | T36: Winter | W36: Summer | X36: Winter | Y36: Summer | Z36: Winter | AA36: Summer | AB36: Winter | AC36: Summer | AD36: Winter
B37: 5 warm | C37: =C$22*MIN(I22,P22)+IF(P22-I22>0,C$23*(P22-I22))+ROUND($F$14*365/12,2)+(Summary!N17/12)*2 -> 119.5697694 | D37: =C$22*MIN(J22,Q22)+IF(Q22-J22>0,C$23*(Q22-J22))+ROUND($F$14*365/12,2)+(Summary!N17/12)*2 -> 126.2342011 | E37: =D$22*MIN(I22,P22)+IF(P22-I22>0,D$23*(P22-I22))+ROUND($F$14*365/12,2)+(Summary!N17/12)*2 -> 118.9393511 | F37: =D$22*MIN(J22,Q22)+IF(Q22-J22>0,D$23*(Q22-J22))+ROUND($F$14*365/12,2)+(Summary!N17/12)*2 -> 125.5721847 | G37: =E$22*MIN(I22,P22)+IF(P22-I22>0,E$23*(P22-I22))+ROUND($F$14*365/12,2)+(Summary!N17/12)*2 -> 103.2998731 | H37: =E$22*MIN(J22,Q22)+IF(Q22-J22>0,E$23*(Q22-J22))+ROUND($F$14*365/12,2)+(Summary!N17/12)*2 -> 109.1488184 | I37: =F$22*MIN(I22,P22)+IF(P22-I22>0,F$23*(P22-I22))+ROUND($F$14*365/12,2)+(Summary!N17/12)*2 -> 126.1449864 | J37: =F$22*MIN(J22,Q22)+IF(Q22-J22>0,F$23*(Q22-J22))+ROUND($F$14*365/12,2)+(Summary!N17/12)*2 -> 133.1389839 | L37: 5 warm | M37: =C$22*I22+ROUND($F$14*365/12,2)+(Summary!N17/12)*2 -> 161.1035206 | N37: =C$22*J22+ROUND($F$14*365/12,2)+(Summary!N17/12)*2 -> 175.4738498 | O37: =D$22*I22+ROUND($F$14*365/12,2)+(Summary!N17/12)*2 -> 160.2761782 | P37: =D$22*J22+ROUND($F$14*365/12,2)+(Summary!N17/12)*2 -> 174.5783733 | Q37: =E$22*I22+ROUND($F$14*365/12,2)+(Summary!N17/12)*2 -> 139.7513887 | R37: =E$22*J22+ROUND($F$14*365/12,2)+(Summary!N17/12)*2 -> 152.363307 | S37: =F$22*I22+ROUND($F$14*365/12,2)+(Summary!N17/12)*2 -> 169.7326415 | T37: =F$22*J22+ROUND($F$14*365/12,2)+(Summary!N17/12)*2 -> 184.8136041 | V37: 5 warm | W37: =C$28*I22+ROUND($P$14*365/12,2)+(Summary!N17/12)*2 -> 104.6600919 | X37: =C$28*J22+ROUND($P$14*365/12,2)+(Summary!N17/12)*2 -> 114.3994328 | Y37: =D$28*I22+ROUND($P$14*365/12,2)+(Summary!N17/12)*2 -> 104.0964648 | Z37: =D$28*J22+ROUND($P$14*365/12,2)+(Summary!N17/12)*2 -> 113.7893894 | AA37: =E$28*I22+ROUND($P$14*365/12,2)+(Summary!N17/12)*2 -> 90.18634578 | AB37: =E$28*J22+ROUND($P$14*365/12,2)+(Summary!N17/12)*2 -> 98.73373112 | AC37: =F$28*I22+ROUND($P$14*365/12,2)+(Summary!N17/12)*2 -> 110.5053262 | AD37: =F$28*J22+ROUND($P$14*365/12,2)+(Summary!N17/12)*2 -> 120.7260393
B38: 6 cool | C38: =C$22*MIN(I23,P23)+IF(P23-I23>0,C$23*(P23-I23))+ROUND($F$14*365/12,2)+(Summary!N17/12)*2 -> 141.0751147 | D38: =C$22*MIN(J23,Q23)+IF(Q23-J23>0,C$23*(Q23-J23))+ROUND($F$14*365/12,2)+(Summary!N17/12)*2 -> 126.982105 | E38: =D$22*MIN(I23,P23)+IF(P23-I23>0,D$23*(P23-I23))+ROUND($F$14*365/12,2)+(Summary!N17/12)*2 -> 140.3433303 | F38: =D$22*MIN(J23,Q23)+IF(Q23-J23>0,D$23*(Q23-J23))+ROUND($F$14*365/12,2)+(Summary!N17/12)*2 -> 126.3169806 | G38: =E$22*MIN(I23,P23)+IF(P23-I23>0,E$23*(P23-I23))+ROUND($F$14*365/12,2)+(Summary!N17/12)*2 -> 122.1742652 | H38: =E$22*MIN(J23,Q23)+IF(Q23-J23>0,E$23*(Q23-J23))+ROUND($F$14*365/12,2)+(Summary!N17/12)*2 -> 109.805592 | I38: =F$22*MIN(I23,P23)+IF(P23-I23>0,F$23*(P23-I23))+ROUND($F$14*365/12,2)+(Summary!N17/12)*2 -> 148.7144319 | J38: =F$22*MIN(J23,Q23)+IF(Q23-J23>0,F$23*(Q23-J23))+ROUND($F$14*365/12,2)+(Summary!N17/12)*2 -> 133.9243346 | L38: 6 cool | M38: =C$22*I23+ROUND($F$14*365/12,2)+(Summary!N17/12)*2 -> 103.622204 | N38: =C$22*J23+ROUND($F$14*365/12,2)+(Summary!N17/12)*2 -> 99.51639569 | O38: =D$22*I23+ROUND($F$14*365/12,2)+(Summary!N17/12)*2 -> 103.0673979 | P38: =D$22*J23+ROUND($F$14*365/12,2)+(Summary!N17/12)*2 -> 98.98105649 | Q38: =E$22*I23+ROUND($F$14*365/12,2)+(Summary!N17/12)*2 -> 89.30371556 | R38: =E$22*J23+ROUND($F$14*365/12,2)+(Summary!N17/12)*2 -> 85.70031033 | S38: =F$22*I23+ROUND($F$14*365/12,2)+(Summary!N17/12)*2 -> 109.4087909 | T38: =F$22*J23+ROUND($F$14*365/12,2)+(Summary!N17/12)*2 -> 105.0999445 | V38: 6 cool | W38: =C$28*I23+ROUND($P$14*365/12,2)+(Summary!N17/12)*2 -> 65.70272826 | X38: =C$28*J23+ROUND($P$14*365/12,2)+(Summary!N17/12)*2 -> 62.92005944 | Y38: =D$28*I23+ROUND($P$14*365/12,2)+(Summary!N17/12)*2 -> 65.32476662 | Z38: =D$28*J23+ROUND($P$14*365/12,2)+(Summary!N17/12)*2 -> 62.55535961 | AA38: =E$28*I23+ROUND($P$14*365/12,2)+(Summary!N17/12)*2 -> 55.99680443 | AB38: =E$28*J23+ROUND($P$14*365/12,2)+(Summary!N17/12)*2 -> 53.55469433 | AC38: =F$28*I23+ROUND($P$14*365/12,2)+(Summary!N17/12)*2 -> 69.62247363 | AD38: =F$28*J23+ROUND($P$14*365/12,2)+(Summary!N17/12)*2 -> 66.70226988
B39: 8 cool | C39: =C$22*MIN(I24,P24)+IF(P24-I24>0,C$23*(P24-I24))+ROUND($F$14*365/12,2)+(Summary!N17/12)*2 -> 179.3901628 | D39: =C$22*MIN(J24,Q24)+IF(Q24-J24>0,C$23*(Q24-J24))+ROUND($F$14*365/12,2)+(Summary!N17/12)*2 -> 136.0874745 | E39: =D$22*MIN(I24,P24)+IF(P24-I24>0,D$23*(P24-I24))+ROUND($F$14*365/12,2)+(Summary!N17/12)*2 -> 178.4770972 | F39: =D$22*MIN(J24,Q24)+IF(Q24-J24>0,D$23*(Q24-J24))+ROUND($F$14*365/12,2)+(Summary!N17/12)*2 -> 135.3794387 | G39: =E$22*MIN(I24,P24)+IF(P24-I24>0,E$23*(P24-I24))+ROUND($F$14*365/12,2)+(Summary!N17/12)*2 -> 155.8012679 | H39: =E$22*MIN(J24,Q24)+IF(Q24-J24>0,E$23*(Q24-J24))+ROUND($F$14*365/12,2)+(Summary!N17/12)*2 -> 117.7970213 | I39: =F$22*MIN(I24,P24)+IF(P24-I24>0,F$23*(P24-I24))+ROUND($F$14*365/12,2)+(Summary!N17/12)*2 -> 188.9246171 | J39: =F$22*MIN(J24,Q24)+IF(Q24-J24>0,F$23*(Q24-J24))+ROUND($F$14*365/12,2)+(Summary!N17/12)*2 -> 143.4802517 | L39: 8 cool | M39: =C$22*I24+ROUND($F$14*365/12,2)+(Summary!N17/12)*2 -> 117.9925332 | N39: =C$22*J24+ROUND($F$14*365/12,2)+(Summary!N17/12)*2 -> 92.33123111 | O39: =D$22*I24+ROUND($F$14*365/12,2)+(Summary!N17/12)*2 -> 117.369593 | P39: =D$22*J24+ROUND($F$14*365/12,2)+(Summary!N17/12)*2 -> 91.82995895 | Q39: =E$22*I24+ROUND($F$14*365/12,2)+(Summary!N17/12)*2 -> 101.9156338 | R39: =E$22*J24+ROUND($F$14*365/12,2)+(Summary!N17/12)*2 -> 79.39435119 | S39: =F$22*I24+ROUND($F$14*365/12,2)+(Summary!N17/12)*2 -> 124.4897536 | T39: =F$22*J24+ROUND($F$14*365/12,2)+(Summary!N17/12)*2 -> 97.55946316 | V39: 8 cool | W39: =C$28*I24+ROUND($P$14*365/12,2)+(Summary!N17/12)*2 -> 75.44206916 | X39: =C$28*J24+ROUND($P$14*365/12,2)+(Summary!N17/12)*2 -> 58.05038899 | Y39: =D$28*I24+ROUND($P$14*365/12,2)+(Summary!N17/12)*2 -> 75.01769118 | Z39: =D$28*J24+ROUND($P$14*365/12,2)+(Summary!N17/12)*2 -> 57.70889733 | AA39: =E$28*I24+ROUND($P$14*365/12,2)+(Summary!N17/12)*2 -> 64.54418977 | AB39: =E$28*J24+ROUND($P$14*365/12,2)+(Summary!N17/12)*2 -> 49.28100166 | AC39: =F$28*I24+ROUND($P$14*365/12,2)+(Summary!N17/12)*2 -> 79.84318677 | AD39: =F$28*J24+ROUND($P$14*365/12,2)+(Summary!N17/12)*2 -> 61.59191331
B40: 9 warm | C40: =C$22*MIN(I25,P25)+IF(P25-I25>0,C$23*(P25-I25))+ROUND($F$14*365/12,2)+(Summary!N17/12)*2 -> 218.931201 | D40: =C$22*MIN(J25,Q25)+IF(Q25-J25>0,C$23*(Q25-J25))+ROUND($F$14*365/12,2)+(Summary!N17/12)*2 -> 151.142854 | E40: =D$22*MIN(I25,P25)+IF(P25-I25>0,D$23*(P25-I25))+ROUND($F$14*365/12,2)+(Summary!N17/12)*2 -> 217.8306187 | F40: =D$22*MIN(J25,Q25)+IF(Q25-J25>0,D$23*(Q25-J25))+ROUND($F$14*365/12,2)+(Summary!N17/12)*2 -> 150.3633979 | G40: =E$22*MIN(I25,P25)+IF(P25-I25>0,E$23*(P25-I25))+ROUND($F$14*365/12,2)+(Summary!N17/12)*2 -> 190.5038709 | H40: =E$22*MIN(J25,Q25)+IF(Q25-J25>0,E$23*(Q25-J25))+ROUND($F$14*365/12,2)+(Summary!N17/12)*2 -> 131.0101308 | I40: =F$22*MIN(I25,P25)+IF(P25-I25>0,F$23*(P25-I25))+ROUND($F$14*365/12,2)+(Summary!N17/12)*2 -> 230.4209738 | J40: =F$22*MIN(J25,Q25)+IF(Q25-J25>0,F$23*(Q25-J25))+ROUND($F$14*365/12,2)+(Summary!N17/12)*2 -> 159.2801012 | L40: 9 warm | M40: =C$22*I25+ROUND($F$14*365/12,2)+(Summary!N17/12)*2 -> 160.0770685 | N40: =C$22*J25+ROUND($F$14*365/12,2)+(Summary!N17/12)*2 -> 109.7809165 | O40: =D$22*I25+ROUND($F$14*365/12,2)+(Summary!N17/12)*2 -> 159.2545928 | P40: =D$22*J25+ROUND($F$14*365/12,2)+(Summary!N17/12)*2 -> 109.1969101 | Q40: =E$22*I25+ROUND($F$14*365/12,2)+(Summary!N17/12)*2 -> 138.8505374 | R40: =E$22*J25+ROUND($F$14*365/12,2)+(Summary!N17/12)*2 -> 94.70882339 | S40: =F$22*I25+ROUND($F$14*365/12,2)+(Summary!N17/12)*2 -> 168.6554298 | T40: =F$22*J25+ROUND($F$14*365/12,2)+(Summary!N17/12)*2 -> 115.8720606 | V40: 9 warm | W40: =C$28*I25+ROUND($P$14*365/12,2)+(Summary!N17/12)*2 -> 103.9644246 | X40: =C$28*J25+ROUND($P$14*365/12,2)+(Summary!N17/12)*2 -> 69.87673151 | Y40: =D$28*I25+ROUND($P$14*365/12,2)+(Summary!N17/12)*2 -> 103.4041131 | Z40: =D$28*J25+ROUND($P$14*365/12,2)+(Summary!N17/12)*2 -> 69.47887715 | AA40: =E$28*I25+ROUND($P$14*365/12,2)+(Summary!N17/12)*2 -> 89.57581826 | AB40: =E$28*J25+ROUND($P$14*365/12,2)+(Summary!N17/12)*2 -> 59.65996957 | AC40: =F$28*I25+ROUND($P$14*365/12,2)+(Summary!N17/12)*2 -> 109.7752752 | AD40: =F$28*J25+ROUND($P$14*365/12,2)+(Summary!N17/12)*2 -> 74.00277926
B41: 10 hot (Sec 745) | C41: =C$22*MIN(I26,P26)+IF(P26-I26>0,C$23*(P26-I26))+ROUND($F$14*365/12,2)+(Summary!N17/12)*2 -> 260.2370626 | D41: =C$22*MIN(J26,Q26)+IF(Q26-J26>0,C$23*(Q26-J26))+ROUND($F$14*365/12,2)+(Summary!N17/12)*2 -> 164.1985425 | E41: =D$22*MIN(I26,P26)+IF(P26-I26>0,D$23*(P26-I26))+ROUND($F$14*365/12,2)+(Summary!N17/12)*2 -> 258.9409027 | F41: =D$22*MIN(J26,Q26)+IF(Q26-J26>0,D$23*(Q26-J26))+ROUND($F$14*365/12,2)+(Summary!N17/12)*2 -> 163.3573773 | G41: =E$22*MIN(I26,P26)+IF(P26-I26>0,E$23*(P26-I26))+ROUND($F$14*365/12,2)+(Summary!N17/12)*2 -> 226.7556168 | H41: =E$22*MIN(J26,Q26)+IF(Q26-J26>0,E$23*(Q26-J26))+ROUND($F$14*365/12,2)+(Summary!N17/12)*2 -> 142.4684423 | I41: =F$22*MIN(I26,P26)+IF(P26-I26>0,F$23*(P26-I26))+ROUND($F$14*365/12,2)+(Summary!N17/12)*2 -> 273.7697501 | J41: =F$22*MIN(J26,Q26)+IF(Q26-J26>0,F$23*(Q26-J26))+ROUND($F$14*365/12,2)+(Summary!N17/12)*2 -> 172.9816146 | L41: 10 hot (Sec 745) | M41: =C$22*I26+ROUND($F$14*365/12,2)+(Summary!N17/12)*2 -> 184.7119185 | N41: =C$22*J26+ROUND($F$14*365/12,2)+(Summary!N17/12)*2 -> 110.8073686 | O41: =D$22*I26+ROUND($F$14*365/12,2)+(Summary!N17/12)*2 -> 183.7726415 | P41: =D$22*J26+ROUND($F$14*365/12,2)+(Summary!N17/12)*2 -> 110.2184955 | Q41: =E$22*I26+ROUND($F$14*365/12,2)+(Summary!N17/12)*2 -> 160.4709687 | R41: =E$22*J26+ROUND($F$14*365/12,2)+(Summary!N17/12)*2 -> 95.6096747 | S41: =F$22*I26+ROUND($F$14*365/12,2)+(Summary!N17/12)*2 -> 194.5085086 | T41: =F$22*J26+ROUND($F$14*365/12,2)+(Summary!N17/12)*2 -> 116.9492723 | V41: 10 hot (Sec 745) | W41: =C$28*I26+ROUND($P$14*365/12,2)+(Summary!N17/12)*2 -> 120.6604376 | X41: =C$28*J26+ROUND($P$14*365/12,2)+(Summary!N17/12)*2 -> 70.57239871 | Y41: =D$28*I26+ROUND($P$14*365/12,2)+(Summary!N17/12)*2 -> 120.0205552 | Z41: =D$28*J26+ROUND($P$14*365/12,2)+(Summary!N17/12)*2 -> 70.1712289 | AA41: =E$28*I26+ROUND($P$14*365/12,2)+(Summary!N17/12)*2 -> 104.2284788 | AB41: =E$28*J26+ROUND($P$14*365/12,2)+(Summary!N17/12)*2 -> 60.2704971 | AC41: =F$28*I26+ROUND($P$14*365/12,2)+(Summary!N17/12)*2 -> 127.2964978 | AD41: =F$28*J26+ROUND($P$14*365/12,2)+(Summary!N17/12)*2 -> 74.7328302
B42: 13 hot | C42: =C$22*MIN(I27,P27)+IF(P27-I27>0,C$23*(P27-I27))+ROUND($F$14*365/12,2)+(Summary!N17/12)*2 -> 309.6364391 | D42: =C$22*MIN(J27,Q27)+IF(Q27-J27>0,C$23*(Q27-J27))+ROUND($F$14*365/12,2)+(Summary!N17/12)*2 -> 164.0252433 | E42: =D$22*MIN(I27,P27)+IF(P27-I27>0,D$23*(P27-I27))+ROUND($F$14*365/12,2)+(Summary!N17/12)*2 -> 308.1063749 | F42: =D$22*MIN(J27,Q27)+IF(Q27-J27>0,D$23*(Q27-J27))+ROUND($F$14*365/12,2)+(Summary!N17/12)*2 -> 163.1848805 | G42: =E$22*MIN(I27,P27)+IF(P27-I27>0,E$23*(P27-I27))+ROUND($F$14*365/12,2)+(Summary!N17/12)*2 -> 270.1105645 | H42: =E$22*MIN(J27,Q27)+IF(Q27-J27>0,E$23*(Q27-J27))+ROUND($F$14*365/12,2)+(Summary!N17/12)*2 -> 142.3163317 | I42: =F$22*MIN(I27,P27)+IF(P27-I27>0,F$23*(P27-I27))+ROUND($F$14*365/12,2)+(Summary!N17/12)*2 -> 325.6123272 | J42: =F$22*MIN(J27,Q27)+IF(Q27-J27>0,F$23*(Q27-J27))+ROUND($F$14*365/12,2)+(Summary!N17/12)*2 -> 172.7997253 | L42: 13 hot | M42: =C$22*I27+ROUND($F$14*365/12,2)+(Summary!N17/12)*2 -> 214.4790289 | N42: =C$22*J27+ROUND($F$14*365/12,2)+(Summary!N17/12)*2 -> 111.8338207 | O42: =D$22*I27+ROUND($F$14*365/12,2)+(Summary!N17/12)*2 -> 213.398617 | P42: =D$22*J27+ROUND($F$14*365/12,2)+(Summary!N17/12)*2 -> 111.2400808 | Q42: =E$22*I27+ROUND($F$14*365/12,2)+(Summary!N17/12)*2 -> 186.5956566 | R42: =E$22*J27+ROUND($F$14*365/12,2)+(Summary!N17/12)*2 -> 96.51052601 | S42: =F$22*I27+ROUND($F$14*365/12,2)+(Summary!N17/12)*2 -> 225.7476455 | T42: =F$22*J27+ROUND($F$14*365/12,2)+(Summary!N17/12)*2 -> 118.0264839 | V42: 13 hot | W42: =C$28*I27+ROUND($P$14*365/12,2)+(Summary!N17/12)*2 -> 140.8347866 | X42: =C$28*J27+ROUND($P$14*365/12,2)+(Summary!N17/12)*2 -> 71.26806592 | Y42: =D$28*I27+ROUND($P$14*365/12,2)+(Summary!N17/12)*2 -> 140.0987561 | Z42: =D$28*J27+ROUND($P$14*365/12,2)+(Summary!N17/12)*2 -> 70.86358065 | AA42: =E$28*I27+ROUND($P$14*365/12,2)+(Summary!N17/12)*2 -> 121.933777 | AB42: =E$28*J27+ROUND($P$14*365/12,2)+(Summary!N17/12)*2 -> 60.88102462 | AC42: =F$28*I27+ROUND($P$14*365/12,2)+(Summary!N17/12)*2 -> 148.467975 | AD42: =F$28*J27+ROUND($P$14*365/12,2)+(Summary!N17/12)*2 -> 75.46288114
B43: 14 hot | C43: =C$22*MIN(I28,P28)+IF(P28-I28>0,C$23*(P28-I28))+ROUND($F$14*365/12,2)+(Summary!N17/12)*2 -> 247.1053025 | D43: =C$22*MIN(J28,Q28)+IF(Q28-J28>0,C$23*(Q28-J28))+ROUND($F$14*365/12,2)+(Summary!N17/12)*2 -> 164.3804077 | E43: =D$22*MIN(I28,P28)+IF(P28-I28>0,D$23*(P28-I28))+ROUND($F$14*365/12,2)+(Summary!N17/12)*2 -> 245.8712111 | F43: =D$22*MIN(J28,Q28)+IF(Q28-J28>0,D$23*(Q28-J28))+ROUND($F$14*365/12,2)+(Summary!N17/12)*2 -> 163.5384158 | G43: =E$22*MIN(I28,P28)+IF(P28-I28>0,E$23*(P28-I28))+ROUND($F$14*365/12,2)+(Summary!N17/12)*2 -> 215.2305411 | H43: =E$22*MIN(J28,Q28)+IF(Q28-J28>0,E$23*(Q28-J28))+ROUND($F$14*365/12,2)+(Summary!N17/12)*2 -> 142.6280851 | I43: =F$22*MIN(I28,P28)+IF(P28-I28>0,F$23*(P28-I28))+ROUND($F$14*365/12,2)+(Summary!N17/12)*2 -> 259.988402 | J43: =F$22*MIN(J28,Q28)+IF(Q28-J28>0,F$23*(Q28-J28))+ROUND($F$14*365/12,2)+(Summary!N17/12)*2 -> 173.1725108 | L43: 14 hot | M43: =C$22*I28+ROUND($F$14*365/12,2)+(Summary!N17/12)*2 -> 183.6854664 | N43: =C$22*J28+ROUND($F$14*365/12,2)+(Summary!N17/12)*2 -> 108.7544644 | O43: =D$22*I28+ROUND($F$14*365/12,2)+(Summary!N17/12)*2 -> 182.7510562 | P43: =D$22*J28+ROUND($F$14*365/12,2)+(Summary!N17/12)*2 -> 108.1753247 | Q43: =E$22*I28+ROUND($F$14*365/12,2)+(Summary!N17/12)*2 -> 159.5701174 | R43: =E$22*J28+ROUND($F$14*365/12,2)+(Summary!N17/12)*2 -> 93.80797209 | S43: =F$22*I28+ROUND($F$14*365/12,2)+(Summary!N17/12)*2 -> 193.431297 | T43: =F$22*J28+ROUND($F$14*365/12,2)+(Summary!N17/12)*2 -> 114.794849 | V43: 14 hot | W43: =C$28*I28+ROUND($P$14*365/12,2)+(Summary!N17/12)*2 -> 119.9647704 | X43: =C$28*J28+ROUND($P$14*365/12,2)+(Summary!N17/12)*2 -> 69.1810643 | Y43: =D$28*I28+ROUND($P$14*365/12,2)+(Summary!N17/12)*2 -> 119.3282034 | Z43: =D$28*J28+ROUND($P$14*365/12,2)+(Summary!N17/12)*2 -> 68.78652539 | AA43: =E$28*I28+ROUND($P$14*365/12,2)+(Summary!N17/12)*2 -> 103.6179513 | AB43: =E$28*J28+ROUND($P$14*365/12,2)+(Summary!N17/12)*2 -> 59.04944205 | AC43: =F$28*I28+ROUND($P$14*365/12,2)+(Summary!N17/12)*2 -> 126.5664468 | AD43: =F$28*J28+ROUND($P$14*365/12,2)+(Summary!N17/12)*2 -> 73.27272832
B44: 15 hot | C44: =C$22*MIN(I29,P29)+IF(P29-I29>0,C$23*(P29-I29))+ROUND($F$14*365/12,2)+(Summary!N17/12)*2 -> 356.9317138 | D44: =C$22*MIN(J29,Q29)+IF(Q29-J29>0,C$23*(Q29-J29))+ROUND($F$14*365/12,2)+(Summary!N17/12)*2 -> 192.2443679 | E44: =D$22*MIN(I29,P29)+IF(P29-I29>0,D$23*(P29-I29))+ROUND($F$14*365/12,2)+(Summary!N17/12)*2 -> 355.1758906 | F44: =D$22*MIN(J29,Q29)+IF(Q29-J29>0,D$23*(Q29-J29))+ROUND($F$14*365/12,2)+(Summary!N17/12)*2 -> 191.2710691 | G44: =E$22*MIN(I29,P29)+IF(P29-I29>0,E$23*(P29-I29))+ROUND($F$14*365/12,2)+(Summary!N17/12)*2 -> 311.6172621 | H44: =E$22*MIN(J29,Q29)+IF(Q29-J29>0,E$23*(Q29-J29))+ROUND($F$14*365/12,2)+(Summary!N17/12)*2 -> 167.0832094 | I44: =F$22*MIN(I29,P29)+IF(P29-I29>0,F$23*(P29-I29))+ROUND($F$14*365/12,2)+(Summary!N17/12)*2 -> 375.2448209 | J44: =F$22*MIN(J29,Q29)+IF(Q29-J29>0,F$23*(Q29-J29))+ROUND($F$14*365/12,2)+(Summary!N17/12)*2 -> 202.4152324 | L44: 15 hot | M44: =C$22*I29+ROUND($F$14*365/12,2)+(Summary!N17/12)*2 -> 448.5101036 | N44: =C$22*J29+ROUND($F$14*365/12,2)+(Summary!N17/12)*2 -> 86.17251862 | O44: =D$22*I29+ROUND($F$14*365/12,2)+(Summary!N17/12)*2 -> 446.3200796 | P44: =D$22*J29+ROUND($F$14*365/12,2)+(Summary!N17/12)*2 -> 85.70044678 | Q44: =E$22*I29+ROUND($F$14*365/12,2)+(Summary!N17/12)*2 -> 391.9897544 | R44: =E$22*J29+ROUND($F$14*365/12,2)+(Summary!N17/12)*2 -> 73.98924335 | S44: =F$22*I29+ROUND($F$14*365/12,2)+(Summary!N17/12)*2 -> 471.3518941 | T44: =F$22*J29+ROUND($F$14*365/12,2)+(Summary!N17/12)*2 -> 91.09619346 | V44: 15 hot | W44: =C$28*I29+ROUND($P$14*365/12,2)+(Summary!N17/12)*2 -> 299.4469098 | X44: =C$28*J29+ROUND($P$14*365/12,2)+(Summary!N17/12)*2 -> 53.87638575 | Y44: =D$28*I29+ROUND($P$14*365/12,2)+(Summary!N17/12)*2 -> 297.954956 | Z44: =D$28*J29+ROUND($P$14*365/12,2)+(Summary!N17/12)*2 -> 53.5547868 | AA44: =E$28*I29+ROUND($P$14*365/12,2)+(Summary!N17/12)*2 -> 261.1340526 | AB44: =E$28*J29+ROUND($P$14*365/12,2)+(Summary!N17/12)*2 -> 45.61783652 | AC44: =F$28*I29+ROUND($P$14*365/12,2)+(Summary!N17/12)*2 -> 314.9195889 | AD44: =F$28*J29+ROUND($P$14*365/12,2)+(Summary!N17/12)*2 -> 57.21160768
B45: 16 cool | C45: =C$22*MIN(I30,P30)+IF(P30-I30>0,C$23*(P30-I30))+ROUND($F$14*365/12,2)+(Summary!N17/12)*2 -> 166.4309682 | D45: =C$22*MIN(J30,Q30)+IF(Q30-J30>0,C$23*(Q30-J30))+ROUND($F$14*365/12,2)+(Summary!N17/12)*2 -> 137.886122 | E45: =D$22*MIN(I30,P30)+IF(P30-I30>0,D$23*(P30-I30))+ROUND($F$14*365/12,2)+(Summary!N17/12)*2 -> 165.5788283 | F45: =D$22*MIN(J30,Q30)+IF(Q30-J30>0,D$23*(Q30-J30))+ROUND($F$14*365/12,2)+(Summary!N17/12)*2 -> 137.1692431 | G45: =E$22*MIN(I30,P30)+IF(P30-I30>0,E$23*(P30-I30))+ROUND($F$14*365/12,2)+(Summary!N17/12)*2 -> 144.4273555 | H45: =E$22*MIN(J30,Q30)+IF(Q30-J30>0,E$23*(Q30-J30))+ROUND($F$14*365/12,2)+(Summary!N17/12)*2 -> 119.3753012 | I45: =F$22*MIN(I30,P30)+IF(P30-I30>0,F$23*(P30-I30))+ROUND($F$14*365/12,2)+(Summary!N17/12)*2 -> 175.3240257 | J45: =F$22*MIN(J30,Q30)+IF(Q30-J30>0,F$23*(Q30-J30))+ROUND($F$14*365/12,2)+(Summary!N17/12)*2 -> 145.3675126 | L45: 16 cool | M45: =C$22*I30+ROUND($F$14*365/12,2)+(Summary!N17/12)*2 -> 137.4951227 | N45: =C$22*J30+ROUND($F$14*365/12,2)+(Summary!N17/12)*2 -> 113.8867248 | O45: =D$22*I30+ROUND($F$14*365/12,2)+(Summary!N17/12)*2 -> 136.7797149 | P45: =D$22*J30+ROUND($F$14*365/12,2)+(Summary!N17/12)*2 -> 113.2832516 | Q45: =E$22*I30+ROUND($F$14*365/12,2)+(Summary!N17/12)*2 -> 119.0318087 | R45: =E$22*J30+ROUND($F$14*365/12,2)+(Summary!N17/12)*2 -> 98.31222862 | S45: =F$22*I30+ROUND($F$14*365/12,2)+(Summary!N17/12)*2 -> 144.9567743 | T45: =F$22*J30+ROUND($F$14*365/12,2)+(Summary!N17/12)*2 -> 120.1809071 | V45: 16 cool | W45: =C$28*I30+ROUND($P$14*365/12,2)+(Summary!N17/12)*2 -> 88.6597461 | X45: =C$28*J30+ROUND($P$14*365/12,2)+(Summary!N17/12)*2 -> 72.65940033 | Y45: =D$28*I30+ROUND($P$14*365/12,2)+(Summary!N17/12)*2 -> 88.1723745 | Z45: =D$28*J30+ROUND($P$14*365/12,2)+(Summary!N17/12)*2 -> 72.24828416 | AA45: =E$28*I30+ROUND($P$14*365/12,2)+(Summary!N17/12)*2 -> 76.14421273 | AB45: =E$28*J30+ROUND($P$14*365/12,2)+(Summary!N17/12)*2 -> 62.10207967 | AC45: =F$28*I30+ROUND($P$14*365/12,2)+(Summary!N17/12)*2 -> 93.7141546 | AD45: =F$28*J30+ROUND($P$14*365/12,2)+(Summary!N17/12)*2 -> 76.92298302
B46: ALL | C46: =SUMPRODUCT(C37:C45,$T$22:$T$30) -> 222.2894692 | D46: 151.1264869 | E46: 221.1730001 | F46: 150.3471977 | G46: 193.4512396 | H46: 130.9958452 | I46: 233.9453509 | J46: 159.2630189 | L46: ALL | M46: =SUMPRODUCT(M37:M45,$T$22:$T$30) -> 164.3163851 | N46: 104.1833251 | O46: 163.4738096 | P46: 103.6258586 | Q46: 142.5711143 | R46: 89.79617561 | S46: 173.1043868 | T46: 109.9976603 | V46: ALL | W46: =SUMPRODUCT(W37:W45,$U$22:$U$30) -> 117.4027006 | X46: =SUMPRODUCT(X37:X45,$U$22:$U$30) -> 67.64500689 | Y46: 116.7783441 | Z46: 67.25778862 | AA46: 101.3694421 | AB46: 57.70137602 | AC46: 123.8777454 | AD46: 71.66075044
C49: CARE | M49: Essential Use (All-Electric) - Non-CARE | W49: Essential Use (All-Electric) - CARE
C50: =C27 -> Jan 2024 | E50: =D27 -> 2024-06-01 | G50: =E27 -> Authorized | I50: =F27 -> w/Pending | M50: =C50 -> Jan 2024 | O50: =E50 -> 2024-06-01 | Q50: =G50 -> Authorized | S50: =I50 -> w/Pending | W50: =M50 -> Jan 2024 | Y50: =O50 -> 2024-06-01 | AA50: =Q50 -> Authorized | AC50: =S50 -> w/Pending
C51: Summer | D51: Winter | E51: Summer | F51: Winter | G51: Summer | H51: Winter | I51: Summer | J51: Winter | M51: Summer | N51: Winter | O51: Summer | P51: Winter | Q51: Summer | R51: Winter | S51: Summer | T51: Winter | W51: Summer | X51: Winter | Y51: Summer | Z51: Winter | AA51: Summer | AB51: Winter | AC51: Summer | AD51: Winter
B52: 5 warm | C52: =C$28*MIN(I22,R22)+IF(R22-I22>0,C$29*(R22-I22))+ROUND($P$14*365/12,2)+(Summary!N17/12)*2 -> 72.26929933 | D52: =C$28*MIN(J22,S22)+IF(S22-J22>0,C$29*(S22-J22))+ROUND($P$14*365/12,2)+(Summary!N17/12)*2 -> 72.64338235 | E52: =D$28*MIN(I22,R22)+IF(R22-I22>0,D$29*(R22-I22))+ROUND($P$14*365/12,2)+(Summary!N17/12)*2 -> 71.86004232 | F52: =D$28*MIN(J22,S22)+IF(S22-J22>0,D$29*(S22-J22))+ROUND($P$14*365/12,2)+(Summary!N17/12)*2 -> 72.23234252 | G52: =E$28*MIN(I22,R22)+IF(R22-I22>0,E$29*(R22-I22))+ROUND($P$14*365/12,2)+(Summary!N17/12)*2 -> 61.75972143 | H52: =E$28*MIN(J22,S22)+IF(S22-J22>0,E$29*(S22-J22))+ROUND($P$14*365/12,2)+(Summary!N17/12)*2 -> 62.08802206 | I52: =F$28*MIN(I22,R22)+IF(R22-I22>0,F$29*(R22-I22))+ROUND($P$14*365/12,2)+(Summary!N17/12)*2 -> 76.51360105 | J52: =F$28*MIN(J22,S22)+IF(S22-J22>0,F$29*(S22-J22))+ROUND($P$14*365/12,2)+(Summary!N17/12)*2 -> 76.90617333 | L52: 5 warm | M52: =C$22*K22+ROUND($F$14*365/12,2)+(Summary!N17/12)*2 -> 159.0506164 | N52: =C$22*L22+ROUND($F$14*365/12,2)+(Summary!N17/12)*2 -> 263.7487288 | O52: =D$22*K22+ROUND($F$14*365/12,2)+(Summary!N17/12)*2 -> 158.2330075 | P52: =D$22*L22+ROUND($F$14*365/12,2)+(Summary!N17/12)*2 -> 262.4347144 | Q52: =E$22*K22+ROUND($F$14*365/12,2)+(Summary!N17/12)*2 -> 137.9496861 | R52: =E$22*L22+ROUND($F$14*365/12,2)+(Summary!N17/12)*2 -> 229.8365193 | S52: =F$22*K22+ROUND($F$14*365/12,2)+(Summary!N17/12)*2 -> 167.5782182 | T52: =F$22*L22+ROUND($F$14*365/12,2)+(Summary!N17/12)*2 -> 277.4538031 | V52: 5 warm | W52: =C$28*K22+ROUND($P$14*365/12,2)+(Summary!N17/12)*2 -> 103.2687574 | X52: =C$28*L22+ROUND($P$14*365/12,2)+(Summary!N17/12)*2 -> 174.2268126 | Y52: =D$28*K22+ROUND($P$14*365/12,2)+(Summary!N17/12)*2 -> 102.7117613 | Z52: =D$28*L22+ROUND($P$14*365/12,2)+(Summary!N17/12)*2 -> 173.3316402 | AA52: =E$28*K22+ROUND($P$14*365/12,2)+(Summary!N17/12)*2 -> 88.96529074 | AB52: =E$28*L22+ROUND($P$14*365/12,2)+(Summary!N17/12)*2 -> 151.2390982 | AC52: =F$28*K22+ROUND($P$14*365/12,2)+(Summary!N17/12)*2 -> 109.0452243 | AD52: =F$28*L22+ROUND($P$14*365/12,2)+(Summary!N17/12)*2 -> 183.51042
B53: 6 cool | C53: =C$28*MIN(I23,R23)+IF(R23-I23>0,C$29*(R23-I23))+ROUND($P$14*365/12,2)+(Summary!N17/12)*2 -> 77.4548568 | D53: =C$28*MIN(J23,S23)+IF(S23-J23>0,C$29*(S23-J23))+ROUND($P$14*365/12,2)+(Summary!N17/12)*2 -> 70.24167309 | E53: =D$28*MIN(I23,R23)+IF(R23-I23>0,D$29*(R23-I23))+ROUND($P$14*365/12,2)+(Summary!N17/12)*2 -> 77.02124374 | F53: =D$28*MIN(J23,S23)+IF(S23-J23>0,D$29*(S23-J23))+ROUND($P$14*365/12,2)+(Summary!N17/12)*2 -> 69.84230225 | G53: =E$28*MIN(I23,R23)+IF(R23-I23>0,E$29*(R23-I23))+ROUND($P$14*365/12,2)+(Summary!N17/12)*2 -> 66.31095641 | H53: =E$28*MIN(J23,S23)+IF(S23-J23>0,E$29*(S23-J23))+ROUND($P$14*365/12,2)+(Summary!N17/12)*2 -> 59.980444 | I53: =F$28*MIN(I23,R23)+IF(R23-I23>0,F$29*(R23-I23))+ROUND($P$14*365/12,2)+(Summary!N17/12)*2 -> 81.95583459 | J53: =F$28*MIN(J23,S23)+IF(S23-J23>0,F$29*(S23-J23))+ROUND($P$14*365/12,2)+(Summary!N17/12)*2 -> 74.38599319 | L53: 6 cool | M53: =C$22*K23+ROUND($F$14*365/12,2)+(Summary!N17/12)*2 -> 75.9079978 | N53: =C$22*L23+ROUND($F$14*365/12,2)+(Summary!N17/12)*2 -> 115.939629 | O53: =D$22*K23+ROUND($F$14*365/12,2)+(Summary!N17/12)*2 -> 75.48459316 | P53: =D$22*L23+ROUND($F$14*365/12,2)+(Summary!N17/12)*2 -> 115.3264223 | Q53: =E$22*K23+ROUND($F$14*365/12,2)+(Summary!N17/12)*2 -> 64.98073029 | R53: =E$22*L23+ROUND($F$14*365/12,2)+(Summary!N17/12)*2 -> 100.1139312 | S53: =F$22*K23+ROUND($F$14*365/12,2)+(Summary!N17/12)*2 -> 80.3240773 | T53: =F$22*L23+ROUND($F$14*365/12,2)+(Summary!N17/12)*2 -> 122.3353303 | V53: 6 cool | W53: =C$28*K23+ROUND($P$14*365/12,2)+(Summary!N17/12)*2 -> 46.91971368 | X53: =C$28*L23+ROUND($P$14*365/12,2)+(Summary!N17/12)*2 -> 74.05073475 | Y53: =D$28*K23+ROUND($P$14*365/12,2)+(Summary!N17/12)*2 -> 46.63126926 | Z53: =D$28*L23+ROUND($P$14*365/12,2)+(Summary!N17/12)*2 -> 73.63298767 | AA53: =E$28*K23+ROUND($P$14*365/12,2)+(Summary!N17/12)*2 -> 39.51256127 | AB53: =E$28*L23+ROUND($P$14*365/12,2)+(Summary!N17/12)*2 -> 63.32313472 | AC53: =F$28*K23+ROUND($P$14*365/12,2)+(Summary!N17/12)*2 -> 49.9110983 | AD53: =F$28*L23+ROUND($P$14*365/12,2)+(Summary!N17/12)*2 -> 78.38308489
B54: 8 cool | C54: =C$28*MIN(I24,R24)+IF(R24-I24>0,C$29*(R24-I24))+ROUND($P$14*365/12,2)+(Summary!N17/12)*2 -> 97.36307149 | D54: =C$28*MIN(J24,S24)+IF(S24-J24>0,C$29*(S24-J24))+ROUND($P$14*365/12,2)+(Summary!N17/12)*2 -> 79.07969555 | E54: =D$28*MIN(I24,R24)+IF(R24-I24>0,D$29*(R24-I24))+ROUND($P$14*365/12,2)+(Summary!N17/12)*2 -> 96.83488806 | F54: =D$28*MIN(J24,S24)+IF(S24-J24>0,D$29*(S24-J24))+ROUND($P$14*365/12,2)+(Summary!N17/12)*2 -> 78.63862101 | G54: =E$28*MIN(I24,R24)+IF(R24-I24>0,E$29*(R24-I24))+ROUND($P$14*365/12,2)+(Summary!N17/12)*2 -> 83.78296416 | H54: =E$28*MIN(J24,S24)+IF(S24-J24>0,E$29*(S24-J24))+ROUND($P$14*365/12,2)+(Summary!N17/12)*2 -> 67.73718713 | I54: =F$28*MIN(I24,R24)+IF(R24-I24>0,F$29*(R24-I24))+ROUND($P$14*365/12,2)+(Summary!N17/12)*2 -> 102.8483499 | J54: =F$28*MIN(J24,S24)+IF(S24-J24>0,F$29*(S24-J24))+ROUND($P$14*365/12,2)+(Summary!N17/12)*2 -> 83.66127953 | L54: 8 cool | M54: =C$22*K24+ROUND($F$14*365/12,2)+(Summary!N17/12)*2 -> 88.22542278 | N54: =C$22*L24+ROUND($F$14*365/12,2)+(Summary!N17/12)*2 -> 112.8602728 | O54: =D$22*K24+ROUND($F$14*365/12,2)+(Summary!N17/12)*2 -> 87.7436175 | P54: =D$22*L24+ROUND($F$14*365/12,2)+(Summary!N17/12)*2 -> 112.2616662 | Q54: =E$22*K24+ROUND($F$14*365/12,2)+(Summary!N17/12)*2 -> 75.79094597 | R54: =E$22*L24+ROUND($F$14*365/12,2)+(Summary!N17/12)*2 -> 97.41137731 | S54: =F$22*K24+ROUND($F$14*365/12,2)+(Summary!N17/12)*2 -> 93.2506167 | T54: =F$22*L24+ROUND($F$14*365/12,2)+(Summary!N17/12)*2 -> 119.1036955 | V54: 8 cool | W54: =C$28*K24+ROUND($P$14*365/12,2)+(Summary!N17/12)*2 -> 55.26772016 | X54: =C$28*L24+ROUND($P$14*365/12,2)+(Summary!N17/12)*2 -> 71.96373313 | Y54: =D$28*K24+ROUND($P$14*365/12,2)+(Summary!N17/12)*2 -> 54.93949031 | Z54: =D$28*L24+ROUND($P$14*365/12,2)+(Summary!N17/12)*2 -> 71.55593241 | AA54: =E$28*K24+ROUND($P$14*365/12,2)+(Summary!N17/12)*2 -> 46.83889156 | AB54: =E$28*L24+ROUND($P$14*365/12,2)+(Summary!N17/12)*2 -> 61.49155215 | AC54: =F$28*K24+ROUND($P$14*365/12,2)+(Summary!N17/12)*2 -> 58.67170956 | AD54: =F$28*L24+ROUND($P$14*365/12,2)+(Summary!N17/12)*2 -> 76.19293208
B55: 9 warm | C55: =C$28*MIN(I25,R25)+IF(R25-I25>0,C$29*(R25-I25))+ROUND($P$14*365/12,2)+(Summary!N17/12)*2 -> 128.7742739 | D55: =C$28*MIN(J25,S25)+IF(S25-J25>0,C$29*(S25-J25))+ROUND($P$14*365/12,2)+(Summary!N17/12)*2 -> 88.67061665 | E55: =D$28*MIN(I25,R25)+IF(R25-I25>0,D$29*(R25-I25))+ROUND($P$14*365/12,2)+(Summary!N17/12)*2 -> 128.096477 | F55: =D$28*MIN(J25,S25)+IF(S25-J25>0,D$29*(S25-J25))+ROUND($P$14*365/12,2)+(Summary!N17/12)*2 -> 88.18376509 | G55: =E$28*MIN(I25,R25)+IF(R25-I25>0,E$29*(R25-I25))+ROUND($P$14*365/12,2)+(Summary!N17/12)*2 -> 111.3499637 | H55: =E$28*MIN(J25,S25)+IF(S25-J25>0,E$29*(S25-J25))+ROUND($P$14*365/12,2)+(Summary!N17/12)*2 -> 76.15425714 | I55: =F$28*MIN(I25,R25)+IF(R25-I25>0,F$29*(R25-I25))+ROUND($P$14*365/12,2)+(Summary!N17/12)*2 -> 135.8121608 | J55: =F$28*MIN(J25,S25)+IF(S25-J25>0,F$29*(S25-J25))+ROUND($P$14*365/12,2)+(Summary!N17/12)*2 -> 93.72616542 | L55: 9 warm | M55: =C$22*K25+ROUND($F$14*365/12,2)+(Summary!N17/12)*2 -> 114.9131769 | N55: =C$22*L25+ROUND($F$14*365/12,2)+(Summary!N17/12)*2 -> 129.2835061 | O55: =D$22*K25+ROUND($F$14*365/12,2)+(Summary!N17/12)*2 -> 114.3048369 | P55: =D$22*L25+ROUND($F$14*365/12,2)+(Summary!N17/12)*2 -> 128.607032 | Q55: =E$22*K25+ROUND($F$14*365/12,2)+(Summary!N17/12)*2 -> 99.21307992 | R55: =E$22*L25+ROUND($F$14*365/12,2)+(Summary!N17/12)*2 -> 111.8249982 | S55: =F$22*K25+ROUND($F$14*365/12,2)+(Summary!N17/12)*2 -> 121.2581187 | T55: =F$22*L25+ROUND($F$14*365/12,2)+(Summary!N17/12)*2 -> 136.3390814 | V55: 9 warm | W55: =C$28*K25+ROUND($P$14*365/12,2)+(Summary!N17/12)*2 -> 73.35506754 | X55: =C$28*L25+ROUND($P$14*365/12,2)+(Summary!N17/12)*2 -> 83.09440844 | Y55: =D$28*K25+ROUND($P$14*365/12,2)+(Summary!N17/12)*2 -> 72.94063592 | Z55: =D$28*L25+ROUND($P$14*365/12,2)+(Summary!N17/12)*2 -> 82.63356047 | AA55: =E$28*K25+ROUND($P$14*365/12,2)+(Summary!N17/12)*2 -> 62.71260719 | AB55: =E$28*L25+ROUND($P$14*365/12,2)+(Summary!N17/12)*2 -> 71.25999253 | AC55: =F$28*K25+ROUND($P$14*365/12,2)+(Summary!N17/12)*2 -> 77.65303395 | AD55: =F$28*L25+ROUND($P$14*365/12,2)+(Summary!N17/12)*2 -> 87.87374709
B56: 10 hot (Sec 745) | C56: =C$28*MIN(I26,R26)+IF(R26-I26>0,C$29*(R26-I26))+ROUND($P$14*365/12,2)+(Summary!N17/12)*2 -> 180.4754352 | D56: =C$28*MIN(J26,S26)+IF(S26-J26>0,C$29*(S26-J26))+ROUND($P$14*365/12,2)+(Summary!N17/12)*2 -> 108.4430114 | E56: =D$28*MIN(I26,R26)+IF(R26-I26>0,D$29*(R26-I26))+ROUND($P$14*365/12,2)+(Summary!N17/12)*2 -> 179.5523029 | F56: =D$28*MIN(J26,S26)+IF(S26-J26>0,D$29*(S26-J26))+ROUND($P$14*365/12,2)+(Summary!N17/12)*2 -> 107.8625078 | G56: =E$28*MIN(I26,R26)+IF(R26-I26>0,E$29*(R26-I26))+ROUND($P$14*365/12,2)+(Summary!N17/12)*2 -> 156.7245841 | H56: =E$28*MIN(J26,S26)+IF(S26-J26>0,E$29*(S26-J26))+ROUND($P$14*365/12,2)+(Summary!N17/12)*2 -> 93.50730637 | I56: =F$28*MIN(I26,R26)+IF(R26-I26>0,F$29*(R26-I26))+ROUND($P$14*365/12,2)+(Summary!N17/12)*2 -> 190.0698034 | J56: =F$28*MIN(J26,S26)+IF(S26-J26>0,F$29*(S26-J26))+ROUND($P$14*365/12,2)+(Summary!N17/12)*2 -> 114.4764336 | L56: 10 hot (Sec 745) | M56: =C$22*K26+ROUND($F$14*365/12,2)+(Summary!N17/12)*2 -> 149.8125477 | N56: =C$22*L26+ROUND($F$14*365/12,2)+(Summary!N17/12)*2 -> 154.9448081 | O56: =D$22*K26+ROUND($F$14*365/12,2)+(Summary!N17/12)*2 -> 149.0387392 | P56: =D$22*L26+ROUND($F$14*365/12,2)+(Summary!N17/12)*2 -> 154.146666 | Q56: =E$22*K26+ROUND($F$14*365/12,2)+(Summary!N17/12)*2 -> 129.8420243 | R56: =E$22*L26+ROUND($F$14*365/12,2)+(Summary!N17/12)*2 -> 134.3462809 | S56: =F$22*K26+ROUND($F$14*365/12,2)+(Summary!N17/12)*2 -> 157.8833137 | T56: =F$22*L26+ROUND($F$14*365/12,2)+(Summary!N17/12)*2 -> 163.2693718 | V56: 10 hot (Sec 745) | W56: =C$28*K26+ROUND($P$14*365/12,2)+(Summary!N17/12)*2 -> 97.00775258 | X56: =C$28*L26+ROUND($P$14*365/12,2)+(Summary!N17/12)*2 -> 100.4860886 | Y56: =D$28*K26+ROUND($P$14*365/12,2)+(Summary!N17/12)*2 -> 96.48059555 | Z56: =D$28*L26+ROUND($P$14*365/12,2)+(Summary!N17/12)*2 -> 99.94235432 | AA56: =E$28*K26+ROUND($P$14*365/12,2)+(Summary!N17/12)*2 -> 83.47054302 | AB56: =E$28*L26+ROUND($P$14*365/12,2)+(Summary!N17/12)*2 -> 86.52318064 | AC56: =F$28*K26+ROUND($P$14*365/12,2)+(Summary!N17/12)*2 -> 102.4747659 | AD56: =F$28*L26+ROUND($P$14*365/12,2)+(Summary!N17/12)*2 -> 106.1250205
B57: 13 hot | C57: =C$28*MIN(I27,R27)+IF(R27-I27>0,C$29*(R27-I27))+ROUND($P$14*365/12,2)+(Summary!N17/12)*2 -> 211.2337221 | D57: =C$28*MIN(J27,S27)+IF(S27-J27>0,C$29*(S27-J27))+ROUND($P$14*365/12,2)+(Summary!N17/12)*2 -> 104.1804736 | E57: =D$28*MIN(I27,R27)+IF(R27-I27>0,D$29*(R27-I27))+ROUND($P$14*365/12,2)+(Summary!N17/12)*2 -> 210.164322 | F57: =D$28*MIN(J27,S27)+IF(S27-J27>0,D$29*(S27-J27))+ROUND($P$14*365/12,2)+(Summary!N17/12)*2 -> 103.6201338 | G57: =E$28*MIN(I27,R27)+IF(R27-I27>0,E$29*(R27-I27))+ROUND($P$14*365/12,2)+(Summary!N17/12)*2 -> 183.718782 | H57: =E$28*MIN(J27,S27)+IF(S27-J27>0,E$29*(S27-J27))+ROUND($P$14*365/12,2)+(Summary!N17/12)*2 -> 89.76630896 | I57: =F$28*MIN(I27,R27)+IF(R27-I27>0,F$29*(R27-I27))+ROUND($P$14*365/12,2)+(Summary!N17/12)*2 -> 222.3486749 | J57: =F$28*MIN(J27,S27)+IF(S27-J27>0,F$29*(S27-J27))+ROUND($P$14*365/12,2)+(Summary!N17/12)*2 -> 110.0030584 | L57: 13 hot | M57: =C$22*K27+ROUND($F$14*365/12,2)+(Summary!N17/12)*2 -> 235.0080705 | N57: =C$22*L27+ROUND($F$14*365/12,2)+(Summary!N17/12)*2 -> 222.6906455 | O57: =D$22*K27+ROUND($F$14*365/12,2)+(Summary!N17/12)*2 -> 233.8303243 | P57: =D$22*L27+ROUND($F$14*365/12,2)+(Summary!N17/12)*2 -> 221.5712999 | Q57: =E$22*K27+ROUND($F$14*365/12,2)+(Summary!N17/12)*2 -> 204.6126827 | R57: =E$22*L27+ROUND($F$14*365/12,2)+(Summary!N17/12)*2 -> 193.8024671 | S57: =F$22*K27+ROUND($F$14*365/12,2)+(Summary!N17/12)*2 -> 247.2918779 | T57: =F$22*L27+ROUND($F$14*365/12,2)+(Summary!N17/12)*2 -> 234.3653385 | V57: 13 hot | W57: =C$28*K27+ROUND($P$14*365/12,2)+(Summary!N17/12)*2 -> 154.7481308 | X57: =C$28*L27+ROUND($P$14*365/12,2)+(Summary!N17/12)*2 -> 146.4001243 | Y57: =D$28*K27+ROUND($P$14*365/12,2)+(Summary!N17/12)*2 -> 153.9457911 | Z57: =D$28*L27+ROUND($P$14*365/12,2)+(Summary!N17/12)*2 -> 145.6375701 | AA57: =E$28*K27+ROUND($P$14*365/12,2)+(Summary!N17/12)*2 -> 134.1443275 | AB57: =E$28*L27+ROUND($P$14*365/12,2)+(Summary!N17/12)*2 -> 126.8179972 | AC57: =F$28*K27+ROUND($P$14*365/12,2)+(Summary!N17/12)*2 -> 163.0689937 | AD57: =F$28*L27+ROUND($P$14*365/12,2)+(Summary!N17/12)*2 -> 154.3083825
B58: 14 hot | C58: =C$28*MIN(I28,R28)+IF(R28-I28>0,C$29*(R28-I28))+ROUND($P$14*365/12,2)+(Summary!N17/12)*2 -> 177.2919255 | D58: =C$28*MIN(J28,S28)+IF(S28-J28>0,C$29*(S28-J28))+ROUND($P$14*365/12,2)+(Summary!N17/12)*2 -> 114.2828629 | E58: =D$28*MIN(I28,R28)+IF(R28-I28>0,D$29*(R28-I28))+ROUND($P$14*365/12,2)+(Summary!N17/12)*2 -> 176.3838896 | F58: =D$28*MIN(J28,S28)+IF(S28-J28>0,D$29*(S28-J28))+ROUND($P$14*365/12,2)+(Summary!N17/12)*2 -> 113.6747474 | G58: =E$28*MIN(I28,R28)+IF(R28-I28>0,E$29*(R28-I28))+ROUND($P$14*365/12,2)+(Summary!N17/12)*2 -> 153.9306235 | H58: =E$28*MIN(J28,S28)+IF(S28-J28>0,E$29*(S28-J28))+ROUND($P$14*365/12,2)+(Summary!N17/12)*2 -> 98.63263787 | I58: =F$28*MIN(I28,R28)+IF(R28-I28>0,F$29*(R28-I28))+ROUND($P$14*365/12,2)+(Summary!N17/12)*2 -> 186.7288672 | J58: =F$28*MIN(J28,S28)+IF(S28-J28>0,F$29*(S28-J28))+ROUND($P$14*365/12,2)+(Summary!N17/12)*2 -> 120.605155 | L58: 14 hot | M58: =C$22*K28+ROUND($F$14*365/12,2)+(Summary!N17/12)*2 -> 176.5003018 | N58: =C$22*L28+ROUND($F$14*365/12,2)+(Summary!N17/12)*2 -> 203.188056 | O58: =D$22*K28+ROUND($F$14*365/12,2)+(Summary!N17/12)*2 -> 175.5999586 | P58: =D$22*L28+ROUND($F$14*365/12,2)+(Summary!N17/12)*2 -> 202.161178 | Q58: =E$22*K28+ROUND($F$14*365/12,2)+(Summary!N17/12)*2 -> 153.2641583 | R58: =E$22*L28+ROUND($F$14*365/12,2)+(Summary!N17/12)*2 -> 176.6862922 | S58: =F$22*K28+ROUND($F$14*365/12,2)+(Summary!N17/12)*2 -> 185.8908157 | T58: =F$22*L28+ROUND($F$14*365/12,2)+(Summary!N17/12)*2 -> 213.8983177 | V58: 14 hot | W58: =C$28*K28+ROUND($P$14*365/12,2)+(Summary!N17/12)*2 -> 115.0951 | X58: =C$28*L28+ROUND($P$14*365/12,2)+(Summary!N17/12)*2 -> 133.1824473 | Y58: =D$28*K28+ROUND($P$14*365/12,2)+(Summary!N17/12)*2 -> 114.4817412 | Z58: =D$28*L28+ROUND($P$14*365/12,2)+(Summary!N17/12)*2 -> 132.4828868 | AA58: =E$28*K28+ROUND($P$14*365/12,2)+(Summary!N17/12)*2 -> 99.34425865 | AB58: =E$28*L28+ROUND($P$14*365/12,2)+(Summary!N17/12)*2 -> 115.2179743 | AC58: =F$28*K28+ROUND($P$14*365/12,2)+(Summary!N17/12)*2 -> 121.4560903 | AD58: =F$28*L28+ROUND($P$14*365/12,2)+(Summary!N17/12)*2 -> 140.4374146
B59: 15 hot | C59: =C$28*MIN(I29,R29)+IF(R29-I29>0,C$29*(R29-I29))+ROUND($P$14*365/12,2)+(Summary!N17/12)*2 -> 257.4344494 | D59: =C$28*MIN(J29,S29)+IF(S29-J29>0,C$29*(S29-J29))+ROUND($P$14*365/12,2)+(Summary!N17/12)*2 -> 118.4742056 | E59: =D$28*MIN(I29,R29)+IF(R29-I29>0,D$29*(R29-I29))+ROUND($P$14*365/12,2)+(Summary!N17/12)*2 -> 256.1427211 | F59: =D$28*MIN(J29,S29)+IF(S29-J29>0,D$29*(S29-J29))+ROUND($P$14*365/12,2)+(Summary!N17/12)*2 -> 117.846708 | G59: =E$28*MIN(I29,R29)+IF(R29-I29>0,E$29*(R29-I29))+ROUND($P$14*365/12,2)+(Summary!N17/12)*2 -> 224.2633144 | H59: =E$28*MIN(J29,S29)+IF(S29-J29>0,E$29*(S29-J29))+ROUND($P$14*365/12,2)+(Summary!N17/12)*2 -> 102.3115435 | I59: =F$28*MIN(I29,R29)+IF(R29-I29>0,F$29*(R29-I29))+ROUND($P$14*365/12,2)+(Summary!N17/12)*2 -> 270.8306397 | J59: =F$28*MIN(J29,S29)+IF(S29-J29>0,F$29*(S29-J29))+ROUND($P$14*365/12,2)+(Summary!N17/12)*2 -> 125.0042826 | L59: 15 hot | M59: =C$22*K29+ROUND($F$14*365/12,2)+(Summary!N17/12)*2 -> 232.9551663 | N59: =C$22*L29+ROUND($F$14*365/12,2)+(Summary!N17/12)*2 -> 165.2093289 | O59: =D$22*K29+ROUND($F$14*365/12,2)+(Summary!N17/12)*2 -> 231.7871535 | P59: =D$22*L29+ROUND($F$14*365/12,2)+(Summary!N17/12)*2 -> 164.3625197 | Q59: =E$22*K29+ROUND($F$14*365/12,2)+(Summary!N17/12)*2 -> 202.8109801 | R59: =E$22*L29+ROUND($F$14*365/12,2)+(Summary!N17/12)*2 -> 143.3547939 | S59: =F$22*K29+ROUND($F$14*365/12,2)+(Summary!N17/12)*2 -> 245.1374546 | T59: =F$22*L29+ROUND($F$14*365/12,2)+(Summary!N17/12)*2 -> 174.0414879 | V59: 15 hot | W59: =C$28*K29+ROUND($P$14*365/12,2)+(Summary!N17/12)*2 -> 153.3567963 | X59: =C$28*L29+ROUND($P$14*365/12,2)+(Summary!N17/12)*2 -> 107.4427607 | Y59: =D$28*K29+ROUND($P$14*365/12,2)+(Summary!N17/12)*2 -> 152.5610876 | Z59: =D$28*L29+ROUND($P$14*365/12,2)+(Summary!N17/12)*2 -> 106.8658719 | AA59: =E$28*K29+ROUND($P$14*365/12,2)+(Summary!N17/12)*2 -> 132.9232725 | AB59: =E$28*L29+ROUND($P$14*365/12,2)+(Summary!N17/12)*2 -> 92.62845588 | AC59: =F$28*K29+ROUND($P$14*365/12,2)+(Summary!N17/12)*2 -> 161.6088919 | AD59: =F$28*L29+ROUND($P$14*365/12,2)+(Summary!N17/12)*2 -> 113.4255299
B60: 16 cool | C60: =C$28*MIN(I30,R30)+IF(R30-I30>0,C$29*(R30-I30))+ROUND($P$14*365/12,2)+(Summary!N17/12)*2 -> 155.8050315 | D60: =C$28*MIN(J30,S30)+IF(S30-J30>0,C$29*(S30-J30))+ROUND($P$14*365/12,2)+(Summary!N17/12)*2 -> 108.2056535 | E60: =D$28*MIN(I30,R30)+IF(R30-I30>0,D$29*(R30-I30))+ROUND($P$14*365/12,2)+(Summary!N17/12)*2 -> 154.9996979 | F60: =D$28*MIN(J30,S30)+IF(S30-J30>0,D$29*(S30-J30))+ROUND($P$14*365/12,2)+(Summary!N17/12)*2 -> 107.6262105 | G60: =E$28*MIN(I30,R30)+IF(R30-I30>0,E$29*(R30-I30))+ROUND($P$14*365/12,2)+(Summary!N17/12)*2 -> 135.0736804 | H60: =E$28*MIN(J30,S30)+IF(S30-J30>0,E$29*(S30-J30))+ROUND($P$14*365/12,2)+(Summary!N17/12)*2 -> 93.29893535 | I60: =F$28*MIN(I30,R30)+IF(R30-I30>0,F$29*(R30-I30))+ROUND($P$14*365/12,2)+(Summary!N17/12)*2 -> 164.1802867 | J60: =F$28*MIN(J30,S30)+IF(S30-J30>0,F$29*(S30-J30))+ROUND($P$14*365/12,2)+(Summary!N17/12)*2 -> 114.2272697 | L60: 16 cool | M60: =C$22*K30+ROUND($F$14*365/12,2)+(Summary!N17/12)*2 -> 125.1776977 | N60: =C$22*L30+ROUND($F$14*365/12,2)+(Summary!N17/12)*2 -> 224.7435497 | O60: =D$22*K30+ROUND($F$14*365/12,2)+(Summary!N17/12)*2 -> 124.5206905 | P60: =D$22*L30+ROUND($F$14*365/12,2)+(Summary!N17/12)*2 -> 223.6144707 | Q60: =E$22*K30+ROUND($F$14*365/12,2)+(Summary!N17/12)*2 -> 108.221593 | R60: =E$22*L30+ROUND($F$14*365/12,2)+(Summary!N17/12)*2 -> 195.6041697 | S60: =F$22*K30+ROUND($F$14*365/12,2)+(Summary!N17/12)*2 -> 132.0302349 | T60: =F$22*L30+ROUND($F$14*365/12,2)+(Summary!N17/12)*2 -> 236.5197617 | V60: 16 cool | W60: =C$28*K30+ROUND($P$14*365/12,2)+(Summary!N17/12)*2 -> 80.31173961 | X60: =C$28*L30+ROUND($P$14*365/12,2)+(Summary!N17/12)*2 -> 147.7914587 | Y60: =D$28*K30+ROUND($P$14*365/12,2)+(Summary!N17/12)*2 -> 79.86415346 | Z60: =D$28*L30+ROUND($P$14*365/12,2)+(Summary!N17/12)*2 -> 147.0222736 | AA60: =E$28*K30+ROUND($P$14*365/12,2)+(Summary!N17/12)*2 -> 68.81788244 | AB60: =E$28*L30+ROUND($P$14*365/12,2)+(Summary!N17/12)*2 -> 128.0390523 | AC60: =F$28*K30+ROUND($P$14*365/12,2)+(Summary!N17/12)*2 -> 84.95354334 | AD60: =F$28*L30+ROUND($P$14*365/12,2)+(Summary!N17/12)*2 -> 155.7684844
B61: ALL | C61: =SUMPRODUCT(C52:C60,$U$22:$U$30) -> 163.202156 | D61: 100.7216688 | E61: 162.3609652 | F61: 100.1778183 | G61: 141.5649708 | H61: 86.73081673 | I61: 171.9423817 | J61: 106.3733057 | L61: ALL | M61: =SUMPRODUCT(M52:M60,$T$22:$T$30) -> 129.6760166 | N61: =SUMPRODUCT(N52:N60,$T$22:$T$30) -> 146.141317 | O61: 128.9976815 | P61: 145.3849149 | Q61: 112.1694795 | R61: 126.62002 | S61: 136.7510021 | T61: 154.0305353 | V61: ALL | W61: =SUMPRODUCT(W52:W60,$U$22:$U$30) -> 96.12993791 | X61: =SUMPRODUCT(X52:X60,$U$22:$U$30) -> 103.4411186 | Y61: 95.60696443 | Z61: 102.883301 | AA61: 82.70016027 | AB61: 89.11655736 | AC61: 101.5535647 | AD61: 109.2261045
C64: All-Electric - Non-CARE | L64: =Summary!J4 -> 500 | M64: =L64&" kWh Monthly - Non-CARE" -> 500 kWh Monthly - Non-CARE | W64: =L64&" kWh Monthly - CARE" -> 500 kWh Monthly - CARE
C65: =C35 -> Jan 2024 | E65: 2024-06-01 | G65: Authorized | I65: w/Pending | M65: =M50 -> Jan 2024 | O65: =O50 -> 2024-06-01 | Q65: =Q50 -> Authorized | S65: =S50 -> w/Pending | W65: =M65 -> Jan 2024 | Y65: =O65 -> 2024-06-01 | AA65: =Q65 -> Authorized | AC65: =S65 -> w/Pending
C66: Summer | D66: Winter | E66: Summer | F66: Winter | G66: Summer | H66: Winter | I66: Summer | J66: Winter | M66: Summer | N66: Winter | O66: Summer | P66: Winter | Q66: Summer | R66: Winter | S66: Summer | T66: Winter | W66: Summer | X66: Winter | Y66: Summer | Z66: Winter | AA66: Summer | AB66: Winter | AC66: Summer | AD66: Winter
B67: =B37 -> 5 warm | C67: =C$22*MIN(K22,X22)+IF(X22-K22>0,C$23*(X22-K22))+ROUND($F$14*365/12,2)+(Summary!N17/12)*2 -> 130.1380715 | D67: =C$22*MIN(L22,Y22)+IF(Y22-L22>0,C$23*(Y22-L22))+ROUND($F$14*365/12,2)+(Summary!N17/12)*2 -> 152.67574 | E67: =D$22*MIN(K22,X22)+IF(X22-K22>0,D$23*(X22-K22))+ROUND($F$14*365/12,2)+(Summary!N17/12)*2 -> 129.4575457 | F67: =D$22*MIN(L22,Y22)+IF(Y22-L22>0,D$23*(Y22-L22))+ROUND($F$14*365/12,2)+(Summary!N17/12)*2 -> 151.8883563 | G67: =E$22*MIN(K22,X22)+IF(X22-K22>0,E$23*(X22-K22))+ROUND($F$14*365/12,2)+(Summary!N17/12)*2 -> 112.5749956 | H67: =E$22*MIN(L22,Y22)+IF(Y22-L22>0,E$23*(Y22-L22))+ROUND($F$14*365/12,2)+(Summary!N17/12)*2 -> 132.354865 | I67: =F$22*MIN(K22,X22)+IF(X22-K22>0,F$23*(X22-K22))+ROUND($F$14*365/12,2)+(Summary!N17/12)*2 -> 137.2359063 | J67: =F$22*MIN(L22,Y22)+IF(Y22-L22>0,F$23*(Y22-L22))+ROUND($F$14*365/12,2)+(Summary!N17/12)*2 -> 160.888095 | L67: 5 warm | M67: =C$22*MIN(I22,$L$64)+IF($L$64-I22>0,C$23*($L$64-I22))+ROUND($F$14*365/12,2)+(Summary!N17/12)*2 -> 155.3366667 | N67: =C$22*MIN(J22,$L$64)+IF($L$64-J22>0,C$23*($L$64-J22))+ROUND($F$14*365/12,2)+(Summary!N17/12)*2 -> 155.3366667 | O67: =D$22*MIN(I22,$L$64)+IF($L$64-I22>0,D$23*($L$64-I22))+ROUND($F$14*365/12,2)+(Summary!N17/12)*2 -> 154.5366667 | P67: =D$22*MIN(J22,$L$64)+IF($L$64-J22>0,D$23*($L$64-J22))+ROUND($F$14*365/12,2)+(Summary!N17/12)*2 -> 154.5366667 | Q67: =E$22*MIN(I22,$L$64)+IF($L$64-I22>0,E$23*($L$64-I22))+ROUND($F$14*365/12,2)+(Summary!N17/12)*2 -> 134.69019 | R67: =E$22*MIN(J22,$L$64)+IF($L$64-J22>0,E$23*($L$64-J22))+ROUND($F$14*365/12,2)+(Summary!N17/12)*2 -> 134.69019 | S67: =F$22*MIN(I22,$L$64)+IF($L$64-I22>0,F$23*($L$64-I22))+ROUND($F$14*365/12,2)+(Summary!N17/12)*2 -> 163.6806083 | T67: =F$22*MIN(J22,$L$64)+IF($L$64-J22>0,F$23*($L$64-J22))+ROUND($F$14*365/12,2)+(Summary!N17/12)*2 -> 163.6806083 | V67: 5 warm | W67: =C$28*MIN(I22,$L$64)+IF($L$64-I22>0,C$29*($L$64-I22))+ROUND($P$14*365/12,2)+(Summary!N17/12)*2 -> 100.7516667 | X67: =C$28*MIN(J22,$L$64)+IF($L$64-J22>0,C$29*($L$64-J22))+ROUND($P$14*365/12,2)+(Summary!N17/12)*2 -> 100.7516667 | Y67: =D$28*MIN(I22,$L$64)+IF($L$64-I22>0,D$29*($L$64-I22))+ROUND($P$14*365/12,2)+(Summary!N17/12)*2 -> 100.2066667 | Z67: =D$28*MIN(J22,$L$64)+IF($L$64-J22>0,D$29*($L$64-J22))+ROUND($P$14*365/12,2)+(Summary!N17/12)*2 -> 100.2066667 | AA67: =E$28*MIN(I22,$L$64)+IF($L$64-I22>0,E$29*($L$64-I22))+ROUND($P$14*365/12,2)+(Summary!N17/12)*2 -> 86.75625575 | AB67: =E$28*MIN(J22,$L$64)+IF($L$64-J22>0,E$29*($L$64-J22))+ROUND($P$14*365/12,2)+(Summary!N17/12)*2 -> 86.75625575 | AC67: =F$28*MIN(I22,$L$64)+IF($L$64-I22>0,F$29*($L$64-I22))+ROUND($P$14*365/12,2)+(Summary!N17/12)*2 -> 106.4037249 | AD67: =F$28*MIN(J22,$L$64)+IF($L$64-J22>0,F$29*($L$64-J22))+ROUND($P$14*365/12,2)+(Summary!N17/12)*2 -> 106.4037249
B68: 6 cool | C68: =C$22*MIN(K23,X23)+IF(X23-K23>0,C$23*(X23-K23))+ROUND($F$14*365/12,2)+(Summary!N17/12)*2 -> 104.2737793 | D68: =C$22*MIN(L23,Y23)+IF(Y23-L23>0,C$23*(Y23-L23))+ROUND($F$14*365/12,2)+(Summary!N17/12)*2 -> 105.3445173 | E68: =D$22*MIN(K23,X23)+IF(X23-K23>0,D$23*(X23-K23))+ROUND($F$14*365/12,2)+(Summary!N17/12)*2 -> 103.7163363 | F68: =D$22*MIN(L23,Y23)+IF(Y23-L23>0,D$23*(Y23-L23))+ROUND($F$14*365/12,2)+(Summary!N17/12)*2 -> 104.7815452 | G68: =E$22*MIN(K23,X23)+IF(X23-K23>0,E$23*(X23-K23))+ROUND($F$14*365/12,2)+(Summary!N17/12)*2 -> 89.8759604 | H68: =E$22*MIN(L23,Y23)+IF(Y23-L23>0,E$23*(Y23-L23))+ROUND($F$14*365/12,2)+(Summary!N17/12)*2 -> 90.81527968 | I68: =F$22*MIN(K23,X23)+IF(X23-K23>0,F$23*(X23-K23))+ROUND($F$14*365/12,2)+(Summary!N17/12)*2 -> 110.0930646 | J68: =F$22*MIN(L23,Y23)+IF(Y23-L23>0,F$23*(Y23-L23))+ROUND($F$14*365/12,2)+(Summary!N17/12)*2 -> 111.2162751 | L68: 6 cool | M68: =C$22*MIN(I23,$L$64)+IF($L$64-I23>0,C$23*($L$64-I23))+ROUND($F$14*365/12,2)+(Summary!N17/12)*2 -> 170.105003 | N68: =C$22*MIN(J23,$L$64)+IF($L$64-J23>0,C$23*($L$64-J23))+ROUND($F$14*365/12,2)+(Summary!N17/12)*2 -> 171.2775175 | O68: =D$22*MIN(I23,$L$64)+IF($L$64-I23>0,D$23*($L$64-I23))+ROUND($F$14*365/12,2)+(Summary!N17/12)*2 -> 169.2360422 | P68: =D$22*MIN(J23,$L$64)+IF($L$64-J23>0,D$23*($L$64-J23))+ROUND($F$14*365/12,2)+(Summary!N17/12)*2 -> 170.4030816 | Q68: =E$22*MIN(I23,$L$64)+IF($L$64-I23>0,E$23*($L$64-I23))+ROUND($F$14*365/12,2)+(Summary!N17/12)*2 -> 147.6523488 | R68: =E$22*MIN(J23,$L$64)+IF($L$64-J23>0,E$23*($L$64-J23))+ROUND($F$14*365/12,2)+(Summary!N17/12)*2 -> 148.681464 | S68: =F$22*MIN(I23,$L$64)+IF($L$64-I23>0,F$23*($L$64-I23))+ROUND($F$14*365/12,2)+(Summary!N17/12)*2 -> 179.1803782 | T68: =F$22*MIN(J23,$L$64)+IF($L$64-J23>0,F$23*($L$64-J23))+ROUND($F$14*365/12,2)+(Summary!N17/12)*2 -> 180.410964 | V68: 6 cool | W68: =C$28*MIN(I23,$L$64)+IF($L$64-I23>0,C$29*($L$64-I23))+ROUND($P$14*365/12,2)+(Summary!N17/12)*2 -> 110.3617359 | X68: =C$28*MIN(J23,$L$64)+IF($L$64-J23>0,C$29*($L$64-J23))+ROUND($P$14*365/12,2)+(Summary!N17/12)*2 -> 111.1247159 | Y68: =D$28*MIN(I23,$L$64)+IF($L$64-I23>0,D$29*($L$64-I23))+ROUND($P$14*365/12,2)+(Summary!N17/12)*2 -> 109.7722945 | Z68: =D$28*MIN(J23,$L$64)+IF($L$64-J23>0,D$29*($L$64-J23))+ROUND($P$14*365/12,2)+(Summary!N17/12)*2 -> 110.5317461 | AA68: =E$28*MIN(I23,$L$64)+IF($L$64-I23>0,E$29*($L$64-I23))+ROUND($P$14*365/12,2)+(Summary!N17/12)*2 -> 95.19138865 | AB68: =E$28*MIN(J23,$L$64)+IF($L$64-J23>0,E$29*($L$64-J23))+ROUND($P$14*365/12,2)+(Summary!N17/12)*2 -> 95.86108601 | AC68: =F$28*MIN(I23,$L$64)+IF($L$64-I23>0,F$29*($L$64-I23))+ROUND($P$14*365/12,2)+(Summary!N17/12)*2 -> 116.4902099 | AD68: =F$28*MIN(J23,$L$64)+IF($L$64-J23>0,F$29*($L$64-J23))+ROUND($P$14*365/12,2)+(Summary!N17/12)*2 -> 117.2910144
B69: 8 cool | C69: =C$22*MIN(K24,X24)+IF(X24-K24>0,C$23*(X24-K24))+ROUND($F$14*365/12,2)+(Summary!N17/12)*2 -> 122.9833027 | D69: =C$22*MIN(L24,Y24)+IF(Y24-L24>0,C$23*(Y24-L24))+ROUND($F$14*365/12,2)+(Summary!N17/12)*2 -> 111.2872493 | E69: =D$22*MIN(K24,X24)+IF(X24-K24>0,D$23*(X24-K24))+ROUND($F$14*365/12,2)+(Summary!N17/12)*2 -> 122.3372542 | F69: =D$22*MIN(L24,Y24)+IF(Y24-L24>0,D$23*(Y24-L24))+ROUND($F$14*365/12,2)+(Summary!N17/12)*2 -> 110.6961009 | G69: =E$22*MIN(K24,X24)+IF(X24-K24>0,E$23*(X24-K24))+ROUND($F$14*365/12,2)+(Summary!N17/12)*2 -> 106.2962017 | H69: =E$22*MIN(L24,Y24)+IF(Y24-L24>0,E$23*(Y24-L24))+ROUND($F$14*365/12,2)+(Summary!N17/12)*2 -> 96.0308353 | I69: =F$22*MIN(K24,X24)+IF(X24-K24>0,F$23*(X24-K24))+ROUND($F$14*365/12,2)+(Summary!N17/12)*2 -> 129.7279084 | J69: =F$22*MIN(L24,Y24)+IF(Y24-L24>0,F$23*(Y24-L24))+ROUND($F$14*365/12,2)+(Summary!N17/12)*2 -> 117.4528838 | L69: 8 cool | M69: =C$22*MIN(I24,$L$64)+IF($L$64-I24>0,C$23*($L$64-I24))+ROUND($F$14*365/12,2)+(Summary!N17/12)*2 -> 166.0012022 | N69: =C$22*MIN(J24,$L$64)+IF($L$64-J24>0,C$23*($L$64-J24))+ROUND($F$14*365/12,2)+(Summary!N17/12)*2 -> 173.3294179 | O69: =D$22*MIN(I24,$L$64)+IF($L$64-I24>0,D$23*($L$64-I24))+ROUND($F$14*365/12,2)+(Summary!N17/12)*2 -> 165.1514041 | P69: =D$22*MIN(J24,$L$64)+IF($L$64-J24>0,D$23*($L$64-J24))+ROUND($F$14*365/12,2)+(Summary!N17/12)*2 -> 172.4454007 | Q69: =E$22*MIN(I24,$L$64)+IF($L$64-I24>0,E$23*($L$64-I24))+ROUND($F$14*365/12,2)+(Summary!N17/12)*2 -> 144.0504456 | R69: =E$22*MIN(J24,$L$64)+IF($L$64-J24>0,E$23*($L$64-J24))+ROUND($F$14*365/12,2)+(Summary!N17/12)*2 -> 150.4824156 | S69: =F$22*MIN(I24,$L$64)+IF($L$64-I24>0,F$23*($L$64-I24))+ROUND($F$14*365/12,2)+(Summary!N17/12)*2 -> 174.8733278 | T69: =F$22*MIN(J24,$L$64)+IF($L$64-J24>0,F$23*($L$64-J24))+ROUND($F$14*365/12,2)+(Summary!N17/12)*2 -> 182.5644892 | V69: 8 cool | W69: =C$28*MIN(I24,$L$64)+IF($L$64-I24>0,C$29*($L$64-I24))+ROUND($P$14*365/12,2)+(Summary!N17/12)*2 -> 107.6913058 | X69: =C$28*MIN(J24,$L$64)+IF($L$64-J24>0,C$29*($L$64-J24))+ROUND($P$14*365/12,2)+(Summary!N17/12)*2 -> 112.4599309 | Y69: =D$28*MIN(I24,$L$64)+IF($L$64-I24>0,D$29*($L$64-I24))+ROUND($P$14*365/12,2)+(Summary!N17/12)*2 -> 107.1142137 | Z69: =D$28*MIN(J24,$L$64)+IF($L$64-J24>0,D$29*($L$64-J24))+ROUND($P$14*365/12,2)+(Summary!N17/12)*2 -> 111.8607865 | AA69: =E$28*MIN(I24,$L$64)+IF($L$64-I24>0,E$29*($L$64-I24))+ROUND($P$14*365/12,2)+(Summary!N17/12)*2 -> 92.8474479 | AB69: =E$28*MIN(J24,$L$64)+IF($L$64-J24>0,E$29*($L$64-J24))+ROUND($P$14*365/12,2)+(Summary!N17/12)*2 -> 97.03305638 | AC69: =F$28*MIN(I24,$L$64)+IF($L$64-I24>0,F$29*($L$64-I24))+ROUND($P$14*365/12,2)+(Summary!N17/12)*2 -> 113.6873942 | AD69: =F$28*MIN(J24,$L$64)+IF($L$64-J24>0,F$29*($L$64-J24))+ROUND($P$14*365/12,2)+(Summary!N17/12)*2 -> 118.6924223
B70: 9 warm | C70: =C$22*MIN(K25,X25)+IF(X25-K25>0,C$23*(X25-K25))+ROUND($F$14*365/12,2)+(Summary!N17/12)*2 -> 157.9399372 | D70: =C$22*MIN(L25,Y25)+IF(Y25-L25>0,C$23*(Y25-L25))+ROUND($F$14*365/12,2)+(Summary!N17/12)*2 -> 120.3340578 | E70: =D$22*MIN(K25,X25)+IF(X25-K25>0,D$23*(X25-K25))+ROUND($F$14*365/12,2)+(Summary!N17/12)*2 -> 157.1282805 | F70: =D$22*MIN(L25,Y25)+IF(Y25-L25>0,D$23*(Y25-L25))+ROUND($F$14*365/12,2)+(Summary!N17/12)*2 -> 119.7000157 | G70: =E$22*MIN(K25,X25)+IF(X25-K25>0,E$23*(X25-K25))+ROUND($F$14*365/12,2)+(Summary!N17/12)*2 -> 136.9755191 | H70: =E$22*MIN(L25,Y25)+IF(Y25-L25>0,E$23*(Y25-L25))+ROUND($F$14*365/12,2)+(Summary!N17/12)*2 -> 103.9706402 | I70: =F$22*MIN(K25,X25)+IF(X25-K25>0,F$23*(X25-K25))+ROUND($F$14*365/12,2)+(Summary!N17/12)*2 -> 166.4133379 | J70: =F$22*MIN(L25,Y25)+IF(Y25-L25>0,F$23*(Y25-L25))+ROUND($F$14*365/12,2)+(Summary!N17/12)*2 -> 126.94707 | L70: 9 warm | M70: =C$22*MIN(I25,$L$64)+IF($L$64-I25>0,C$23*($L$64-I25))+ROUND($F$14*365/12,2)+(Summary!N17/12)*2 -> 155.3366667 | N70: =C$22*MIN(J25,$L$64)+IF($L$64-J25>0,C$23*($L$64-J25))+ROUND($F$14*365/12,2)+(Summary!N17/12)*2 -> 168.3462312 | O70: =D$22*MIN(I25,$L$64)+IF($L$64-I25>0,D$23*($L$64-I25))+ROUND($F$14*365/12,2)+(Summary!N17/12)*2 -> 154.5366667 | P70: =D$22*MIN(J25,$L$64)+IF($L$64-J25>0,D$23*($L$64-J25))+ROUND($F$14*365/12,2)+(Summary!N17/12)*2 -> 167.485483 | Q70: =E$22*MIN(I25,$L$64)+IF($L$64-I25>0,E$23*($L$64-I25))+ROUND($F$14*365/12,2)+(Summary!N17/12)*2 -> 134.69019 | R70: =E$22*MIN(J25,$L$64)+IF($L$64-J25>0,E$23*($L$64-J25))+ROUND($F$14*365/12,2)+(Summary!N17/12)*2 -> 146.108676 | S70: =F$22*MIN(I25,$L$64)+IF($L$64-I25>0,F$23*($L$64-I25))+ROUND($F$14*365/12,2)+(Summary!N17/12)*2 -> 163.6806083 | T70: =F$22*MIN(J25,$L$64)+IF($L$64-J25>0,F$23*($L$64-J25))+ROUND($F$14*365/12,2)+(Summary!N17/12)*2 -> 177.3344995 | V70: 9 warm | W70: =C$28*MIN(I25,$L$64)+IF($L$64-I25>0,C$29*($L$64-I25))+ROUND($P$14*365/12,2)+(Summary!N17/12)*2 -> 100.7516667 | X70: =C$28*MIN(J25,$L$64)+IF($L$64-J25>0,C$29*($L$64-J25))+ROUND($P$14*365/12,2)+(Summary!N17/12)*2 -> 109.2172658 | Y70: =D$28*MIN(I25,$L$64)+IF($L$64-I25>0,D$29*($L$64-I25))+ROUND($P$14*365/12,2)+(Summary!N17/12)*2 -> 100.2066667 | Z70: =D$28*MIN(J25,$L$64)+IF($L$64-J25>0,D$29*($L$64-J25))+ROUND($P$14*365/12,2)+(Summary!N17/12)*2 -> 108.633117 | AA70: =E$28*MIN(I25,$L$64)+IF($L$64-I25>0,E$29*($L$64-I25))+ROUND($P$14*365/12,2)+(Summary!N17/12)*2 -> 86.75625575 | AB70: =E$28*MIN(J25,$L$64)+IF($L$64-J25>0,E$29*($L$64-J25))+ROUND($P$14*365/12,2)+(Summary!N17/12)*2 -> 94.18684262 | AC70: =F$28*MIN(I25,$L$64)+IF($L$64-I25>0,F$29*($L$64-I25))+ROUND($P$14*365/12,2)+(Summary!N17/12)*2 -> 106.4037249 | AD70: =F$28*MIN(J25,$L$64)+IF($L$64-J25>0,F$29*($L$64-J25))+ROUND($P$14*365/12,2)+(Summary!N17/12)*2 -> 115.2890032
B71: 10 hot (Sec 745) | C71: =C$22*MIN(K26,X26)+IF(X26-K26>0,C$23*(X26-K26))+ROUND($F$14*365/12,2)+(Summary!N17/12)*2 -> 188.5980899 | D71: =C$22*MIN(L26,Y26)+IF(Y26-L26>0,C$23*(Y26-L26))+ROUND($F$14*365/12,2)+(Summary!N17/12)*2 -> 138.3939334 | E71: =D$22*MIN(K26,X26)+IF(X26-K26>0,D$23*(X26-K26))+ROUND($F$14*365/12,2)+(Summary!N17/12)*2 -> 187.641006 | F71: =D$22*MIN(L26,Y26)+IF(Y26-L26>0,D$23*(Y26-L26))+ROUND($F$14*365/12,2)+(Summary!N17/12)*2 -> 137.674264 | G71: =E$22*MIN(K26,X26)+IF(X26-K26>0,E$23*(X26-K26))+ROUND($F$14*365/12,2)+(Summary!N17/12)*2 -> 163.8821582 | H71: =E$22*MIN(L26,Y26)+IF(Y26-L26>0,E$23*(Y26-L26))+ROUND($F$14*365/12,2)+(Summary!N17/12)*2 -> 119.8206372 | I71: =F$22*MIN(K26,X26)+IF(X26-K26>0,F$23*(X26-K26))+ROUND($F$14*365/12,2)+(Summary!N17/12)*2 -> 198.5875091 | J71: =F$22*MIN(L26,Y26)+IF(Y26-L26>0,F$23*(Y26-L26))+ROUND($F$14*365/12,2)+(Summary!N17/12)*2 -> 145.9000324 | L71: 10 hot (Sec 745) | M71: =C$22*MIN(I26,$L$64)+IF($L$64-I26>0,C$23*($L$64-I26))+ROUND($F$14*365/12,2)+(Summary!N17/12)*2 -> 155.3366667 | N71: =C$22*MIN(J26,$L$64)+IF($L$64-J26>0,C$23*($L$64-J26))+ROUND($F$14*365/12,2)+(Summary!N17/12)*2 -> 168.0531026 | O71: =D$22*MIN(I26,$L$64)+IF($L$64-I26>0,D$23*($L$64-I26))+ROUND($F$14*365/12,2)+(Summary!N17/12)*2 -> 154.5366667 | P71: =D$22*MIN(J26,$L$64)+IF($L$64-J26>0,D$23*($L$64-J26))+ROUND($F$14*365/12,2)+(Summary!N17/12)*2 -> 167.1937231 | Q71: =E$22*MIN(I26,$L$64)+IF($L$64-I26>0,E$23*($L$64-I26))+ROUND($F$14*365/12,2)+(Summary!N17/12)*2 -> 134.69019 | R71: =E$22*MIN(J26,$L$64)+IF($L$64-J26>0,E$23*($L$64-J26))+ROUND($F$14*365/12,2)+(Summary!N17/12)*2 -> 145.8513972 | S71: =F$22*MIN(I26,$L$64)+IF($L$64-I26>0,F$23*($L$64-I26))+ROUND($F$14*365/12,2)+(Summary!N17/12)*2 -> 163.6806083 | T71: =F$22*MIN(J26,$L$64)+IF($L$64-J26>0,F$23*($L$64-J26))+ROUND($F$14*365/12,2)+(Summary!N17/12)*2 -> 177.026853 | V71: 10 hot (Sec 745) | W71: =C$28*MIN(I26,$L$64)+IF($L$64-I26>0,C$29*($L$64-I26))+ROUND($P$14*365/12,2)+(Summary!N17/12)*2 -> 100.7516667 | X71: =C$28*MIN(J26,$L$64)+IF($L$64-J26>0,C$29*($L$64-J26))+ROUND($P$14*365/12,2)+(Summary!N17/12)*2 -> 109.0265208 | Y71: =D$28*MIN(I26,$L$64)+IF($L$64-I26>0,D$29*($L$64-I26))+ROUND($P$14*365/12,2)+(Summary!N17/12)*2 -> 100.2066667 | Z71: =D$28*MIN(J26,$L$64)+IF($L$64-J26>0,D$29*($L$64-J26))+ROUND($P$14*365/12,2)+(Summary!N17/12)*2 -> 108.4432541 | AA71: =E$28*MIN(I26,$L$64)+IF($L$64-I26>0,E$29*($L$64-I26))+ROUND($P$14*365/12,2)+(Summary!N17/12)*2 -> 86.75625575 | AB71: =E$28*MIN(J26,$L$64)+IF($L$64-J26>0,E$29*($L$64-J26))+ROUND($P$14*365/12,2)+(Summary!N17/12)*2 -> 94.01941828 | AC71: =F$28*MIN(I26,$L$64)+IF($L$64-I26>0,F$29*($L$64-I26))+ROUND($P$14*365/12,2)+(Summary!N17/12)*2 -> 106.4037249 | AD71: =F$28*MIN(J26,$L$64)+IF($L$64-J26>0,F$29*($L$64-J26))+ROUND($P$14*365/12,2)+(Summary!N17/12)*2 -> 115.088802
B72: 13 hot | C72: =C$22*MIN(K27,X27)+IF(X27-K27>0,C$23*(X27-K27))+ROUND($F$14*365/12,2)+(Summary!N17/12)*2 -> 302.9125094 | D72: =C$22*MIN(L27,Y27)+IF(Y27-L27>0,C$23*(Y27-L27))+ROUND($F$14*365/12,2)+(Summary!N17/12)*2 -> 189.0882177 | E72: =D$22*MIN(K27,X27)+IF(X27-K27>0,D$23*(X27-K27))+ROUND($F$14*365/12,2)+(Summary!N17/12)*2 -> 301.4138907 | F72: =D$22*MIN(L27,Y27)+IF(Y27-L27>0,D$23*(Y27-L27))+ROUND($F$14*365/12,2)+(Summary!N17/12)*2 -> 188.1281914 | G72: =E$22*MIN(K27,X27)+IF(X27-K27>0,E$23*(X27-K27))+ROUND($F$14*365/12,2)+(Summary!N17/12)*2 -> 264.2090183 | H72: =E$22*MIN(L27,Y27)+IF(Y27-L27>0,E$23*(Y27-L27))+ROUND($F$14*365/12,2)+(Summary!N17/12)*2 -> 164.3117665 | I72: =F$22*MIN(K27,X27)+IF(X27-K27>0,F$23*(X27-K27))+ROUND($F$14*365/12,2)+(Summary!N17/12)*2 -> 318.5554311 | J72: =F$22*MIN(L27,Y27)+IF(Y27-L27>0,F$23*(Y27-L27))+ROUND($F$14*365/12,2)+(Summary!N17/12)*2 -> 199.1012222 | L72: 13 hot | M72: =C$22*MIN(I27,$L$64)+IF($L$64-I27>0,C$23*($L$64-I27))+ROUND($F$14*365/12,2)+(Summary!N17/12)*2 -> 155.3366667 | N72: =C$22*MIN(J27,$L$64)+IF($L$64-J27>0,C$23*($L$64-J27))+ROUND($F$14*365/12,2)+(Summary!N17/12)*2 -> 167.7599739 | O72: =D$22*MIN(I27,$L$64)+IF($L$64-I27>0,D$23*($L$64-I27))+ROUND($F$14*365/12,2)+(Summary!N17/12)*2 -> 154.5366667 | P72: =D$22*MIN(J27,$L$64)+IF($L$64-J27>0,D$23*($L$64-J27))+ROUND($F$14*365/12,2)+(Summary!N17/12)*2 -> 166.9019633 | Q72: =E$22*MIN(I27,$L$64)+IF($L$64-I27>0,E$23*($L$64-I27))+ROUND($F$14*365/12,2)+(Summary!N17/12)*2 -> 134.69019 | R72: =E$22*MIN(J27,$L$64)+IF($L$64-J27>0,E$23*($L$64-J27))+ROUND($F$14*365/12,2)+(Summary!N17/12)*2 -> 145.5941184 | S72: =F$22*MIN(I27,$L$64)+IF($L$64-I27>0,F$23*($L$64-I27))+ROUND($F$14*365/12,2)+(Summary!N17/12)*2 -> 163.6806083 | T72: =F$22*MIN(J27,$L$64)+IF($L$64-J27>0,F$23*($L$64-J27))+ROUND($F$14*365/12,2)+(Summary!N17/12)*2 -> 176.7192066 | V72: 13 hot | W72: =C$28*MIN(I27,$L$64)+IF($L$64-I27>0,C$29*($L$64-I27))+ROUND($P$14*365/12,2)+(Summary!N17/12)*2 -> 100.7516667 | X72: =C$28*MIN(J27,$L$64)+IF($L$64-J27>0,C$29*($L$64-J27))+ROUND($P$14*365/12,2)+(Summary!N17/12)*2 -> 108.8357758 | Y72: =D$28*MIN(I27,$L$64)+IF($L$64-I27>0,D$29*($L$64-I27))+ROUND($P$14*365/12,2)+(Summary!N17/12)*2 -> 100.2066667 | Z72: =D$28*MIN(J27,$L$64)+IF($L$64-J27>0,D$29*($L$64-J27))+ROUND($P$14*365/12,2)+(Summary!N17/12)*2 -> 108.2533912 | AA72: =E$28*MIN(I27,$L$64)+IF($L$64-I27>0,E$29*($L$64-I27))+ROUND($P$14*365/12,2)+(Summary!N17/12)*2 -> 86.75625575 | AB72: =E$28*MIN(J27,$L$64)+IF($L$64-J27>0,E$29*($L$64-J27))+ROUND($P$14*365/12,2)+(Summary!N17/12)*2 -> 93.85199394 | AC72: =F$28*MIN(I27,$L$64)+IF($L$64-I27>0,F$29*($L$64-I27))+ROUND($P$14*365/12,2)+(Summary!N17/12)*2 -> 106.4037249 | AD72: =F$28*MIN(J27,$L$64)+IF($L$64-J27>0,F$29*($L$64-J27))+ROUND($P$14*365/12,2)+(Summary!N17/12)*2 -> 114.8886009
B73: 14 hot | C73: =C$22*MIN(K28,X28)+IF(X28-K28>0,C$23*(X28-K28))+ROUND($F$14*365/12,2)+(Summary!N17/12)*2 -> 230.8261685 | D73: =C$22*MIN(L28,Y28)+IF(Y28-L28>0,C$23*(Y28-L28))+ROUND($F$14*365/12,2)+(Summary!N17/12)*2 -> 190.5874874 | E73: =D$22*MIN(K28,X28)+IF(X28-K28>0,D$23*(X28-K28))+ROUND($F$14*365/12,2)+(Summary!N17/12)*2 -> 229.6691164 | F73: =D$22*MIN(L28,Y28)+IF(Y28-L28>0,D$23*(Y28-L28))+ROUND($F$14*365/12,2)+(Summary!N17/12)*2 -> 189.6203526 | G73: =E$22*MIN(K28,X28)+IF(X28-K28>0,E$23*(X28-K28))+ROUND($F$14*365/12,2)+(Summary!N17/12)*2 -> 200.943259 | H73: =E$22*MIN(L28,Y28)+IF(Y28-L28>0,E$23*(Y28-L28))+ROUND($F$14*365/12,2)+(Summary!N17/12)*2 -> 165.6275796 | I73: =F$22*MIN(K28,X28)+IF(X28-K28>0,F$23*(X28-K28))+ROUND($F$14*365/12,2)+(Summary!N17/12)*2 -> 242.9040884 | J73: =F$22*MIN(L28,Y28)+IF(Y28-L28>0,F$23*(Y28-L28))+ROUND($F$14*365/12,2)+(Summary!N17/12)*2 -> 200.6746329 | L73: 14 hot | M73: =C$22*MIN(I28,$L$64)+IF($L$64-I28>0,C$23*($L$64-I28))+ROUND($F$14*365/12,2)+(Summary!N17/12)*2 -> 155.3366667 | N73: =C$22*MIN(J28,$L$64)+IF($L$64-J28>0,C$23*($L$64-J28))+ROUND($F$14*365/12,2)+(Summary!N17/12)*2 -> 168.6393598 | O73: =D$22*MIN(I28,$L$64)+IF($L$64-I28>0,D$23*($L$64-I28))+ROUND($F$14*365/12,2)+(Summary!N17/12)*2 -> 154.5366667 | P73: =D$22*MIN(J28,$L$64)+IF($L$64-J28>0,D$23*($L$64-J28))+ROUND($F$14*365/12,2)+(Summary!N17/12)*2 -> 167.7772429 | Q73: =E$22*MIN(I28,$L$64)+IF($L$64-I28>0,E$23*($L$64-I28))+ROUND($F$14*365/12,2)+(Summary!N17/12)*2 -> 134.69019 | R73: =E$22*MIN(J28,$L$64)+IF($L$64-J28>0,E$23*($L$64-J28))+ROUND($F$14*365/12,2)+(Summary!N17/12)*2 -> 146.3659548 | S73: =F$22*MIN(I28,$L$64)+IF($L$64-I28>0,F$23*($L$64-I28))+ROUND($F$14*365/12,2)+(Summary!N17/12)*2 -> 163.6806083 | T73: =F$22*MIN(J28,$L$64)+IF($L$64-J28>0,F$23*($L$64-J28))+ROUND($F$14*365/12,2)+(Summary!N17/12)*2 -> 177.6421459 | V73: 14 hot | W73: =C$28*MIN(I28,$L$64)+IF($L$64-I28>0,C$29*($L$64-I28))+ROUND($P$14*365/12,2)+(Summary!N17/12)*2 -> 100.7516667 | X73: =C$28*MIN(J28,$L$64)+IF($L$64-J28>0,C$29*($L$64-J28))+ROUND($P$14*365/12,2)+(Summary!N17/12)*2 -> 109.4080108 | Y73: =D$28*MIN(I28,$L$64)+IF($L$64-I28>0,D$29*($L$64-I28))+ROUND($P$14*365/12,2)+(Summary!N17/12)*2 -> 100.2066667 | Z73: =D$28*MIN(J28,$L$64)+IF($L$64-J28>0,D$29*($L$64-J28))+ROUND($P$14*365/12,2)+(Summary!N17/12)*2 -> 108.8229799 | AA73: =E$28*MIN(I28,$L$64)+IF($L$64-I28>0,E$29*($L$64-I28))+ROUND($P$14*365/12,2)+(Summary!N17/12)*2 -> 86.75625575 | AB73: =E$28*MIN(J28,$L$64)+IF($L$64-J28>0,E$29*($L$64-J28))+ROUND($P$14*365/12,2)+(Summary!N17/12)*2 -> 94.35426696 | AC73: =F$28*MIN(I28,$L$64)+IF($L$64-I28>0,F$29*($L$64-I28))+ROUND($P$14*365/12,2)+(Summary!N17/12)*2 -> 106.4037249 | AD73: =F$28*MIN(J28,$L$64)+IF($L$64-J28>0,F$29*($L$64-J28))+ROUND($P$14*365/12,2)+(Summary!N17/12)*2 -> 115.4892043
B74: 15 hot | C74: =C$22*MIN(K29,X29)+IF(X29-K29>0,C$23*(X29-K29))+ROUND($F$14*365/12,2)+(Summary!N17/12)*2 -> 283.1357388 | D74: =C$22*MIN(L29,Y29)+IF(Y29-L29>0,C$23*(Y29-L29))+ROUND($F$14*365/12,2)+(Summary!N17/12)*2 -> 143.1807737 | E74: =D$22*MIN(K29,X29)+IF(X29-K29>0,D$23*(X29-K29))+ROUND($F$14*365/12,2)+(Summary!N17/12)*2 -> 281.730605 | F74: =D$22*MIN(L29,Y29)+IF(Y29-L29>0,D$23*(Y29-L29))+ROUND($F$14*365/12,2)+(Summary!N17/12)*2 -> 142.4384084 | G74: =E$22*MIN(K29,X29)+IF(X29-K29>0,E$23*(X29-K29))+ROUND($F$14*365/12,2)+(Summary!N17/12)*2 -> 246.8519631 | H74: =E$22*MIN(L29,Y29)+IF(Y29-L29>0,E$23*(Y29-L29))+ROUND($F$14*365/12,2)+(Summary!N17/12)*2 -> 124.0217406 | I74: =F$22*MIN(K29,X29)+IF(X29-K29>0,F$23*(X29-K29))+ROUND($F$14*365/12,2)+(Summary!N17/12)*2 -> 297.8003726 | J74: =F$22*MIN(L29,Y29)+IF(Y29-L29>0,F$23*(Y29-L29))+ROUND($F$14*365/12,2)+(Summary!N17/12)*2 -> 150.9235889 | L74: 15 hot | M74: =C$22*MIN(I29,$L$64)+IF($L$64-I29>0,C$23*($L$64-I29))+ROUND($F$14*365/12,2)+(Summary!N17/12)*2 -> 155.3366667 | N74: =C$22*MIN(J29,$L$64)+IF($L$64-J29>0,C$23*($L$64-J29))+ROUND($F$14*365/12,2)+(Summary!N17/12)*2 -> 175.0881897 | O74: =D$22*MIN(I29,$L$64)+IF($L$64-I29>0,D$23*($L$64-I29))+ROUND($F$14*365/12,2)+(Summary!N17/12)*2 -> 154.5366667 | P74: =D$22*MIN(J29,$L$64)+IF($L$64-J29>0,D$23*($L$64-J29))+ROUND($F$14*365/12,2)+(Summary!N17/12)*2 -> 174.1959599 | Q74: =E$22*MIN(I29,$L$64)+IF($L$64-I29>0,E$23*($L$64-I29))+ROUND($F$14*365/12,2)+(Summary!N17/12)*2 -> 134.69019 | R74: =E$22*MIN(J29,$L$64)+IF($L$64-J29>0,E$23*($L$64-J29))+ROUND($F$14*365/12,2)+(Summary!N17/12)*2 -> 152.0260883 | S74: =F$22*MIN(I29,$L$64)+IF($L$64-I29>0,F$23*($L$64-I29))+ROUND($F$14*365/12,2)+(Summary!N17/12)*2 -> 163.6806083 | T74: =F$22*MIN(J29,$L$64)+IF($L$64-J29>0,F$23*($L$64-J29))+ROUND($F$14*365/12,2)+(Summary!N17/12)*2 -> 184.4103679 | V74: 15 hot | W74: =C$28*MIN(I29,$L$64)+IF($L$64-I29>0,C$29*($L$64-I29))+ROUND($P$14*365/12,2)+(Summary!N17/12)*2 -> 100.7516667 | X74: =C$28*MIN(J29,$L$64)+IF($L$64-J29>0,C$29*($L$64-J29))+ROUND($P$14*365/12,2)+(Summary!N17/12)*2 -> 113.604401 | Y74: =D$28*MIN(I29,$L$64)+IF($L$64-I29>0,D$29*($L$64-I29))+ROUND($P$14*365/12,2)+(Summary!N17/12)*2 -> 100.2066667 | Z74: =D$28*MIN(J29,$L$64)+IF($L$64-J29>0,D$29*($L$64-J29))+ROUND($P$14*365/12,2)+(Summary!N17/12)*2 -> 112.999964 | AA74: =E$28*MIN(I29,$L$64)+IF($L$64-I29>0,E$29*($L$64-I29))+ROUND($P$14*365/12,2)+(Summary!N17/12)*2 -> 86.75625575 | AB74: =E$28*MIN(J29,$L$64)+IF($L$64-J29>0,E$29*($L$64-J29))+ROUND($P$14*365/12,2)+(Summary!N17/12)*2 -> 98.03760242 | AC74: =F$28*MIN(I29,$L$64)+IF($L$64-I29>0,F$29*($L$64-I29))+ROUND($P$14*365/12,2)+(Summary!N17/12)*2 -> 106.4037249 | AD74: =F$28*MIN(J29,$L$64)+IF($L$64-J29>0,F$29*($L$64-J29))+ROUND($P$14*365/12,2)+(Summary!N17/12)*2 -> 119.893629
B75: 16 cool | C75: =C$22*MIN(K30,X30)+IF(X30-K30>0,C$23*(X30-K30))+ROUND($F$14*365/12,2)+(Summary!N17/12)*2 -> 139.6076363 | D75: =C$22*MIN(L30,Y30)+IF(Y30-L30>0,C$23*(Y30-L30))+ROUND($F$14*365/12,2)+(Summary!N17/12)*2 -> 183.7432825 | E75: =D$22*MIN(K30,X30)+IF(X30-K30>0,D$23*(X30-K30))+ROUND($F$14*365/12,2)+(Summary!N17/12)*2 -> 138.8824426 | F75: =D$22*MIN(L30,Y30)+IF(Y30-L30>0,D$23*(Y30-L30))+ROUND($F$14*365/12,2)+(Summary!N17/12)*2 -> 182.8085981 | G75: =E$22*MIN(K30,X30)+IF(X30-K30>0,E$23*(X30-K30))+ROUND($F$14*365/12,2)+(Summary!N17/12)*2 -> 120.8860296 | H75: =E$22*MIN(L30,Y30)+IF(Y30-L30>0,E$23*(Y30-L30))+ROUND($F$14*365/12,2)+(Summary!N17/12)*2 -> 159.6208589 | I75: =F$22*MIN(K30,X30)+IF(X30-K30>0,F$23*(X30-K30))+ROUND($F$14*365/12,2)+(Summary!N17/12)*2 -> 147.1739974 | J75: =F$22*MIN(L30,Y30)+IF(Y30-L30>0,F$23*(Y30-L30))+ROUND($F$14*365/12,2)+(Summary!N17/12)*2 -> 193.4919722 | L75: 16 cool | M75: =C$22*MIN(I30,$L$64)+IF($L$64-I30>0,C$23*($L$64-I30))+ROUND($F$14*365/12,2)+(Summary!N17/12)*2 -> 160.4317582 | N75: =C$22*MIN(J30,$L$64)+IF($L$64-J30>0,C$23*($L$64-J30))+ROUND($F$14*365/12,2)+(Summary!N17/12)*2 -> 167.1737167 | O75: =D$22*MIN(I30,$L$64)+IF($L$64-I30>0,D$23*($L$64-I30))+ROUND($F$14*365/12,2)+(Summary!N17/12)*2 -> 159.6079667 | P75: =D$22*MIN(J30,$L$64)+IF($L$64-J30>0,D$23*($L$64-J30))+ROUND($F$14*365/12,2)+(Summary!N17/12)*2 -> 166.3184435 | Q75: =E$22*MIN(I30,$L$64)+IF($L$64-I30>0,E$23*($L$64-I30))+ROUND($F$14*365/12,2)+(Summary!N17/12)*2 -> 139.1621484 | R75: =E$22*MIN(J30,$L$64)+IF($L$64-J30>0,E$23*($L$64-J30))+ROUND($F$14*365/12,2)+(Summary!N17/12)*2 -> 145.0795608 | S75: =F$22*MIN(I30,$L$64)+IF($L$64-I30>0,F$23*($L$64-I30))+ROUND($F$14*365/12,2)+(Summary!N17/12)*2 -> 169.0280452 | T75: =F$22*MIN(J30,$L$64)+IF($L$64-J30>0,F$23*($L$64-J30))+ROUND($F$14*365/12,2)+(Summary!N17/12)*2 -> 176.1039136 | V75: 16 cool | W75: =C$28*MIN(I30,$L$64)+IF($L$64-I30>0,C$29*($L$64-I30))+ROUND($P$14*365/12,2)+(Summary!N17/12)*2 -> 104.0671506 | X75: =C$28*MIN(J30,$L$64)+IF($L$64-J30>0,C$29*($L$64-J30))+ROUND($P$14*365/12,2)+(Summary!N17/12)*2 -> 108.4542858 | Y75: =D$28*MIN(I30,$L$64)+IF($L$64-I30>0,D$29*($L$64-I30))+ROUND($P$14*365/12,2)+(Summary!N17/12)*2 -> 103.5068183 | Z75: =D$28*MIN(J30,$L$64)+IF($L$64-J30>0,D$29*($L$64-J30))+ROUND($P$14*365/12,2)+(Summary!N17/12)*2 -> 107.8736653 | AA75: =E$28*MIN(I30,$L$64)+IF($L$64-I30>0,E$29*($L$64-I30))+ROUND($P$14*365/12,2)+(Summary!N17/12)*2 -> 89.66638546 | AB75: =E$28*MIN(J30,$L$64)+IF($L$64-J30>0,E$29*($L$64-J30))+ROUND($P$14*365/12,2)+(Summary!N17/12)*2 -> 93.51714526 | AC75: =F$28*MIN(I30,$L$64)+IF($L$64-I30>0,F$29*($L$64-I30))+ROUND($P$14*365/12,2)+(Summary!N17/12)*2 -> 109.8835728 | AD75: =F$28*MIN(J30,$L$64)+IF($L$64-J30>0,F$29*($L$64-J30))+ROUND($P$14*365/12,2)+(Summary!N17/12)*2 -> 114.4881987
B76: ALL | C76: =SUMPRODUCT(C67:C75,$AB$22:$AB$30) -> 157.7184258 | D76: =SUMPRODUCT(D67:D75,$AB$22:$AB$30) -> 128.8310289 | E76: =SUMPRODUCT(E67:E75,$AB$22:$AB$30) -> 156.9077203 | F76: 128.1567001 | G76: =SUMPRODUCT(G67:G75,$AB$22:$AB$30) -> 136.7810253 | H76: 111.427888 | I76: =SUMPRODUCT(I67:I75,$AB$22:$AB$30) -> 166.1807679 | J76: 135.8642285 | L76: ALL | M76: =SUMPRODUCT(M67:M75,$T$22:$T$30) -> 159.9305075 | N76: 169.947062 | O76: 159.1090565 | P76: 169.0788387 | Q76: 138.722201 | R76: 147.5137241 | S76: 168.501969 | T76: 179.0146148 | V76: ALL | W76: =SUMPRODUCT(W67:W75,$U$22:$U$30) -> 102.3477046 | X76: =SUMPRODUCT(X67:X75,$U$22:$U$30) -> 109.8294255 | Y76: 101.7953238 | Z76: 109.2424457 | AA76: 88.15716057 | AB76: 94.72415903 | AC76: 108.0788859 | AD76: 115.9315104
C79: All-Electric - CARE
C80: =C50 -> Jan 2024 | E80: 2024-06-01 | G80: Authorized | I80: w/Pending
C81: Summer | D81: Winter | E81: Summer | F81: Winter | G81: Summer | H81: Winter | I81: Summer | J81: Winter
B82: =B52 -> 5 warm | C82: =C$28*MIN(K22,Z22)+IF(Z22-K22>0,C$29*(Z22-K22))+ROUND($P$14*365/12,2)+(Summary!N17/12)*2 -> 73.76665719 | D82: =C$28*MIN(L22,AA22)+IF(AA22-L22>0,C$29*(AA22-L22))+ROUND($P$14*365/12,2)+(Summary!N17/12)*2 -> 103.9721913 | E82: =D$28*MIN(K22,Z22)+IF(Z22-K22>0,D$29*(Z22-K22))+ROUND($P$14*365/12,2)+(Summary!N17/12)*2 -> 73.35026398 | F82: =D$28*MIN(L22,AA22)+IF(AA22-L22>0,D$29*(AA22-L22))+ROUND($P$14*365/12,2)+(Summary!N17/12)*2 -> 103.4118427 | G82: =E$28*MIN(K22,Z22)+IF(Z22-K22>0,E$29*(Z22-K22))+ROUND($P$14*365/12,2)+(Summary!N17/12)*2 -> 63.07382417 | H82: =E$28*MIN(L22,AA22)+IF(AA22-L22>0,E$29*(AA22-L22))+ROUND($P$14*365/12,2)+(Summary!N17/12)*2 -> 89.58263436 | I82: =F$28*MIN(K22,Z22)+IF(Z22-K22>0,F$29*(Z22-K22))+ROUND($P$14*365/12,2)+(Summary!N17/12)*2 -> 78.08496664 | J82: =F$28*MIN(L22,AA22)+IF(AA22-L22>0,F$29*(AA22-L22))+ROUND($P$14*365/12,2)+(Summary!N17/12)*2 -> 109.7834257
B83: 6 cool | C83: =C$28*MIN(K23,Z23)+IF(Z23-K23>0,C$29*(Z23-K23))+ROUND($P$14*365/12,2)+(Summary!N17/12)*2 -> 73.26021609 | D83: =C$28*MIN(L23,AA23)+IF(AA23-L23>0,C$29*(AA23-L23))+ROUND($P$14*365/12,2)+(Summary!N17/12)*2 -> 75.98210254 | E83: =D$28*MIN(K23,Z23)+IF(Z23-K23>0,D$29*(Z23-K23))+ROUND($P$14*365/12,2)+(Summary!N17/12)*2 -> 72.84703799 | F83: =D$28*MIN(L23,AA23)+IF(AA23-L23>0,D$29*(AA23-L23))+ROUND($P$14*365/12,2)+(Summary!N17/12)*2 -> 75.5552096 | G83: =E$28*MIN(K23,Z23)+IF(Z23-K23>0,E$29*(Z23-K23))+ROUND($P$14*365/12,2)+(Summary!N17/12)*2 -> 62.63007095 | H83: =E$28*MIN(L23,AA23)+IF(AA23-L23>0,E$29*(AA23-L23))+ROUND($P$14*365/12,2)+(Summary!N17/12)*2 -> 65.01818263 | I83: =F$28*MIN(K23,Z23)+IF(Z23-K23>0,F$29*(Z23-K23))+ROUND($P$14*365/12,2)+(Summary!N17/12)*2 -> 77.55433953 | J83: =F$28*MIN(L23,AA23)+IF(AA23-L23>0,F$29*(AA23-L23))+ROUND($P$14*365/12,2)+(Summary!N17/12)*2 -> 80.40997356
B84: 8 cool | C84: =C$28*MIN(K24,Z24)+IF(Z24-K24>0,C$29*(Z24-K24))+ROUND($P$14*365/12,2)+(Summary!N17/12)*2 -> 82.73738261 | D84: =C$28*MIN(L24,AA24)+IF(AA24-L24>0,C$29*(AA24-L24))+ROUND($P$14*365/12,2)+(Summary!N17/12)*2 -> 76.22347842 | E84: =D$28*MIN(K24,Z24)+IF(Z24-K24>0,D$29*(Z24-K24))+ROUND($P$14*365/12,2)+(Summary!N17/12)*2 -> 82.279072 | F84: =D$28*MIN(L24,AA24)+IF(AA24-L24>0,D$29*(AA24-L24))+ROUND($P$14*365/12,2)+(Summary!N17/12)*2 -> 75.79550596 | G84: =E$28*MIN(K24,Z24)+IF(Z24-K24>0,E$29*(Z24-K24))+ROUND($P$14*365/12,2)+(Summary!N17/12)*2 -> 70.94739858 | H84: =E$28*MIN(L24,AA24)+IF(AA24-L24>0,E$29*(AA24-L24))+ROUND($P$14*365/12,2)+(Summary!N17/12)*2 -> 65.23008004 | I84: =F$28*MIN(K24,Z24)+IF(Z24-K24>0,F$29*(Z24-K24))+ROUND($P$14*365/12,2)+(Summary!N17/12)*2 -> 87.4999564 | J84: =F$28*MIN(L24,AA24)+IF(AA24-L24>0,F$29*(AA24-L24))+ROUND($P$14*365/12,2)+(Summary!N17/12)*2 -> 80.66335428
B85: 9 warm | C85: =C$28*MIN(K25,Z25)+IF(Z25-K25>0,C$29*(Z25-K25))+ROUND($P$14*365/12,2)+(Summary!N17/12)*2 -> 95.14934981 | D85: =C$28*MIN(L25,AA25)+IF(AA25-L25>0,C$29*(AA25-L25))+ROUND($P$14*365/12,2)+(Summary!N17/12)*2 -> 74.3297232 | E85: =D$28*MIN(K25,Z25)+IF(Z25-K25>0,D$29*(Z25-K25))+ROUND($P$14*365/12,2)+(Summary!N17/12)*2 -> 94.63171281 | F85: =D$28*MIN(L25,AA25)+IF(AA25-L25>0,D$29*(AA25-L25))+ROUND($P$14*365/12,2)+(Summary!N17/12)*2 -> 73.91064651 | G85: =E$28*MIN(K25,Z25)+IF(Z25-K25>0,E$29*(Z25-K25))+ROUND($P$14*365/12,2)+(Summary!N17/12)*2 -> 81.84016685 | H85: =E$28*MIN(L25,AA25)+IF(AA25-L25>0,E$29*(AA25-L25))+ROUND($P$14*365/12,2)+(Summary!N17/12)*2 -> 63.56797899 | I85: =F$28*MIN(K25,Z25)+IF(Z25-K25>0,F$29*(Z25-K25))+ROUND($P$14*365/12,2)+(Summary!N17/12)*2 -> 100.5252098 | J85: =F$28*MIN(L25,AA25)+IF(AA25-L25>0,F$29*(AA25-L25))+ROUND($P$14*365/12,2)+(Summary!N17/12)*2 -> 78.6758625
B86: 10 hot (Sec 745) | C86: =C$28*MIN(K26,Z26)+IF(Z26-K26>0,C$29*(Z26-K26))+ROUND($P$14*365/12,2)+(Summary!N17/12)*2 -> 126.5005105 | D86: =C$28*MIN(L26,AA26)+IF(AA26-L26>0,C$29*(AA26-L26))+ROUND($P$14*365/12,2)+(Summary!N17/12)*2 -> 85.50845497 | E86: =D$28*MIN(K26,Z26)+IF(Z26-K26>0,D$29*(Z26-K26))+ROUND($P$14*365/12,2)+(Summary!N17/12)*2 -> 125.8336924 | F86: =D$28*MIN(L26,AA26)+IF(AA26-L26>0,D$29*(AA26-L26))+ROUND($P$14*365/12,2)+(Summary!N17/12)*2 -> 85.03610199 | G86: =E$28*MIN(K26,Z26)+IF(Z26-K26>0,E$29*(Z26-K26))+ROUND($P$14*365/12,2)+(Summary!N17/12)*2 -> 109.3546019 | H86: =E$28*MIN(L26,AA26)+IF(AA26-L26>0,E$29*(AA26-L26))+ROUND($P$14*365/12,2)+(Summary!N17/12)*2 -> 73.37859441 | I86: =F$28*MIN(K26,Z26)+IF(Z26-K26>0,F$29*(Z26-K26))+ROUND($P$14*365/12,2)+(Summary!N17/12)*2 -> 133.4261656 | J86: =F$28*MIN(L26,AA26)+IF(AA26-L26>0,F$29*(AA26-L26))+ROUND($P$14*365/12,2)+(Summary!N17/12)*2 -> 90.40710919
B87: 13 hot | C87: =C$28*MIN(K27,Z27)+IF(Z27-K27>0,C$29*(Z27-K27))+ROUND($P$14*365/12,2)+(Summary!N17/12)*2 -> 192.9741174 | D87: =C$28*MIN(L27,AA27)+IF(AA27-L27>0,C$29*(AA27-L27))+ROUND($P$14*365/12,2)+(Summary!N17/12)*2 -> 117.1448796 | E87: =D$28*MIN(K27,Z27)+IF(Z27-K27>0,D$29*(Z27-K27))+ROUND($P$14*365/12,2)+(Summary!N17/12)*2 -> 191.9907611 | F87: =D$28*MIN(L27,AA27)+IF(AA27-L27>0,D$29*(AA27-L27))+ROUND($P$14*365/12,2)+(Summary!N17/12)*2 -> 116.5217518 | G87: =E$28*MIN(K27,Z27)+IF(Z27-K27>0,E$29*(Z27-K27))+ROUND($P$14*365/12,2)+(Summary!N17/12)*2 -> 167.6930276 | H87: =E$28*MIN(L27,AA27)+IF(AA27-L27>0,E$29*(AA27-L27))+ROUND($P$14*365/12,2)+(Summary!N17/12)*2 -> 101.1431747 | I87: =F$28*MIN(K27,Z27)+IF(Z27-K27>0,F$29*(Z27-K27))+ROUND($P$14*365/12,2)+(Summary!N17/12)*2 -> 203.185547 | J87: =F$28*MIN(L27,AA27)+IF(AA27-L27>0,F$29*(AA27-L27))+ROUND($P$14*365/12,2)+(Summary!N17/12)*2 -> 123.6071814
B88: 14 hot | C88: =C$28*MIN(K28,Z28)+IF(Z28-K28>0,C$29*(Z28-K28))+ROUND($P$14*365/12,2)+(Summary!N17/12)*2 -> 169.7550222 | D88: =C$28*MIN(L28,AA28)+IF(AA28-L28>0,C$29*(AA28-L28))+ROUND($P$14*365/12,2)+(Summary!N17/12)*2 -> 141.7129067 | E88: =D$28*MIN(K28,Z28)+IF(Z28-K28>0,D$29*(Z28-K28))+ROUND($P$14*365/12,2)+(Summary!N17/12)*2 -> 168.882825 | F88: =D$28*MIN(L28,AA28)+IF(AA28-L28>0,D$29*(AA28-L28))+ROUND($P$14*365/12,2)+(Summary!N17/12)*2 -> 140.9729507 | G88: =E$28*MIN(K28,Z28)+IF(Z28-K28>0,E$29*(Z28-K28))+ROUND($P$14*365/12,2)+(Summary!N17/12)*2 -> 147.3160574 | H88: =E$28*MIN(L28,AA28)+IF(AA28-L28>0,E$29*(AA28-L28))+ROUND($P$14*365/12,2)+(Summary!N17/12)*2 -> 122.7046567 | I88: =F$28*MIN(K28,Z28)+IF(Z28-K28>0,F$29*(Z28-K28))+ROUND($P$14*365/12,2)+(Summary!N17/12)*2 -> 178.8193627 | J88: =F$28*MIN(L28,AA28)+IF(AA28-L28>0,F$29*(AA28-L28))+ROUND($P$14*365/12,2)+(Summary!N17/12)*2 -> 149.3897704
B89: 15 hot | C89: =C$28*MIN(K29,Z29)+IF(Z29-K29>0,C$29*(Z29-K29))+ROUND($P$14*365/12,2)+(Summary!N17/12)*2 -> 227.3219326 | D89: =C$28*MIN(L29,AA29)+IF(AA29-L29>0,C$29*(AA29-L29))+ROUND($P$14*365/12,2)+(Summary!N17/12)*2 -> 104.1551312 | E89: =D$28*MIN(K29,Z29)+IF(Z29-K29>0,D$29*(Z29-K29))+ROUND($P$14*365/12,2)+(Summary!N17/12)*2 -> 226.1759669 | F89: =D$28*MIN(L29,AA29)+IF(AA29-L29>0,D$29*(AA29-L29))+ROUND($P$14*365/12,2)+(Summary!N17/12)*2 -> 103.5939107 | G89: =E$28*MIN(K29,Z29)+IF(Z29-K29>0,E$29*(Z29-K29))+ROUND($P$14*365/12,2)+(Summary!N17/12)*2 -> 197.8381221 | H89: =E$28*MIN(L29,AA29)+IF(AA29-L29>0,E$29*(AA29-L29))+ROUND($P$14*365/12,2)+(Summary!N17/12)*2 -> 89.74318503 | I89: =F$28*MIN(K29,Z29)+IF(Z29-K29>0,F$29*(Z29-K29))+ROUND($P$14*365/12,2)+(Summary!N17/12)*2 -> 239.2321684 | J89: =F$28*MIN(L29,AA29)+IF(AA29-L29>0,F$29*(AA29-L29))+ROUND($P$14*365/12,2)+(Summary!N17/12)*2 -> 109.9754075
B90: 16 cool | C90: =C$28*MIN(K30,Z30)+IF(Z30-K30>0,C$29*(Z30-K30))+ROUND($P$14*365/12,2)+(Summary!N17/12)*2 -> 146.4841977 | D90: =C$28*MIN(L30,AA30)+IF(AA30-L30>0,C$29*(AA30-L30))+ROUND($P$14*365/12,2)+(Summary!N17/12)*2 -> 122.7525781 | E90: =D$28*MIN(K30,Z30)+IF(Z30-K30>0,D$29*(Z30-K30))+ROUND($P$14*365/12,2)+(Summary!N17/12)*2 -> 145.7232563 | F90: =D$28*MIN(L30,AA30)+IF(AA30-L30>0,D$29*(AA30-L30))+ROUND($P$14*365/12,2)+(Summary!N17/12)*2 -> 122.1027249 | G90: =E$28*MIN(K30,Z30)+IF(Z30-K30>0,E$29*(Z30-K30))+ROUND($P$14*365/12,2)+(Summary!N17/12)*2 -> 126.8935568 | H90: =E$28*MIN(L30,AA30)+IF(AA30-L30>0,E$29*(AA30-L30))+ROUND($P$14*365/12,2)+(Summary!N17/12)*2 -> 106.0645714 | I90: =F$28*MIN(K30,Z30)+IF(Z30-K30>0,F$29*(Z30-K30))+ROUND($P$14*365/12,2)+(Summary!N17/12)*2 -> 154.3987344 | J90: =F$28*MIN(L30,AA30)+IF(AA30-L30>0,F$29*(AA30-L30))+ROUND($P$14*365/12,2)+(Summary!N17/12)*2 -> 129.4920435
B91: ALL | C91: =SUMPRODUCT(C82:C90,$AC$22:$AC$30) -> 122.23289 | D91: =SUMPRODUCT(D82:D90,$AC$22:$AC$30) -> 89.91272402 | E91: 121.5865465 | F91: 89.41943284 | G91: 105.6093965 | H91: 77.24388992 | I91: 128.9477587 | J91: =SUMPRODUCT(J82:J90,$AC$22:$AC$30) -> 95.02911639
F95: 2024 | G95: 2025 | H95: 2026 | I95: 2027 | J95: 2028 | M95: 2024 | N95: 2025 | O95: 2026 | P95: 2027 | Q95: 2028
F96: Non-CARE | G96: Non-CARE | H96: Non-CARE | I96: Non-CARE | J96: Non-CARE | M96: CARE | N96: CARE | O96: CARE | P96: CARE | Q96: CARE
A97: 3 | D97: Baseline - Summer | F97: 3287.495023 | G97: 3032.807435 | H97: 3055.304287 | I97: 3237.557979 | J97: 3377.559548 | M97: 1689.937435 | N97: 1516.173081 | O97: 1307.780422 | P97: 1271.053725 | Q97: 1222.390317
A98: =A97+1 -> 4 | D98: - Winter | F98: 4300.402818 | G98: 4188.444716 | H98: 4855.047707 | I98: 5165.582922 | J98: 5479.050398 | M98: 2368.755339 | N98: 2166.604445 | O98: 2043.658492 | P98: 2000.926418 | Q98: 1961.500084
A99: =A98+1 -> 5 | D99: 101% - 400% of Baseline - Summer | F99: 2032.586852 | G99: 1875.769151 | H99: 1843.167153 | I99: 1959.810966 | J99: 2044.968462 | M99: 712.7216767 | N99: 638.1862236 | O99: 541.456694 | P99: 527.9987271 | Q99: 508.0555877
A100: 6 | D100: - Winter | F100: 2626.223182 | G100: 2551.776475 | H100: 2929.214882 | I100: 3096.980113 | J100: 3295.315998 | M100: 963.0257777 | N100: 878.9637574 | O100: 822.5373889 | P100: 797.4422387 | Q100: 785.5776148
A101: 7 | D101: 401% of Baseline - Summer | F101: 161.2501891 | G101: 148.8974464 | H101: 145.7511129 | I101: 155.2308471 | J101: 162.0989274 | M101: 8.134685164 | N101: 7.28850284 | O101: 6.12937808 | P101: 6.00397581 | Q101: 5.799047516
A102: 8 | D102: - Winter | F102: 264.3892374 | G102: 256.5313667 | H102: 291.5332271 | I102: 306.924138 | J102: 327.9959315 | M102: 18.41246945 | N102: 16.76289353 | O102: 15.37976678 | P102: 14.65855515 | Q102: 14.63297607
A103: 9
A104: 10 | D104: Basic Charge - Single-Family Residence | F104: 19603314.91 | G104: =$F107/SUM($F$107:$F$108)*G$108 -> 18581781 | H104: 19425328.93 | I104: 19184179.45 | J104: 19113717.36 | M104: 6331622.207 | N104: =$M107/SUM($M$107:$M$108)*N$108 -> 5733344.565 | O104: 5470296.022 | P104: 5359268.386 | Q104: 5281828.318
A105: 11 | D105: Basic Charge - Multi-Family Residence | F105: 8917593.383 | G105: 8452895.242 | H105: 8836627.15 | I105: 8726927.692 | J105: 8694874.325 | M105: 5316184.884 | N105: 4813856.341 | O105: 4592994.349 | P105: 4499772.831 | Q105: 4434752.255
F107: =F104/SUM(F$104:F$105) -> 0.6873313679 | G107: =SUM(G97:G102) -> 12054.22659 | H107: =SUM(H97:H102) -> 13120.01837 | I107: =SUM(I97:I102) -> 13922.08697 | J107: =SUM(J97:J102) -> 14686.98926 | M107: =M104/SUM(M$104:M$105) -> 0.5435892059 | N107: =SUM(N97:N102) -> 5223.978904 | O107: =SUM(O97:O102) -> 4736.942142 | P107: =SUM(P97:P102) -> 4618.083639 | Q107: =SUM(Q97:Q102) -> 4497.955627
E108: Customers | F108: =F105/SUM(F$104:F$105) -> 0.3126686321 | G108: 27034676.25 | H108: 28261956.08 | I108: 27911107.14 | J108: 27808591.69 | M108: =M105/SUM(M$104:M$105) -> 0.4564107941 | N108: 10547200.91 | O108: 10063290.37 | P108: 9859041.218 | Q108: 9716580.573

Sheet Simple Bill Insert Calc
B2: Inputs: | K2: Assumptions:
K3: Current Effective Rates | M3: =Summary!N3 -> 2024-06-01
C4: Baseline Region - (Residential bill) | D4: ALL | K4: Sales Forecast | M4: 2024
C5: Typical residential average usage kWh/month | D5: 500 | K5: Residential bill calculated using | M5: Schedule D, Basic, Single Family
C6: Include CA Climate Credit in Rates | D6: Y | K6: Non-CARE bill impact calculated with average summer usage of | O6: =IF($D$4="All",SUMPRODUCT('Res Bill Impact (2)'!P$22:P$30,'Res Bill Impact (2)'!$T$22:$T$30),VLOOKUP(D$4,'Res Bill Impact (2)'!$O$22:$S$30,2,FALSE)) -> 658.1837466 | P6: kWh per month
D7: Revenue Change (000's) | K7: Non-CARE bill impact calculated with average winter usage of | O7: =IF($D$4="All",SUMPRODUCT('Res Bill Impact (2)'!Q$22:Q$30,'Res Bill Impact (2)'!$T$22:$T$30),VLOOKUP(D$4,'Res Bill Impact (2)'!$O$22:$S$30,3,FALSE)) -> 456.6099615 | P7: kWh per month
C8: Generation | K8: CARE bill impact calculated with average summer usage of | O8: =IF($D$4="All",SUMPRODUCT('Res Bill Impact (2)'!R$22:R$30,'Res Bill Impact (2)'!$U$22:$U$30),VLOOKUP(D$4,'Res Bill Impact (2)'!$O$22:$S$30,4,FALSE)) -> 728.5398561 | P8: kWh per month
C9: Distribution | K9: CARE bill impact calculated with average winter usage of | O9: =IF($D$4="All",SUMPRODUCT('Res Bill Impact (2)'!S$22:S$30,'Res Bill Impact (2)'!$U$22:$U$30),VLOOKUP(D$4,'Res Bill Impact (2)'!$O$22:$S$30,5,FALSE)) -> 468.745257 | P9: kWh per month
C10: Nuclear | K10: Essential Use (Basic) bill impact calculated with average summer usage of | O10: =IF($D$4="All",SUMPRODUCT('Res Bill Impact (2)'!I$22:I$30,'Res Bill Impact (2)'!$T$22:$T$30),VLOOKUP($D$4,'Res Bill Impact (2)'!$H$22:$L$30,2,FALSE)) -> 526.609727 | P10: kWh per month
C11: Public Purpose | K11: Essential Use (Basic) bill impact calculated with average winter usage of | O11: =IF($D$4="All",SUMPRODUCT('Res Bill Impact (2)'!J$22:J$30,'Res Bill Impact (2)'!$T$22:$T$30),VLOOKUP($D$4,'Res Bill Impact (2)'!$H$22:$L$30,3,FALSE)) -> 348.416578 | P11: kWh per month
C12: CIA | K12: Essential Use (All-Electric) bill impact calculated with average summer usage of | O12: =IF($D$4="All",SUMPRODUCT('Res Bill Impact (2)'!K$22:K$30,'Res Bill Impact (2)'!$T$22:$T$30),VLOOKUP($D$4,'Res Bill Impact (2)'!$H$22:$L$30,4,FALSE)) -> 423.9594319 | P12: kWh per month
C13: New System Gen | K13: Essential Use (All-Electric) bill impact calculated with average winter usage of | O13: =IF($D$4="All",SUMPRODUCT('Res Bill Impact (2)'!L$22:L$30,'Res Bill Impact (2)'!$T$22:$T$30),VLOOKUP($D$4,'Res Bill Impact (2)'!$H$22:$L$30,5,FALSE)) -> 472.7512899 | P13: kWh per month
C14: FERC | K14: Average monthly usage is for all customers (Non-CARE and CARE) based on seasonal usage in | Q14: 2023
C15: TOTCA | K15: Summer season | M15: 4 | N15: months
C16: GHG Revenue | K16: Winter Season | M16: 8 | N16: months
C17: DWR | K17: Residential Bi-Annual Climate Credit | M17: -86
C18: PUCRF
C19: SECURITIZATION
C20: Total | D20: =SUM(D8:D19) -> 0
B21: Outputs:
D22: (A) | E22: (B) | F22: (C) | G22: (C)/(A) | H22: (C)/(B) | L22: (A) | M22: (B) | N22: (C) | O22: (C)/(A) | P22: (C)/(B)
B23: Bundled Average Rates - ¢/kWh | J23: Total System (Bundled and Unbundled) Average Rates - ¢/kWh
B24: Customer Group | D24: 2024-01-01 | E24: =M3 -> 2024-06-01 | F24: Proposed | G24: % Change over 1/1/2024 | H24: % Change over Current | J24: Customer Group | L24: =$D$24 -> 2024-01-01 | M24: =$E$24 -> 2024-06-01 | N24: Proposed | O24: =$G$24 -> % Change over 1/1/2024 | P24: % Change over Current
B25: Residential | D25: =IF(D6="Y",'SAR and RAR'!W28,'SAR and RAR'!X28) -> 30.21576573 | E25: ='SAR and RAR (2)'!F24 -> 30.05587964 | F25: ='SAR and RAR (2)'!G24 -> 30.05587964 | G25: =$F25/D25-1 -> -0.005291478945 | H25: 0 | J25: Total Residential (RAR) | L25: =IF(D6="Y",'SAR and RAR'!Z28,'SAR and RAR'!AA28) -> 26.00963349 | M25: ='SAR and RAR (2)'!N24 -> 26.13678142 | N25: ='SAR and RAR (2)'!O24 -> 26.13678142 | O25: =$N25/L25-1 -> 0.004888493712 | P25: 0
C26: Small Commercial | D26: =IF(D6="Y",'SAR and AR (GS1)'!W28,'SAR and AR (GS1)'!X28) -> 28.70282351 | E26: ='SAR and AR (GS1) (2)'!G24 -> 28.33235257 | F26: ='SAR and AR (GS1) (2)'!H24 -> 28.33235257 | G26: -0.01290712541 | H26: 0 | K26: Small Commercial (AR) | L26: =IF(D6="Y",'SAR and AR (GS1)'!Z28,'SAR and AR (GS1)'!AA28) -> 24.9349469 | M26: ='SAR and AR (GS1) (2)'!O24 -> 24.79512718 | N26: ='SAR and AR (GS1) (2)'!P24 -> 24.79512718 | O26: -0.005607379858 | P26: 0
B27: System | D27: =IF(D6="Y",'SAR and RAR'!W29,'SAR and RAR'!X29) -> 26.89367616 | E27: ='SAR and RAR (2)'!F25 -> 26.69150877 | F27: ='SAR and RAR (2)'!G25 -> 26.69150877 | G27: -0.007517283478 | H27: 0 | J27: Total System (SAR) | L27: =IF(D6="Y",'SAR and RAR'!Z29,'SAR and RAR'!AA29) -> 21.95032046 | M27: ='SAR and RAR (2)'!N25 -> 22.0164343 | N27: ='SAR and RAR (2)'!O25 -> 22.0164343 | O27: 0.003011976262 | P27: 0
B30: Bundled Residential Monthly Average Bills
D31: =$D$24 -> 2024-01-01 | E31: =$E$24 -> 2024-06-01 | F31: Proposed | G31: =$G$24 -> % Change over 1/1/2024 | H31: % Change over Current
B32: Non-CARE | D32: =((D39*4)+(D45*8))/12 -> 174.847481 | E32: 173.9557985 | F32: 173.9557985 | G32: =$F32/D32-1 -> -0.0050997732 | H32: 0
B33: CARE | D33: 121.5484978 | E33: 120.9055339 | F33: 120.9055339 | G33: -0.005289772673 | H33: 0
B34: Total | D34: 156.1928369 | E34: 155.3882059 | F34: 155.3882059 | G34: -0.00515152303 | H34: 0
B36: Seasonality:
B37: Bundled Residential Monthly Average Bills - Summer
D38: =$D$24 -> 2024-01-01 | E38: =$E$24 -> 2024-06-01 | F38: Proposed | G38: =$G$24 -> % Change over 1/1/2024 | H38: % Change over Current
B39: Non-CARE | D39: =VLOOKUP($D$4,'Res Bill Impact (2)'!$B$37:$H$46,2,FALSE) -> 222.2894692 | E39: =VLOOKUP($D$4,'Res Bill Impact (2)'!$B$37:$H$46,4,FALSE) -> 221.1730001 | F39: =VLOOKUP($D$4,'Res Bill Impact (2)'!$B$37:$H$46,6,FALSE) -> 221.1730001 | G39: =$F39/D39-1 -> -0.005022590731 | H39: 0
B40: CARE | D40: =VLOOKUP($D$4,'Res Bill Impact (2)'!$B$52:$H$61,2,FALSE) -> 163.202156 | E40: =VLOOKUP($D$4,'Res Bill Impact (2)'!$B$52:$H$61,4,FALSE) -> 162.3609652 | F40: =VLOOKUP($D$4,'Res Bill Impact (2)'!$B$52:$H$61,6,FALSE) -> 162.3609652 | G40: -0.005154286877 | H40: 0
B41: Total | D41: =D39*0.65+D40*0.35 -> 201.6089095 | E41: =E39*0.65+E40*0.35 -> 200.5887879 | F41: =F39*0.65+F40*0.35 -> 200.5887879 | G41: -0.005059903483 | H41: 0
B43: Bundled Residential Monthly Average Bills - Winter
D44: =$D$24 -> 2024-01-01 | E44: =$E$24 -> 2024-06-01 | F44: Proposed | G44: =$G$24 -> % Change over 1/1/2024 | H44: % Change over Current
B45: Non-CARE | D45: =VLOOKUP($D$4,'Res Bill Impact (2)'!$B$37:$H$46,3,FALSE) -> 151.1264869 | E45: =VLOOKUP($D$4,'Res Bill Impact (2)'!$B$37:$H$46,5,FALSE) -> 150.3471977 | F45: =VLOOKUP($D$4,'Res Bill Impact (2)'!$B$37:$H$46,7,FALSE) -> 150.3471977 | G45: =$F45/D45-1 -> -0.005156536414 | H45: 0
B46: CARE | D46: =VLOOKUP($D$4,'Res Bill Impact (2)'!$B$52:$H$61,3,FALSE) -> 100.7216688 | E46: =VLOOKUP($D$4,'Res Bill Impact (2)'!$B$52:$H$61,5,FALSE) -> 100.1778183 | F46: =VLOOKUP($D$4,'Res Bill Impact (2)'!$B$52:$H$61,7,FALSE) -> 100.1778183 | G46: -0.005399538399 | H46: 0
B47: Total | D47: =D45*0.65+D46*0.35 -> 133.4848006 | E47: =E45*0.65+E46*0.35 -> 132.7879149 | F47: =F45*0.65+F46*0.35 -> 132.7879149 | G47: -0.00522071187 | H47: 0
B50: Bundled Residential Monthly Average Bills
D51: =$D$24 -> 2024-01-01 | E51: =$E$24 -> 2024-06-01 | F51: =$F$24 -> Proposed | G51: =$G$24 -> % Change over 1/1/2024 | H51: % Change over Current
B52: Essential Use (Basic) - Non-CARE | D52: =((D59*4)+(D66*8))/12 -> 124.2276784 | E52: 123.5751756 | F52: 123.5751756 | G52: =$F52/D52-1 -> -0.00525247577 | H52: 0
B53: Essential Use (Basic) - CARE | D53: 84.23090481 | E53: 83.76464046 | F53: 83.76464046 | G53: -0.005535549588 | H53: 0
B54: Essential Use (All-Electric) - Non-CARE | D54: 140.6528835 | E54: 139.9225037 | F54: 139.9225037 | G54: -0.005192781843 | H54: 0
B55: Essential Use (All-Electric) - CARE | D55: =((D62*4)+(D69*8))/12 -> 101.0040584 | E55: =((E62*4)+(E69*8))/12 -> 100.4578555 | F55: =((F62*4)+(F69*8))/12 -> 100.4578555 | G55: -0.005407731853 | H55: 0
B57: Bundled Residential Monthly Average Bills - Summer
D58: =$D$24 -> 2024-01-01 | E58: =$E$24 -> 2024-06-01 | F58: =$F$24 -> Proposed | G58: =$G$24 -> % Change over 1/1/2024 | H58: % Change over Current
B59: Essential Use (Basic) - Non-CARE | D59: =IF($D$4="All",'Res Bill Impact (2)'!K46,('Res Bill Impact (2)'!C22*VLOOKUP($D$4,'Res Bill Impact (2)'!$H$22:$L$30,2,FALSE))+ROUND('Res Bill Impact (2)'!F14*365/12,2)) -> 164.3163851 | E59: =IF($D$4="All",'Res Bill Impact (2)'!M46,('Res Bill Impact (2)'!D22*VLOOKUP($D$4,'Res Bill Impact (2)'!$H$22:$L$30,2,FALSE))+ROUND('Res Bill Impact (2)'!F14*365/12,2)) -> 163.4738096 | F59: =IF($D$4="All",'Res Bill Impact (2)'!O46,('Res Bill Impact (2)'!E22*VLOOKUP($D$4,'Res Bill Impact (2)'!$H$22:$L$30,2,FALSE))+ROUND('Res Bill Impact (2)'!F14*365/12,2)) -> 163.4738096 | G59: =$F59/D59-1 -> -0.005127763506 | H59: 0
B60: Essential Use (Basic) - CARE | D60: =IF($D$4="all",'Res Bill Impact (2)'!S46,('Res Bill Impact (2)'!C28*VLOOKUP($D$4,'Res Bill Impact (2)'!$H$22:$L$30,2,FALSE))+ROUND('Res Bill Impact (2)'!P14*365/12,2)) -> 117.4027006 | E60: =IF($D$4="all",'Res Bill Impact (2)'!U46,('Res Bill Impact (2)'!D28*VLOOKUP($D$4,'Res Bill Impact (2)'!$H$22:$L$30,2,FALSE))+ROUND('Res Bill Impact (2)'!P14*365/12,2)) -> 116.7783441 | F60: =IF($D$4="all",'Res Bill Impact (2)'!W46,('Res Bill Impact (2)'!E28*VLOOKUP($D$4,'Res Bill Impact (2)'!$H$22:$L$30,2,FALSE))+ROUND('Res Bill Impact (2)'!P14*365/12,2)) -> 116.7783441 | G60: -0.005318076202 | H60: 0
B61: Essential Use (All-Electric) - Non-CARE | D61: =IF($D$4="all",'Res Bill Impact (2)'!K61,('Res Bill Impact (2)'!C22*VLOOKUP($D$4,'Res Bill Impact (2)'!$H$22:$L$30,4,FALSE))+ROUND('Res Bill Impact (2)'!F14*365/12,2)) -> 129.6760166 | E61: =IF($D$4="all",'Res Bill Impact (2)'!M61,('Res Bill Impact (2)'!D22*VLOOKUP($D$4,'Res Bill Impact (2)'!$H$22:$L$30,4,FALSE))+ROUND('Res Bill Impact (2)'!F14*365/12,2)) -> 128.9976815 | F61: =IF($D$4="all",'Res Bill Impact (2)'!O61,('Res Bill Impact (2)'!E22*VLOOKUP($D$4,'Res Bill Impact (2)'!$H$22:$L$30,4,FALSE))+ROUND('Res Bill Impact (2)'!F14*365/12,2)) -> 128.9976815 | G61: -0.005230998831 | H61: 0
B62: Essential Use (All-Electric) - CARE | D62: =IF($D$4="all",'Res Bill Impact (2)'!S61,('Res Bill Impact (2)'!C28*VLOOKUP($D$4,'Res Bill Impact (2)'!$H$22:$L$30,4,FALSE))+ROUND('Res Bill Impact (2)'!P14*365/12,2)) -> 96.12993791 | E62: =IF($D$4="all",'Res Bill Impact (2)'!U61,('Res Bill Impact (2)'!D28*VLOOKUP($D$4,'Res Bill Impact (2)'!$H$22:$L$30,4,FALSE))+ROUND('Res Bill Impact (2)'!P14*365/12,2)) -> 95.60696443 | F62: =IF($D$4="all",'Res Bill Impact (2)'!W61,('Res Bill Impact (2)'!E28*VLOOKUP($D$4,'Res Bill Impact (2)'!$H$22:$L$30,4,FALSE))+ROUND('Res Bill Impact (2)'!P14*365/12,2)) -> 95.60696443 | G62: -0.005440276941 | H62: 0
B64: Bundled Residential Monthly Average Bills - Winter
D65: =$D$24 -> 2024-01-01 | E65: =$E$24 -> 2024-06-01 | F65: =$F$24 -> Proposed | G65: =$G$24 -> % Change over 1/1/2024 | H65: % Change over Current
B66: Essential Use (Basic) - Non-CARE | D66: =IF($D$4="all",'Res Bill Impact (2)'!L46,('Res Bill Impact (2)'!C22*VLOOKUP($D$4,'Res Bill Impact (2)'!$H$22:$L$30,3,FALSE))+ROUND('Res Bill Impact (2)'!F14*365/12,2)) -> 104.1833251 | E66: =IF($D$4="all",'Res Bill Impact (2)'!N46,('Res Bill Impact (2)'!D22*VLOOKUP($D$4,'Res Bill Impact (2)'!$H$22:$L$30,3,FALSE))+ROUND('Res Bill Impact (2)'!F14*365/12,2)) -> 103.6258586 | F66: =IF($D$4="all",'Res Bill Impact (2)'!P46,('Res Bill Impact (2)'!E22*VLOOKUP($D$4,'Res Bill Impact (2)'!$H$22:$L$30,3,FALSE))+ROUND('Res Bill Impact (2)'!F14*365/12,2)) -> 103.6258586 | G66: =$F66/D66-1 -> -0.00535082293 | H66: 0
B67: Essential Use (Basic) - CARE | D67: =IF($D$4="all",'Res Bill Impact (2)'!T46,('Res Bill Impact (2)'!C28*VLOOKUP($D$4,'Res Bill Impact (2)'!$H$22:$L$30,3,FALSE))+ROUND('Res Bill Impact (2)'!P14*365/12,2)) -> 67.64500689 | E67: =IF($D$4="all",'Res Bill Impact (2)'!V46,('Res Bill Impact (2)'!D28*VLOOKUP($D$4,'Res Bill Impact (2)'!$H$22:$L$30,3,FALSE))+ROUND('Res Bill Impact (2)'!P14*365/12,2)) -> 67.25778862 | F67: =IF($D$4="all",'Res Bill Impact (2)'!X46,('Res Bill Impact (2)'!E28*VLOOKUP($D$4,'Res Bill Impact (2)'!$H$22:$L$30,3,FALSE))+ROUND('Res Bill Impact (2)'!P14*365/12,2)) -> 67.25778862 | G67: -0.005724269819 | H67: 0
B68: Essential Use (All-Electric) - Non-CARE | D68: =IF($D$4="all",'Res Bill Impact (2)'!L61,('Res Bill Impact (2)'!C22*VLOOKUP($D$4,'Res Bill Impact (2)'!$H$22:$L$30,5,FALSE))+ROUND('Res Bill Impact (2)'!F14*365/12,2)) -> 146.141317 | E68: =IF($D$4="all",'Res Bill Impact (2)'!N61,('Res Bill Impact (2)'!D22*VLOOKUP($D$4,'Res Bill Impact (2)'!$H$22:$L$30,5,FALSE))+ROUND('Res Bill Impact (2)'!F14*365/12,2)) -> 145.3849149 | F68: =IF($D$4="all",'Res Bill Impact (2)'!P61,('Res Bill Impact (2)'!E22*VLOOKUP($D$4,'Res Bill Impact (2)'!$H$22:$L$30,5,FALSE))+ROUND('Res Bill Impact (2)'!F14*365/12,2)) -> 145.3849149 | G68: -0.005175826245 | H68: 0
B69: Essential Use (All-Electric) - CARE | D69: =IF($D$4="all",'Res Bill Impact (2)'!T61,('Res Bill Impact (2)'!C28*VLOOKUP($D$4,'Res Bill Impact (2)'!$H$22:$L$30,5,FALSE))+ROUND('Res Bill Impact (2)'!P14*365/12,2)) -> 103.4411186 | E69: =IF($D$4="all",'Res Bill Impact (2)'!V61,('Res Bill Impact (2)'!D28*VLOOKUP($D$4,'Res Bill Impact (2)'!$H$22:$L$30,5,FALSE))+ROUND('Res Bill Impact (2)'!P14*365/12,2)) -> 102.883301 | F69: =IF($D$4="all",'Res Bill Impact (2)'!X61,('Res Bill Impact (2)'!E28*VLOOKUP($D$4,'Res Bill Impact (2)'!$H$22:$L$30,5,FALSE))+ROUND('Res Bill Impact (2)'!P14*365/12,2)) -> 102.883301 | G69: -0.005392609446 | H69: 0
B72: Bundled Residential Monthly Average Bills
D73: =$D$24 -> 2024-01-01 | E73: =$E$24 -> 2024-06-01 | F73: =$F$24 -> Proposed | G73: =$G$24 -> % Change over 1/1/2024 | H73: % Change over Current
B74: =D5&"kWh Monthly Usage - Non-CARE" -> 500kWh Monthly Usage - Non-CARE | D74: =((D79*4)+(D84*8))/12 -> 166.6082105 | E74: 165.755578 | F74: 165.755578 | G74: =$F74/D74-1 -> -0.005117589972 | H74: 0
B75: =D5&"kWh Monthly Usage - CARE" -> 500kWh Monthly Usage - CARE | D75: 107.3355185 | E75: 106.7600717 | F75: 106.7600717 | G75: -0.005361196176 | H75: 0
B77: Bundled Residential Monthly Average Bills - Summer
D78: =$D$24 -> 2024-01-01 | E78: =$E$24 -> 2024-06-01 | F78: =$F$24 -> Proposed | G78: =$G$24 -> % Change over 1/1/2024 | H78: % Change over Current
B79: =D5&"kWh Monthly Usage - Non-CARE" -> 500kWh Monthly Usage - Non-CARE | D79: =VLOOKUP($D$4,'Res Bill Impact (2)'!$J$67:$P$76,2,FALSE) -> 159.9305075 | E79: =VLOOKUP($D$4,'Res Bill Impact (2)'!$J$67:$P$76,4,FALSE) -> 159.1090565 | F79: =VLOOKUP($D$4,'Res Bill Impact (2)'!$J$67:$P$76,6,FALSE) -> 159.1090565 | G79: =$F79/D79-1 -> -0.005136299298 | H79: 0
B80: =D5&"kWh Monthly Usage - CARE" -> 500kWh Monthly Usage - CARE | D80: =VLOOKUP($D$4,'Res Bill Impact (2)'!$R$67:$X$76,2,FALSE) -> 102.3477046 | E80: =VLOOKUP($D$4,'Res Bill Impact (2)'!$R$67:$X$76,4,FALSE) -> 101.7953238 | F80: =VLOOKUP($D$4,'Res Bill Impact (2)'!$R$67:$X$76,6,FALSE) -> 101.7953238 | G80: -0.005397100195 | H80: 0
B82: Bundled Residential Monthly Average Bills - Winter
D83: =$D$24 -> 2024-01-01 | E83: =$E$24 -> 2024-06-01 | F83: =$F$24 -> Proposed | G83: =$G$24 -> % Change over 1/1/2024 | H83: % Change over Current
B84: =D5&"kWh Monthly Usage - Non-CARE" -> 500kWh Monthly Usage - Non-CARE | D84: =VLOOKUP($D$4,'Res Bill Impact (2)'!$J$67:$P$76,3,FALSE) -> 169.947062 | E84: =VLOOKUP($D$4,'Res Bill Impact (2)'!$J$67:$P$76,5,FALSE) -> 169.0788387 | F84: =VLOOKUP($D$4,'Res Bill Impact (2)'!$J$67:$P$76,7,FALSE) -> 169.0788387 | G84: =$F84/D84-1 -> -0.005108786666 | H84: 0
B85: =D5&"kWh Monthly Usage - CARE" -> 500kWh Monthly Usage - CARE | D85: =VLOOKUP($D$4,'Res Bill Impact (2)'!$R$67:$X$76,3,FALSE) -> 109.8294255 | E85: =VLOOKUP($D$4,'Res Bill Impact (2)'!$R$67:$X$76,5,FALSE) -> 109.2424457 | F85: =VLOOKUP($D$4,'Res Bill Impact (2)'!$R$67:$X$76,7,FALSE) -> 109.2424457 | G85: -0.00534446708 | H85: 0
B88: Bundled Residential Monthly Average Bills
D89: =$D$24 -> 2024-01-01 | E89: =$E$24 -> 2024-06-01 | F89: Proposed | G89: =$G$24 -> % Change over 1/1/2024 | H89: % Change over Current
B90: All-Electric - Non-CARE | D90: =((D96*4)+(D102*8))/12 -> 138.4601612 | E90: 137.7403735 | F90: 137.7403735 | G90: =$F90/D90-1 -> -0.005198518177 | H90: 0
B91: All-Electric - CARE | D91: 100.6861127 | E91: 100.141804 | F91: 100.141804 | G91: -0.005405995193 | H91: 0
B92: All-Electric - Total | D92: 125.2392442 | E92: 124.5808742 | F92: 124.5808742 | G92: -0.005256898592 | H92: 0
B94: Bundled Residential Monthly Average Bills - Summer
D95: =$D$24 -> 2024-01-01 | E95: =$E$24 -> 2024-06-01 | F95: Proposed | G95: =$G$24 -> % Change over 1/1/2024 | H95: % Change over Current
B96: All-Electric - Non-CARE | D96: =VLOOKUP($D$4,'Res Bill Impact (2)'!$B$67:$H$76,2,FALSE) -> 157.7184258 | E96: =VLOOKUP($D$4,'Res Bill Impact (2)'!$B$67:$H$76,4,FALSE) -> 156.9077203 | F96: =VLOOKUP($D$4,'Res Bill Impact (2)'!$B$67:$H$76,6,FALSE) -> 156.9077203 | G96: =$F96/D96-1 -> -0.005140207891 | H96: 0
B97: All-Electric - CARE | D97: =VLOOKUP($D$4,'Res Bill Impact (2)'!$B$82:$H$91,2,FALSE) -> 122.23289 | E97: =VLOOKUP($D$4,'Res Bill Impact (2)'!$B$82:$H$91,4,FALSE) -> 121.5865465 | F97: =VLOOKUP($D$4,'Res Bill Impact (2)'!$B$82:$H$91,6,FALSE) -> 121.5865465 | G97: -0.005287803996 | H97: 0
B98: All-Electric - Total | D98: =D96*0.65+D97*0.35 -> 145.2984883 | E98: =E96*0.65+E97*0.35 -> 144.5453094 | F98: =F96*0.65+F97*0.35 -> 144.5453094 | G98: -0.00518366591 | H98: 0
B100: Bundled Residential Monthly Average Bills - Winter
D101: =$D$24 -> 2024-01-01 | E101: =$E$24 -> 2024-06-01 | F101: Proposed | G101: =$G$24 -> % Change over 1/1/2024 | H101: % Change over Current
B102: All-Electric - Non-CARE | D102: =VLOOKUP($D$4,'Res Bill Impact (2)'!$B$67:$H$76,3,FALSE) -> 128.8310289 | E102: =VLOOKUP($D$4,'Res Bill Impact (2)'!$B$67:$H$76,5,FALSE) -> 128.1567001 | F102: =VLOOKUP($D$4,'Res Bill Impact (2)'!$B$67:$H$76,7,FALSE) -> 128.1567001 | G102: =$F102/D102-1 -> -0.005234210691 | H102: 0
B103: All-Electric - CARE | D103: =VLOOKUP($D$4,'Res Bill Impact (2)'!$B$82:$H$91,3,FALSE) -> 89.91272402 | E103: =VLOOKUP($D$4,'Res Bill Impact (2)'!$B$82:$H$91,5,FALSE) -> 89.41943284 | F103: =VLOOKUP($D$4,'Res Bill Impact (2)'!$B$82:$H$91,7,FALSE) -> 89.41943284 | G103: -0.005486333387 | H103: 0
B104: All-Electric - Total | D104: =D102*0.65+D103*0.35 -> 115.2096222 | E104: =E102*0.65+E103*0.35 -> 114.5986566 | F104: =F102*0.65+F103*0.35 -> 114.5986566 | G104: -0.005303077885 | H104: 0
B106: Small Commercial Monthly Average Bills
D107: =$D$24 -> 2024-01-01 | E107: =$E$24 -> 2024-06-01 | F107: Proposed | G107: =$G$24 -> % Change over 1/1/2024 | H107: % Change over Current
B108: NAICS 531 | D108: =((D114*4)+(D120*8))/12 -> 198.5037322 | E108: 204.8314741 | F108: 204.8314741 | G108: =$F108/D108-1 -> 0.03187719384 | H108: =$F108/E108-1 -> 0
B109: NAICS 621 | D109: 273.3611086 | E109: 282.3626644 | F109: 282.3626644 | G109: 0.03292917515 | H109: 0
B110: NAICS 722 | D110: 795.7567515 | E110: 820.8834547 | F110: 820.8834547 | G110: 0.03157585928 | H110: 0
B112: Small Commercial Monthly Average Bills - Summer
D113: =$D$24 -> 2024-01-01 | E113: =$E$24 -> 2024-06-01 | F113: Proposed | G113: =$G$24 -> % Change over 1/1/2024 | H113: % Change over Current
B114: NAICS 531 | D114: ='Bill Impact (GS1) (2)'!C37 -> 225.4677184 | E114: ='Bill Impact (GS1) (2)'!E37 -> 230.2382228 | F114: ='Bill Impact (GS1) (2)'!G37 -> 230.2382228 | G114: =$F114/D114-1 -> 0.02115825917 | H114: =$F114/E114-1 -> 0
B115: NAICS 621 | D115: ='Bill Impact (GS1) (2)'!C38 -> 378.253337 | E115: ='Bill Impact (GS1) (2)'!E38 -> 385.4068219 | F115: ='Bill Impact (GS1) (2)'!G38 -> 385.4068219 | G115: 0.01891188847 | H115: 0
B116: NAICS 722 | D116: ='Bill Impact (GS1) (2)'!C39 -> 1078.572055 | E116: ='Bill Impact (GS1) (2)'!E39 -> 1097.950875 | F116: ='Bill Impact (GS1) (2)'!G39 -> 1097.950875 | G116: 0.01796710814 | H116: 0
B118: Small Commercial Monthly Average Bills - Winter
D119: =$D$24 -> 2024-01-01 | E119: =$E$24 -> 2024-06-01 | F119: Proposed | G119: =$G$24 -> % Change over 1/1/2024 | H119: % Change over Current
B120: NAICS 531 | D120: ='Bill Impact (GS1) (2)'!D37 -> 185.021739 | E120: ='Bill Impact (GS1) (2)'!F37 -> 192.1280997 | F120: ='Bill Impact (GS1) (2)'!H37 -> 192.1280997 | G120: =$F120/D120-1 -> 0.03840824732 | H120: =$F120/E120-1 -> 0
B121: NAICS 621 | D121: ='Bill Impact (GS1) (2)'!D38 -> 220.9149944 | E121: ='Bill Impact (GS1) (2)'!F38 -> 230.8405857 | F121: ='Bill Impact (GS1) (2)'!H38 -> 230.8405857 | G121: 0.04492945942 | H121: 0
B122: NAICS 722 | D122: ='Bill Impact (GS1) (2)'!D39 -> 654.3491 | E122: ='Bill Impact (GS1) (2)'!F39 -> 682.3497444 | F122: ='Bill Impact (GS1) (2)'!H39 -> 682.3497444 | G122: 0.04279159923 | H122: 0

Sheet SAR and RAR (2) (hidden)
B1: CONFIDENTIAL This Excel Sheet Is Marked Confidential In Accordance With Applicable Law and Regulation. Basis for Confidentiality In Accompanying Confidentiality Declaration. Public Disclosure Restricted.
C2: Revenue Change ($000)
B4: Generation | C4: ='Simple Bill Insert Calc'!D8 -> 0 | F4: Allocation
B5: Distribution | C5: ='Simple Bill Insert Calc'!D9 -> 0 | F5: Generation | G5: Distribution | H5: NDC | I5: PPPC | J5: CIA | K5: NSGC | L5: Transmission | M5: TOTCA | N5: GHG Rev | O5: DWRBC | P5: PUCRF | Q5: SECURITIZATION
B6: Nuclear | C6: ='Simple Bill Insert Calc'!D10 -> 0 | E6: Residential | F6: ='SAR and RAR'!G37 -> 0.4017151942 | G6: 0.4786192713 | H6: ='SAR and RAR'!I37 -> 0.3233019528 | I6: 0.4337258033 | J6: ='SAR and RAR'!K37 -> 1 | K6: ='SAR and RAR'!L37 -> 0.4220417204 | L6: ='SAR and RAR'!M37 -> 0.4346883856 | M6: ='SAR and RAR'!N37 -> 0.1067909648 | N6: ='SAR and RAR'!O37 -> 0.8411016298 | O6: ='SAR and RAR'!P37 -> 0.2554854898 | P6: ='SAR and RAR'!Q37 -> 0.3233019528 | Q6: ='SAR and RAR'!R37 -> 0.3631246136
B7: Public Purpose | C7: ='Simple Bill Insert Calc'!D11 -> 0
B8: CIA | C8: ='Simple Bill Insert Calc'!D12 -> 0 | F8: Revenue Change ($000) - System
B9: New System Gen | C9: ='Simple Bill Insert Calc'!D13 -> 0 | F9: Generation | G9: Distribution | H9: NDC | I9: PPPC | J9: CIA | K9: NSGC | L9: Transmission | M9: TOTCA | N9: GHG Rev | O9: DWRBC | P9: PUCRF | Q9: SECURITIZATION | R9: Total | S9: CARE Adj. | V9: % of CARE Sales (Bundled) | W9: ='SAR and RAR'!Q58 -> 0.2817433284
B10: FERC | C10: ='Simple Bill Insert Calc'!D14 -> 0 | E10: Residential | F10: =F6*F11 -> 0 | G10: 0 | H10: 0 | I10: 0 | J10: 0 | K10: 0 | L10: 0 | M10: 0 | N10: 0 | O10: 0 | P10: 0 | Q10: =Q6*Q11 -> 0 | R10: =SUM(F10:Q10) -> 0 | S10: =(-W11+W14) -> 0 | V10: CARE Effective Discount | W10: ='SAR and RAR'!X10 -> 0.29
B11: TOTCA | C11: ='Simple Bill Insert Calc'!D15 -> 0 | E11: Total System | F11: =C4 -> 0 | G11: =C5 -> 0 | H11: =C6 -> 0 | I11: =C7 -> 0 | J11: =C8 -> 0 | K11: =C9 -> 0 | L11: =C10 -> 0 | M11: =C11 -> 0 | N11: =C12 -> 0 | O11: =C13 -> 0 | P11: =C14 -> 0 | Q11: =C15 -> 0 | R11: =SUM(F11:Q11) -> 0 | S11: 0 | V11: CARE Discounst | W11: =SUM(F10*F16/'SAR and RAR'!K58*'SAR and RAR'!O58,G10:M10,P10)*W9*W10 -> 0
B12: GHG Revenue | C12: ='Simple Bill Insert Calc'!D16 -> 0 | V12: non-CARE Sales | W12: ='SAR and RAR'!G58 -> 18622275.65
B13: DWR | C13: ='Simple Bill Insert Calc'!D17 -> 0 | V13: Total Sales (excl. CARE&SL) | W13: ='SAR and RAR'!G64 -> 72430361.94
B14: PUCRF | C14: ='Simple Bill Insert Calc'!D18 -> 0 | F14: Revenue Split - Bundled | R14: Bundled Revenue Change | V14: Res CARE Surcharge | W14: =W11*W12/W13 -> 0
B15: SECURITIZATION | C15: ='Simple Bill Insert Calc'!D19 -> 0 | F15: Generation | G15: Distribution | H15: NDC | I15: PPPC | J15: CIA | K15: NSGC | L15: Transmission | M15: TOTCA | N15: GHG Rev | O15: DWRBC | P15: PUCRF | Q15: SECURITIZATION | R15: Total
B16: Total | C16: =SUM(C4:C15) -> 0 | E16: Residential | F16: ='SAR and RAR'!G44 -> 1.037513219 | G16: ='SAR and RAR'!H44 -> 0.6940541956 | H16: ='SAR and RAR'!I44 -> 0.7109692626 | I16: ='SAR and RAR'!J44 -> 0.7109692643 | J16: ='SAR and RAR'!K44 -> 0.7109692643 | K16: ='SAR and RAR'!L44 -> 0.7109692643 | L16: ='SAR and RAR'!M44 -> 0.7109692643 | M16: ='SAR and RAR'!N44 -> 0.7109692352 | N16: ='SAR and RAR'!O44 -> 0.7290728331 | O16: ='SAR and RAR'!P44 -> 0.6804940245 | P16: ='SAR and RAR'!Q44 -> 0.7109692645 | Q16: ='SAR and RAR'!R44 -> 0.6804940246 | R16: =SUMPRODUCT(F10:Q10,F16:Q16)+S10*'SAR and RAR'!X15 -> 0
E17: Total System | F17: ='SAR and RAR'!G50 -> 1.033992536 | G17: ='SAR and RAR'!H50 -> 0.6897395716 | H17: ='SAR and RAR'!I50 -> 0.6656300913 | I17: ='SAR and RAR'!J50 -> 0.6802569815 | J17: ='SAR and RAR'!K50 -> 0.6802569815 | K17: ='SAR and RAR'!L50 -> 0.6739645256 | L17: ='SAR and RAR'!M50 -> 0.6656300931 | M17: ='SAR and RAR'!N50 -> 0.6636179416 | N17: ='SAR and RAR'!O50 -> 0.7180561653 | O17: ='SAR and RAR'!P50 -> 0.6533003681 | P17: ='SAR and RAR'!Q50 -> 0.6656300931 | Q17: ='SAR and RAR'!R50 -> 0.6636179416 | R17: =SUMPRODUCT(F11:Q11,F17:Q17) -> 0
R19: =N10*N16 -> 0
E22: Bundled | M22: System (Bundled and Unbundled)
E23: ='Simple Bill Insert Calc'!M4&" Sales" -> 2024 Sales | F23: ='SAR and RAR'!G27 -> 6/1/2024 Avg Rates | G23: Proposed Avg Rates | H23: % Change | M23: ='Simple Bill Insert Calc'!M4&" Sales" -> 2024 Sales | N23: ='SAR and RAR'!O27 -> 6/1/2024 Avg Rates | O23: Proposed Avg Rates | P23: % Change
D24: Residential | E24: ='SAR and RAR'!K58 -> 18433334.69 | F24: =IF('Simple Bill Insert Calc'!$D$6="Y",'SAR and RAR'!W32,'SAR and RAR'!X32) -> 30.05587964 | G24: =R16/E24*100+F24 -> 30.05587964 | H24: =G24/F24-1 -> 0 | L24: Residential | M24: ='SAR and RAR'!O58 -> 25927048.62 | N24: =IF('Simple Bill Insert Calc'!$D$6="Y",'SAR and RAR'!Z32,'SAR and RAR'!AA32) -> 26.13678142 | O24: =SUM(R10:S10)/M24*100+N24 -> 26.13678142 | P24: =O24/N24-1 -> 0
D25: Total System | E25: ='SAR and RAR'!K64 -> 53379893.43 | F25: =IF('Simple Bill Insert Calc'!$D$6="Y",'SAR and RAR'!W33,'SAR and RAR'!X33) -> 26.69150877 | G25: =R17/E25*100+F25 -> 26.69150877 | H25: =G25/F25-1 -> 0 | L25: Total System | M25: ='SAR and RAR'!O64 -> 80194531.45 | N25: =IF('Simple Bill Insert Calc'!$D$6="Y",'SAR and RAR'!Z33,'SAR and RAR'!AA33) -> 22.0164343 | O25: =SUM(R11:S11)/M25*100+N25 -> 22.0164343 | P25: =O25/N25-1 -> 0

Sheet Res Bill Impact (2) (hidden)
B1: CONFIDENTIAL This Excel Sheet Is Marked Confidential In Accordance With Applicable Law and Regulation. Basis for Confidentiality In Accompanying Confidentiality Declaration. Public Disclosure Restricted.
E3: Schedule D | O3: Schedule D-CARE
E4: ='Simple Bill Insert Calc'!M4 -> 2024 | F4: ='Simple Bill Insert Calc'!M3 -> 2024-06-01 | G4: Proposed | H4: Proposed | O4: ='Simple Bill Insert Calc'!M4 -> 2024 | P4: ='Simple Bill Insert Calc'!M3 -> 2024-06-01 | Q4: Proposed | R4: Proposed
E5: Sales Forecast | F5: Rates | G5: Rates | H5: Revenue | O5: Sales Forecast | P5: Rates | Q5: Rates | R5: Revenue
D7: Baseline - Summer | E7: ='Res Bill Impact'!F97 -> 3287.495023 | F7: ='Res Bill Impact'!F7 -> 0.33586 | G7: =(V10-SUM(R14:R15,H14:H15))/SUM(SUM(E7:E8),F9/F7*SUM(E9:E10),F11/F7*SUM(E11:E12),SUM(O7:O8)*(1+(P7/F7-1)),SUM(O9:O10)*(1+(P9/F9-1))*F9/F7,SUM(O11:O12)*(1+(P11/F11-1))*F11/F7) -> 0.33586 | H7: =E7*G7 -> 1104.138078 | N7: Baseline - Summer | O7: ='Res Bill Impact'!M97 -> 1689.937435 | P7: ='Res Bill Impact'!P7 -> 0.22762 | Q7: =G7*(1+(P7/F7-1)) -> 0.22762 | R7: =O7*Q7 -> 384.6635591 | U7: Bundled Residential Rev Req
D8: - Winter | E8: ='Res Bill Impact'!F98 -> 4300.402818 | F8: ='Res Bill Impact'!F8 -> 0.33586 | G8: =G7 -> 0.33586 | H8: 1444.33329 | N8: - Winter | O8: ='Res Bill Impact'!M98 -> 2368.755339 | P8: ='Res Bill Impact'!P8 -> 0.22762 | Q8: 0.22762 | R8: 539.1760903 | U8: Current | V8: =SUMPRODUCT(E7:E12,F7:F12)+SUMPRODUCT(O7:O12,P7:P12)+(E14*F14*365/12/10^6)+(E15*F15*365/12/10^6)+(O14*P14*365/12/10^6)+(O15*P15*365/12/10^6) -> 6193.934966
D9: 101% - 400% of Baseline - Summer | E9: ='Res Bill Impact'!F99 -> 2032.586852 | F9: ='Res Bill Impact'!F9 -> 0.43178 | G9: =F9/F$7*G$7 -> 0.43178 | H9: 877.6303511 | N9: 101% - 400% of Baseline - Summer | O9: ='Res Bill Impact'!M99 -> 712.7216767 | P9: ='Res Bill Impact'!P9 -> 0.29004 | Q9: 0.29004 | R9: 206.7177951 | U9: Change | V9: ='SAR and RAR (2)'!R16/1000-'SAR and RAR (2)'!R19/1000 -> 0
D10: - Winter | E10: ='Res Bill Impact'!F100 -> 2626.223182 | F10: ='Res Bill Impact'!F10 -> 0.43178 | G10: =G9 -> 0.43178 | H10: 1133.950645 | N10: - Winter | O10: ='Res Bill Impact'!M100 -> 963.0257777 | P10: ='Res Bill Impact'!P10 -> 0.29004 | Q10: 0.29004 | R10: 279.3159966 | U10: Proposed Change | V10: =SUM(V8:V9) -> 6193.934966
D11: 401% of Baseline - Summer | E11: ='Res Bill Impact'!F101 -> 161.2501891 | F11: ='Res Bill Impact'!F11 -> 0.43178 | G11: =F11/F$7*G$7 -> 0.43178 | H11: 69.62460665 | N11: 401% of Baseline - Summer | O11: ='Res Bill Impact'!M101 -> 8.134685164 | P11: ='Res Bill Impact'!P11 -> 0.29004 | Q11: 0.29004 | R11: 2.359384085 | V11: =V10-SUM(H7:H15,R7:R15) -> 0
D12: - Winter | E12: ='Res Bill Impact'!F102 -> 264.3892374 | F12: ='Res Bill Impact'!F12 -> 0.43178 | G12: =G11 -> 0.43178 | H12: 114.1579849 | N12: - Winter | O12: ='Res Bill Impact'!M102 -> 18.41246945 | P12: ='Res Bill Impact'!P12 -> 0.29004 | Q12: 0.29004 | R12: 5.34035264
D14: Basic Charge - Single-Family Residence | E14: ='Res Bill Impact'!F104 -> 19603314.91 | F14: ='Res Bill Impact'!F14 -> 0.031 | G14: =F14 -> 0.031 | H14: =G14*E14*365/12/10^6 -> 18.48429235 | N14: Basic Charge - Single-Family Residence | O14: ='Res Bill Impact'!M104 -> 6331622.207 | P14: ='Res Bill Impact'!P14 -> 0.024 | Q14: =P14 -> 0.024 | R14: =Q14*O14*365/12/10^6 -> 4.622084211
D15: Basic Charge - Multi-Family Residence | E15: ='Res Bill Impact'!F105 -> 8917593.383 | F15: ='Res Bill Impact'!F15 -> 0.024 | G15: =F15 -> 0.024 | H15: =G15*E15*365/12/10^6 -> 6.50984317 | N15: Basic Charge - Multi-Family Residence | O15: ='Res Bill Impact'!M105 -> 5316184.884 | P15: ='Res Bill Impact'!P15 -> 0.018 | Q15: =P15 -> 0.018 | R15: =Q15*O15*365/12/10^6 -> 2.910611224
O19: 2023 Recorded Data - Average Monthly Usage - kWh (Bundled / Basic Service Only) | W19: 2023 Recorded Data - Average Monthly Usage - kWh (Bundled / All Electric Only)
B20: SCHEDULE D RATES ($/kWh) | H20: MONTHLY BASELINE QUANTITIES | I20: BASIC | K20: ALL-ELECTRIC | O20: Climate Zone | P20: Summer | Q20: Winter | R20: Summer | S20: Winter | T20: Sample Population Weight | W20: Climate Zone | X20: Summer | Y20: Winter | Z20: Summer | AA20: Winter | AB20: Sample Population Weight
B21: Rates | C21: Jan 2024 | D21: ='Simple Bill Insert Calc'!M3 -> 2024-06-01 | E21: Proposed | H21: Climate Zone | I21: Summer | J21: Winter | K21: Summer | L21: Winter | P21: Non-CARE | R21: CARE | T21: Non-CARE | U21: CARE | X21: Non-CARE | Z21: CARE | AB21: Non-CARE | AC21: CARE
B22: Tier 1 | C22: ='Res Bill Impact'!C22 -> 0.33746 | D22: =F7 -> 0.33586 | E22: =G7 -> 0.33586 | H22: 5 warm | I22: 517.089 | J22: 559.6728 | K22: 511.0056 | L22: 821.259 | O22: 5 warm | P22: ='Res Bill Impact'!P22 -> 394.0114465 | Q22: ='Res Bill Impact'!Q22 -> 413.7602515 | R22: ='Res Bill Impact'!R22 -> 375.4651421 | S22: ='Res Bill Impact'!S22 -> 377.1007638 | T22: ='Res Bill Impact'!T22 -> 0.0004001160336 | U22: ='Res Bill Impact'!U22 -> 6.494163848e-05 | W22: 5 warm | X22: ='Res Bill Impact'!X22 -> 425.328646 | Y22: ='Res Bill Impact'!Y22 -> 492.1148384 | Z22: ='Res Bill Impact'!Z22 -> 382.0121137 | AA22: ='Res Bill Impact'!AA22 -> 514.0812584 | AB22: ='Res Bill Impact'!AB22 -> 0.0004262021681 | AC22: ='Res Bill Impact'!AC22 -> 0.0001760542717
B23: Tier 2 | C23: ='Res Bill Impact'!C23 -> 0.43383 | D23: =F9 -> 0.43178 | E23: =G9 -> 0.43178 | H23: 6 cool | I23: 346.7538 | J23: 334.587 | K23: 264.6279 | L23: 383.2542 | O23: 6 cool | P23: ='Res Bill Impact'!P23 -> 433.0846454 | Q23: ='Res Bill Impact'!Q23 -> 397.8968432 | R23: ='Res Bill Impact'!R23 -> 387.0809173 | S23: ='Res Bill Impact'!S23 -> 359.7109231 | T23: ='Res Bill Impact'!T23 -> 0.1403529246 | U23: ='Res Bill Impact'!U23 -> 0.05006236307 | W23: 6 cool | X23: ='Res Bill Impact'!X23 -> 330.0124549 | Y23: ='Res Bill Impact'!Y23 -> 351.8575553 | Z23: ='Res Bill Impact'!Z23 -> 355.0146353 | AA23: ='Res Bill Impact'!AA23 -> 389.8816374 | AB23: ='Res Bill Impact'!AB23 -> 0.239309429 | AC23: ='Res Bill Impact'!AC23 -> 0.1138366921
B24: HUC | C24: ='Res Bill Impact'!C24 -> 0.43383 | D24: =F11 -> 0.43178 | E24: =G11 -> 0.43178 | H24: 8 cool | I24: 389.3376 | J24: 313.2951 | K24: 301.1283 | L24: 374.1291 | O24: 8 cool | P24: ='Res Bill Impact'!P24 -> 530.8622287 | Q24: ='Res Bill Impact'!Q24 -> 414.1554448 | R24: ='Res Bill Impact'!R24 -> 464.558938 | S24: ='Res Bill Impact'!S24 -> 385.4566077 | T24: ='Res Bill Impact'!T24 -> 0.2220921845 | U24: ='Res Bill Impact'!U24 -> 0.1485788286 | W24: 8 cool | X24: ='Res Bill Impact'!X24 -> 381.2469638 | Y24: ='Res Bill Impact'!Y24 -> 369.4677373 | Z24: ='Res Bill Impact'!Z24 -> 395.389718 | AA24: ='Res Bill Impact'!AA24 -> 388.746303 | AB24: ='Res Bill Impact'!AB24 -> 0.2355353779 | AC24: ='Res Bill Impact'!AC24 -> 0.1987770097
H25: 9 warm | I25: 514.0473 | J25: 365.004 | K25: 380.2125 | L25: 422.7963 | O25: 9 warm | P25: ='Res Bill Impact'!P25 -> 649.7090395 | Q25: ='Res Bill Impact'!Q25 -> 460.3453492 | R25: ='Res Bill Impact'!R25 -> 599.1816396 | S25: ='Res Bill Impact'!S25 -> 429.4947183 | T25: ='Res Bill Impact'!T25 -> 0.1345534649 | U25: ='Res Bill Impact'!U25 -> 0.09818029709 | W25: 9 warm | X25: ='Res Bill Impact'!X25 -> 479.3913495 | Y25: ='Res Bill Impact'!Y25 -> 396.2762731 | Z25: ='Res Bill Impact'!Z25 -> 454.9990015 | AA25: ='Res Bill Impact'!AA25 -> 384.474035 | AB25: ='Res Bill Impact'!AB25 -> 0.08488217672 | AC25: ='Res Bill Impact'!AC25 -> 0.08590274762
B26: SCHEDULE D-CARE RATES ($/kWh) | H26: 10 hot (Sec 745) | I26: 587.0481 | J26: 368.0457 | K26: 483.6303 | L26: 498.8388 | O26: 10 hot (Sec 745) | P26: ='Res Bill Impact'!P26 -> 761.1373611 | Q26: ='Res Bill Impact'!Q26 -> 491.115045 | R26: ='Res Bill Impact'!R26 -> 792.3016777 | S26: ='Res Bill Impact'!S26 -> 497.9977029 | T26: ='Res Bill Impact'!T26 -> 0.3163584106 | U26: ='Res Bill Impact'!U26 -> 0.4197483703 | W26: 10 hot (Sec 745) | X26: ='Res Bill Impact'!X26 -> 573.0329281 | Y26: ='Res Bill Impact'!Y26 -> 449.7933583 | Z26: ='Res Bill Impact'!Z26 -> 584.8339164 | AA26: ='Res Bill Impact'!AA26 -> 433.3513546 | AB26: ='Res Bill Impact'!AB26 -> 0.2787547484 | AC26: ='Res Bill Impact'!AC26 -> 0.3816621871
B27: Rates | C27: =C21 -> Jan 2024 | D27: =D21 -> 2024-06-01 | E27: Proposed | H27: 13 hot | I27: 675.2574 | J27: 371.0874 | K27: 736.0914 | L27: 699.591 | O27: 13 hot | P27: ='Res Bill Impact'!P27 -> 894.6000233 | Q27: ='Res Bill Impact'!Q27 -> 491.3912577 | R27: ='Res Bill Impact'!R27 -> 916.8294796 | S27: ='Res Bill Impact'!S27 -> 484.0254538 | T27: ='Res Bill Impact'!T27 -> 0.05566058601 | U27: ='Res Bill Impact'!U27 -> 0.1142724531 | W27: 13 hot | X27: ='Res Bill Impact'!X27 -> 892.6145516 | Y27: ='Res Bill Impact'!Y27 -> 600.0164496 | Z27: ='Res Bill Impact'!Z27 -> 867.2628591 | AA27: ='Res Bill Impact'!AA27 -> 571.6768526 | AB27: ='Res Bill Impact'!AB27 -> 0.03323759227 | AC27: ='Res Bill Impact'!AC27 -> 0.0613725191
B28: Tier 1 | C28: ='Res Bill Impact'!C28 -> 0.22871 | D28: =P7 -> 0.22762 | E28: =Q7 -> 0.22762 | H28: 14 hot | I28: 584.0064 | J28: 361.9623 | K28: 562.7145 | L28: 641.7987 | O28: 14 hot | P28: ='Res Bill Impact'!P28 -> 730.1923164 | Q28: ='Res Bill Impact'!Q28 -> 490.1829008 | R28: ='Res Bill Impact'!R28 -> 780.7230122 | S28: ='Res Bill Impact'!S28 -> 516.7279255 | T28: ='Res Bill Impact'!T28 -> 0.06670267711 | U28: ='Res Bill Impact'!U28 -> 0.1078298605 | W28: 14 hot | X28: ='Res Bill Impact'!X28 -> 687.9383588 | Y28: ='Res Bill Impact'!Y28 -> 604.4592567 | Z28: ='Res Bill Impact'!Z28 -> 750.2785732 | AA28: ='Res Bill Impact'!AA28 -> 671.0707452 | AB28: ='Res Bill Impact'!AB28 -> 0.04772846598 | AC28: ='Res Bill Impact'!AC28 -> 0.07503433058
B29: Tier 2 | C29: ='Res Bill Impact'!C29 -> 0.29142 | D29: =P9 -> 0.29004 | E29: =Q9 -> 0.29004 | H29: 15 hot | I29: 1368.765 | J29: 295.0449 | K29: 730.008 | L29: 529.2558 | O29: 15 hot | P29: ='Res Bill Impact'!P29 -> 1097.38946 | Q29: ='Res Bill Impact'!Q29 -> 539.5458549 | R29: ='Res Bill Impact'!R29 -> 1185.07185 | S29: ='Res Bill Impact'!S29 -> 516.7106052 | T29: ='Res Bill Impact'!T29 -> 0.03393873112 | U29: ='Res Bill Impact'!U29 -> 0.03597193757 | W29: 15 hot | X29: ='Res Bill Impact'!X29 -> 845.6767468 | Y29: ='Res Bill Impact'!Y29 -> 463.97827 | Z29: ='Res Bill Impact'!Z29 -> 983.817403 | AA29: ='Res Bill Impact'!AA29 -> 514.8811355 | AB29: ='Res Bill Impact'!AB29 -> 0.03826554248 | AC29: ='Res Bill Impact'!AC29 -> 0.05202990575
B30: HUC | C30: ='Res Bill Impact'!C30 -> 0.29142 | D30: =P11 -> 0.29004 | E30: =Q12 -> 0.29004 | H30: 16 cool | I30: 447.1299 | J30: 377.1708 | K30: 410.6295 | L30: 705.6744 | O30: 16 cool | P30: ='Res Bill Impact'!P30 -> 513.8284813 | Q30: ='Res Bill Impact'!Q30 -> 432.4906192 | R30: ='Res Bill Impact'!R30 -> 677.5371658 | S30: ='Res Bill Impact'!S30 -> 499.146825 | T30: ='Res Bill Impact'!T30 -> 0.02994090508 | U30: ='Res Bill Impact'!U30 -> 0.02529094809 | W30: 16 cool | X30: ='Res Bill Impact'!X30 -> 443.8912353 | Y30: ='Res Bill Impact'!Y30 -> 584.1777272 | Z30: ='Res Bill Impact'!Z30 -> 637.6985348 | AA30: ='Res Bill Impact'!AA30 -> 596.1956691 | AB30: ='Res Bill Impact'!AB30 -> 0.04186046512 | AC30: ='Res Bill Impact'!AC30 -> 0.03120855389
N32: Daily to Monthly Conversion Factor | O32: 30.417
C34: NON-CARE | K34: Essential Use (Basic) - Non-CARE | S34: Essential Use (Basic) - CARE
C35: =C27 -> Jan 2024 | E35: =D27 -> 2024-06-01 | G35: =E21 -> Proposed | K35: =C35 -> Jan 2024 | M35: =E35 -> 2024-06-01 | O35: =G35 -> Proposed | S35: =K35 -> Jan 2024 | U35: =M35 -> 2024-06-01 | W35: =O35 -> Proposed
C36: Summer | D36: Winter | E36: Summer | F36: Winter | G36: Summer | H36: Winter | K36: Summer | L36: Winter | M36: Summer | N36: Winter | O36: Summer | P36: Winter | S36: Summer | T36: Winter | U36: Summer | V36: Winter | W36: Summer | X36: Winter
B37: 5 warm | C37: =C$22*MIN(I22,P22)+IF(P22-I22>0,C$23*(P22-I22))+ROUND($F$14*365/12,2)+('Simple Bill Insert Calc'!M17*2)/12 -> 119.5697694 | D37: =C$22*MIN(J22,Q22)+IF(Q22-J22>0,C$23*(Q22-J22))+ROUND($F$14*365/12,2)+('Simple Bill Insert Calc'!M17*2)/12 -> 126.2342011 | E37: =D$22*MIN(I22,P22)+IF(P22-I22>0,D$23*(P22-I22))+ROUND($F$14*365/12,2)+('Simple Bill Insert Calc'!M17*2)/12 -> 118.9393511 | F37: =D$22*MIN(J22,Q22)+IF(Q22-J22>0,D$23*(Q22-J22))+ROUND($F$14*365/12,2)+('Simple Bill Insert Calc'!M17*2)/12 -> 125.5721847 | G37: =E$22*MIN(I22,P22)+IF(P22-I22>0,E$23*(P22-I22))+ROUND($F$14*365/12,2)+('Simple Bill Insert Calc'!M17*2)/12 -> 118.9393511 | H37: =E$22*MIN(J22,Q22)+IF(Q22-J22>0,E$23*(Q22-J22))+ROUND($F$14*365/12,2)+('Simple Bill Insert Calc'!M17*2)/12 -> 125.5721847 | J37: 5 warm | K37: =C$22*I22+ROUND($F$14*365/12,2)+('Simple Bill Insert Calc'!M17*2)/12 -> 161.1035206 | L37: =C$22*J22+ROUND($F$14*365/12,2)+('Simple Bill Insert Calc'!M17*2)/12 -> 175.4738498 | M37: =D$22*I22+ROUND($F$14*365/12,2)+('Simple Bill Insert Calc'!M17*2)/12 -> 160.2761782 | N37: =D$22*J22+ROUND($F$14*365/12,2)+('Simple Bill Insert Calc'!M17*2)/12 -> 174.5783733 | O37: =E$22*I22+ROUND($F$14*365/12,2)+('Simple Bill Insert Calc'!M17*2)/12 -> 160.2761782 | P37: =E$22*J22+ROUND($F$14*365/12,2)+('Simple Bill Insert Calc'!M17*2)/12 -> 174.5783733 | R37: 5 warm | S37: =C$28*I22+ROUND($P$14*365/12,2)+('Simple Bill Insert Calc'!M17*2)/12 -> 104.6600919 | T37: =C$28*J22+ROUND($P$14*365/12,2)+('Simple Bill Insert Calc'!M17*2)/12 -> 114.3994328 | U37: =D$28*I22+ROUND($P$14*365/12,2)+('Simple Bill Insert Calc'!M17*2)/12 -> 104.0964648 | V37: =D$28*J22+ROUND($P$14*365/12,2)+('Simple Bill Insert Calc'!M17*2)/12 -> 113.7893894 | W37: =E$28*I22+ROUND($P$14*365/12,2)+('Simple Bill Insert Calc'!M17*2)/12 -> 104.0964648 | X37: =E$28*J22+ROUND($P$14*365/12,2)+('Simple Bill Insert Calc'!M17*2)/12 -> 113.7893894
B38: 6 cool | C38: =C$22*MIN(I23,P23)+IF(P23-I23>0,C$23*(P23-I23))+ROUND($F$14*365/12,2)+('Simple Bill Insert Calc'!M17*2)/12 -> 141.0751147 | D38: =C$22*MIN(J23,Q23)+IF(Q23-J23>0,C$23*(Q23-J23))+ROUND($F$14*365/12,2)+('Simple Bill Insert Calc'!M17*2)/12 -> 126.982105 | E38: =D$22*MIN(I23,P23)+IF(P23-I23>0,D$23*(P23-I23))+ROUND($F$14*365/12,2)+('Simple Bill Insert Calc'!M17*2)/12 -> 140.3433303 | F38: =D$22*MIN(J23,Q23)+IF(Q23-J23>0,D$23*(Q23-J23))+ROUND($F$14*365/12,2)+('Simple Bill Insert Calc'!M17*2)/12 -> 126.3169806 | G38: =E$22*MIN(I23,P23)+IF(P23-I23>0,E$23*(P23-I23))+ROUND($F$14*365/12,2)+('Simple Bill Insert Calc'!M17*2)/12 -> 140.3433303 | H38: =E$22*MIN(J23,Q23)+IF(Q23-J23>0,E$23*(Q23-J23))+ROUND($F$14*365/12,2)+('Simple Bill Insert Calc'!M17*2)/12 -> 126.3169806 | J38: 6 cool | K38: =C$22*I23+ROUND($F$14*365/12,2)+('Simple Bill Insert Calc'!M17*2)/12 -> 103.622204 | L38: =C$22*J23+ROUND($F$14*365/12,2)+('Simple Bill Insert Calc'!M17*2)/12 -> 99.51639569 | M38: =D$22*I23+ROUND($F$14*365/12,2)+('Simple Bill Insert Calc'!M17*2)/12 -> 103.0673979 | N38: =D$22*J23+ROUND($F$14*365/12,2)+('Simple Bill Insert Calc'!M17*2)/12 -> 98.98105649 | O38: =E$22*I23+ROUND($F$14*365/12,2)+('Simple Bill Insert Calc'!M17*2)/12 -> 103.0673979 | P38: =E$22*J23+ROUND($F$14*365/12,2)+('Simple Bill Insert Calc'!M17*2)/12 -> 98.98105649 | R38: 6 cool | S38: =C$28*I23+ROUND($P$14*365/12,2)+('Simple Bill Insert Calc'!M17*2)/12 -> 65.70272826 | T38: =C$28*J23+ROUND($P$14*365/12,2)+('Simple Bill Insert Calc'!M17*2)/12 -> 62.92005944 | U38: =D$28*I23+ROUND($P$14*365/12,2)+('Simple Bill Insert Calc'!M17*2)/12 -> 65.32476662 | V38: =D$28*J23+ROUND($P$14*365/12,2)+('Simple Bill Insert Calc'!M17*2)/12 -> 62.55535961 | W38: =E$28*I23+ROUND($P$14*365/12,2)+('Simple Bill Insert Calc'!M17*2)/12 -> 65.32476662 | X38: =E$28*J23+ROUND($P$14*365/12,2)+('Simple Bill Insert Calc'!M17*2)/12 -> 62.55535961
B39: 8 cool | C39: =C$22*MIN(I24,P24)+IF(P24-I24>0,C$23*(P24-I24))+ROUND($F$14*365/12,2)+('Simple Bill Insert Calc'!M17*2)/12 -> 179.3901628 | D39: =C$22*MIN(J24,Q24)+IF(Q24-J24>0,C$23*(Q24-J24))+ROUND($F$14*365/12,2)+('Simple Bill Insert Calc'!M17*2)/12 -> 136.0874745 | E39: =D$22*MIN(I24,P24)+IF(P24-I24>0,D$23*(P24-I24))+ROUND($F$14*365/12,2)+('Simple Bill Insert Calc'!M17*2)/12 -> 178.4770972 | F39: =D$22*MIN(J24,Q24)+IF(Q24-J24>0,D$23*(Q24-J24))+ROUND($F$14*365/12,2)+('Simple Bill Insert Calc'!M17*2)/12 -> 135.3794387 | G39: =E$22*MIN(I24,P24)+IF(P24-I24>0,E$23*(P24-I24))+ROUND($F$14*365/12,2)+('Simple Bill Insert Calc'!M17*2)/12 -> 178.4770972 | H39: =E$22*MIN(J24,Q24)+IF(Q24-J24>0,E$23*(Q24-J24))+ROUND($F$14*365/12,2)+('Simple Bill Insert Calc'!M17*2)/12 -> 135.3794387 | J39: 8 cool | K39: =C$22*I24+ROUND($F$14*365/12,2)+('Simple Bill Insert Calc'!M17*2)/12 -> 117.9925332 | L39: =C$22*J24+ROUND($F$14*365/12,2)+('Simple Bill Insert Calc'!M17*2)/12 -> 92.33123111 | M39: =D$22*I24+ROUND($F$14*365/12,2)+('Simple Bill Insert Calc'!M17*2)/12 -> 117.369593 | N39: =D$22*J24+ROUND($F$14*365/12,2)+('Simple Bill Insert Calc'!M17*2)/12 -> 91.82995895 | O39: =E$22*I24+ROUND($F$14*365/12,2)+('Simple Bill Insert Calc'!M17*2)/12 -> 117.369593 | P39: =E$22*J24+ROUND($F$14*365/12,2)+('Simple Bill Insert Calc'!M17*2)/12 -> 91.82995895 | R39: 8 cool | S39: =C$28*I24+ROUND($P$14*365/12,2)+('Simple Bill Insert Calc'!M17*2)/12 -> 75.44206916 | T39: =C$28*J24+ROUND($P$14*365/12,2)+('Simple Bill Insert Calc'!M17*2)/12 -> 58.05038899 | U39: =D$28*I24+ROUND($P$14*365/12,2)+('Simple Bill Insert Calc'!M17*2)/12 -> 75.01769118 | V39: =D$28*J24+ROUND($P$14*365/12,2)+('Simple Bill Insert Calc'!M17*2)/12 -> 57.70889733 | W39: =E$28*I24+ROUND($P$14*365/12,2)+('Simple Bill Insert Calc'!M17*2)/12 -> 75.01769118 | X39: =E$28*J24+ROUND($P$14*365/12,2)+('Simple Bill Insert Calc'!M17*2)/12 -> 57.70889733
B40: 9 warm | C40: =C$22*MIN(I25,P25)+IF(P25-I25>0,C$23*(P25-I25))+ROUND($F$14*365/12,2)+('Simple Bill Insert Calc'!M17*2)/12 -> 218.931201 | D40: =C$22*MIN(J25,Q25)+IF(Q25-J25>0,C$23*(Q25-J25))+ROUND($F$14*365/12,2)+('Simple Bill Insert Calc'!M17*2)/12 -> 151.142854 | E40: =D$22*MIN(I25,P25)+IF(P25-I25>0,D$23*(P25-I25))+ROUND($F$14*365/12,2)+('Simple Bill Insert Calc'!M17*2)/12 -> 217.8306187 | F40: =D$22*MIN(J25,Q25)+IF(Q25-J25>0,D$23*(Q25-J25))+ROUND($F$14*365/12,2)+('Simple Bill Insert Calc'!M17*2)/12 -> 150.3633979 | G40: =E$22*MIN(I25,P25)+IF(P25-I25>0,E$23*(P25-I25))+ROUND($F$14*365/12,2)+('Simple Bill Insert Calc'!M17*2)/12 -> 217.8306187 | H40: =E$22*MIN(J25,Q25)+IF(Q25-J25>0,E$23*(Q25-J25))+ROUND($F$14*365/12,2)+('Simple Bill Insert Calc'!M17*2)/12 -> 150.3633979 | J40: 9 warm | K40: =C$22*I25+ROUND($F$14*365/12,2)+('Simple Bill Insert Calc'!M17*2)/12 -> 160.0770685 | L40: =C$22*J25+ROUND($F$14*365/12,2)+('Simple Bill Insert Calc'!M17*2)/12 -> 109.7809165 | M40: =D$22*I25+ROUND($F$14*365/12,2)+('Simple Bill Insert Calc'!M17*2)/12 -> 159.2545928 | N40: =D$22*J25+ROUND($F$14*365/12,2)+('Simple Bill Insert Calc'!M17*2)/12 -> 109.1969101 | O40: =E$22*I25+ROUND($F$14*365/12,2)+('Simple Bill Insert Calc'!M17*2)/12 -> 159.2545928 | P40: =E$22*J25+ROUND($F$14*365/12,2)+('Simple Bill Insert Calc'!M17*2)/12 -> 109.1969101 | R40: 9 warm | S40: =C$28*I25+ROUND($P$14*365/12,2)+('Simple Bill Insert Calc'!M17*2)/12 -> 103.9644246 | T40: =C$28*J25+ROUND($P$14*365/12,2)+('Simple Bill Insert Calc'!M17*2)/12 -> 69.87673151 | U40: =D$28*I25+ROUND($P$14*365/12,2)+('Simple Bill Insert Calc'!M17*2)/12 -> 103.4041131 | V40: =D$28*J25+ROUND($P$14*365/12,2)+('Simple Bill Insert Calc'!M17*2)/12 -> 69.47887715 | W40: =E$28*I25+ROUND($P$14*365/12,2)+('Simple Bill Insert Calc'!M17*2)/12 -> 103.4041131 | X40: =E$28*J25+ROUND($P$14*365/12,2)+('Simple Bill Insert Calc'!M17*2)/12 -> 69.47887715
B41: 10 hot (Sec 745) | C41: =C$22*MIN(I26,P26)+IF(P26-I26>0,C$23*(P26-I26))+ROUND($F$14*365/12,2)+('Simple Bill Insert Calc'!M17*2)/12 -> 260.2370626 | D41: =C$22*MIN(J26,Q26)+IF(Q26-J26>0,C$23*(Q26-J26))+ROUND($F$14*365/12,2)+('Simple Bill Insert Calc'!M17*2)/12 -> 164.1985425 | E41: =D$22*MIN(I26,P26)+IF(P26-I26>0,D$23*(P26-I26))+ROUND($F$14*365/12,2)+('Simple Bill Insert Calc'!M17*2)/12 -> 258.9409027 | F41: =D$22*MIN(J26,Q26)+IF(Q26-J26>0,D$23*(Q26-J26))+ROUND($F$14*365/12,2)+('Simple Bill Insert Calc'!M17*2)/12 -> 163.3573773 | G41: =E$22*MIN(I26,P26)+IF(P26-I26>0,E$23*(P26-I26))+ROUND($F$14*365/12,2)+('Simple Bill Insert Calc'!M17*2)/12 -> 258.9409027 | H41: =E$22*MIN(J26,Q26)+IF(Q26-J26>0,E$23*(Q26-J26))+ROUND($F$14*365/12,2)+('Simple Bill Insert Calc'!M17*2)/12 -> 163.3573773 | J41: 10 hot (Sec 745) | K41: =C$22*I26+ROUND($F$14*365/12,2)+('Simple Bill Insert Calc'!M17*2)/12 -> 184.7119185 | L41: =C$22*J26+ROUND($F$14*365/12,2)+('Simple Bill Insert Calc'!M17*2)/12 -> 110.8073686 | M41: =D$22*I26+ROUND($F$14*365/12,2)+('Simple Bill Insert Calc'!M17*2)/12 -> 183.7726415 | N41: =D$22*J26+ROUND($F$14*365/12,2)+('Simple Bill Insert Calc'!M17*2)/12 -> 110.2184955 | O41: =E$22*I26+ROUND($F$14*365/12,2)+('Simple Bill Insert Calc'!M17*2)/12 -> 183.7726415 | P41: =E$22*J26+ROUND($F$14*365/12,2)+('Simple Bill Insert Calc'!M17*2)/12 -> 110.2184955 | R41: 10 hot (Sec 745) | S41: =C$28*I26+ROUND($P$14*365/12,2)+('Simple Bill Insert Calc'!M17*2)/12 -> 120.6604376 | T41: =C$28*J26+ROUND($P$14*365/12,2)+('Simple Bill Insert Calc'!M17*2)/12 -> 70.57239871 | U41: =D$28*I26+ROUND($P$14*365/12,2)+('Simple Bill Insert Calc'!M17*2)/12 -> 120.0205552 | V41: =D$28*J26+ROUND($P$14*365/12,2)+('Simple Bill Insert Calc'!M17*2)/12 -> 70.1712289 | W41: =E$28*I26+ROUND($P$14*365/12,2)+('Simple Bill Insert Calc'!M17*2)/12 -> 120.0205552 | X41: =E$28*J26+ROUND($P$14*365/12,2)+('Simple Bill Insert Calc'!M17*2)/12 -> 70.1712289
B42: 13 hot | C42: =C$22*MIN(I27,P27)+IF(P27-I27>0,C$23*(P27-I27))+ROUND($F$14*365/12,2)+('Simple Bill Insert Calc'!M17*2)/12 -> 309.6364391 | D42: =C$22*MIN(J27,Q27)+IF(Q27-J27>0,C$23*(Q27-J27))+ROUND($F$14*365/12,2)+('Simple Bill Insert Calc'!M17*2)/12 -> 164.0252433 | E42: =D$22*MIN(I27,P27)+IF(P27-I27>0,D$23*(P27-I27))+ROUND($F$14*365/12,2)+('Simple Bill Insert Calc'!M17*2)/12 -> 308.1063749 | F42: =D$22*MIN(J27,Q27)+IF(Q27-J27>0,D$23*(Q27-J27))+ROUND($F$14*365/12,2)+('Simple Bill Insert Calc'!M17*2)/12 -> 163.1848805 | G42: =E$22*MIN(I27,P27)+IF(P27-I27>0,E$23*(P27-I27))+ROUND($F$14*365/12,2)+('Simple Bill Insert Calc'!M17*2)/12 -> 308.1063749 | H42: =E$22*MIN(J27,Q27)+IF(Q27-J27>0,E$23*(Q27-J27))+ROUND($F$14*365/12,2)+('Simple Bill Insert Calc'!M17*2)/12 -> 163.1848805 | J42: 13 hot | K42: =C$22*I27+ROUND($F$14*365/12,2)+('Simple Bill Insert Calc'!M17*2)/12 -> 214.4790289 | L42: =C$22*J27+ROUND($F$14*365/12,2)+('Simple Bill Insert Calc'!M17*2)/12 -> 111.8338207 | M42: =D$22*I27+ROUND($F$14*365/12,2)+('Simple Bill Insert Calc'!M17*2)/12 -> 213.398617 | N42: =D$22*J27+ROUND($F$14*365/12,2)+('Simple Bill Insert Calc'!M17*2)/12 -> 111.2400808 | O42: =E$22*I27+ROUND($F$14*365/12,2)+('Simple Bill Insert Calc'!M17*2)/12 -> 213.398617 | P42: =E$22*J27+ROUND($F$14*365/12,2)+('Simple Bill Insert Calc'!M17*2)/12 -> 111.2400808 | R42: 13 hot | S42: =C$28*I27+ROUND($P$14*365/12,2)+('Simple Bill Insert Calc'!M17*2)/12 -> 140.8347866 | T42: =C$28*J27+ROUND($P$14*365/12,2)+('Simple Bill Insert Calc'!M17*2)/12 -> 71.26806592 | U42: =D$28*I27+ROUND($P$14*365/12,2)+('Simple Bill Insert Calc'!M17*2)/12 -> 140.0987561 | V42: =D$28*J27+ROUND($P$14*365/12,2)+('Simple Bill Insert Calc'!M17*2)/12 -> 70.86358065 | W42: =E$28*I27+ROUND($P$14*365/12,2)+('Simple Bill Insert Calc'!M17*2)/12 -> 140.0987561 | X42: =E$28*J27+ROUND($P$14*365/12,2)+('Simple Bill Insert Calc'!M17*2)/12 -> 70.86358065
B43: 14 hot | C43: =C$22*MIN(I28,P28)+IF(P28-I28>0,C$23*(P28-I28))+ROUND($F$14*365/12,2)+('Simple Bill Insert Calc'!M17*2)/12 -> 247.1053025 | D43: =C$22*MIN(J28,Q28)+IF(Q28-J28>0,C$23*(Q28-J28))+ROUND($F$14*365/12,2)+('Simple Bill Insert Calc'!M17*2)/12 -> 164.3804077 | E43: =D$22*MIN(I28,P28)+IF(P28-I28>0,D$23*(P28-I28))+ROUND($F$14*365/12,2)+('Simple Bill Insert Calc'!M17*2)/12 -> 245.8712111 | F43: =D$22*MIN(J28,Q28)+IF(Q28-J28>0,D$23*(Q28-J28))+ROUND($F$14*365/12,2)+('Simple Bill Insert Calc'!M17*2)/12 -> 163.5384158 | G43: =E$22*MIN(I28,P28)+IF(P28-I28>0,E$23*(P28-I28))+ROUND($F$14*365/12,2)+('Simple Bill Insert Calc'!M17*2)/12 -> 245.8712111 | H43: =E$22*MIN(J28,Q28)+IF(Q28-J28>0,E$23*(Q28-J28))+ROUND($F$14*365/12,2)+('Simple Bill Insert Calc'!M17*2)/12 -> 163.5384158 | J43: 14 hot | K43: =C$22*I28+ROUND($F$14*365/12,2)+('Simple Bill Insert Calc'!M17*2)/12 -> 183.6854664 | L43: =C$22*J28+ROUND($F$14*365/12,2)+('Simple Bill Insert Calc'!M17*2)/12 -> 108.7544644 | M43: =D$22*I28+ROUND($F$14*365/12,2)+('Simple Bill Insert Calc'!M17*2)/12 -> 182.7510562 | N43: =D$22*J28+ROUND($F$14*365/12,2)+('Simple Bill Insert Calc'!M17*2)/12 -> 108.1753247 | O43: =E$22*I28+ROUND($F$14*365/12,2)+('Simple Bill Insert Calc'!M17*2)/12 -> 182.7510562 | P43: =E$22*J28+ROUND($F$14*365/12,2)+('Simple Bill Insert Calc'!M17*2)/12 -> 108.1753247 | R43: 14 hot | S43: =C$28*I28+ROUND($P$14*365/12,2)+('Simple Bill Insert Calc'!M17*2)/12 -> 119.9647704 | T43: =C$28*J28+ROUND($P$14*365/12,2)+('Simple Bill Insert Calc'!M17*2)/12 -> 69.1810643 | U43: =D$28*I28+ROUND($P$14*365/12,2)+('Simple Bill Insert Calc'!M17*2)/12 -> 119.3282034 | V43: =D$28*J28+ROUND($P$14*365/12,2)+('Simple Bill Insert Calc'!M17*2)/12 -> 68.78652539 | W43: =E$28*I28+ROUND($P$14*365/12,2)+('Simple Bill Insert Calc'!M17*2)/12 -> 119.3282034 | X43: =E$28*J28+ROUND($P$14*365/12,2)+('Simple Bill Insert Calc'!M17*2)/12 -> 68.78652539
B44: 15 hot | C44: =C$22*MIN(I29,P29)+IF(P29-I29>0,C$23*(P29-I29))+ROUND($F$14*365/12,2)+('Simple Bill Insert Calc'!M17*2)/12 -> 356.9317138 | D44: =C$22*MIN(J29,Q29)+IF(Q29-J29>0,C$23*(Q29-J29))+ROUND($F$14*365/12,2)+('Simple Bill Insert Calc'!M17*2)/12 -> 192.2443679 | E44: =D$22*MIN(I29,P29)+IF(P29-I29>0,D$23*(P29-I29))+ROUND($F$14*365/12,2)+('Simple Bill Insert Calc'!M17*2)/12 -> 355.1758906 | F44: =D$22*MIN(J29,Q29)+IF(Q29-J29>0,D$23*(Q29-J29))+ROUND($F$14*365/12,2)+('Simple Bill Insert Calc'!M17*2)/12 -> 191.2710691 | G44: =E$22*MIN(I29,P29)+IF(P29-I29>0,E$23*(P29-I29))+ROUND($F$14*365/12,2)+('Simple Bill Insert Calc'!M17*2)/12 -> 355.1758906 | H44: =E$22*MIN(J29,Q29)+IF(Q29-J29>0,E$23*(Q29-J29))+ROUND($F$14*365/12,2)+('Simple Bill Insert Calc'!M17*2)/12 -> 191.2710691 | J44: 15 hot | K44: =C$22*I29+ROUND($F$14*365/12,2)+('Simple Bill Insert Calc'!M17*2)/12 -> 448.5101036 | L44: =C$22*J29+ROUND($F$14*365/12,2)+('Simple Bill Insert Calc'!M17*2)/12 -> 86.17251862 | M44: =D$22*I29+ROUND($F$14*365/12,2)+('Simple Bill Insert Calc'!M17*2)/12 -> 446.3200796 | N44: =D$22*J29+ROUND($F$14*365/12,2)+('Simple Bill Insert Calc'!M17*2)/12 -> 85.70044678 | O44: =E$22*I29+ROUND($F$14*365/12,2)+('Simple Bill Insert Calc'!M17*2)/12 -> 446.3200796 | P44: =E$22*J29+ROUND($F$14*365/12,2)+('Simple Bill Insert Calc'!M17*2)/12 -> 85.70044678 | R44: 15 hot | S44: =C$28*I29+ROUND($P$14*365/12,2)+('Simple Bill Insert Calc'!M17*2)/12 -> 299.4469098 | T44: =C$28*J29+ROUND($P$14*365/12,2)+('Simple Bill Insert Calc'!M17*2)/12 -> 53.87638575 | U44: =D$28*I29+ROUND($P$14*365/12,2)+('Simple Bill Insert Calc'!M17*2)/12 -> 297.954956 | V44: =D$28*J29+ROUND($P$14*365/12,2)+('Simple Bill Insert Calc'!M17*2)/12 -> 53.5547868 | W44: =E$28*I29+ROUND($P$14*365/12,2)+('Simple Bill Insert Calc'!M17*2)/12 -> 297.954956 | X44: =E$28*J29+ROUND($P$14*365/12,2)+('Simple Bill Insert Calc'!M17*2)/12 -> 53.5547868
B45: 16 cool | C45: =C$22*MIN(I30,P30)+IF(P30-I30>0,C$23*(P30-I30))+ROUND($F$14*365/12,2)+('Simple Bill Insert Calc'!M17*2)/12 -> 166.4309682 | D45: =C$22*MIN(J30,Q30)+IF(Q30-J30>0,C$23*(Q30-J30))+ROUND($F$14*365/12,2)+('Simple Bill Insert Calc'!M17*2)/12 -> 137.886122 | E45: =D$22*MIN(I30,P30)+IF(P30-I30>0,D$23*(P30-I30))+ROUND($F$14*365/12,2)+('Simple Bill Insert Calc'!M17*2)/12 -> 165.5788283 | F45: =D$22*MIN(J30,Q30)+IF(Q30-J30>0,D$23*(Q30-J30))+ROUND($F$14*365/12,2)+('Simple Bill Insert Calc'!M17*2)/12 -> 137.1692431 | G45: =E$22*MIN(I30,P30)+IF(P30-I30>0,E$23*(P30-I30))+ROUND($F$14*365/12,2)+('Simple Bill Insert Calc'!M17*2)/12 -> 165.5788283 | H45: =E$22*MIN(J30,Q30)+IF(Q30-J30>0,E$23*(Q30-J30))+ROUND($F$14*365/12,2)+('Simple Bill Insert Calc'!M17*2)/12 -> 137.1692431 | J45: 16 cool | K45: =C$22*I30+ROUND($F$14*365/12,2)+('Simple Bill Insert Calc'!M17*2)/12 -> 137.4951227 | L45: =C$22*J30+ROUND($F$14*365/12,2)+('Simple Bill Insert Calc'!M17*2)/12 -> 113.8867248 | M45: =D$22*I30+ROUND($F$14*365/12,2)+('Simple Bill Insert Calc'!M17*2)/12 -> 136.7797149 | N45: =D$22*J30+ROUND($F$14*365/12,2)+('Simple Bill Insert Calc'!M17*2)/12 -> 113.2832516 | O45: =E$22*I30+ROUND($F$14*365/12,2)+('Simple Bill Insert Calc'!M17*2)/12 -> 136.7797149 | P45: =E$22*J30+ROUND($F$14*365/12,2)+('Simple Bill Insert Calc'!M17*2)/12 -> 113.2832516 | R45: 16 cool | S45: =C$28*I30+ROUND($P$14*365/12,2)+('Simple Bill Insert Calc'!M17*2)/12 -> 88.6597461 | T45: =C$28*J30+ROUND($P$14*365/12,2)+('Simple Bill Insert Calc'!M17*2)/12 -> 72.65940033 | U45: =D$28*I30+ROUND($P$14*365/12,2)+('Simple Bill Insert Calc'!M17*2)/12 -> 88.1723745 | V45: =D$28*J30+ROUND($P$14*365/12,2)+('Simple Bill Insert Calc'!M17*2)/12 -> 72.24828416 | W45: =E$28*I30+ROUND($P$14*365/12,2)+('Simple Bill Insert Calc'!M17*2)/12 -> 88.1723745 | X45: =E$28*J30+ROUND($P$14*365/12,2)+('Simple Bill Insert Calc'!M17*2)/12 -> 72.24828416
B46: ALL | C46: =SUMPRODUCT(C37:C45,$T$22:$T$30) -> 222.2894692 | D46: 151.1264869 | E46: 221.1730001 | F46: 150.3471977 | G46: 221.1730001 | H46: 150.3471977 | J46: ALL | K46: =SUMPRODUCT(K37:K45,$T$22:$T$30) -> 164.3163851 | L46: 104.1833251 | M46: 163.4738096 | N46: 103.6258586 | O46: 163.4738096 | P46: 103.6258586 | R46: ALL | S46: =SUMPRODUCT(S37:S45,$U$22:$U$30) -> 117.4027006 | T46: =SUMPRODUCT(T37:T45,$U$22:$U$30) -> 67.64500689 | U46: 116.7783441 | V46: 67.25778862 | W46: 116.7783441 | X46: 67.25778862
C49: CARE | K49: Essential Use (All-Electric) - Non-CARE | S49: Essential Use (All-Electric) - CARE
C50: =C27 -> Jan 2024 | E50: =D27 -> 2024-06-01 | G50: =E27 -> Proposed | K50: =C50 -> Jan 2024 | M50: =E50 -> 2024-06-01 | O50: =G50 -> Proposed | S50: =K50 -> Jan 2024 | U50: =M50 -> 2024-06-01 | W50: =O50 -> Proposed
C51: Summer | D51: Winter | E51: Summer | F51: Winter | G51: Summer | H51: Winter | K51: Summer | L51: Winter | M51: Summer | N51: Winter | O51: Summer | P51: Winter | S51: Summer | T51: Winter | U51: Summer | V51: Winter | W51: Summer | X51: Winter
B52: 5 warm | C52: =C$28*MIN(I22,R22)+IF(R22-I22>0,C$29*(R22-I22))+ROUND($P$14*365/12,2)+('Simple Bill Insert Calc'!M17*2)/12 -> 72.26929933 | D52: =C$28*MIN(J22,S22)+IF(S22-J22>0,C$29*(S22-J22))+ROUND($P$14*365/12,2)+('Simple Bill Insert Calc'!M17*2)/12 -> 72.64338235 | E52: =D$28*MIN(I22,R22)+IF(R22-I22>0,D$29*(R22-I22))+ROUND($P$14*365/12,2)+('Simple Bill Insert Calc'!M17*2)/12 -> 71.86004232 | F52: =D$28*MIN(J22,S22)+IF(S22-J22>0,D$29*(S22-J22))+ROUND($P$14*365/12,2)+('Simple Bill Insert Calc'!M17*2)/12 -> 72.23234252 | G52: =E$28*MIN(I22,R22)+IF(R22-I22>0,E$29*(R22-I22))+ROUND($P$14*365/12,2)+('Simple Bill Insert Calc'!M17*2)/12 -> 71.86004232 | H52: =E$28*MIN(J22,S22)+IF(S22-J22>0,E$29*(S22-J22))+ROUND($P$14*365/12,2)+('Simple Bill Insert Calc'!M17*2)/12 -> 72.23234252 | J52: 5 warm | K52: =C$22*K22+ROUND($F$14*365/12,2)+('Simple Bill Insert Calc'!M17*2)/12 -> 159.0506164 | L52: =C$22*L22+ROUND($F$14*365/12,2)+('Simple Bill Insert Calc'!M17*2)/12 -> 263.7487288 | M52: =D$22*K22+ROUND($F$14*365/12,2)+('Simple Bill Insert Calc'!M17*2)/12 -> 158.2330075 | N52: =D$22*L22+ROUND($F$14*365/12,2)+('Simple Bill Insert Calc'!M17*2)/12 -> 262.4347144 | O52: =E$22*K22+ROUND($F$14*365/12,2)+('Simple Bill Insert Calc'!M17*2)/12 -> 158.2330075 | P52: =E$22*L22+ROUND($F$14*365/12,2)+('Simple Bill Insert Calc'!M17*2)/12 -> 262.4347144 | R52: 5 warm | S52: =C$28*K22+ROUND($P$14*365/12,2)+('Simple Bill Insert Calc'!M17*2)/12 -> 103.2687574 | T52: =C$28*L22+ROUND($P$14*365/12,2)+('Simple Bill Insert Calc'!M17*2)/12 -> 174.2268126 | U52: =D$28*K22+ROUND($P$14*365/12,2)+('Simple Bill Insert Calc'!M17*2)/12 -> 102.7117613 | V52: =D$28*L22+ROUND($P$14*365/12,2)+('Simple Bill Insert Calc'!M17*2)/12 -> 173.3316402 | W52: =E$28*K22+ROUND($P$14*365/12,2)+('Simple Bill Insert Calc'!M17*2)/12 -> 102.7117613 | X52: =E$28*L22+ROUND($P$14*365/12,2)+('Simple Bill Insert Calc'!M17*2)/12 -> 173.3316402
B53: 6 cool | C53: =C$28*MIN(I23,R23)+IF(R23-I23>0,C$29*(R23-I23))+ROUND($P$14*365/12,2)+('Simple Bill Insert Calc'!M17*2)/12 -> 77.4548568 | D53: =C$28*MIN(J23,S23)+IF(S23-J23>0,C$29*(S23-J23))+ROUND($P$14*365/12,2)+('Simple Bill Insert Calc'!M17*2)/12 -> 70.24167309 | E53: =D$28*MIN(I23,R23)+IF(R23-I23>0,D$29*(R23-I23))+ROUND($P$14*365/12,2)+('Simple Bill Insert Calc'!M17*2)/12 -> 77.02124374 | F53: =D$28*MIN(J23,S23)+IF(S23-J23>0,D$29*(S23-J23))+ROUND($P$14*365/12,2)+('Simple Bill Insert Calc'!M17*2)/12 -> 69.84230225 | G53: =E$28*MIN(I23,R23)+IF(R23-I23>0,E$29*(R23-I23))+ROUND($P$14*365/12,2)+('Simple Bill Insert Calc'!M17*2)/12 -> 77.02124374 | H53: =E$28*MIN(J23,S23)+IF(S23-J23>0,E$29*(S23-J23))+ROUND($P$14*365/12,2)+('Simple Bill Insert Calc'!M17*2)/12 -> 69.84230225 | J53: 6 cool | K53: =C$22*K23+ROUND($F$14*365/12,2)+('Simple Bill Insert Calc'!M17*2)/12 -> 75.9079978 | L53: =C$22*L23+ROUND($F$14*365/12,2)+('Simple Bill Insert Calc'!M17*2)/12 -> 115.939629 | M53: =D$22*K23+ROUND($F$14*365/12,2)+('Simple Bill Insert Calc'!M17*2)/12 -> 75.48459316 | N53: =D$22*L23+ROUND($F$14*365/12,2)+('Simple Bill Insert Calc'!M17*2)/12 -> 115.3264223 | O53: =E$22*K23+ROUND($F$14*365/12,2)+('Simple Bill Insert Calc'!M17*2)/12 -> 75.48459316 | P53: =E$22*L23+ROUND($F$14*365/12,2)+('Simple Bill Insert Calc'!M17*2)/12 -> 115.3264223 | R53: 6 cool | S53: =C$28*K23+ROUND($P$14*365/12,2)+('Simple Bill Insert Calc'!M17*2)/12 -> 46.91971368 | T53: =C$28*L23+ROUND($P$14*365/12,2)+('Simple Bill Insert Calc'!M17*2)/12 -> 74.05073475 | U53: =D$28*K23+ROUND($P$14*365/12,2)+('Simple Bill Insert Calc'!M17*2)/12 -> 46.63126926 | V53: =D$28*L23+ROUND($P$14*365/12,2)+('Simple Bill Insert Calc'!M17*2)/12 -> 73.63298767 | W53: =E$28*K23+ROUND($P$14*365/12,2)+('Simple Bill Insert Calc'!M17*2)/12 -> 46.63126926 | X53: =E$28*L23+ROUND($P$14*365/12,2)+('Simple Bill Insert Calc'!M17*2)/12 -> 73.63298767
B54: 8 cool | C54: =C$28*MIN(I24,R24)+IF(R24-I24>0,C$29*(R24-I24))+ROUND($P$14*365/12,2)+('Simple Bill Insert Calc'!M17*2)/12 -> 97.36307149 | D54: =C$28*MIN(J24,S24)+IF(S24-J24>0,C$29*(S24-J24))+ROUND($P$14*365/12,2)+('Simple Bill Insert Calc'!M17*2)/12 -> 79.07969555 | E54: =D$28*MIN(I24,R24)+IF(R24-I24>0,D$29*(R24-I24))+ROUND($P$14*365/12,2)+('Simple Bill Insert Calc'!M17*2)/12 -> 96.83488806 | F54: =D$28*MIN(J24,S24)+IF(S24-J24>0,D$29*(S24-J24))+ROUND($P$14*365/12,2)+('Simple Bill Insert Calc'!M17*2)/12 -> 78.63862101 | G54: =E$28*MIN(I24,R24)+IF(R24-I24>0,E$29*(R24-I24))+ROUND($P$14*365/12,2)+('Simple Bill Insert Calc'!M17*2)/12 -> 96.83488806 | H54: =E$28*MIN(J24,S24)+IF(S24-J24>0,E$29*(S24-J24))+ROUND($P$14*365/12,2)+('Simple Bill Insert Calc'!M17*2)/12 -> 78.63862101 | J54: 8 cool | K54: =C$22*K24+ROUND($F$14*365/12,2)+('Simple Bill Insert Calc'!M17*2)/12 -> 88.22542278 | L54: =C$22*L24+ROUND($F$14*365/12,2)+('Simple Bill Insert Calc'!M17*2)/12 -> 112.8602728 | M54: =D$22*K24+ROUND($F$14*365/12,2)+('Simple Bill Insert Calc'!M17*2)/12 -> 87.7436175 | N54: =D$22*L24+ROUND($F$14*365/12,2)+('Simple Bill Insert Calc'!M17*2)/12 -> 112.2616662 | O54: =E$22*K24+ROUND($F$14*365/12,2)+('Simple Bill Insert Calc'!M17*2)/12 -> 87.7436175 | P54: =E$22*L24+ROUND($F$14*365/12,2)+('Simple Bill Insert Calc'!M17*2)/12 -> 112.2616662 | R54: 8 cool | S54: =C$28*K24+ROUND($P$14*365/12,2)+('Simple Bill Insert Calc'!M17*2)/12 -> 55.26772016 | T54: =C$28*L24+ROUND($P$14*365/12,2)+('Simple Bill Insert Calc'!M17*2)/12 -> 71.96373313 | U54: =D$28*K24+ROUND($P$14*365/12,2)+('Simple Bill Insert Calc'!M17*2)/12 -> 54.93949031 | V54: =D$28*L24+ROUND($P$14*365/12,2)+('Simple Bill Insert Calc'!M17*2)/12 -> 71.55593241 | W54: =E$28*K24+ROUND($P$14*365/12,2)+('Simple Bill Insert Calc'!M17*2)/12 -> 54.93949031 | X54: =E$28*L24+ROUND($P$14*365/12,2)+('Simple Bill Insert Calc'!M17*2)/12 -> 71.55593241
B55: 9 warm | C55: =C$28*MIN(I25,R25)+IF(R25-I25>0,C$29*(R25-I25))+ROUND($P$14*365/12,2)+('Simple Bill Insert Calc'!M17*2)/12 -> 128.7742739 | D55: =C$28*MIN(J25,S25)+IF(S25-J25>0,C$29*(S25-J25))+ROUND($P$14*365/12,2)+('Simple Bill Insert Calc'!M17*2)/12 -> 88.67061665 | E55: =D$28*MIN(I25,R25)+IF(R25-I25>0,D$29*(R25-I25))+ROUND($P$14*365/12,2)+('Simple Bill Insert Calc'!M17*2)/12 -> 128.096477 | F55: =D$28*MIN(J25,S25)+IF(S25-J25>0,D$29*(S25-J25))+ROUND($P$14*365/12,2)+('Simple Bill Insert Calc'!M17*2)/12 -> 88.18376509 | G55: =E$28*MIN(I25,R25)+IF(R25-I25>0,E$29*(R25-I25))+ROUND($P$14*365/12,2)+('Simple Bill Insert Calc'!M17*2)/12 -> 128.096477 | H55: =E$28*MIN(J25,S25)+IF(S25-J25>0,E$29*(S25-J25))+ROUND($P$14*365/12,2)+('Simple Bill Insert Calc'!M17*2)/12 -> 88.18376509 | J55: 9 warm | K55: =C$22*K25+ROUND($F$14*365/12,2)+('Simple Bill Insert Calc'!M17*2)/12 -> 114.9131769 | L55: =C$22*L25+ROUND($F$14*365/12,2)+('Simple Bill Insert Calc'!M17*2)/12 -> 129.2835061 | M55: =D$22*K25+ROUND($F$14*365/12,2)+('Simple Bill Insert Calc'!M17*2)/12 -> 114.3048369 | N55: =D$22*L25+ROUND($F$14*365/12,2)+('Simple Bill Insert Calc'!M17*2)/12 -> 128.607032 | O55: =E$22*K25+ROUND($F$14*365/12,2)+('Simple Bill Insert Calc'!M17*2)/12 -> 114.3048369 | P55: =E$22*L25+ROUND($F$14*365/12,2)+('Simple Bill Insert Calc'!M17*2)/12 -> 128.607032 | R55: 9 warm | S55: =C$28*K25+ROUND($P$14*365/12,2)+('Simple Bill Insert Calc'!M17*2)/12 -> 73.35506754 | T55: =C$28*L25+ROUND($P$14*365/12,2)+('Simple Bill Insert Calc'!M17*2)/12 -> 83.09440844 | U55: =D$28*K25+ROUND($P$14*365/12,2)+('Simple Bill Insert Calc'!M17*2)/12 -> 72.94063592 | V55: =D$28*L25+ROUND($P$14*365/12,2)+('Simple Bill Insert Calc'!M17*2)/12 -> 82.63356047 | W55: =E$28*K25+ROUND($P$14*365/12,2)+('Simple Bill Insert Calc'!M17*2)/12 -> 72.94063592 | X55: =E$28*L25+ROUND($P$14*365/12,2)+('Simple Bill Insert Calc'!M17*2)/12 -> 82.63356047
B56: 10 hot (Sec 745) | C56: =C$28*MIN(I26,R26)+IF(R26-I26>0,C$29*(R26-I26))+ROUND($P$14*365/12,2)+('Simple Bill Insert Calc'!M17*2)/12 -> 180.4754352 | D56: =C$28*MIN(J26,S26)+IF(S26-J26>0,C$29*(S26-J26))+ROUND($P$14*365/12,2)+('Simple Bill Insert Calc'!M17*2)/12 -> 108.4430114 | E56: =D$28*MIN(I26,R26)+IF(R26-I26>0,D$29*(R26-I26))+ROUND($P$14*365/12,2)+('Simple Bill Insert Calc'!M17*2)/12 -> 179.5523029 | F56: =D$28*MIN(J26,S26)+IF(S26-J26>0,D$29*(S26-J26))+ROUND($P$14*365/12,2)+('Simple Bill Insert Calc'!M17*2)/12 -> 107.8625078 | G56: =E$28*MIN(I26,R26)+IF(R26-I26>0,E$29*(R26-I26))+ROUND($P$14*365/12,2)+('Simple Bill Insert Calc'!M17*2)/12 -> 179.5523029 | H56: =E$28*MIN(J26,S26)+IF(S26-J26>0,E$29*(S26-J26))+ROUND($P$14*365/12,2)+('Simple Bill Insert Calc'!M17*2)/12 -> 107.8625078 | J56: 10 hot (Sec 745) | K56: =C$22*K26+ROUND($F$14*365/12,2)+('Simple Bill Insert Calc'!M17*2)/12 -> 149.8125477 | L56: =C$22*L26+ROUND($F$14*365/12,2)+('Simple Bill Insert Calc'!M17*2)/12 -> 154.9448081 | M56: =D$22*K26+ROUND($F$14*365/12,2)+('Simple Bill Insert Calc'!M17*2)/12 -> 149.0387392 | N56: =D$22*L26+ROUND($F$14*365/12,2)+('Simple Bill Insert Calc'!M17*2)/12 -> 154.146666 | O56: =E$22*K26+ROUND($F$14*365/12,2)+('Simple Bill Insert Calc'!M17*2)/12 -> 149.0387392 | P56: =E$22*L26+ROUND($F$14*365/12,2)+('Simple Bill Insert Calc'!M17*2)/12 -> 154.146666 | R56: 10 hot (Sec 745) | S56: =C$28*K26+ROUND($P$14*365/12,2)+('Simple Bill Insert Calc'!M17*2)/12 -> 97.00775258 | T56: =C$28*L26+ROUND($P$14*365/12,2)+('Simple Bill Insert Calc'!M17*2)/12 -> 100.4860886 | U56: =D$28*K26+ROUND($P$14*365/12,2)+('Simple Bill Insert Calc'!M17*2)/12 -> 96.48059555 | V56: =D$28*L26+ROUND($P$14*365/12,2)+('Simple Bill Insert Calc'!M17*2)/12 -> 99.94235432 | W56: =E$28*K26+ROUND($P$14*365/12,2)+('Simple Bill Insert Calc'!M17*2)/12 -> 96.48059555 | X56: =E$28*L26+ROUND($P$14*365/12,2)+('Simple Bill Insert Calc'!M17*2)/12 -> 99.94235432
B57: 13 hot | C57: =C$28*MIN(I27,R27)+IF(R27-I27>0,C$29*(R27-I27))+ROUND($P$14*365/12,2)+('Simple Bill Insert Calc'!M17*2)/12 -> 211.2337221 | D57: =C$28*MIN(J27,S27)+IF(S27-J27>0,C$29*(S27-J27))+ROUND($P$14*365/12,2)+('Simple Bill Insert Calc'!M17*2)/12 -> 104.1804736 | E57: =D$28*MIN(I27,R27)+IF(R27-I27>0,D$29*(R27-I27))+ROUND($P$14*365/12,2)+('Simple Bill Insert Calc'!M17*2)/12 -> 210.164322 | F57: =D$28*MIN(J27,S27)+IF(S27-J27>0,D$29*(S27-J27))+ROUND($P$14*365/12,2)+('Simple Bill Insert Calc'!M17*2)/12 -> 103.6201338 | G57: =E$28*MIN(I27,R27)+IF(R27-I27>0,E$29*(R27-I27))+ROUND($P$14*365/12,2)+('Simple Bill Insert Calc'!M17*2)/12 -> 210.164322 | H57: =E$28*MIN(J27,S27)+IF(S27-J27>0,E$29*(S27-J27))+ROUND($P$14*365/12,2)+('Simple Bill Insert Calc'!M17*2)/12 -> 103.6201338 | J57: 13 hot | K57: =C$22*K27+ROUND($F$14*365/12,2)+('Simple Bill Insert Calc'!M17*2)/12 -> 235.0080705 | L57: =C$22*L27+ROUND($F$14*365/12,2)+('Simple Bill Insert Calc'!M17*2)/12 -> 222.6906455 | M57: =D$22*K27+ROUND($F$14*365/12,2)+('Simple Bill Insert Calc'!M17*2)/12 -> 233.8303243 | N57: =D$22*L27+ROUND($F$14*365/12,2)+('Simple Bill Insert Calc'!M17*2)/12 -> 221.5712999 | O57: =E$22*K27+ROUND($F$14*365/12,2)+('Simple Bill Insert Calc'!M17*2)/12 -> 233.8303243 | P57: =E$22*L27+ROUND($F$14*365/12,2)+('Simple Bill Insert Calc'!M17*2)/12 -> 221.5712999 | R57: 13 hot | S57: =C$28*K27+ROUND($P$14*365/12,2)+('Simple Bill Insert Calc'!M17*2)/12 -> 154.7481308 | T57: =C$28*L27+ROUND($P$14*365/12,2)+('Simple Bill Insert Calc'!M17*2)/12 -> 146.4001243 | U57: =D$28*K27+ROUND($P$14*365/12,2)+('Simple Bill Insert Calc'!M17*2)/12 -> 153.9457911 | V57: =D$28*L27+ROUND($P$14*365/12,2)+('Simple Bill Insert Calc'!M17*2)/12 -> 145.6375701 | W57: =E$28*K27+ROUND($P$14*365/12,2)+('Simple Bill Insert Calc'!M17*2)/12 -> 153.9457911 | X57: =E$28*L27+ROUND($P$14*365/12,2)+('Simple Bill Insert Calc'!M17*2)/12 -> 145.6375701
B58: 14 hot | C58: =C$28*MIN(I28,R28)+IF(R28-I28>0,C$29*(R28-I28))+ROUND($P$14*365/12,2)+('Simple Bill Insert Calc'!M17*2)/12 -> 177.2919255 | D58: =C$28*MIN(J28,S28)+IF(S28-J28>0,C$29*(S28-J28))+ROUND($P$14*365/12,2)+('Simple Bill Insert Calc'!M17*2)/12 -> 114.2828629 | E58: =D$28*MIN(I28,R28)+IF(R28-I28>0,D$29*(R28-I28))+ROUND($P$14*365/12,2)+('Simple Bill Insert Calc'!M17*2)/12 -> 176.3838896 | F58: =D$28*MIN(J28,S28)+IF(S28-J28>0,D$29*(S28-J28))+ROUND($P$14*365/12,2)+('Simple Bill Insert Calc'!M17*2)/12 -> 113.6747474 | G58: =E$28*MIN(I28,R28)+IF(R28-I28>0,E$29*(R28-I28))+ROUND($P$14*365/12,2)+('Simple Bill Insert Calc'!M17*2)/12 -> 176.3838896 | H58: =E$28*MIN(J28,S28)+IF(S28-J28>0,E$29*(S28-J28))+ROUND($P$14*365/12,2)+('Simple Bill Insert Calc'!M17*2)/12 -> 113.6747474 | J58: 14 hot | K58: =C$22*K28+ROUND($F$14*365/12,2)+('Simple Bill Insert Calc'!M17*2)/12 -> 176.5003018 | L58: =C$22*L28+ROUND($F$14*365/12,2)+('Simple Bill Insert Calc'!M17*2)/12 -> 203.188056 | M58: =D$22*K28+ROUND($F$14*365/12,2)+('Simple Bill Insert Calc'!M17*2)/12 -> 175.5999586 | N58: =D$22*L28+ROUND($F$14*365/12,2)+('Simple Bill Insert Calc'!M17*2)/12 -> 202.161178 | O58: =E$22*K28+ROUND($F$14*365/12,2)+('Simple Bill Insert Calc'!M17*2)/12 -> 175.5999586 | P58: =E$22*L28+ROUND($F$14*365/12,2)+('Simple Bill Insert Calc'!M17*2)/12 -> 202.161178 | R58: 14 hot | S58: =C$28*K28+ROUND($P$14*365/12,2)+('Simple Bill Insert Calc'!M17*2)/12 -> 115.0951 | T58: =C$28*L28+ROUND($P$14*365/12,2)+('Simple Bill Insert Calc'!M17*2)/12 -> 133.1824473 | U58: =D$28*K28+ROUND($P$14*365/12,2)+('Simple Bill Insert Calc'!M17*2)/12 -> 114.4817412 | V58: =D$28*L28+ROUND($P$14*365/12,2)+('Simple Bill Insert Calc'!M17*2)/12 -> 132.4828868 | W58: =E$28*K28+ROUND($P$14*365/12,2)+('Simple Bill Insert Calc'!M17*2)/12 -> 114.4817412 | X58: =E$28*L28+ROUND($P$14*365/12,2)+('Simple Bill Insert Calc'!M17*2)/12 -> 132.4828868
B59: 15 hot | C59: =C$28*MIN(I29,R29)+IF(R29-I29>0,C$29*(R29-I29))+ROUND($P$14*365/12,2)+('Simple Bill Insert Calc'!M17*2)/12 -> 257.4344494 | D59: =C$28*MIN(J29,S29)+IF(S29-J29>0,C$29*(S29-J29))+ROUND($P$14*365/12,2)+('Simple Bill Insert Calc'!M17*2)/12 -> 118.4742056 | E59: =D$28*MIN(I29,R29)+IF(R29-I29>0,D$29*(R29-I29))+ROUND($P$14*365/12,2)+('Simple Bill Insert Calc'!M17*2)/12 -> 256.1427211 | F59: =D$28*MIN(J29,S29)+IF(S29-J29>0,D$29*(S29-J29))+ROUND($P$14*365/12,2)+('Simple Bill Insert Calc'!M17*2)/12 -> 117.846708 | G59: =E$28*MIN(I29,R29)+IF(R29-I29>0,E$29*(R29-I29))+ROUND($P$14*365/12,2)+('Simple Bill Insert Calc'!M17*2)/12 -> 256.1427211 | H59: =E$28*MIN(J29,S29)+IF(S29-J29>0,E$29*(S29-J29))+ROUND($P$14*365/12,2)+('Simple Bill Insert Calc'!M17*2)/12 -> 117.846708 | J59: 15 hot | K59: =C$22*K29+ROUND($F$14*365/12,2)+('Simple Bill Insert Calc'!M17*2)/12 -> 232.9551663 | L59: =C$22*L29+ROUND($F$14*365/12,2)+('Simple Bill Insert Calc'!M17*2)/12 -> 165.2093289 | M59: =D$22*K29+ROUND($F$14*365/12,2)+('Simple Bill Insert Calc'!M17*2)/12 -> 231.7871535 | N59: =D$22*L29+ROUND($F$14*365/12,2)+('Simple Bill Insert Calc'!M17*2)/12 -> 164.3625197 | O59: =E$22*K29+ROUND($F$14*365/12,2)+('Simple Bill Insert Calc'!M17*2)/12 -> 231.7871535 | P59: =E$22*L29+ROUND($F$14*365/12,2)+('Simple Bill Insert Calc'!M17*2)/12 -> 164.3625197 | R59: 15 hot | S59: =C$28*K29+ROUND($P$14*365/12,2)+('Simple Bill Insert Calc'!M17*2)/12 -> 153.3567963 | T59: =C$28*L29+ROUND($P$14*365/12,2)+('Simple Bill Insert Calc'!M17*2)/12 -> 107.4427607 | U59: =D$28*K29+ROUND($P$14*365/12,2)+('Simple Bill Insert Calc'!M17*2)/12 -> 152.5610876 | V59: =D$28*L29+ROUND($P$14*365/12,2)+('Simple Bill Insert Calc'!M17*2)/12 -> 106.8658719 | W59: =E$28*K29+ROUND($P$14*365/12,2)+('Simple Bill Insert Calc'!M17*2)/12 -> 152.5610876 | X59: =E$28*L29+ROUND($P$14*365/12,2)+('Simple Bill Insert Calc'!M17*2)/12 -> 106.8658719
B60: 16 cool | C60: =C$28*MIN(I30,R30)+IF(R30-I30>0,C$29*(R30-I30))+ROUND($P$14*365/12,2)+('Simple Bill Insert Calc'!M17*2)/12 -> 155.8050315 | D60: =C$28*MIN(J30,S30)+IF(S30-J30>0,C$29*(S30-J30))+ROUND($P$14*365/12,2)+('Simple Bill Insert Calc'!M17*2)/12 -> 108.2056535 | E60: =D$28*MIN(I30,R30)+IF(R30-I30>0,D$29*(R30-I30))+ROUND($P$14*365/12,2)+('Simple Bill Insert Calc'!M17*2)/12 -> 154.9996979 | F60: =D$28*MIN(J30,S30)+IF(S30-J30>0,D$29*(S30-J30))+ROUND($P$14*365/12,2)+('Simple Bill Insert Calc'!M17*2)/12 -> 107.6262105 | G60: =E$28*MIN(I30,R30)+IF(R30-I30>0,E$29*(R30-I30))+ROUND($P$14*365/12,2)+('Simple Bill Insert Calc'!M17*2)/12 -> 154.9996979 | H60: =E$28*MIN(J30,S30)+IF(S30-J30>0,E$29*(S30-J30))+ROUND($P$14*365/12,2)+('Simple Bill Insert Calc'!M17*2)/12 -> 107.6262105 | J60: 16 cool | K60: =C$22*K30+ROUND($F$14*365/12,2)+('Simple Bill Insert Calc'!M17*2)/12 -> 125.1776977 | L60: =C$22*L30+ROUND($F$14*365/12,2)+('Simple Bill Insert Calc'!M17*2)/12 -> 224.7435497 | M60: =D$22*K30+ROUND($F$14*365/12,2)+('Simple Bill Insert Calc'!M17*2)/12 -> 124.5206905 | N60: =D$22*L30+ROUND($F$14*365/12,2)+('Simple Bill Insert Calc'!M17*2)/12 -> 223.6144707 | O60: =E$22*K30+ROUND($F$14*365/12,2)+('Simple Bill Insert Calc'!M17*2)/12 -> 124.5206905 | P60: =E$22*L30+ROUND($F$14*365/12,2)+('Simple Bill Insert Calc'!M17*2)/12 -> 223.6144707 | R60: 16 cool | S60: =C$28*K30+ROUND($P$14*365/12,2)+('Simple Bill Insert Calc'!M17*2)/12 -> 80.31173961 | T60: =C$28*L30+ROUND($P$14*365/12,2)+('Simple Bill Insert Calc'!M17*2)/12 -> 147.7914587 | U60: =D$28*K30+ROUND($P$14*365/12,2)+('Simple Bill Insert Calc'!M17*2)/12 -> 79.86415346 | V60: =D$28*L30+ROUND($P$14*365/12,2)+('Simple Bill Insert Calc'!M17*2)/12 -> 147.0222736 | W60: =E$28*K30+ROUND($P$14*365/12,2)+('Simple Bill Insert Calc'!M17*2)/12 -> 79.86415346 | X60: =E$28*L30+ROUND($P$14*365/12,2)+('Simple Bill Insert Calc'!M17*2)/12 -> 147.0222736
B61: ALL | C61: =SUMPRODUCT(C52:C60,$U$22:$U$30) -> 163.202156 | D61: 100.7216688 | E61: 162.3609652 | F61: 100.1778183 | G61: 162.3609652 | H61: 100.1778183 | J61: ALL | K61: =SUMPRODUCT(K52:K60,$T$22:$T$30) -> 129.6760166 | L61: 146.141317 | M61: 128.9976815 | N61: 145.3849149 | O61: 128.9976815 | P61: 145.3849149 | R61: ALL | S61: =SUMPRODUCT(S52:S60,$U$22:$U$30) -> 96.12993791 | T61: =SUMPRODUCT(T52:T60,$U$22:$U$30) -> 103.4411186 | U61: 95.60696443 | V61: 102.883301 | W61: 95.60696443 | X61: 102.883301
C64: All-Electric - Non-CARE | J64: ='Simple Bill Insert Calc'!D5 -> 500 | K64: =J64&" kWh Monthly - Non-CARE" -> 500 kWh Monthly - Non-CARE | S64: =J64&" kWh Monthly - CARE" -> 500 kWh Monthly - CARE
C65: =C27 -> Jan 2024 | E65: =D27 -> 2024-06-01 | G65: =E21 -> Proposed | K65: =K50 -> Jan 2024 | M65: =M50 -> 2024-06-01 | O65: =O50 -> Proposed | S65: =S50 -> Jan 2024 | U65: =U50 -> 2024-06-01 | W65: =W50 -> Proposed
C66: Summer | D66: Winter | E66: Summer | F66: Winter | G66: Summer | H66: Winter | K66: Summer | L66: Winter | M66: Summer | N66: Winter | O66: Summer | P66: Winter | S66: Summer | T66: Winter | U66: Summer | V66: Winter | W66: Summer | X66: Winter
